Workbook

Sheet Data
A1: Name | B1: Date | C1: Team | D1: Opponent | E1: G | F1: A | G1: P | H1: G60 | I1: A60 | J1: P60 | K1: PenD | L1: CF% | M1: PDO | N1: PSh% | O1: ZSO%Rel | P1: TOI/Gm | Q1: iHSC | R1: HSCF%Rel | S1: HSCF% | T1: HSCF%off | U1: HSC+/- | V1: HSCF | W1: HSCA | X1: HSCF60 | Y1: HSCA60 | Z1: HSCP60 | AA1: iSC | AB1: SCF%Rel | AC1: SCF% | AD1: SCF%off | AE1: SC+/- | AF1: SCF | AG1: SCA | AH1: SCF60 | AI1: SCA60 | AJ1: SCP60 | AK1: CF%Rel | AL1: CF%off | AM1: C+/- | AN1: CF | AO1: CA | AP1: CF60 | AQ1: CA60 | AR1: CP60 | AS1: OCOn% | AT1: BK | AU1: AB | AV1: iCF | AW1: FF%Rel | AX1: FF% | AY1: FF%off | AZ1: F+/- | BA1: FF | BB1: FA | BC1: FF60 | BD1: FA60 | BE1: FP60 | BF1: OFOn% | BG1: MS | BH1: iFF | BI1: SF%Rel | BJ1: SF% | BK1: SF%off | BL1: S+/- | BM1: SF60 | BN1: SA60 | BO1: SF | BP1: SA | BQ1: iSF | BR1: OCAOn% | BS1: OFAOn% | BT1: GF%Rel | BU1: GF60 | BV1: GF%off | BW1: GA60 | BX1: GF | BY1: GA | BZ1: G+/- | CA1: GF% | CB1: PFenSh% | CC1: OSh% | CD1: OFenSh% | CE1: OSv% | CF1: OFenSv% | CG1: FO%^ | CH1: FO_W | CI1: FO_L | CJ1: ZSO% | CK1: ZSO | CL1: ZSN | CM1: ZSD | CN1: HIT | CO1: HIT- | CP1: A1 | CQ1: A2 | CR1: SH | CS1: GV | CT1: TK | CU1: PN | CV1: PN- | CW1: PenD60 | CX1: TOI | CY1: TOIoff | CZ1: TOI% | DA1: TOIT% | DB1: TOIC% | DC1: CorT% | DD1: CorC% | DE1: tCF60 | DF1: tCA60 | DG1: cCF60 | DH1: cCA60
A2: Nicolas.Petan | B2: 2015-10-08 | C2: WPG | D2: BOS | E2: 1 | F2: 0 | G2: 1 | H2: 5.9 | I2: 0 | J2: 5.9 | K2: 0 | L2: 37.1 | M2: 132 | N2: 100 | O2: 59.4 | P2: 10.2 | Q2: 1 | R2: -30.8 | S2: 28.1 | T2: 58.8 | U2: -1.6 | V2: 1 | W2: 2.6 | X2: 5.9 | Y2: 15 | Z2: 20.9 | AA2: 1 | AB2: -27.9 | AC2: 29.6 | AD2: 57.5 | AE2: -3.1 | AF2: 2.2 | AG2: 5.3 | AH2: 13 | AI2: 30.9 | AJ2: 43.9 | AK2: -19.4 | AL2: 56.5 | AM2: -5.5 | AN2: 7.9 | AO2: 13.4 | AP2: 46.3 | AQ2: 78.6 | AR2: 124.9 | AT2: 0 | AU2: 1 | AV2: 1 | BG2: 0 | BI2: 5.8 | BJ2: 63.7 | BK2: 58 | BL2: 1.3 | BM2: 18.3 | BN2: 10.4 | BO2: 3.1 | BP2: 1.8 | BQ2: 1 | BT2: 33.3 | BU2: 5.9 | BV2: 66.7 | BW2: 0 | BX2: 1 | BY2: 0 | BZ2: 1 | CA2: 100 | CC2: 32 | CE2: 100 | CP2: 0 | CQ2: 0 | CR2: 0 | CW2: 0 | CX2: 10.2 | CY2: 45.5 | CZ2: 18.4 | DA2: 17.1
A3: Nicolas.Petan | B3: 2015-10-09 | C3: WPG | D3: N.J | E3: 0 | F3: 0 | G3: 0 | H3: 0 | I3: 0 | J3: 0 | K3: 0 | L3: 0 | N3: 0 | O3: -14.3 | P3: 6.6 | Q3: 0 | T3: 69.6 | U3: 0 | V3: 0 | W3: 0 | X3: 0 | Y3: 0 | Z3: 0 | AA3: 0 | AB3: -67.9 | AC3: 0 | AD3: 67.9 | AE3: -1.8 | AF3: 0 | AG3: 1.8 | AH3: 0 | AI3: 16.7 | AJ3: 16.7 | AK3: -68.1 | AL3: 68.1 | AM3: -3.9 | AN3: 0 | AO3: 3.9 | AP3: 0 | AQ3: 35.6 | AR3: 35.6 | AT3: 0 | AU3: 0 | AV3: 0 | BG3: 0 | BI3: -71.4 | BJ3: 0 | BK3: 71.4 | BL3: -2.8 | BM3: 0 | BN3: 25.3 | BO3: 0 | BP3: 2.8 | BQ3: 0 | BU3: 0 | BV3: 100 | BW3: 0 | BX3: 0 | BY3: 0 | BZ3: 0 | CE3: 100 | CP3: 0 | CQ3: 0 | CR3: 0 | CW3: 0 | CX3: 6.6 | CY3: 39.6 | CZ3: 14.3 | DA3: 16.9
A4: Nicolas.Petan | B4: 2015-10-12 | C4: WPG | D4: NYI | E4: 0 | F4: 0 | G4: 0 | H4: 0 | I4: 0 | J4: 0 | K4: 0 | L4: 21.9 | M4: 100 | N4: 0 | O4: -15 | P4: 7 | Q4: 1 | R4: 13.4 | S4: 34.4 | T4: 20.9 | U4: -1.7 | V4: 1.8 | W4: 3.5 | X4: 15.8 | Y4: 30.1 | Z4: 45.9 | AA4: 1 | AB4: -16.8 | AC4: 28.8 | AD4: 45.5 | AE4: -2.7 | AF4: 1.8 | AG4: 4.6 | AH4: 15.8 | AI4: 39.1 | AJ4: 54.8 | AK4: -22 | AL4: 43.9 | AM4: -8.7 | AN4: 3.4 | AO4: 12.1 | AP4: 29.2 | AQ4: 103.8 | AR4: 133 | AT4: 1 | AU4: 0 | AV4: 1 | BG4: 0 | BI4: -25.8 | BJ4: 14.5 | BK4: 40.3 | BL4: -4.2 | BM4: 7.4 | BN4: 43.9 | BO4: 0.9 | BP4: 5.1 | BQ4: 0 | BU4: 0 | BV4: 50 | BW4: 0 | BX4: 0 | BY4: 0 | BZ4: 0 | CC4: 0 | CE4: 100 | CP4: 0 | CQ4: 0 | CR4: 0 | CW4: 0 | CX4: 7 | CY4: 35.2 | CZ4: 16.6 | DA4: 17.4
A5: Nicolas.Petan | B5: 2015-10-13 | C5: WPG | D5: NYR | E5: 0 | F5: 0 | G5: 0 | H5: 0 | I5: 0 | J5: 0 | K5: 0 | L5: 58 | M5: 100 | N5: 0 | O5: 66.7 | P5: 5.7 | Q5: 0 | R5: -8.7 | S5: 37.3 | T5: 46 | U5: -0.7 | V5: 1.1 | W5: 1.8 | X5: 11.4 | Y5: 19.2 | Z5: 30.6 | AA5: 0 | AB5: -13.4 | AC5: 27.5 | AD5: 40.9 | AE5: -1.8 | AF5: 1.1 | AG5: 2.8 | AH5: 11.4 | AI5: 30 | AJ5: 41.5 | AK5: 12.1 | AL5: 45.9 | AM5: 2.1 | AN5: 7.6 | AO5: 5.5 | AP5: 80.8 | AQ5: 58.6 | AR5: 139.5 | AT5: 0 | AU5: 0 | AV5: 0 | BG5: 0 | BI5: -6.5 | BJ5: 39.2 | BK5: 45.8 | BL5: -1.6 | BM5: 31.5 | BN5: 48.9 | BO5: 3 | BP5: 4.6 | BQ5: 0 | BU5: 0 | BV5: 0 | BW5: 0 | BX5: 0 | BY5: 0 | BZ5: 0 | CC5: 0 | CE5: 100 | CP5: 0 | CQ5: 0 | CR5: 0 | CW5: 0 | CX5: 5.7 | CY5: 36.9 | CZ5: 13.3 | DA5: 16.7
A6: Nicolas.Petan | B6: 2015-10-16 | C6: WPG | D6: CGY | E6: 0 | F6: 0 | G6: 0 | H6: 0 | I6: 0 | J6: 0 | K6: 0 | L6: 40.9 | M6: 100 | N6: 0 | O6: 7.3 | P6: 7.5 | Q6: 0 | R6: 4.9 | S6: 46.7 | T6: 41.9 | U6: -0.1 | V6: 0.8 | W6: 0.9 | X6: 6.6 | Y6: 7.5 | Z6: 14.1 | AA6: 0 | AB6: -4.1 | AC6: 47.8 | AD6: 51.9 | AE6: -0.3 | AF6: 3.6 | AG6: 3.9 | AH6: 28.7 | AI6: 31.4 | AJ6: 60.1 | AK6: -18.4 | AL6: 59.3 | AM6: -3.1 | AN6: 7.1 | AO6: 10.2 | AP6: 56.9 | AQ6: 82.2 | AR6: 139.1 | AT6: 0 | AU6: 0 | AV6: 0 | BG6: 0 | BI6: -20.1 | BJ6: 40 | BK6: 60 | BL6: -1.4 | BM6: 22.2 | BN6: 33.4 | BO6: 2.8 | BP6: 4.1 | BQ6: 0 | BU6: 0 | BV6: 66.7 | BW6: 0 | BX6: 0 | BY6: 0 | BZ6: 0 | CC6: 0 | CE6: 100 | CP6: 0 | CQ6: 0 | CR6: 0 | CW6: 0 | CX6: 7.5 | CY6: 39.4 | CZ6: 15.9 | DA6: 15.8
A7: Nicolas.Petan | B7: 2015-10-23 | C7: WPG | D7: T.B | E7: 0 | F7: 0 | G7: 0 | H7: 0 | I7: 0 | J7: 0 | K7: 0 | L7: 40.6 | M7: 100 | N7: 0 | O7: -6.7 | P7: 8.9 | Q7: 0 | R7: -20.3 | S7: 38.1 | T7: 58.4 | U7: -1.2 | V7: 2 | W7: 3.2 | X7: 13.3 | Y7: 21.7 | Z7: 35 | AA7: 0 | AB7: -28.1 | AC7: 32.1 | AD7: 60.2 | AE7: -2.2 | AF7: 2 | AG7: 4.2 | AH7: 13.3 | AI7: 28.2 | AJ7: 41.5 | AK7: -17.2 | AL7: 57.9 | AM7: -2.6 | AN7: 5.6 | AO7: 8.1 | AP7: 37.4 | AQ7: 54.7 | AR7: 92.1 | AT7: 0 | AU7: 0 | AV7: 1 | BG7: 0 | BI7: -15.1 | BJ7: 41.2 | BK7: 56.3 | BL7: -1.2 | BM7: 19.2 | BN7: 27.4 | BO7: 2.9 | BP7: 4.1 | BQ7: 1 | BU7: 0 | BV7: 40 | BW7: 0 | BX7: 0 | BY7: 0 | BZ7: 0 | CC7: 0 | CE7: 100 | CP7: 0 | CQ7: 0 | CR7: 1 | CW7: 0 | CX7: 8.9 | CY7: 41.8 | CZ7: 17.6 | DA7: 15.2
A8: Nicolas.Petan | B8: 2015-10-25 | C8: WPG | D8: MIN | E8: 0 | F8: 0 | G8: 0 | H8: 0 | I8: 0 | J8: 0 | K8: 0 | L8: 53.5 | M8: 100 | N8: 0 | O8: 50 | P8: 9.1 | Q8: 0 | R8: -17.9 | S8: 36.4 | T8: 54.2 | U8: -0.8 | V8: 1.1 | W8: 1.9 | X8: 7.1 | Y8: 12.5 | Z8: 19.6 | AA8: 0 | AB8: -32 | AC8: 27 | AD8: 59 | AE8: -1.8 | AF8: 1.1 | AG8: 2.9 | AH8: 7.1 | AI8: 19.3 | AJ8: 26.4 | AK8: -10.1 | AL8: 63.6 | AM8: 0.8 | AN8: 6.4 | AO8: 5.6 | AP8: 42.1 | AQ8: 36.7 | AR8: 78.8 | AT8: 0 | AU8: 0 | AV8: 1 | BG8: 0 | BI8: 6.4 | BJ8: 66.7 | BK8: 60.2 | BL8: 2.7 | BM8: 35.2 | BN8: 17.6 | BO8: 5.3 | BP8: 2.7 | BQ8: 1 | BU8: 0 | BV8: 62.5 | BW8: 0 | BX8: 0 | BY8: 0 | BZ8: 0 | CC8: 0 | CE8: 100 | CP8: 0 | CQ8: 0 | CR8: 1 | CW8: 0 | CX8: 9.1 | CY8: 39.5 | CZ8: 18.7 | DA8: 15.4
A9: Nicolas.Petan | B9: 2015-10-29 | C9: WPG | D9: CHI | E9: 0 | F9: 0 | G9: 0 | H9: 0 | I9: 0 | J9: 0 | K9: 0 | L9: 38.8 | M9: 100 | N9: 0 | O9: 1.5 | P9: 8.1 | Q9: 0 | R9: 2.5 | S9: 49.1 | T9: 46.6 | U9: -0.1 | V9: 1.9 | W9: 1.9 | X9: 13.8 | Y9: 14.3 | Z9: 28 | AA9: 0 | AB9: -22.9 | AC9: 37.1 | AD9: 59.9 | AE9: -1.9 | AF9: 2.7 | AG9: 4.6 | AH9: 20.2 | AI9: 34.3 | AJ9: 54.6 | AK9: -10 | AL9: 48.8 | AM9: -2.8 | AN9: 4.8 | AO9: 7.6 | AP9: 35.9 | AQ9: 56.7 | AR9: 92.6 | AT9: 0 | AU9: 0 | AV9: 0 | BG9: 0 | BI9: -17.5 | BJ9: 33.2 | BK9: 50.7 | BL9: -2.9 | BM9: 20.9 | BN9: 42.1 | BO9: 2.8 | BP9: 5.7 | BQ9: 0 | BU9: 0 | BV9: 100 | BW9: 0 | BX9: 0 | BY9: 0 | BZ9: 0 | CC9: 0 | CE9: 100 | CP9: 0 | CQ9: 0 | CR9: 0 | CW9: 0 | CX9: 8.1 | CY9: 40.7 | CZ9: 16.6 | DA9: 15.3
A10: Nicolas.Petan | B10: 2015-11-01 | C10: WPG | D10: MTL | E10: 0 | F10: 0 | G10: 0 | H10: 0 | I10: 0 | J10: 0 | K10: 0 | L10: 37.2 | M10: 84.5 | N10: 0 | O10: 5 | P10: 9.5 | Q10: 0 | R10: -24.9 | S10: 16.1 | T10: 41.1 | U10: -4.1 | V10: 1 | W10: 5.1 | X10: 6.3 | Y10: 32.6 | Z10: 38.8 | AA10: 0 | AB10: -31.4 | AC10: 23.9 | AD10: 55.3 | AE10: -4.2 | AF10: 1.9 | AG10: 6.2 | AH10: 12.2 | AI10: 39 | AJ10: 51.3 | AK10: -11.5 | AL10: 48.7 | AM10: -3.1 | AN10: 4.5 | AO10: 7.5 | AP10: 28.3 | AQ10: 47.8 | AR10: 76.1 | AT10: 0 | AU10: 0 | AV10: 0 | BG10: 0 | BI10: -37.2 | BJ10: 12.8 | BK10: 49.9 | BL10: -5.5 | BM10: 6 | BN10: 41 | BO10: 0.9 | BP10: 6.5 | BQ10: 0 | BT10: -33.3 | BU10: 0 | BV10: 33.3 | BW10: 6.3 | BX10: 0 | BY10: 1 | BZ10: -1 | CA10: 0 | CC10: 0 | CE10: 84.5 | CP10: 0 | CQ10: 0 | CR10: 0 | CW10: 0 | CX10: 9.5 | CY10: 35.8 | CZ10: 20.9 | DA10: 16.2
A11: Nicolas.Petan | B11: 2015-11-04 | C11: WPG | D11: TOR | E11: 0 | F11: 0 | G11: 0 | H11: 0 | I11: 0 | J11: 0 | K11: 0 | L11: 59.9 | M11: 100 | N11: 0 | O11: 6.9 | P11: 6.8 | Q11: 1 | R11: 46.6 | S11: 100 | T11: 53.4 | U11: 2.9 | V11: 2.9 | W11: 0 | X11: 25.6 | Y11: 0 | Z11: 25.6 | AA11: 3 | AB11: 47.5 | AC11: 100 | AD11: 52.5 | AE11: 6.5 | AF11: 6.5 | AG11: 0 | AH11: 57.5 | AI11: 0 | AJ11: 57.5 | AK11: 3.6 | AL11: 56.4 | AM11: 2.5 | AN11: 7.6 | AO11: 5.1 | AP11: 67.7 | AQ11: 45.2 | AR11: 112.9 | AT11: 2 | AU11: 0 | AV11: 3 | BG11: 1 | BI11: 7.4 | BJ11: 64.5 | BK11: 57 | BL11: 1.4 | BM11: 27.7 | BN11: 15.3 | BO11: 3.1 | BP11: 1.7 | BQ11: 0 | BU11: 0 | BV11: 75 | BW11: 0 | BX11: 0 | BY11: 0 | BZ11: 0 | CC11: 0 | CE11: 100 | CP11: 0 | CQ11: 0 | CR11: 0 | CW11: 0 | CX11: 6.8 | CY11: 45 | CZ11: 13.1 | DA11: 14.2
A12: Nicolas.Petan | B12: 2015-11-05 | C12: WPG | D12: OTT | E12: 0 | F12: 0 | G12: 0 | H12: 0 | I12: 0 | J12: 0 | K12: 0 | L12: 16.9 | M12: 100 | N12: 0 | O12: 17.9 | P12: 6.1 | Q12: 0 | R12: -53 | S12: 0 | T12: 53 | U12: -0.8 | V12: 0 | W12: 0.8 | X12: 0 | Y12: 7.8 | Z12: 7.8 | AA12: 0 | AB12: -56.6 | AC12: 0 | AD12: 56.6 | AE12: -3.7 | AF12: 0 | AG12: 3.7 | AH12: 0 | AI12: 36.4 | AJ12: 36.4 | AK12: -43.4 | AL12: 60.3 | AM12: -7.5 | AN12: 1.9 | AO12: 9.4 | AP12: 18.8 | AQ12: 92.2 | AR12: 111 | AT12: 0 | AU12: 0 | AV12: 1 | BG12: 0 | BI12: -7.7 | BJ12: 50.3 | BK12: 58 | BL12: 0 | BM12: 18.8 | BN12: 18.6 | BO12: 1.9 | BP12: 1.9 | BQ12: 1 | BU12: 0 | BV12: 33.3 | BW12: 0 | BX12: 0 | BY12: 0 | BZ12: 0 | CC12: 0 | CE12: 100 | CP12: 0 | CQ12: 0 | CR12: 1 | CW12: 0 | CX12: 6.1 | CY12: 45.8 | CZ12: 11.8 | DA12: 14.6
A13: Nicolas.Petan | B13: 2015-11-10 | C13: WPG | D13: MIN | E13: 0 | F13: 0 | G13: 0 | H13: 0 | I13: 0 | J13: 0 | K13: 0 | L13: 58.7 | M13: 100 | N13: 0 | O13: 42.5 | P13: 7.2 | Q13: 0 | R13: 9.2 | S13: 54.4 | T13: 45.2 | U13: 0.2 | V13: 1.1 | W13: 0.9 | X13: 9.1 | Y13: 7.6 | Z13: 16.8 | AA13: 0 | AB13: 12.6 | AC13: 60.3 | AD13: 47.7 | AE13: 1.1 | AF13: 3.1 | AG13: 2 | AH13: 26 | AI13: 17.1 | AJ13: 43.1 | AK13: 6.2 | AL13: 52.5 | AM13: 1.7 | AN13: 5.7 | AO13: 4 | AP13: 47.8 | AQ13: 33.6 | AR13: 81.4 | AT13: 1 | AU13: 0 | AV13: 1 | BG13: 0 | BI13: 14.1 | BJ13: 63.6 | BK13: 49.5 | BL13: 0.9 | BM13: 17.5 | BN13: 10 | BO13: 2.1 | BP13: 1.2 | BQ13: 0 | BU13: 0 | BV13: 33.3 | BW13: 0 | BX13: 0 | BY13: 0 | BZ13: 0 | CC13: 0 | CE13: 100 | CP13: 0 | CQ13: 0 | CR13: 0 | CW13: 0 | CX13: 7.2 | CY13: 36.6 | CZ13: 16.3 | DA13: 16.1
A14: Nicolas.Petan | B14: 2015-11-12 | C14: WPG | D14: DAL | E14: 0 | F14: 0 | G14: 0 | H14: 0 | I14: 0 | J14: 0 | K14: 0 | L14: 29 | M14: 68.8 | N14: 0 | O14: -11.1 | P14: 7.8 | Q14: 0 | R14: -23.3 | S14: 18.9 | T14: 42.2 | U14: -2.8 | V14: 0.8 | W14: 3.6 | X14: 6.4 | Y14: 27.5 | Z14: 33.9 | AA14: 0 | AB14: -15.7 | AC14: 27.6 | AD14: 43.3 | AE14: -6.1 | AF14: 3.8 | AG14: 9.8 | AH14: 28.7 | AI14: 75.3 | AJ14: 104 | AK14: -23 | AL14: 52 | AM14: -9 | AN14: 6.2 | AO14: 15.2 | AP14: 47.3 | AQ14: 116.1 | AR14: 163.4 | AT14: 0 | AU14: 0 | AV14: 0 | BG14: 0 | BI14: -28.3 | BJ14: 30 | BK14: 58.3 | BL14: -3.7 | BM14: 21.1 | BN14: 49.1 | BO14: 2.8 | BP14: 6.4 | BQ14: 0 | BT14: -100 | BU14: 0 | BV14: 100 | BW14: 15.3 | BX14: 0 | BY14: 2 | BZ14: -2 | CA14: 0 | CC14: 0 | CE14: 68.8 | CP14: 0 | CQ14: 0 | CR14: 0 | CW14: 0 | CX14: 7.8 | CY14: 37.7 | CZ14: 17.2 | DA14: 16.5
A15: Nicolas.Petan | B15: 2015-11-14 | C15: WPG | D15: NSH | E15: 0 | F15: 0 | G15: 0 | H15: 0 | I15: 0 | J15: 0 | K15: 0 | L15: 59.9 | M15: 100 | N15: 0 | O15: 23.8 | P15: 10 | Q15: 1 | R15: 71.6 | S15: 100 | T15: 28.4 | U15: 3.5 | V15: 3.5 | W15: 0 | X15: 21 | Y15: 0 | Z15: 21 | AA15: 3 | AB15: 68.4 | AC15: 100 | AD15: 31.6 | AE15: 7.3 | AF15: 7.3 | AG15: 0 | AH15: 43.9 | AI15: 0 | AJ15: 43.9 | AK15: 16.9 | AL15: 43 | AM15: 3.3 | AN15: 10.1 | AO15: 6.8 | AP15: 60.7 | AQ15: 40.7 | AR15: 101.4 | AT15: 2 | AU15: 0 | AV15: 4 | BG15: 0 | BI15: 5.3 | BJ15: 40.5 | BK15: 35.1 | BL15: -1.8 | BM15: 22.4 | BN15: 33 | BO15: 3.7 | BP15: 5.5 | BQ15: 2 | BU15: 0 | BV15: 0 | BW15: 0 | BX15: 0 | BY15: 0 | BZ15: 0 | CC15: 0 | CE15: 100 | CP15: 0 | CQ15: 0 | CR15: 2 | CW15: 0 | CX15: 10 | CY15: 34.9 | CZ15: 22.2 | DA15: 16.9
A16: Joseph.Blandisi | B16: 2015-12-11 | C16: N.J | D16: DET | E16: 0 | F16: 0 | G16: 0 | H16: 0 | I16: 0 | J16: 0 | K16: 0 | L16: 51.3 | M16: 100 | N16: 0 | O16: 63.2 | P16: 11.9 | Q16: 3 | R16: -23.1 | S16: 52.6 | T16: 75.8 | U16: 0.4 | V16: 3.8 | W16: 3.4 | X16: 19 | Y16: 17.1 | Z16: 36 | AA16: 3 | AB16: -27.5 | AC16: 40.1 | AD16: 67.6 | AE16: -3.4 | AF16: 6.9 | AG16: 10.3 | AH16: 34.9 | AI16: 52.1 | AJ16: 87.1 | AK16: -9.3 | AL16: 60.5 | AM16: 0.6 | AN16: 12.9 | AO16: 12.2 | AP16: 65 | AQ16: 61.7 | AR16: 126.7 | AT16: 0 | AU16: 0 | AV16: 3 | BG16: 0 | BI16: 0.1 | BJ16: 58.5 | BK16: 58.4 | BL16: 2.7 | BM16: 47.6 | BN16: 33.8 | BO16: 9.4 | BP16: 6.7 | BQ16: 3 | BU16: 0 | BV16: 100 | BW16: 0 | BX16: 0 | BY16: 0 | BZ16: 0 | CC16: 0 | CE16: 100 | CP16: 0 | CQ16: 0 | CR16: 3 | CW16: 0 | CX16: 11.9 | CY16: 35.2 | CZ16: 25.3 | DA16: 17.6
A17: Joseph.Blandisi | B17: 2015-12-13 | C17: N.J | D17: NYI | E17: 0 | F17: 0 | G17: 0 | H17: 0 | I17: 0 | J17: 0 | K17: 0 | L17: 58 | M17: 79.8 | N17: 0 | O17: 2.4 | P17: 11.4 | Q17: 0 | R17: 26.8 | S17: 60.7 | T17: 33.9 | U17: 1 | V17: 2.7 | W17: 1.8 | X17: 14.3 | Y17: 9.3 | Z17: 23.6 | AA17: 0 | AB17: 15.3 | AC17: 57.8 | AD17: 42.4 | AE17: 1 | AF17: 3.6 | AG17: 2.7 | AH17: 19.2 | AI17: 14 | AJ17: 33.3 | AK17: 16.7 | AL17: 41.3 | AM17: 3.1 | AN17: 11.3 | AO17: 8.2 | AP17: 59.7 | AQ17: 43.2 | AR17: 102.8 | AT17: 0 | AU17: 0 | AV17: 0 | BG17: 0 | BI17: 22.4 | BJ17: 59.2 | BK17: 36.8 | BL17: 2.2 | BM17: 37.8 | BN17: 26 | BO17: 7.2 | BP17: 4.9 | BQ17: 0 | BT17: 0 | BU17: 0 | BV17: 0 | BW17: 5.3 | BX17: 0 | BY17: 1 | BZ17: -1 | CA17: 0 | CC17: 0 | CE17: 79.8 | CP17: 0 | CQ17: 0 | CR17: 0 | CW17: 0 | CX17: 11.4 | CY17: 35.6 | CZ17: 24.2 | DA17: 17.4
A18: Joseph.Blandisi | B18: 2015-12-15 | C18: N.J | D18: BUF | E18: 0 | F18: 0 | G18: 0 | H18: 0 | I18: 0 | J18: 0 | K18: 0 | L18: 44 | M18: 100 | N18: 0 | O18: 8.3 | P18: 12 | Q18: 0 | R18: -63.5 | S18: 0 | T18: 63.5 | U18: -1.7 | V18: 0 | W18: 1.7 | X18: 0 | Y18: 8.3 | Z18: 8.3 | AA18: 0 | AB18: -16.8 | AC18: 33.1 | AD18: 50 | AE18: -2.3 | AF18: 2.2 | AG18: 4.5 | AH18: 11.2 | AI18: 22.6 | AJ18: 33.8 | AK18: -8.5 | AL18: 52.6 | AM18: -2.7 | AN18: 10.1 | AO18: 12.8 | AP18: 50.4 | AQ18: 64.1 | AR18: 114.5 | AT18: 0 | AU18: 1 | AV18: 2 | BG18: 2 | BI18: -25.5 | BJ18: 33.8 | BK18: 59.2 | BL18: -3.1 | BM18: 15.9 | BN18: 31.2 | BO18: 3.2 | BP18: 6.2 | BQ18: 0 | BU18: 0 | BV18: 100 | BW18: 0 | BX18: 0 | BY18: 0 | BZ18: 0 | CC18: 0 | CE18: 100 | CP18: 0 | CQ18: 0 | CR18: 0 | CW18: 0 | CX18: 12 | CY18: 36.9 | CZ18: 24.5 | DA18: 16.5
A19: Joseph.Blandisi | B19: 2016-01-10 | C19: N.J | D19: MIN | E19: 0 | F19: 0 | G19: 0 | H19: 0 | I19: 0 | J19: 0 | K19: 0 | L19: 54.1 | M19: 116.1 | N19: 0 | O19: 12.8 | P19: 16.5 | Q19: 0 | R19: 10.2 | S19: 54 | T19: 43.8 | U19: 0.3 | V19: 2.1 | W19: 1.8 | X19: 7.8 | Y19: 6.7 | Z19: 14.5 | AA19: 2 | AB19: -0.5 | AC19: 68.2 | AD19: 68.7 | AE19: 4.3 | AF19: 8 | AG19: 3.8 | AH19: 29.2 | AI19: 13.6 | AJ19: 42.8 | AK19: -7.4 | AL19: 61.6 | AM19: 2.1 | AN19: 14 | AO19: 11.9 | AP19: 50.8 | AQ19: 43.1 | AR19: 93.8 | AT19: 1 | AU19: 0 | AV19: 3 | BG19: 1 | BI19: -3.7 | BJ19: 49.2 | BK19: 52.9 | BL19: -0.2 | BM19: 22.5 | BN19: 23.3 | BO19: 6.2 | BP19: 6.4 | BQ19: 1 | BT19: 50 | BU19: 3.6 | BV19: 50 | BW19: 0 | BX19: 1 | BY19: 0 | BZ19: 1 | CA19: 100 | CC19: 16.1 | CE19: 100 | CP19: 0 | CQ19: 0 | CR19: 1 | CW19: 0 | CX19: 16.5 | CY19: 35.2 | CZ19: 31.9 | DA19: 18
A20: Joseph.Blandisi | B20: 2016-01-12 | C20: N.J | D20: STL | E20: 0 | F20: 1 | G20: 1 | H20: 0 | I20: 5.3 | J20: 5.3 | K20: 0 | L20: 63 | M20: 88.9 | N20: 0 | O20: 22 | P20: 11.4 | Q20: 3 | R20: 71.2 | S20: 84.4 | T20: 13.2 | U20: 4.4 | V20: 5.4 | W20: 1 | X20: 28.4 | Y20: 5.3 | Z20: 33.7 | AA20: 4 | AB20: 41.2 | AC20: 80 | AD20: 38.7 | AE20: 8.9 | AF20: 11.9 | AG20: 3 | AH20: 62.4 | AI20: 15.6 | AJ20: 78 | AK20: 24.4 | AL20: 38.6 | AM20: 7.7 | AN20: 18.7 | AO20: 11 | AP20: 98.1 | AQ20: 57.6 | AR20: 155.8 | AT20: 2 | AU20: 1 | AV20: 7 | BG20: 2 | BI20: 43.5 | BJ20: 68.4 | BK20: 24.9 | BL20: 5.6 | BM20: 55.2 | BN20: 25.5 | BO20: 10.5 | BP20: 4.8 | BQ20: 3 | BT20: 0 | BU20: 5.3 | BV20: 50 | BW20: 5.3 | BX20: 1 | BY20: 1 | BZ20: 0 | CA20: 50 | CC20: 9.5 | CE20: 79.4 | CP20: 0 | CQ20: 1 | CR20: 3 | CW20: 0 | CX20: 11.4 | CY20: 28.3 | CZ20: 28.7 | DA20: 18.1
A21: Joseph.Blandisi | B21: 2016-01-14 | C21: N.J | D21: COL | E21: 0 | F21: 0 | G21: 0 | H21: 0 | I21: 0 | J21: 0 | K21: 0 | L21: 52.4 | M21: 100 | N21: 0 | O21: 41.1 | P21: 15.3 | Q21: 0 | R21: 29.8 | S21: 61.5 | T21: 31.7 | U21: 1.1 | V21: 3 | W21: 1.9 | X21: 11.7 | Y21: 7.3 | Z21: 19 | AA21: 1 | AB21: 16.5 | AC21: 50.4 | AD21: 33.9 | AE21: 0.1 | AF21: 5.8 | AG21: 5.7 | AH21: 22.6 | AI21: 22.3 | AJ21: 44.9 | AK21: 13.4 | AL21: 39 | AM21: 1.2 | AN21: 12.7 | AO21: 11.5 | AP21: 49.6 | AQ21: 45 | AR21: 94.6 | AT21: 0 | AU21: 0 | AV21: 1 | BG21: 0 | BI21: 26.5 | BJ21: 62 | BK21: 35.6 | BL21: 3.2 | BM21: 32.2 | BN21: 19.7 | BO21: 8.2 | BP21: 5 | BQ21: 1 | BU21: 0 | BV21: 0 | BW21: 0 | BX21: 0 | BY21: 0 | BZ21: 0 | CC21: 0 | CE21: 100 | CP21: 0 | CQ21: 0 | CR21: 1 | CW21: 0 | CX21: 15.3 | CY21: 32 | CZ21: 32.4 | DA21: 17.8
A22: Joseph.Blandisi | B22: 2016-01-16 | C22: N.J | D22: ARI | E22: 0 | F22: 1 | G22: 1 | H22: 0 | I22: 5.4 | J22: 5.4 | K22: 0 | L22: 35.6 | M22: 124.7 | N22: 0 | O22: -35 | P22: 11.2 | Q22: 0 | R22: 42.3 | S22: 69.4 | T22: 27 | U22: 1.1 | V22: 2 | W22: 0.9 | X22: 10.7 | Y22: 4.7 | Z22: 15.4 | AA22: 0 | AB22: 5.9 | AC22: 38.8 | AD22: 32.9 | AE22: -2.3 | AF22: 3.9 | AG22: 6.2 | AH22: 21.2 | AI22: 33.3 | AJ22: 54.5 | AK22: 7.3 | AL22: 28.3 | AM22: -4.1 | AN22: 5 | AO22: 9.1 | AP22: 27 | AQ22: 48.9 | AR22: 75.9 | AT22: 0 | AU22: 0 | AV22: 0 | BG22: 0 | BI22: 14.2 | BJ22: 48.6 | BK22: 34.4 | BL22: -0.2 | BM22: 21.7 | BN22: 23 | BO22: 4 | BP22: 4.3 | BQ22: 0 | BT22: 0 | BU22: 5.4 | BV22: 100 | BW22: 0 | BX22: 1 | BY22: 0 | BZ22: 1 | CA22: 100 | CC22: 24.7 | CE22: 100 | CP22: 1 | CQ22: 0 | CR22: 0 | CW22: 0 | CX22: 11.2 | CY22: 29.6 | CZ22: 27.4 | DA22: 18.2
A23: Joseph.Blandisi | B23: 2016-01-19 | C23: N.J | D23: CGY | E23: 0 | F23: 0 | G23: 0 | H23: 0 | I23: 0 | J23: 0 | K23: 0 | L23: 54.1 | M23: 100 | N23: 0 | O23: -47 | P23: 13.2 | Q23: 2 | R23: -10 | S23: 51.1 | T23: 61.1 | U23: 0.3 | V23: 7.1 | W23: 6.8 | X23: 32.2 | Y23: 30.8 | Z23: 63 | AA23: 2 | AB23: -12.2 | AC23: 48.8 | AD23: 61 | AE23: -0.5 | AF23: 9.7 | AG23: 10.2 | AH23: 44.3 | AI23: 46.5 | AJ23: 90.8 | AK23: -10.9 | AL23: 65 | AM23: 2.2 | AN23: 14.9 | AO23: 12.6 | AP23: 67.8 | AQ23: 57.5 | AR23: 125.3 | AT23: 1 | AU23: 0 | AV23: 3 | BG23: 0 | BI23: -14.4 | BJ23: 45.3 | BK23: 59.8 | BL23: -1.5 | BM23: 33.4 | BN23: 40.3 | BO23: 7.3 | BP23: 8.8 | BQ23: 2 | BU23: 0 | BV23: 100 | BW23: 0 | BX23: 0 | BY23: 0 | BZ23: 0 | CC23: 0 | CE23: 100 | CP23: 0 | CQ23: 0 | CR23: 2 | CW23: 0 | CX23: 13.2 | CY23: 36.6 | CZ23: 26.4 | DA23: 18.6
A24: Joseph.Blandisi | B24: 2016-01-21 | C24: N.J | D24: OTT | E24: 0 | F24: 2 | G24: 2 | H24: 0 | I24: 9.7 | J24: 9.7 | K24: -1 | L24: 45.6 | M24: 120.6 | N24: 0 | O24: -16.7 | P24: 12.4 | Q24: 0 | R24: 8 | S24: 32.6 | T24: 24.6 | U24: -2.1 | V24: 2 | W24: 4.1 | X24: 9.7 | Y24: 20 | Z24: 29.7 | AA24: 0 | AB24: 2.2 | AC24: 35.9 | AD24: 33.7 | AE24: -4.1 | AF24: 5.2 | AG24: 9.3 | AH24: 25.2 | AI24: 44.9 | AJ24: 70.1 | AK24: -1.8 | AL24: 47.4 | AM24: -1.9 | AN24: 9.7 | AO24: 11.5 | AP24: 46.7 | AQ24: 55.8 | AR24: 102.5 | AT24: 0 | AU24: 0 | AV24: 0 | BG24: 0 | BI24: -9.4 | BJ24: 35.2 | BK24: 44.6 | BL24: -3.7 | BM24: 21.4 | BN24: 39.4 | BO24: 4.4 | BP24: 8.1 | BQ24: 0 | BT24: -50 | BU24: 9.7 | BV24: 100 | BW24: 9.7 | BX24: 2 | BY24: 2 | BZ24: 0 | CA24: 50 | CC24: 45.2 | CE24: 75.4 | CP24: 2 | CQ24: 0 | CR24: 0 | CW24: -4.8 | CX24: 12.4 | CY24: 37 | CZ24: 25.1 | DA24: 18.2
A25: Joseph.Blandisi | B25: 2016-01-23 | C25: N.J | D25: WPG | E25: 0 | F25: 0 | G25: 0 | H25: 0 | I25: 0 | J25: 0 | K25: 0 | L25: 46.6 | M25: 100 | N25: 0 | O25: -9.3 | P25: 12.8 | Q25: 0 | R25: -26.2 | S25: 24.5 | T25: 50.6 | U25: -2.3 | V25: 1.1 | W25: 3.4 | X25: 5.2 | Y25: 15.9 | Z25: 21.1 | AA25: 0 | AB25: -26.8 | AC25: 38.7 | AD25: 65.5 | AE25: -1.3 | AF25: 2.2 | AG25: 3.4 | AH25: 10.1 | AI25: 15.9 | AJ25: 26 | AK25: -3.2 | AL25: 49.9 | AM25: -1.1 | AN25: 7.4 | AO25: 8.5 | AP25: 34.7 | AQ25: 39.7 | AR25: 74.4 | AT25: 0 | AU25: 1 | AV25: 1 | BG25: 1 | BI25: 16.5 | BJ25: 55.3 | BK25: 38.8 | BL25: 0.8 | BM25: 19.7 | BN25: 16 | BO25: 4.2 | BP25: 3.4 | BQ25: 0 | BU25: 0 | BV25: 100 | BW25: 0 | BX25: 0 | BY25: 0 | BZ25: 0 | CC25: 0 | CE25: 100 | CP25: 0 | CQ25: 0 | CR25: 0 | CW25: 0 | CX25: 12.8 | CY25: 40.7 | CZ25: 24 | DA25: 18.1
A26: Joseph.Blandisi | B26: 2016-01-26 | C26: N.J | D26: PIT | E26: 0 | F26: 0 | G26: 0 | H26: 0 | I26: 0 | J26: 0 | K26: 1 | L26: 46.7 | M26: 100 | N26: 0 | O26: -32 | P26: 14.4 | Q26: 1 | R26: 31.1 | S26: 60.1 | T26: 29 | U26: 1.5 | V26: 4.4 | W26: 2.9 | X26: 18.4 | Y26: 12.2 | Z26: 30.6 | AA26: 2 | AB26: -3.1 | AC26: 40.4 | AD26: 43.5 | AE26: -3 | AF26: 6.3 | AG26: 9.3 | AH26: 26.3 | AI26: 38.8 | AJ26: 65.1 | AK26: 0.7 | AL26: 46 | AM26: -1.8 | AN26: 12.6 | AO26: 14.4 | AP26: 52.7 | AQ26: 60.1 | AR26: 112.7 | AT26: 1 | AU26: 1 | AV26: 4 | BG26: 1 | BI26: -3.7 | BJ26: 42 | BK26: 45.7 | BL26: -2.2 | BM26: 24.1 | BN26: 33.3 | BO26: 5.8 | BP26: 8 | BQ26: 2 | BU26: 0 | BV26: 0 | BW26: 0 | BX26: 0 | BY26: 0 | BZ26: 0 | CC26: 0 | CE26: 100 | CP26: 0 | CQ26: 0 | CR26: 2 | CW26: 4.2 | CX26: 14.4 | CY26: 34.6 | CZ26: 29.4 | DA26: 17.9
A27: Joseph.Blandisi | B27: 2016-02-02 | C27: N.J | D27: NYR | E27: 1 | F27: 0 | G27: 1 | H27: 5.2 | I27: 0 | J27: 5.2 | K27: 0 | L27: 52.5 | M27: 100.8 | N27: 100 | O27: 0 | P27: 11.4 | Q27: 0 | R27: -36.2 | S27: 0 | T27: 36.2 | U27: -2.3 | V27: 0 | W27: 2.3 | X27: 0 | Y27: 11.9 | Z27: 11.9 | AA27: 2 | AB27: 12.3 | AC27: 42.7 | AD27: 30.4 | AE27: -1.4 | AF27: 4 | AG27: 5.4 | AH27: 21 | AI27: 28.2 | AJ27: 49.2 | AK27: 10.9 | AL27: 41.6 | AM27: 1 | AN27: 9.9 | AO27: 8.9 | AP27: 51.8 | AQ27: 46.8 | AR27: 98.6 | AT27: 0 | AU27: 0 | AV27: 2 | BG27: 1 | BI27: 9.8 | BJ27: 49.1 | BK27: 39.2 | BL27: -0.2 | BM27: 25.4 | BN27: 26.4 | BO27: 4.9 | BP27: 5 | BQ27: 1 | BT27: 50 | BU27: 5.2 | BV27: 0 | BW27: 5.2 | BX27: 1 | BY27: 1 | BZ27: 0 | CA27: 50 | CC27: 20.6 | CE27: 80.1 | CP27: 0 | CQ27: 0 | CR27: 0 | CW27: 0 | CX27: 11.4 | CY27: 36.1 | CZ27: 24.1 | DA27: 17.8
A28: Joseph.Blandisi | B28: 2016-02-04 | C28: N.J | D28: TOR | E28: 0 | F28: 1 | G28: 1 | H28: 0 | I28: 5.2 | J28: 5.2 | K28: 2 | L28: 42.3 | M28: 114.1 | N28: 0 | O28: 26.5 | P28: 11.6 | Q28: 0 | R28: -16.6 | S28: 46.9 | T28: 63.5 | U28: -0.4 | V28: 2.9 | W28: 3.3 | X28: 15.1 | Y28: 17 | Z28: 32.1 | AA28: 0 | AB28: 10.4 | AC28: 45.7 | AD28: 35.3 | AE28: -0.9 | AF28: 4.7 | AG28: 5.6 | AH28: 24.5 | AI28: 29.2 | AJ28: 53.7 | AK28: 5.2 | AL28: 37.1 | AM28: -3.6 | AN28: 9.8 | AO28: 13.3 | AP28: 50.4 | AQ28: 68.9 | AR28: 119.3 | AT28: 0 | AU28: 0 | AV28: 1 | BG28: 1 | BI28: 15 | BJ28: 56.3 | BK28: 41.3 | BL28: 1.6 | BM28: 36.6 | BN28: 28.4 | BO28: 7.1 | BP28: 5.5 | BQ28: 0 | BT28: 100 | BU28: 5.2 | BV28: 0 | BW28: 0 | BX28: 1 | BY28: 0 | BZ28: 1 | CA28: 100 | CC28: 14.1 | CE28: 100 | CP28: 0 | CQ28: 1 | CR28: 0 | CW28: 10.3 | CX28: 11.6 | CY28: 30.8 | CZ28: 27.4 | DA28: 18.9
A29: Joseph.Blandisi | B29: 2016-02-06 | C29: N.J | D29: WSH | E29: 0 | F29: 1 | G29: 1 | H29: 0 | I29: 4.5 | J29: 4.5 | K29: 0 | L29: 36.1 | M29: 121.3 | N29: 0 | O29: -8.3 | P29: 13.4 | Q29: 2 | R29: 60 | S29: 100 | T29: 40 | U29: 2 | V29: 2 | W29: 0 | X29: 9 | Y29: 0 | Z29: 9 | AA29: 3 | AB29: 48.7 | AC29: 82.9 | AD29: 34.3 | AE29: 3.8 | AF29: 4.8 | AG29: 1 | AH29: 21.6 | AI29: 4.5 | AJ29: 26.1 | AK29: 0.1 | AL29: 36 | AM29: -7.4 | AN29: 9.7 | AO29: 17.1 | AP29: 43.3 | AQ29: 76.6 | AR29: 119.9 | AT29: 1 | AU29: 0 | AV29: 4 | BG29: 1 | BI29: 4.4 | BJ29: 47 | BK29: 42.6 | BL29: -0.6 | BM29: 21 | BN29: 23.7 | BO29: 4.7 | BP29: 5.3 | BQ29: 2 | BT29: 100 | BU29: 4.5 | BV29: 0 | BW29: 0 | BX29: 1 | BY29: 0 | BZ29: 1 | CA29: 100 | CC29: 21.3 | CE29: 100 | CP29: 1 | CQ29: 0 | CR29: 2 | CW29: 0 | CX29: 13.4 | CY29: 40.4 | CZ29: 24.9 | DA29: 18.1
A30: Joseph.Blandisi | B30: 2016-02-08 | C30: N.J | D30: NYR | E30: 0 | F30: 0 | G30: 0 | H30: 0 | I30: 0 | J30: 0 | K30: 0 | L30: 43.8 | M30: 88.7 | N30: 0 | O30: -27.4 | P30: 17.2 | Q30: 0 | R30: -67.3 | S30: 0 | T30: 67.3 | U30: -2.1 | V30: 0 | W30: 2.1 | X30: 0 | Y30: 7.1 | Z30: 7.1 | AA30: 1 | AB30: -10.8 | AC30: 31.1 | AD30: 41.9 | AE30: -5.3 | AF30: 4.4 | AG30: 9.7 | AH30: 15.3 | AI30: 33.8 | AJ30: 49 | AK30: 2.1 | AL30: 41.7 | AM30: -4.1 | AN30: 14.4 | AO30: 18.5 | AP30: 50.2 | AQ30: 64.3 | AR30: 114.6 | AT30: 2 | AU30: 0 | AV30: 3 | BG30: 0 | BI30: -11.5 | BJ30: 42.1 | BK30: 53.6 | BL30: -2.4 | BM30: 22.3 | BN30: 30.7 | BO30: 6.4 | BP30: 8.8 | BQ30: 1 | BT30: 0 | BU30: 0 | BV30: 0 | BW30: 3.5 | BX30: 0 | BY30: 1 | BZ30: -1 | CA30: 0 | CC30: 0 | CE30: 88.7 | CP30: 0 | CQ30: 0 | CR30: 1 | CW30: 0 | CX30: 17.2 | CY30: 32.4 | CZ30: 34.8 | DA30: 18.7
A31: Joseph.Blandisi | B31: 2016-02-09 | C31: N.J | D31: EDM | E31: 0 | F31: 0 | G31: 0 | H31: 0 | I31: 0 | J31: 0 | K31: 1 | L31: 27.3 | M31: 100 | N31: 0 | O31: 30.8 | P31: 12 | Q31: 0 | R31: -71.9 | S31: 0 | T31: 71.9 | U31: -2.4 | V31: 0 | W31: 2.4 | X31: 0 | Y31: 11.9 | Z31: 11.9 | AA31: 1 | AB31: -37.4 | AC31: 36 | AD31: 73.4 | AE31: -1.6 | AF31: 2 | AG31: 3.6 | AH31: 10.1 | AI31: 18 | AJ31: 28.1 | AK31: -36.1 | AL31: 63.4 | AM31: -5.5 | AN31: 3.3 | AO31: 8.7 | AP31: 16.5 | AQ31: 43.8 | AR31: 60.2 | AT31: 0 | AU31: 0 | AV31: 1 | BG31: 0 | BI31: -56 | BJ31: 13.3 | BK31: 69.3 | BL31: -5.1 | BM31: 4.6 | BN31: 30.4 | BO31: 0.9 | BP31: 6.1 | BQ31: 1 | BU31: 0 | BV31: 0 | BW31: 0 | BX31: 0 | BY31: 0 | BZ31: 0 | CC31: 0 | CE31: 100 | CP31: 0 | CQ31: 0 | CR31: 1 | CW31: 5 | CX31: 12 | CY31: 30.2 | CZ31: 28.4 | DA31: 18.8
A32: Joseph.Blandisi | B32: 2016-02-13 | C32: N.J | D32: PHI | E32: 0 | F32: 0 | G32: 0 | H32: 0 | I32: 0 | J32: 0 | K32: -1 | L32: 61.1 | M32: 100 | N32: 0 | O32: 28.8 | P32: 13.3 | Q32: 1 | R32: 1.1 | S32: 70.5 | T32: 69.4 | U32: 1.2 | V32: 2 | W32: 0.9 | X32: 9.2 | Y32: 3.9 | Z32: 13.1 | AA32: 2 | AB32: 12.7 | AC32: 67.8 | AD32: 55.1 | AE32: 3 | AF32: 5.7 | AG32: 2.7 | AH32: 25.8 | AI32: 12.2 | AJ32: 38 | AK32: 5.3 | AL32: 55.8 | AM32: 3.7 | AN32: 10.3 | AO32: 6.5 | AP32: 46.5 | AQ32: 29.6 | AR32: 76.1 | AT32: 0 | AU32: 0 | AV32: 2 | BG32: 0 | BI32: 9.4 | BJ32: 54.2 | BK32: 44.8 | BL32: 0.6 | BM32: 18 | BN32: 15.2 | BO32: 4 | BP32: 3.4 | BQ32: 2 | BU32: 0 | BW32: 0 | BX32: 0 | BY32: 0 | BZ32: 0 | CC32: 0 | CE32: 100 | CP32: 0 | CQ32: 0 | CR32: 2 | CW32: -4.5 | CX32: 13.3 | CY32: 36.8 | CZ32: 26.5 | DA32: 18.5
A33: Joseph.Blandisi | B33: 2016-02-14 | C33: N.J | D33: L.A | E33: 0 | F33: 0 | G33: 0 | H33: 0 | I33: 0 | J33: 0 | K33: 0 | L33: 23.4 | M33: 100 | N33: 0 | O33: -13.5 | P33: 12.5 | Q33: 0 | R33: 39.6 | S33: 100 | T33: 60.4 | U33: 2.4 | V33: 2.4 | W33: 0 | X33: 11.5 | Y33: 0 | Z33: 11.5 | AA33: 0 | AB33: -20.1 | AC33: 28.9 | AD33: 48.9 | AE33: -3.5 | AF33: 2.4 | AG33: 5.9 | AH33: 11.5 | AI33: 28.3 | AJ33: 39.8 | AK33: -22 | AL33: 45.4 | AM33: -11.3 | AN33: 5 | AO33: 16.2 | AP33: 23.7 | AQ33: 77.8 | AR33: 101.5 | AT33: 1 | AU33: 1 | AV33: 1 | BG33: 0 | BI33: -8.6 | BJ33: 34.4 | BK33: 43 | BL33: -3.2 | BM33: 17.1 | BN33: 32.6 | BO33: 3.6 | BP33: 6.8 | BQ33: 0 | BU33: 0 | BW33: 0 | BX33: 0 | BY33: 0 | BZ33: 0 | CC33: 0 | CE33: 100 | CP33: 0 | CQ33: 0 | CR33: 0 | CW33: 0 | CX33: 12.5 | CY33: 39.6 | CZ33: 24 | DA33: 18.4
A34: Joseph.Blandisi | B34: 2016-02-16 | C34: N.J | D34: PHI | E34: 0 | F34: 0 | G34: 0 | H34: 0 | I34: 0 | J34: 0 | K34: 0 | L34: 42.5 | M34: 106.5 | N34: 0 | O34: 17.1 | P34: 11.3 | Q34: 0 | R34: 28 | S34: 28 | T34: 0 | U34: -1.4 | V34: 0.9 | W34: 2.2 | X34: 4.5 | Y34: 11.7 | Z34: 16.3 | AA34: 0 | AB34: 17 | AC34: 47.7 | AD34: 30.8 | AE34: -0.5 | AF34: 5 | AG34: 5.4 | AH34: 26.3 | AI34: 28.8 | AJ34: 55 | AK34: 0 | AL34: 42.5 | AM34: -2.6 | AN34: 7.2 | AO34: 9.8 | AP34: 38.3 | AQ34: 51.8 | AR34: 90 | AT34: 0 | AU34: 1 | AV34: 0 | BG34: 0 | BI34: -5.7 | BJ34: 30.5 | BK34: 36.2 | BL34: -2.4 | BM34: 10 | BN34: 22.8 | BO34: 1.9 | BP34: 4.3 | BQ34: 0 | BT34: -16.7 | BU34: 5.3 | BV34: 50 | BW34: 10.6 | BX34: 1 | BY34: 2 | BZ34: -1 | CA34: 33.3 | CC34: 52.9 | CE34: 53.6 | CP34: 0 | CQ34: 0 | CR34: 0 | CW34: 0 | CX34: 11.3 | CY34: 27.7 | CZ34: 29.1 | DA34: 18.2
A35: Joseph.Blandisi | B35: 2016-02-19 | C35: N.J | D35: NYI | E35: 0 | F35: 0 | G35: 0 | H35: 0 | I35: 0 | J35: 0 | K35: -1 | L35: 47.1 | M35: 100 | N35: 0 | O35: 62.6 | P35: 17.2 | Q35: 0 | R35: 1.4 | S35: 58.8 | T35: 57.4 | U35: 1.4 | V35: 4.8 | W35: 3.4 | X35: 16.7 | Y35: 11.7 | Z35: 28.4 | AA35: 0 | AB35: -7.8 | AC35: 50.4 | AD35: 58.1 | AE35: 0.1 | AF35: 5.7 | AG35: 5.7 | AH35: 20 | AI35: 19.7 | AJ35: 39.8 | AK35: -3.1 | AL35: 50.2 | AM35: -2 | AN35: 16.3 | AO35: 18.4 | AP35: 57 | AQ35: 64.1 | AR35: 121 | AT35: 1 | AU35: 1 | AV35: 1 | BG35: 0 | BI35: -5 | BJ35: 45.3 | BK35: 50.3 | BL35: -1.7 | BM35: 28.7 | BN35: 34.6 | BO35: 8.2 | BP35: 9.9 | BQ35: 0 | BU35: 0 | BV35: 0 | BW35: 0 | BX35: 0 | BY35: 0 | BZ35: 0 | CC35: 0 | CE35: 100 | CP35: 0 | CQ35: 0 | CR35: 0 | CW35: -3.5 | CX35: 17.2 | CY35: 30.2 | CZ35: 36.3 | DA35: 18.6
A36: Joseph.Blandisi | B36: 2016-02-20 | C36: N.J | D36: WSH | E36: 0 | F36: 0 | G36: 0 | H36: 0 | I36: 0 | J36: 0 | K36: 0 | L36: 42.8 | M36: 73.6 | N36: 0 | O36: 25 | P36: 13 | Q36: 1 | R36: 20.3 | S36: 69.6 | T36: 49.2 | U36: 1.3 | V36: 2.3 | W36: 1 | X36: 10.6 | Y36: 4.6 | Z36: 15.2 | AA36: 2 | AB36: 14.7 | AC36: 52.6 | AD36: 37.9 | AE36: 0.3 | AF36: 3.4 | AG36: 3 | AH36: 15.6 | AI36: 14.1 | AJ36: 29.7 | AK36: -2.8 | AL36: 45.6 | AM36: -2.7 | AN36: 8.1 | AO36: 10.9 | AP36: 37.7 | AQ36: 50.4 | AR36: 88.1 | AT36: 0 | AU36: 0 | AV36: 2 | BG36: 0 | BI36: 18.1 | BJ36: 62.9 | BK36: 44.8 | BL36: 2.6 | BM36: 29.8 | BN36: 17.5 | BO36: 6.4 | BP36: 3.8 | BQ36: 2 | BT36: -50 | BU36: 0 | BV36: 50 | BW36: 4.6 | BX36: 0 | BY36: 1 | BZ36: -1 | CA36: 0 | CC36: 0 | CE36: 73.6 | CP36: 0 | CQ36: 0 | CR36: 2 | CW36: 0 | CX36: 13 | CY36: 38 | CZ36: 25.5 | DA36: 18.3
A37: Joseph.Blandisi | B37: 2016-02-23 | C37: N.J | D37: NYR | E37: 0 | F37: 1 | G37: 1 | H37: 0 | I37: 4.9 | J37: 4.9 | K37: 0 | L37: 66 | M37: 87.1 | N37: 0 | O37: -56.5 | P37: 12.2 | Q37: 2 | R37: 27.4 | S37: 83.6 | T37: 56.3 | U37: 4.1 | V37: 5.1 | W37: 1 | X37: 25.1 | Y37: 4.9 | Z37: 30.1 | AA37: 3 | AB37: 13.7 | AC37: 72.8 | AD37: 59 | AE37: 5.1 | AF37: 8.1 | AG37: 3 | AH37: 39.7 | AI37: 14.8 | AJ37: 54.5 | AK37: 17.7 | AL37: 48.3 | AM37: 6.1 | AN37: 12.5 | AO37: 6.4 | AP37: 61.5 | AQ37: 31.7 | AR37: 93.2 | AT37: 0 | AU37: 0 | AV37: 4 | BG37: 2 | BI37: 13.4 | BJ37: 68 | BK37: 54.6 | BL37: 4.6 | BM37: 42.8 | BN37: 20.2 | BO37: 8.7 | BP37: 4.1 | BQ37: 2 | BT37: -16.7 | BU37: 4.9 | BV37: 66.7 | BW37: 4.9 | BX37: 1 | BY37: 1 | BZ37: 0 | CA37: 50 | CC37: 11.5 | CE37: 75.6 | CP37: 1 | CQ37: 0 | CR37: 2 | CW37: 0 | CX37: 12.2 | CY37: 35.5 | CZ37: 25.6 | DA37: 17.7
A38: Joseph.Blandisi | B38: 2016-02-25 | C38: N.J | D38: CBJ | E38: 0 | F38: 0 | G38: 0 | H38: 0 | I38: 0 | J38: 0 | K38: -1 | L38: 40.9 | M38: 34.6 | N38: 0 | O38: 7.1 | P38: 12.7 | Q38: 1 | R38: -31.1 | S38: 20.4 | T38: 51.5 | U38: -6.2 | V38: 2.1 | W38: 8.3 | X38: 10.1 | Y38: 39.2 | Z38: 49.3 | AA38: 1 | AB38: -23.6 | AC38: 25.6 | AD38: 49.2 | AE38: -6.1 | AF38: 3.2 | AG38: 9.3 | AH38: 15.1 | AI38: 43.8 | AJ38: 58.9 | AK38: -6 | AL38: 46.9 | AM38: -3.3 | AN38: 7.4 | AO38: 10.6 | AP38: 34.8 | AQ38: 50.2 | AR38: 85 | AT38: 0 | AU38: 0 | AV38: 1 | BG38: 0 | BI38: -5.5 | BJ38: 36.5 | BK38: 42 | BL38: -2.6 | BM38: 16.6 | BN38: 28.9 | BO38: 3.5 | BP38: 6.1 | BQ38: 1 | BT38: -50 | BU38: 0 | BV38: 50 | BW38: 18.9 | BX38: 0 | BY38: 4 | BZ38: -4 | CA38: 0 | CC38: 0 | CE38: 34.6 | CP38: 0 | CQ38: 0 | CR38: 1 | CW38: -4.7 | CX38: 12.7 | CY38: 35.8 | CZ38: 26.2 | DA38: 18.3
A39: Joseph.Blandisi | B39: 2016-02-26 | C39: N.J | D39: T.B | E39: 0 | F39: 0 | G39: 0 | H39: 0 | I39: 0 | J39: 0 | K39: 0 | L39: 50.9 | M39: 61.1 | N39: 0 | O39: -8.5 | P39: 10.7 | Q39: 0 | R39: 1.1 | S39: 48.3 | T39: 47.2 | U39: -0.2 | V39: 2.9 | W39: 3.1 | X39: 16.3 | Y39: 17.4 | Z39: 33.7 | AA39: 0 | AB39: 7.9 | AC39: 49.6 | AD39: 41.7 | AE39: -0.1 | AF39: 4 | AG39: 4.1 | AH39: 22.6 | AI39: 23 | AJ39: 45.6 | AK39: 13.4 | AL39: 37.5 | AM39: 0.3 | AN39: 8.1 | AO39: 7.9 | AP39: 45.9 | AQ39: 44.4 | AR39: 90.3 | AT39: 1 | AU39: 0 | AV39: 2 | BG39: 1 | BI39: -5.2 | BJ39: 34.4 | BK39: 39.6 | BL39: -2.4 | BM39: 15.2 | BN39: 28.9 | BO39: 2.7 | BP39: 5.1 | BQ39: 0 | BT39: 0 | BU39: 0 | BV39: 0 | BW39: 11.3 | BX39: 0 | BY39: 2 | BZ39: -2 | CA39: 0 | CC39: 0 | CE39: 61.1 | CP39: 0 | CQ39: 0 | CR39: 0 | CW39: 0 | CX39: 10.7 | CY39: 37.3 | CZ39: 22.2 | DA39: 18.3
A40: Ty.Rattie | B40: 2015-01-30 | C40: STL | D40: CAR | E40: 0 | F40: 0 | G40: 0 | H40: 0 | I40: 0 | J40: 0 | K40: 0 | L40: 66.7 | M40: 100 | N40: 0 | O40: 7.1 | P40: 9.1 | Q40: 0 | R40: 40.7 | S40: 100 | T40: 59.3 | U40: 1 | V40: 1 | W40: 0 | X40: 6.5 | Y40: 0 | Z40: 6.5 | AA40: 0 | AB40: 43.4 | AC40: 100 | AD40: 56.6 | AE40: 3 | AF40: 3 | AG40: 0 | AH40: 19.8 | AI40: 0 | AJ40: 19.8 | AK40: 7.8 | AL40: 58.9 | AM40: 5.1 | AN40: 10.3 | AO40: 5.1 | AP40: 67.9 | AQ40: 33.9 | AR40: 101.8 | AT40: 0 | AU40: 1 | AV40: 1 | BG40: 1 | BI40: -7.5 | BJ40: 51.7 | BK40: 59.2 | BL40: 0.1 | BM40: 13.1 | BN40: 12.3 | BO40: 2 | BP40: 1.9 | BQ40: 0 | BU40: 0 | BV40: 66.7 | BW40: 0 | BX40: 0 | BY40: 0 | BZ40: 0 | CC40: 0 | CE40: 100 | CP40: 0 | CQ40: 0 | CR40: 0 | CW40: 0 | CX40: 9.1 | CY40: 48 | CZ40: 15.9 | DA40: 16.8
A41: Ty.Rattie | B41: 2015-02-01 | C41: STL | D41: WSH | E41: 0 | F41: 0 | G41: 0 | H41: 0 | I41: 0 | J41: 0 | K41: 0 | L41: 42.1 | M41: 100 | N41: 0 | O41: 70 | P41: 6.6 | Q41: 0 | R41: -66.4 | S41: 0 | T41: 66.4 | U41: -1.9 | V41: 0 | W41: 1.9 | X41: 0 | Y41: 17.2 | Z41: 17.2 | AA41: 0 | AB41: -22.2 | AC41: 40 | AD41: 62.2 | AE41: -0.9 | AF41: 1.9 | AG41: 2.8 | AH41: 17.3 | AI41: 25.8 | AJ41: 43.1 | AK41: -15 | AL41: 57.1 | AM41: -1.2 | AN41: 3.1 | AO41: 4.2 | AP41: 28.1 | AQ41: 38.7 | AR41: 66.9 | AT41: 1 | AU41: 0 | AV41: 1 | BG41: 0 | BI41: -38.8 | BJ41: 22.2 | BK41: 61 | BL41: -2.6 | BM41: 9.4 | BN41: 32.8 | BO41: 1 | BP41: 3.6 | BQ41: 0 | BU41: 0 | BV41: 75 | BW41: 0 | BX41: 0 | BY41: 0 | BZ41: 0 | CC41: 0 | CE41: 100 | CP41: 0 | CQ41: 0 | CR41: 0 | CW41: 0 | CX41: 6.6 | CY41: 37.4 | CZ41: 15 | DA41: 17
A42: Ty.Rattie | B42: 2015-02-03 | C42: STL | D42: T.B | E42: 0 | F42: 0 | G42: 0 | H42: 0 | I42: 0 | J42: 0 | K42: -1 | L42: 26.1 | M42: 100 | N42: 0 | O42: 64.3 | P42: 8 | Q42: 0 | R42: -26.4 | S42: 0 | T42: 26.4 | U42: -2.4 | V42: 0 | W42: 2.4 | X42: 0 | Y42: 17.7 | Z42: 17.7 | AA42: 1 | AB42: -28.4 | AC42: 18.8 | AD42: 47.2 | AE42: -3.4 | AF42: 1 | AG42: 4.5 | AH42: 7.7 | AI42: 33.4 | AJ42: 41.1 | AK42: -14.7 | AL42: 40.9 | AM42: -3.6 | AN42: 2 | AO42: 5.5 | AP42: 14.6 | AQ42: 41.3 | AR42: 56 | AT42: 1 | AU42: 0 | AV42: 1 | BG42: 0 | BI42: -2.2 | BJ42: 29.4 | BK42: 31.6 | BL42: -1.4 | BM42: 7.3 | BN42: 17.5 | BO42: 1 | BP42: 2.3 | BQ42: 0 | BU42: 0 | BV42: 50 | BW42: 0 | BX42: 0 | BY42: 0 | BZ42: 0 | CC42: 0 | CE42: 100 | CP42: 0 | CQ42: 0 | CR42: 0 | CW42: -7.5 | CX42: 8 | CY42: 42.3 | CZ42: 15.9 | DA42: 16.4
A43: Ty.Rattie | B43: 2015-02-05 | C43: STL | D43: BUF | E43: 0 | F43: 1 | G43: 1 | H43: 0 | I43: 7.1 | J43: 7.1 | K43: 0 | L43: 72 | M43: 110.5 | N43: 0 | O43: 19 | P43: 8.5 | Q43: 1 | R43: 5.5 | S43: 57.9 | T43: 52.4 | U43: 0.6 | V43: 2.3 | W43: 1.6 | X43: 16 | Y43: 11.7 | Z43: 27.7 | AA43: 3 | AB43: 14.9 | AC43: 78.7 | AD43: 63.7 | AE43: 4.4 | AF43: 6.1 | AG43: 1.6 | AH43: 42.9 | AI43: 11.7 | AJ43: 54.6 | AK43: 11.2 | AL43: 60.8 | AM43: 8.6 | AN43: 14.1 | AO43: 5.5 | AP43: 99.6 | AQ43: 38.8 | AR43: 138.4 | AT43: 0 | AU43: 1 | AV43: 3 | BG43: 0 | BI43: 15.3 | BJ43: 72.6 | BK43: 57.3 | BL43: 5.9 | BM43: 67.3 | BN43: 25.4 | BO43: 9.5 | BP43: 3.6 | BQ43: 3 | BT43: 0 | BU43: 7.1 | BV43: 100 | BW43: 0 | BX43: 1 | BY43: 0 | BZ43: 1 | CA43: 100 | CC43: 10.5 | CE43: 100 | CP43: 0 | CQ43: 1 | CR43: 3 | CW43: 0 | CX43: 8.5 | CY43: 46 | CZ43: 15.6 | DA43: 16.8
A44: Ty.Rattie | B44: 2015-02-08 | C44: STL | D44: CHI | E44: 0 | F44: 0 | G44: 0 | H44: 0 | I44: 0 | J44: 0 | K44: 0 | L44: 50.9 | N44: 0 | O44: 51.6 | P44: 8.8 | Q44: 0 | R44: 55 | S44: 100 | T44: 45 | U44: 2 | V44: 2 | W44: 0 | X44: 13.7 | Y44: 0 | Z44: 13.7 | AA44: 0 | AB44: 57 | AC44: 100 | AD44: 43 | AE44: 2.9 | AF44: 2.9 | AG44: 0 | AH44: 19.5 | AI44: 0 | AJ44: 19.5 | AK44: 6.8 | AL44: 44.2 | AM44: 0.3 | AN44: 7.3 | AO44: 7 | AP44: 49.8 | AQ44: 48 | AR44: 97.7 | AT44: 0 | AU44: 0 | AV44: 1 | BG44: 1 | BI44: 51.6 | BJ44: 100 | BK44: 48.4 | BL44: 1.9 | BM44: 13.2 | BN44: 0 | BO44: 1.9 | BP44: 0 | BQ44: 0 | BU44: 0 | BV44: 50 | BW44: 0 | BX44: 0 | BY44: 0 | BZ44: 0 | CC44: 0 | CP44: 0 | CQ44: 0 | CR44: 0 | CW44: 0 | CX44: 8.8 | CY44: 45 | CZ44: 16.4 | DA44: 16.7
A45: Ty.Rattie | B45: 2015-04-02 | C45: STL | D45: CGY | E45: 0 | F45: 0 | G45: 0 | H45: 0 | I45: 0 | J45: 0 | K45: 0 | L45: 69.3 | M45: 100 | N45: 0 | O45: 42.3 | P45: 8.8 | Q45: 0 | R45: -26.6 | S45: 48.5 | T45: 75.1 | U45: -0.1 | V45: 2.1 | W45: 2.2 | X45: 14.2 | Y45: 15.1 | Z45: 29.3 | AA45: 1 | AB45: -0.2 | AC45: 62.6 | AD45: 62.8 | AE45: 2.2 | AF45: 5.4 | AG45: 3.2 | AH45: 36.8 | AI45: 22 | AJ45: 58.7 | AK45: -0.4 | AL45: 69.7 | AM45: 5 | AN45: 8.9 | AO45: 3.9 | AP45: 61.1 | AQ45: 27 | AR45: 88.1 | AT45: 0 | AU45: 0 | AV45: 1 | BG45: 0 | BI45: -9.3 | BJ45: 68 | BK45: 77.2 | BL45: 2.2 | BM45: 29 | BN45: 13.7 | BO45: 4.2 | BP45: 2 | BQ45: 1 | BU45: 0 | BV45: 66.7 | BW45: 0 | BX45: 0 | BY45: 0 | BZ45: 0 | CC45: 0 | CE45: 100 | CP45: 0 | CQ45: 0 | CR45: 1 | CW45: 0 | CX45: 8.8 | CY45: 37.5 | CZ45: 18.9 | DA45: 16.5
A46: Ty.Rattie | B46: 2015-04-03 | C46: STL | D46: DAL | E46: 0 | F46: 0 | G46: 0 | H46: 0 | I46: 0 | J46: 0 | K46: 0 | L46: 32.3 | N46: 0 | O46: 2.9 | P46: 8.5 | Q46: 0 | R46: -10.5 | S46: 45.7 | T46: 56.1 | U46: -0.2 | V46: 0.8 | W46: 1 | X46: 5.9 | Y46: 7 | Z46: 12.9 | AA46: 0 | AB46: -9.9 | AC46: 31.6 | AD46: 41.4 | AE46: -1 | AF46: 0.8 | AG46: 1.8 | AH46: 5.9 | AI46: 12.8 | AJ46: 18.7 | AK46: -7.9 | AL46: 40.3 | AM46: -1.8 | AN46: 1.7 | AO46: 3.5 | AP46: 11.7 | AQ46: 24.4 | AR46: 36.1 | AT46: 1 | AU46: 0 | AV46: 1 | BG46: 0 | BI46: -43.6 | BJ46: 0 | BK46: 43.6 | BL46: -2 | BM46: 0 | BN46: 13.8 | BO46: 0 | BP46: 2 | BQ46: 0 | BT46: -62.5 | BU46: 0 | BV46: 62.5 | BW46: 7 | BX46: 0 | BY46: 1 | BZ46: -1 | CA46: 0 | CE46: 49 | CP46: 0 | CQ46: 0 | CR46: 0 | CW46: 0 | CX46: 8.5 | CY46: 34.5 | CZ46: 19.8 | DA46: 16.8
A47: Ty.Rattie | B47: 2015-04-05 | C47: STL | D47: CHI | E47: 0 | F47: 1 | G47: 1 | H47: 0 | I47: 7.7 | J47: 7.7 | K47: 0 | L47: 48.7 | M47: 114.6 | N47: 0 | O47: 4.3 | P47: 7.8 | Q47: 0 | R47: 49.1 | S47: 83.9 | T47: 34.9 | U47: 3.3 | V47: 4.1 | W47: 0.8 | X47: 31.5 | Y47: 6 | Z47: 37.6 | AA47: 1 | AB47: 33 | AC47: 69.2 | AD47: 36.2 | AE47: 3.4 | AF47: 6.2 | AG47: 2.7 | AH47: 47.5 | AI47: 21.1 | AJ47: 68.6 | AK47: 7.1 | AL47: 41.6 | AM47: -0.4 | AN47: 6.8 | AO47: 7.2 | AP47: 52.7 | AQ47: 55.4 | AR47: 108.2 | AT47: 0 | AU47: 0 | AV47: 1 | BG47: 0 | BI47: 30.5 | BJ47: 73.4 | BK47: 42.9 | BL47: 4.4 | BM47: 52.7 | BN47: 19.1 | BO47: 6.8 | BP47: 2.5 | BQ47: 1 | BT47: 100 | BU47: 7.7 | BV47: 0 | BW47: 0 | BX47: 1 | BY47: 0 | BZ47: 1 | CA47: 100 | CC47: 14.6 | CE47: 100 | CP47: 1 | CQ47: 0 | CR47: 1 | CW47: 0 | CX47: 7.8 | CY47: 45.3 | CZ47: 14.7 | DA47: 17.5
A48: Ty.Rattie | B48: 2015-04-07 | C48: STL | D48: WPG | E48: 0 | F48: 0 | G48: 0 | H48: 0 | I48: 0 | J48: 0 | K48: 0 | L48: 37.8 | M48: 100 | N48: 0 | O48: 4.4 | P48: 5.8 | Q48: 0 | R48: -48.2 | S48: 0 | T48: 48.2 | U48: -2.2 | V48: 0 | W48: 2.2 | X48: 0 | Y48: 23.3 | Z48: 23.3 | AA48: 0 | AB48: -24.6 | AC48: 22.5 | AD48: 47.1 | AE48: -2.4 | AF48: 1 | AG48: 3.3 | AH48: 10.1 | AI48: 34.9 | AJ48: 45.1 | AK48: -9.6 | AL48: 47.4 | AM48: -3 | AN48: 4.6 | AO48: 7.6 | AP48: 48.2 | AQ48: 79.3 | AR48: 127.5 | AT48: 0 | AU48: 0 | AV48: 0 | BG48: 0 | BI48: -6.2 | BJ48: 41.2 | BK48: 47.4 | BL48: -2 | BM48: 48.2 | BN48: 68.8 | BO48: 4.6 | BP48: 6.6 | BQ48: 0 | BU48: 0 | BV48: 0 | BW48: 0 | BX48: 0 | BY48: 0 | BZ48: 0 | CC48: 0 | CE48: 100 | CP48: 0 | CQ48: 0 | CR48: 0 | CW48: 0 | CX48: 5.8 | CY48: 39.7 | CZ48: 12.7 | DA48: 17.2
A49: Ty.Rattie | B49: 2015-04-09 | C49: STL | D49: CHI | E49: 0 | F49: 0 | G49: 0 | H49: 0 | I49: 0 | J49: 0 | K49: 0 | L49: 27.6 | M49: 100 | N49: 0 | O49: -1.7 | P49: 7.2 | Q49: 1 | R49: -23.6 | S49: 47.3 | T49: 70.8 | U49: -0.1 | V49: 1 | W49: 1.1 | X49: 8.2 | Y49: 9.1 | Z49: 17.3 | AA49: 2 | AB49: -14.5 | AC49: 38.7 | AD49: 53.2 | AE49: -1.2 | AF49: 2 | AG49: 3.2 | AH49: 16.7 | AI49: 26.4 | AJ49: 43.1 | AK49: -20.9 | AL49: 48.5 | AM49: -4.8 | AN49: 3 | AO49: 7.8 | AP49: 24.7 | AQ49: 64.9 | AR49: 89.6 | AT49: 1 | AU49: 2 | AV49: 2 | BG49: 1 | BI49: -30.7 | BJ49: 25.6 | BK49: 56.3 | BL49: -1.9 | BM49: 8.4 | BN49: 24.5 | BO49: 1 | BP49: 2.9 | BQ49: 0 | BU49: 0 | BV49: 100 | BW49: 0 | BX49: 0 | BY49: 0 | BZ49: 0 | CC49: 0 | CE49: 100 | CP49: 0 | CQ49: 0 | CR49: 0 | CW49: 0 | CX49: 7.2 | CY49: 36.4 | CZ49: 16.4 | DA49: 16.8
A50: Ty.Rattie | B50: 2015-04-11 | C50: STL | D50: MIN | E50: 0 | F50: 0 | G50: 0 | H50: 0 | I50: 0 | J50: 0 | K50: 0 | L50: 59.4 | M50: 68 | N50: 0 | O50: 11.1 | P50: 11 | Q50: 2 | R50: 34.9 | S50: 100 | T50: 65.1 | U50: 2.8 | V50: 2.8 | W50: 0 | X50: 15.6 | Y50: 0 | Z50: 15.6 | AA50: 3 | AB50: 0.5 | AC50: 62.1 | AD50: 61.6 | AE50: 2.7 | AF50: 7 | AG50: 4.3 | AH50: 38.2 | AI50: 23.3 | AJ50: 61.5 | AK50: 2.5 | AL50: 56.9 | AM50: 3.8 | AN50: 12.1 | AO50: 8.3 | AP50: 66.2 | AQ50: 45.3 | AR50: 111.5 | AT50: 2 | AU50: 0 | AV50: 5 | BG50: 1 | BI50: 7.8 | BJ50: 63.3 | BK50: 55.4 | BL50: 2.3 | BM50: 29.5 | BN50: 17.1 | BO50: 5.4 | BP50: 3.1 | BQ50: 2 | BT50: -100 | BU50: 0 | BV50: 100 | BW50: 5.5 | BX50: 0 | BY50: 1 | BZ50: -1 | CA50: 0 | CC50: 0 | CE50: 68 | CP50: 0 | CQ50: 0 | CR50: 2 | CW50: 0 | CX50: 11 | CY50: 38.5 | CZ50: 22.1 | DA50: 18
A51: Ty.Rattie | B51: 2015-10-24 | C51: STL | D51: NYI | E51: 0 | F51: 0 | G51: 0 | H51: 0 | I51: 0 | J51: 0 | K51: 0 | L51: 42.7 | M51: 100 | N51: 0 | O51: 36.8 | P51: 5.6 | Q51: 1 | R51: -17.4 | S51: 46.5 | T51: 63.8 | U51: -0.3 | V51: 1.9 | W51: 2.2 | X51: 20.7 | Y51: 23.9 | Z51: 44.6 | AA51: 2 | AB51: -24.3 | AC51: 39.7 | AD51: 63.9 | AE51: -3 | AF51: 5.7 | AG51: 8.6 | AH51: 60.9 | AI51: 92.5 | AJ51: 153.4 | AK51: -22.8 | AL51: 65.6 | AM51: -2.1 | AN51: 6.3 | AO51: 8.4 | AP51: 67.3 | AQ51: 90.2 | AR51: 157.4 | AT51: 0 | AU51: 0 | AV51: 2 | BG51: 1 | BI51: -22 | BJ51: 46.7 | BK51: 68.7 | BL51: -0.5 | BM51: 40 | BN51: 45.6 | BO51: 3.7 | BP51: 4.3 | BQ51: 1 | BU51: 0 | BV51: 66.7 | BW51: 0 | BX51: 0 | BY51: 0 | BZ51: 0 | CC51: 0 | CE51: 100 | CP51: 0 | CQ51: 0 | CR51: 1 | CW51: 0 | CX51: 5.6 | CY51: 40.1 | CZ51: 12.3 | DA51: 17.9
A52: Ty.Rattie | B52: 2015-10-29 | C52: STL | D52: ANA | E52: 0 | F52: 1 | G52: 1 | H52: 0 | I52: 6.5 | J52: 6.5 | K52: -1 | L52: 48.9 | M52: 125.5 | N52: 0 | O52: 25 | P52: 9.2 | Q52: 0 | R52: -58.4 | S52: 0 | T52: 58.4 | U52: -1.1 | V52: 0 | W52: 1.1 | X52: 0 | Y52: 7.5 | Z52: 7.5 | AA52: 0 | AB52: -15.9 | AC52: 48.5 | AD52: 64.4 | AE52: -0.1 | AF52: 1.1 | AG52: 1.1 | AH52: 7 | AI52: 7.5 | AJ52: 14.5 | AK52: -12.7 | AL52: 61.5 | AM52: -0.3 | AN52: 7 | AO52: 7.3 | AP52: 45.8 | AQ52: 48 | AR52: 93.8 | AT52: 1 | AU52: 0 | AV52: 1 | BG52: 0 | BI52: -23.8 | BJ52: 42.5 | BK52: 66.3 | BL52: -1.4 | BM52: 25.7 | BN52: 34.8 | BO52: 3.9 | BP52: 5.3 | BQ52: 0 | BU52: 6.6 | BV52: 100 | BW52: 0 | BX52: 1 | BY52: 0 | BZ52: 1 | CA52: 100 | CC52: 25.5 | CE52: 100 | CP52: 1 | CQ52: 0 | CR52: 0 | CW52: -6.6 | CX52: 9.2 | CY52: 35.4 | CZ52: 20.6 | DA52: 16.4
A53: Ty.Rattie | B53: 2015-10-31 | C53: STL | D53: MIN | E53: 0 | F53: 0 | G53: 0 | H53: 0 | I53: 0 | J53: 0 | K53: 0 | L53: 62.4 | M53: 100 | N53: 0 | O53: 56.7 | P53: 9.4 | Q53: 1 | R53: 15.1 | S53: 63.8 | T53: 48.7 | U53: 0.9 | V53: 2 | W53: 1.1 | X53: 12.5 | Y53: 7.1 | Z53: 19.7 | AA53: 2 | AB53: 18.3 | AC53: 68.2 | AD53: 49.9 | AE53: 4.8 | AF53: 8.9 | AG53: 4.2 | AH53: 56.6 | AI53: 26.4 | AJ53: 83 | AK53: 15.6 | AL53: 46.8 | AM53: 4.7 | AN53: 11.9 | AO53: 7.2 | AP53: 75.9 | AQ53: 45.8 | AR53: 121.7 | AT53: 0 | AU53: 0 | AV53: 3 | BG53: 0 | BI53: 6.3 | BJ53: 57.2 | BK53: 50.9 | BL53: 1.8 | BM53: 44.6 | BN53: 33.4 | BO53: 7 | BP53: 5.3 | BQ53: 3 | BU53: 0 | BV53: 50 | BW53: 0 | BX53: 0 | BY53: 0 | BZ53: 0 | CC53: 0 | CE53: 100 | CP53: 0 | CQ53: 0 | CR53: 3 | CW53: 0 | CX53: 9.4 | CY53: 38.4 | CZ53: 19.7 | DA53: 17.7
A54: Ty.Rattie | B54: 2015-11-03 | C54: STL | D54: L.A | E54: 0 | F54: 0 | G54: 0 | H54: 0 | I54: 0 | J54: 0 | K54: 0 | L54: 50.4 | M54: 100 | N54: 0 | O54: -4.5 | P54: 9.5 | Q54: 0 | R54: -61.5 | S54: 0 | T54: 61.5 | U54: -1.3 | V54: 0 | W54: 1.3 | X54: 0 | Y54: 8.3 | Z54: 8.3 | AA54: 0 | AB54: 6 | AC54: 54.4 | AD54: 48.4 | AE54: 0.4 | AF54: 2.7 | AG54: 2.3 | AH54: 17.1 | AI54: 14.3 | AJ54: 31.4 | AK54: 1.7 | AL54: 48.8 | AM54: 0.1 | AN54: 4.6 | AO54: 4.5 | AP54: 28.8 | AQ54: 28.3 | AR54: 57 | AT54: 0 | AU54: 0 | AV54: 0 | BG54: 0 | BI54: -1.8 | BJ54: 47 | BK54: 48.8 | BL54: -0.4 | BM54: 18.2 | BN54: 20.5 | BO54: 2.9 | BP54: 3.3 | BQ54: 0 | BU54: 0 | BV54: 0 | BW54: 0 | BX54: 0 | BY54: 0 | BZ54: 0 | CC54: 0 | CE54: 100 | CP54: 0 | CQ54: 0 | CR54: 0 | CW54: 0 | CX54: 9.5 | CY54: 33.2 | CZ54: 22.3 | DA54: 17.4
A55: Ty.Rattie | B55: 2015-11-04 | C55: STL | D55: CHI | E55: 0 | F55: 0 | G55: 0 | H55: 0 | I55: 0 | J55: 0 | K55: 0 | L55: 38 | M55: 39.9 | N55: 0 | P55: 6.5 | Q55: 0 | R55: -49.9 | S55: 0 | T55: 49.9 | U55: -2 | V55: 0 | W55: 2 | X55: 0 | Y55: 18.2 | Z55: 18.2 | AA55: 0 | AB55: -54.6 | AC55: 0 | AD55: 54.6 | AE55: -5.9 | AF55: 0 | AG55: 5.9 | AH55: 0 | AI55: 54.7 | AJ55: 54.7 | AK55: -3.4 | AL55: 41.4 | AM55: -2.8 | AN55: 4.3 | AO55: 7.1 | AP55: 40.1 | AQ55: 65.6 | AR55: 105.7 | AT55: 0 | AU55: 0 | AV55: 1 | BG55: 1 | BI55: -16.1 | BJ55: 26.8 | BK55: 42.9 | BL55: -3.2 | BM55: 16.9 | BN55: 46.2 | BO55: 1.8 | BP55: 5 | BQ55: 0 | BU55: 0 | BV55: 100 | BW55: 27.8 | BX55: 0 | BY55: 3 | BZ55: -3 | CA55: 0 | CC55: 0 | CE55: 39.9 | CP55: 0 | CQ55: 0 | CR55: 0 | CW55: 0 | CX55: 6.5 | CY55: 44.6 | CZ55: 12.7 | DA55: 17.4
A56: Ty.Rattie | B56: 2016-01-12 | C56: STL | D56: N.J | E56: 1 | F56: 0 | G56: 1 | H56: 6.2 | I56: 0 | J56: 6.2 | K56: 0 | L56: 61.7 | M56: 114.2 | N56: 100 | O56: -19.4 | P56: 9.6 | Q56: 1 | R56: 45.2 | S56: 100 | T56: 54.8 | U56: 1 | V56: 1 | W56: 0 | X56: 6.2 | Y56: 0 | Z56: 6.2 | AA56: 2 | AB56: 17.6 | AC56: 58.8 | AD56: 41.3 | AE56: 1.8 | AF56: 6 | AG56: 4.2 | AH56: 37 | AI56: 25.9 | AJ56: 63 | AK56: 12.3 | AL56: 49.5 | AM56: 4.9 | AN56: 13 | AO56: 8.1 | AP56: 80.9 | AQ56: 50.1 | AR56: 131 | AT56: 0 | AU56: 0 | AV56: 2 | BG56: 1 | BI56: 13.9 | BJ56: 70.6 | BK56: 56.7 | BL56: 4.1 | BM56: 43.7 | BN56: 18.2 | BO56: 7 | BP56: 2.9 | BQ56: 1 | BU56: 6.2 | BV56: 33.3 | BW56: 0 | BX56: 1 | BY56: 0 | BZ56: 1 | CA56: 100 | CC56: 14.2 | CE56: 100 | CP56: 0 | CQ56: 0 | CR56: 0 | CW56: 0 | CX56: 9.6 | CY56: 30.1 | CZ56: 24.3 | DA56: 17.1
A57: Ty.Rattie | B57: 2016-01-16 | C57: STL | D57: MTL | E57: 1 | F57: 0 | G57: 1 | H57: 5.5 | I57: 0 | J57: 5.5 | K57: 1 | L57: 44.7 | M57: 151 | N57: 50 | O57: 18.4 | P57: 10.9 | Q57: 1 | R57: -2.8 | S57: 47.4 | T57: 50.2 | U57: -0.2 | V57: 2 | W57: 2.2 | X57: 11 | Y57: 12.2 | Z57: 23.1 | AA57: 3 | AB57: 9.1 | AC57: 63.3 | AD57: 54.2 | AE57: 1.6 | AF57: 3.8 | AG57: 2.2 | AH57: 21 | AI57: 12.2 | AJ57: 33.2 | AK57: 2.4 | AL57: 42.2 | AM57: -1.4 | AN57: 6 | AO57: 7.4 | AP57: 32.9 | AQ57: 40.7 | AR57: 73.6 | AT57: 0 | AU57: 0 | AV57: 3 | BG57: 1 | BI57: 12 | BJ57: 43.2 | BK57: 31.2 | BL57: -1.2 | BM57: 21.5 | BN57: 28.3 | BO57: 3.9 | BP57: 5.2 | BQ57: 2 | BU57: 11 | BV57: 33.3 | BW57: 0 | BX57: 2 | BY57: 0 | BZ57: 2 | CA57: 100 | CC57: 51 | CE57: 100 | CP57: 0 | CQ57: 0 | CR57: 1 | CW57: 5.5 | CX57: 10.9 | CY57: 32.2 | CZ57: 25.4 | DA57: 18.6
A58: Ty.Rattie | B58: 2016-01-18 | C58: STL | D58: PIT | E58: 0 | F58: 0 | G58: 0 | H58: 0 | I58: 0 | J58: 0 | K58: 0 | L58: 39 | M58: 80.4 | N58: 0 | O58: -9.5 | P58: 11.6 | Q58: 0 | R58: 10.5 | S58: 55.7 | T58: 45.2 | U58: 0.3 | V58: 1.4 | W58: 1.1 | X58: 7.4 | Y58: 5.9 | Z58: 13.3 | AA58: 1 | AB58: 11.2 | AC58: 51.2 | AD58: 40 | AE58: 0.2 | AF58: 3.5 | AG58: 3.3 | AH58: 17.9 | AI58: 17.1 | AJ58: 35 | AK58: 1.5 | AL58: 37.5 | AM58: -4 | AN58: 7.1 | AO58: 11.1 | AP58: 36.7 | AQ58: 57.4 | AR58: 94 | AT58: 0 | AU58: 0 | AV58: 3 | BG58: 0 | BI58: 7.9 | BJ58: 47.1 | BK58: 39.3 | BL58: -0.6 | BM58: 23.5 | BN58: 26.4 | BO58: 4.5 | BP58: 5.1 | BQ58: 3 | BU58: 0 | BV58: 80 | BW58: 5.2 | BX58: 0 | BY58: 1 | BZ58: -1 | CA58: 0 | CC58: 0 | CE58: 80.4 | CP58: 0 | CQ58: 0 | CR58: 3 | CW58: 0 | CX58: 11.6 | CY58: 36.1 | CZ58: 24.3 | DA58: 18.5
A59: Ty.Rattie | B59: 2016-01-20 | C59: STL | D59: DET | E59: 1 | F59: 0 | G59: 1 | H59: 7.7 | I59: 0 | J59: 7.7 | K59: 0 | L59: 36.9 | M59: 132.6 | N59: 100 | O59: -33.3 | P59: 7.8 | Q59: 1 | R59: 1.5 | S59: 44.2 | T59: 42.8 | U59: -0.5 | V59: 2 | W59: 2.5 | X59: 15.5 | Y59: 19.6 | Z59: 35.1 | AA59: 2 | AB59: 23 | AC59: 62.4 | AD59: 39.5 | AE59: 1.7 | AF59: 4.2 | AG59: 2.5 | AH59: 32.5 | AI59: 19.6 | AJ59: 52.1 | AK59: -5.8 | AL59: 42.7 | AM59: -3 | AN59: 4.3 | AO59: 7.3 | AP59: 33 | AQ59: 56.5 | AR59: 89.5 | AT59: 0 | AU59: 0 | AV59: 2 | BG59: 1 | BI59: -18 | BJ59: 32.5 | BK59: 50.5 | BL59: -3.3 | BM59: 23.6 | BN59: 49 | BO59: 3.1 | BP59: 6.4 | BQ59: 1 | BU59: 7.7 | BV59: 100 | BW59: 0 | BX59: 1 | BY59: 0 | BZ59: 1 | CA59: 100 | CC59: 32.6 | CE59: 100 | CP59: 0 | CQ59: 0 | CR59: 0 | CW59: 0 | CX59: 7.8 | CY59: 41.4 | CZ59: 15.8 | DA59: 18.6
A60: Ty.Rattie | B60: 2016-01-22 | C60: STL | D60: COL | E60: 0 | F60: 0 | G60: 0 | H60: 0 | I60: 0 | J60: 0 | K60: 0 | L60: 67.3 | M60: 100 | N60: 0 | O60: 43.2 | P60: 7.3 | Q60: 0 | R60: -69 | S60: 0 | T60: 69 | U60: -0.9 | V60: 0 | W60: 0.9 | X60: 0 | Y60: 7.7 | Z60: 7.7 | AA60: 2 | AB60: 16.9 | AC60: 80.5 | AD60: 63.6 | AE60: 2.9 | AF60: 3.9 | AG60: 0.9 | AH60: 32 | AI60: 7.7 | AJ60: 39.7 | AK60: 14.9 | AL60: 52.4 | AM60: 4.4 | AN60: 8.7 | AO60: 4.2 | AP60: 71.6 | AQ60: 34.8 | AR60: 106.4 | AT60: 0 | AU60: 1 | AV60: 3 | BG60: 1 | BI60: 14.5 | BJ60: 68.5 | BK60: 54 | BL60: 2.1 | BM60: 32 | BN60: 14.7 | BO60: 3.9 | BP60: 1.8 | BQ60: 2 | BU60: 0 | BV60: 100 | BW60: 0 | BX60: 0 | BY60: 0 | BZ60: 0 | CC60: 0 | CE60: 100 | CP60: 0 | CQ60: 0 | CR60: 2 | CW60: 0 | CX60: 7.3 | CY60: 42.7 | CZ60: 14.5 | DA60: 18.3
A61: Ty.Rattie | B61: 2016-01-24 | C61: STL | D61: CHI | E61: 0 | F61: 0 | G61: 0 | H61: 0 | I61: 0 | J61: 0 | K61: 0 | L61: 39.5 | M61: 100 | N61: 0 | O61: 25 | P61: 10.4 | Q61: 1 | R61: 43.7 | S61: 100 | T61: 56.3 | U61: 1 | V61: 1 | W61: 0 | X61: 5.7 | Y61: 0 | Z61: 5.7 | AA61: 1 | AB61: 50.3 | AC61: 100 | AD61: 49.7 | AE61: 2.2 | AF61: 2.2 | AG61: 0 | AH61: 12.5 | AI61: 0 | AJ61: 12.5 | AK61: -18.1 | AL61: 57.6 | AM61: -3 | AN61: 5.7 | AO61: 8.7 | AP61: 32.7 | AQ61: 50.1 | AR61: 82.8 | AT61: 0 | AU61: 0 | AV61: 1 | BG61: 0 | BI61: -32.3 | BJ61: 21.2 | BK61: 53.5 | BL61: -2.6 | BM61: 5.5 | BN61: 20.5 | BO61: 1 | BP61: 3.6 | BQ61: 1 | BU61: 0 | BV61: 0 | BW61: 0 | BX61: 0 | BY61: 0 | BZ61: 0 | CC61: 0 | CE61: 100 | CP61: 0 | CQ61: 0 | CR61: 1 | CW61: 0 | CX61: 10.4 | CY61: 44.3 | CZ61: 19.1 | DA61: 17.9
A62: Connor.McDavid | B62: 2015-10-08 | C62: EDM | D62: STL | E62: 0 | F62: 0 | G62: 0 | H62: 0 | I62: 0 | J62: 0 | K62: 0 | L62: 44.7 | M62: 100 | N62: 0 | O62: 18.8 | P62: 13.7 | Q62: 0 | R62: -3.6 | S62: 36.4 | T62: 40 | U62: -0.8 | V62: 1.1 | W62: 1.9 | X62: 4.8 | Y62: 8.4 | Z62: 13.2 | AA62: 1 | AB62: -1.8 | AC62: 51.1 | AD62: 52.9 | AE62: 0.2 | AF62: 4.1 | AG62: 4 | AH62: 18.1 | AI62: 17.4 | AJ62: 35.5 | AK62: -5.5 | AL62: 50.2 | AM62: -2.2 | AN62: 9.3 | AO62: 11.5 | AP62: 40.6 | AQ62: 50.2 | AR62: 90.8 | AT62: 0 | AU62: 0 | AV62: 1 | BG62: 0 | BI62: 21.5 | BJ62: 56.5 | BK62: 35 | BL62: 1.7 | BM62: 32.1 | BN62: 24.8 | BO62: 7.3 | BP62: 5.7 | BQ62: 1 | BU62: 0 | BV62: 0 | BW62: 0 | BX62: 0 | BY62: 0 | BZ62: 0 | CC62: 0 | CE62: 100 | CP62: 0 | CQ62: 0 | CR62: 1 | CW62: 0 | CX62: 13.7 | CY62: 33.2 | CZ62: 29.2 | DA62: 17.4
A63: Connor.McDavid | B63: 2015-10-10 | C63: EDM | D63: NSH | E63: 0 | F63: 0 | G63: 0 | H63: 0 | I63: 0 | J63: 0 | K63: 1 | L63: 56.6 | M63: 100 | N63: 0 | O63: 36.4 | P63: 11.8 | Q63: 1 | R63: 20.3 | S63: 58.5 | T63: 38.2 | U63: 1.2 | V63: 4.1 | W63: 2.9 | X63: 20.9 | Y63: 14.8 | Z63: 35.7 | AA63: 1 | AB63: 8.1 | AC63: 59.9 | AD63: 51.8 | AE63: 2.4 | AF63: 7.3 | AG63: 4.9 | AH63: 37.3 | AI63: 25 | AJ63: 62.3 | AK63: 6.4 | AL63: 50.2 | AM63: 2.7 | AN63: 11.8 | AO63: 9 | AP63: 60.2 | AQ63: 46.2 | AR63: 106.4 | AT63: 0 | AU63: 1 | AV63: 1 | BG63: 0 | BI63: 18.1 | BJ63: 67.7 | BK63: 49.6 | BL63: 4.1 | BM63: 39.7 | BN63: 18.9 | BO63: 7.8 | BP63: 3.7 | BQ63: 1 | BU63: 0 | BV63: 0 | BW63: 0 | BX63: 0 | BY63: 0 | BZ63: 0 | CC63: 0 | CE63: 100 | CP63: 0 | CQ63: 0 | CR63: 1 | CW63: 5.1 | CX63: 11.8 | CY63: 33.1 | CZ63: 26.2 | DA63: 17.3
A64: Connor.McDavid | B64: 2015-10-13 | C64: EDM | D64: DAL | E64: 1 | F64: 0 | G64: 1 | H64: 4.4 | I64: 0 | J64: 4.4 | K64: 0 | L64: 48.3 | M64: 101.6 | N64: 50 | O64: 25 | P64: 13.6 | Q64: 1 | R64: 9.3 | S64: 36.3 | T64: 27 | U64: -2.9 | V64: 3.9 | W64: 6.8 | X64: 17 | Y64: 29.8 | Z64: 46.8 | AA64: 2 | AB64: 15.4 | AC64: 47.6 | AD64: 32.2 | AE64: -1 | AF64: 9.5 | AG64: 10.5 | AH64: 42 | AI64: 46.3 | AJ64: 88.2 | AK64: 18.6 | AL64: 29.7 | AM64: -1.2 | AN64: 16.3 | AO64: 17.5 | AP64: 71.8 | AQ64: 76.9 | AR64: 148.7 | AT64: 0 | AU64: 2 | AV64: 2 | BG64: 0 | BI64: 20.8 | BJ64: 48 | BK64: 27.2 | BL64: -0.8 | BM64: 43.4 | BN64: 47 | BO64: 9.8 | BP64: 10.7 | BQ64: 2 | BT64: 50 | BU64: 8.8 | BV64: 0 | BW64: 8.8 | BX64: 2 | BY64: 2 | BZ64: 0 | CA64: 50 | CC64: 20.3 | CE64: 81.3 | CP64: 0 | CQ64: 0 | CR64: 1 | CW64: 0 | CX64: 13.6 | CY64: 33 | CZ64: 29.2 | DA64: 17.7
A65: Connor.McDavid | B65: 2015-10-15 | C65: EDM | D65: STL | E65: 0 | F65: 0 | G65: 0 | H65: 0 | I65: 0 | J65: 0 | K65: 1 | L65: 34.6 | M65: 75.1 | N65: 0 | O65: -4.4 | P65: 13.2 | Q65: 0 | R65: -14 | S65: 28.3 | T65: 42.2 | U65: -3 | V65: 1.9 | W65: 4.9 | X65: 8.9 | Y65: 22.5 | Z65: 31.3 | AA65: 0 | AB65: -10.2 | AC65: 31.7 | AD65: 41.9 | AE65: -5.5 | AF65: 4.8 | AG65: 10.3 | AH65: 21.7 | AI65: 46.8 | AJ65: 68.5 | AK65: -6.4 | AL65: 41 | AM65: -9 | AN65: 10.2 | AO65: 19.2 | AP65: 46.2 | AQ65: 87.3 | AR65: 133.5 | AT65: 1 | AU65: 0 | AV65: 2 | BG65: 1 | BI65: -24.4 | BJ65: 23.9 | BK65: 48.3 | BL65: -8.3 | BM65: 17.2 | BN65: 54.8 | BO65: 3.8 | BP65: 12 | BQ65: 0 | BT65: -100 | BU65: 0 | BV65: 100 | BW65: 13.7 | BX65: 0 | BY65: 3 | BZ65: -3 | CA65: 0 | CC65: 0 | CE65: 75.1 | CP65: 0 | CQ65: 0 | CR65: 0 | CW65: 4.6 | CX65: 13.2 | CY65: 32.4 | CZ65: 28.9 | DA65: 17.5
A66: Connor.McDavid | B66: 2015-10-17 | C66: EDM | D66: CGY | E66: 1 | F66: 1 | G66: 2 | H66: 4.2 | I66: 4.2 | J66: 8.4 | K66: -1 | L66: 79.3 | M66: 120.6 | N66: 33.3 | O66: 45.7 | P66: 14.2 | Q66: 1 | R66: 57.4 | S66: 100 | T66: 42.6 | U66: 3.4 | V66: 3.4 | W66: 0 | X66: 14.3 | Y66: 0 | Z66: 14.3 | AA66: 3 | AB66: 28 | AC66: 90.3 | AD66: 62.3 | AE66: 8.8 | AF66: 9.9 | AG66: 1.1 | AH66: 41.6 | AI66: 4.5 | AJ66: 46.1 | AK66: 25.2 | AL66: 54.1 | AM66: 10.6 | AN66: 14.4 | AO66: 3.8 | AP66: 60.6 | AQ66: 15.8 | AR66: 76.5 | AT66: 0 | AU66: 0 | AV66: 3 | BG66: 0 | BI66: 31.5 | BJ66: 83.6 | BK66: 52.1 | BL66: 7.8 | BM66: 40.9 | BN66: 8 | BO66: 9.7 | BP66: 1.9 | BQ66: 3 | BT66: 33.3 | BU66: 8.4 | BV66: 66.7 | BW66: 0 | BX66: 2 | BY66: 0 | BZ66: 2 | CA66: 100 | CC66: 20.6 | CE66: 100 | CP66: 0 | CQ66: 1 | CR66: 2 | CW66: -4.2 | CX66: 14.2 | CY66: 31.4 | CZ66: 31.2 | DA66: 17.4
A67: Connor.McDavid | B67: 2015-10-18 | C67: EDM | D67: VAN | E67: 0 | F67: 0 | G67: 0 | H67: 0 | I67: 0 | J67: 0 | K67: 0 | L67: 41 | M67: 100 | N67: 0 | O67: 8.3 | P67: 14.8 | Q67: 1 | R67: 14.5 | S67: 62.3 | T67: 47.8 | U67: 1.3 | V67: 3.2 | W67: 1.9 | X67: 13 | Y67: 7.9 | Z67: 20.9 | AA67: 1 | AB67: 14.8 | AC67: 52.2 | AD67: 37.4 | AE67: 0.5 | AF67: 5.4 | AG67: 5 | AH67: 21.9 | AI67: 20 | AJ67: 41.9 | AK67: -2.8 | AL67: 43.8 | AM67: -4.1 | AN67: 9.4 | AO67: 13.6 | AP67: 38.2 | AQ67: 54.9 | AR67: 93.1 | AT67: 0 | AU67: 0 | AV67: 1 | BG67: 0 | BI67: -0.2 | BJ67: 39.5 | BK67: 39.7 | BL67: -3.3 | BM67: 25.2 | BN67: 38.6 | BO67: 6.2 | BP67: 9.6 | BQ67: 1 | BU67: 0 | BV67: 0 | BW67: 0 | BX67: 0 | BY67: 0 | BZ67: 0 | CC67: 0 | CE67: 100 | CP67: 0 | CQ67: 0 | CR67: 1 | CW67: 0 | CX67: 14.8 | CY67: 39.7 | CZ67: 27.2 | DA67: 17.9
A68: Connor.McDavid | B68: 2015-10-21 | C68: EDM | D68: DET | E68: 1 | F68: 0 | G68: 1 | H68: 5.4 | I68: 0 | J68: 5.4 | K68: 0 | L68: 66.4 | M68: 113.4 | N68: 100 | O68: -33.3 | P68: 11.1 | Q68: 1 | R68: 15.4 | S68: 60.6 | T68: 45.1 | U68: 1 | V68: 3 | W68: 1.9 | X68: 16.2 | Y68: 10.5 | Z68: 26.7 | AA68: 2 | AB68: 27.6 | AC68: 66.5 | AD68: 39 | AE68: 3 | AF68: 6 | AG68: 3 | AH68: 32.6 | AI68: 16.4 | AJ68: 49 | AK68: 23.5 | AL68: 42.9 | AM68: 7 | AN68: 14.2 | AO68: 7.2 | AP68: 77.3 | AQ68: 39.1 | AR68: 116.3 | AT68: 0 | AU68: 0 | AV68: 2 | BG68: 1 | BI68: 28.5 | BJ68: 79.1 | BK68: 50.6 | BL68: 5.5 | BM68: 40.6 | BN68: 10.8 | BO68: 7.5 | BP68: 2 | BQ68: 1 | BT68: 50 | BU68: 5.4 | BV68: 50 | BW68: 0 | BX68: 1 | BY68: 0 | BZ68: 1 | CA68: 100 | CC68: 13.4 | CE68: 100 | CP68: 0 | CQ68: 0 | CR68: 0 | CW68: 0 | CX68: 11.1 | CY68: 31.1 | CZ68: 26.2 | DA68: 17.7
A69: Connor.McDavid | B69: 2015-10-23 | C69: EDM | D69: WSH | E69: 0 | F69: 1 | G69: 1 | H69: 0 | I69: 5.2 | J69: 5.2 | K69: 1 | L69: 49.3 | M69: 94.2 | N69: 0 | O69: 16.7 | P69: 11.4 | Q69: 0 | R69: -9.5 | S69: 26.6 | T69: 36.1 | U69: -3.4 | V69: 1.9 | W69: 5.3 | X69: 10 | Y69: 27.7 | Z69: 37.7 | AA69: 0 | AB69: -6.9 | AC69: 38.6 | AD69: 45.5 | AE69: -2.7 | AF69: 4.6 | AG69: 7.4 | AH69: 24.3 | AI69: 38.6 | AJ69: 62.9 | AK69: 5 | AL69: 44.3 | AM69: -0.3 | AN69: 9.1 | AO69: 9.3 | AP69: 47.6 | AQ69: 48.9 | AR69: 96.5 | AT69: 0 | AU69: 0 | AV69: 1 | BG69: 1 | BI69: -8.6 | BJ69: 38.9 | BK69: 47.4 | BL69: -2.7 | BM69: 24.5 | BN69: 38.6 | BO69: 4.7 | BP69: 7.4 | BQ69: 0 | BT69: -16.7 | BU69: 5.2 | BV69: 50 | BW69: 10.5 | BX69: 1 | BY69: 2 | BZ69: -1 | CA69: 33.3 | CC69: 21.4 | CE69: 72.8 | CP69: 0 | CQ69: 1 | CR69: 0 | CW69: 5.2 | CX69: 11.4 | CY69: 33.1 | CZ69: 25.7 | DA69: 17.6
A70: Connor.McDavid | B70: 2015-10-25 | C70: EDM | D70: L.A | E70: 0 | F70: 1 | G70: 1 | H70: 0 | I70: 3.9 | J70: 3.9 | K70: 0 | L70: 47.6 | M70: 110.7 | N70: 0 | O70: 9.5 | P70: 15.4 | Q70: 2 | R70: 71.2 | S70: 100 | T70: 28.8 | U70: 4.8 | V70: 4.8 | W70: 0 | X70: 18.8 | Y70: 0 | Z70: 18.8 | AA70: 2 | AB70: 6.9 | AC70: 54.4 | AD70: 47.5 | AE70: 1.1 | AF70: 6.8 | AG70: 5.7 | AH70: 26.6 | AI70: 22.3 | AJ70: 48.8 | AK70: 8.6 | AL70: 39 | AM70: -1.4 | AN70: 13.6 | AO70: 15 | AP70: 53.1 | AQ70: 58.6 | AR70: 111.7 | AT70: 0 | AU70: 0 | AV70: 2 | BG70: 0 | BI70: 20.4 | BJ70: 55.6 | BK70: 35.3 | BL70: 1.9 | BM70: 36.5 | BN70: 29.1 | BO70: 9.4 | BP70: 7.5 | BQ70: 2 | BT70: 100 | BU70: 3.9 | BV70: 0 | BW70: 0 | BX70: 1 | BY70: 0 | BZ70: 1 | CA70: 100 | CC70: 10.7 | CE70: 100 | CP70: 1 | CQ70: 0 | CR70: 2 | CW70: 0 | CX70: 15.4 | CY70: 36.1 | CZ70: 29.9 | DA70: 17.5
A71: Connor.McDavid | B71: 2015-10-27 | C71: EDM | D71: MIN | E71: 0 | F71: 0 | G71: 0 | H71: 0 | I71: 0 | J71: 0 | K71: 0 | L71: 54.4 | M71: 83.3 | N71: 0 | O71: -4.3 | P71: 19.1 | Q71: 2 | R71: 57.4 | S71: 74.1 | T71: 16.7 | U71: 2.1 | V71: 3.2 | W71: 1.1 | X71: 10.1 | Y71: 3.5 | Z71: 13.7 | AA71: 2 | AB71: 10.5 | AC71: 39.5 | AD71: 29 | AE71: -3.2 | AF71: 5.9 | AG71: 9.1 | AH71: 18.7 | AI71: 28.6 | AJ71: 47.3 | AK71: 15.3 | AL71: 39 | AM71: 3.2 | AN71: 19.6 | AO71: 16.5 | AP71: 61.9 | AQ71: 51.9 | AR71: 113.7 | AT71: 0 | AU71: 0 | AV71: 2 | BG71: 0 | BI71: 24.7 | BJ71: 59.7 | BK71: 35 | BL71: 2.9 | BM71: 28 | BN71: 18.9 | BO71: 8.9 | BP71: 6 | BQ71: 2 | BT71: -50 | BU71: 0 | BV71: 50 | BW71: 3.1 | BX71: 0 | BY71: 1 | BZ71: -1 | CA71: 0 | CC71: 0 | CE71: 83.3 | CP71: 0 | CQ71: 0 | CR71: 2 | CW71: 0 | CX71: 19.1 | CY71: 33 | CZ71: 36.6 | DA71: 17.6
A72: Connor.McDavid | B72: 2015-10-29 | C72: EDM | D72: MTL | E72: 0 | F72: 2 | G72: 2 | H72: 0 | I72: 7.6 | J72: 7.6 | K72: 1 | L72: 55.2 | M72: 130.2 | N72: 0 | O72: 2.2 | P72: 15.7 | Q72: 1 | R72: 19.5 | S72: 61.3 | T72: 41.8 | U72: 1.4 | V72: 3.8 | W72: 2.4 | X72: 14.5 | Y72: 9.1 | Z72: 23.6 | AA72: 1 | AB72: 10.4 | AC72: 64.9 | AD72: 54.5 | AE72: 3.9 | AF72: 8.4 | AG72: 4.6 | AH72: 32.2 | AI72: 17.4 | AJ72: 49.6 | AK72: 5.6 | AL72: 49.6 | AM72: 2.5 | AN72: 13.3 | AO72: 10.8 | AP72: 50.7 | AQ72: 41.1 | AR72: 91.8 | AT72: 0 | AU72: 0 | AV72: 2 | BG72: 1 | BI72: 6.6 | BJ72: 49.4 | BK72: 42.8 | BL72: -0.2 | BM72: 25.2 | BN72: 25.9 | BO72: 6.6 | BP72: 6.8 | BQ72: 1 | BT72: 66.7 | BU72: 7.6 | BV72: 33.3 | BW72: 0 | BX72: 2 | BY72: 0 | BZ72: 2 | CA72: 100 | CC72: 30.2 | CE72: 100 | CP72: 1 | CQ72: 1 | CR72: 1 | CW72: 3.8 | CX72: 15.7 | CY72: 32.1 | CZ72: 32.9 | DA72: 17.9
A73: Connor.McDavid | B73: 2015-10-31 | C73: EDM | D73: CGY | E73: 0 | F73: 0 | G73: 0 | H73: 0 | I73: 0 | J73: 0 | K73: 0 | L73: 33.2 | M73: 79.7 | N73: 0 | O73: 2.9 | P73: 15 | Q73: 0 | R73: -32.6 | S73: 14.7 | T73: 47.3 | U73: -4.9 | V73: 1 | W73: 5.9 | X73: 4 | Y73: 23.5 | Z73: 27.5 | AA73: 1 | AB73: -25 | AC73: 20.6 | AD73: 45.7 | AE73: -5.8 | AF73: 2.1 | AG73: 7.9 | AH73: 8.2 | AI73: 31.6 | AJ73: 39.8 | AK73: -14.3 | AL73: 47.5 | AM73: -7.1 | AN73: 7.1 | AO73: 14.2 | AP73: 28.3 | AQ73: 56.8 | AR73: 85 | AT73: 1 | AU73: 0 | AV73: 1 | BG73: 0 | BI73: -20.9 | BJ73: 22.6 | BK73: 43.5 | BL73: -7 | BM73: 11.5 | BN73: 39.4 | BO73: 2.9 | BP73: 9.9 | BQ73: 0 | BT73: -50 | BU73: 0 | BV73: 50 | BW73: 8 | BX73: 0 | BY73: 2 | BZ73: -2 | CA73: 0 | CC73: 0 | CE73: 79.7 | CP73: 0 | CQ73: 0 | CR73: 0 | CW73: 0 | CX73: 15 | CY73: 29.4 | CZ73: 33.8 | DA73: 17.7
A74: Connor.McDavid | B74: 2015-11-03 | C74: EDM | D74: PHI | E74: 0 | F74: 0 | G74: 0 | H74: 0 | I74: 0 | J74: 0 | K74: 0 | L74: 55.2 | M74: 82.7 | N74: 0 | O74: -15.6 | P74: 7.3 | Q74: 0 | R74: -61.2 | S74: 0 | T74: 61.2 | U74: -3 | V74: 0 | W74: 3 | X74: 0 | Y74: 24.4 | Z74: 24.4 | AA74: 0 | AB74: -12.2 | AC74: 55.7 | AD74: 67.9 | AE74: 1 | AF74: 4.9 | AG74: 3.9 | AH74: 40.2 | AI74: 32 | AJ74: 72.2 | AK74: -8.1 | AL74: 63.3 | AM74: 1.6 | AN74: 8.3 | AO74: 6.8 | AP74: 68.5 | AQ74: 55.5 | AR74: 124 | AT74: 0 | AU74: 0 | AV74: 0 | BG74: 0 | BI74: -26.5 | BJ74: 39.9 | BK74: 66.5 | BL74: -1.9 | BM74: 31.5 | BN74: 47.4 | BO74: 3.8 | BP74: 5.8 | BQ74: 0 | BT74: -66.7 | BU74: 0 | BV74: 66.7 | BW74: 8.2 | BX74: 0 | BY74: 1 | BZ74: -1 | CA74: 0 | CC74: 0 | CE74: 82.7 | CP74: 0 | CQ74: 0 | CR74: 0 | CW74: 0 | CX74: 7.3 | CY74: 39.7 | CZ74: 15.5 | DA74: 17.6
A75: Connor.McDavid | B75: 2016-02-02 | C75: EDM | D75: CBJ | E75: 1 | F75: 0 | G75: 1 | H75: 4.8 | I75: 0 | J75: 4.8 | K75: 1 | L75: 39.5 | M75: 119.3 | N75: 50 | O75: -1.4 | P75: 12.5 | Q75: 3 | R75: 22.9 | S75: 52 | T75: 29.1 | U75: 0.3 | V75: 4.1 | W75: 3.8 | X75: 19.6 | Y75: 18.1 | Z75: 37.7 | AA75: 4 | AB75: 1.7 | AC75: 47.9 | AD75: 46.2 | AE75: -0.5 | AF75: 6.1 | AG75: 6.6 | AH75: 29.2 | AI75: 31.8 | AJ75: 61.1 | AK75: -9.2 | AL75: 48.7 | AM75: -4.6 | AN75: 8.7 | AO75: 13.3 | AP75: 41.6 | AQ75: 63.7 | AR75: 105.2 | AT75: 1 | AU75: 0 | AV75: 4 | BG75: 1 | BI75: 10.5 | BJ75: 57.8 | BK75: 47.3 | BL75: 1.4 | BM75: 24.8 | BN75: 18.1 | BO75: 5.2 | BP75: 3.8 | BQ75: 2 | BT75: 33.3 | BU75: 4.8 | BV75: 66.7 | BW75: 0 | BX75: 1 | BY75: 0 | BZ75: 1 | CA75: 100 | CC75: 19.3 | CE75: 100 | CP75: 0 | CQ75: 0 | CR75: 1 | CW75: 4.8 | CX75: 12.5 | CY75: 31.9 | CZ75: 28.2 | DA75: 18.4
A76: Connor.McDavid | B76: 2016-02-04 | C76: EDM | D76: OTT | E76: 0 | F76: 1 | G76: 1 | H76: 0 | I76: 4.5 | J76: 4.5 | K76: 1 | L76: 58.1 | M76: 98.2 | N76: 0 | O76: 20.6 | P76: 13.4 | Q76: 0 | R76: 59.1 | S76: 100 | T76: 40.9 | U76: 1.8 | V76: 1.8 | W76: 0 | X76: 8.3 | Y76: 0 | Z76: 8.3 | AA76: 1 | AB76: 11.5 | AC76: 59.5 | AD76: 48 | AE76: 1.6 | AF76: 5 | AG76: 3.4 | AH76: 22.3 | AI76: 15.2 | AJ76: 37.5 | AK76: 11.1 | AL76: 47 | AM76: 4.7 | AN76: 16.7 | AO76: 12 | AP76: 74.9 | AQ76: 54 | AR76: 128.9 | AT76: 1 | AU76: 1 | AV76: 2 | BG76: 0 | BI76: 7.7 | BJ76: 53.5 | BK76: 45.8 | BL76: 1.1 | BM76: 36.8 | BN76: 32 | BO76: 8.2 | BP76: 7.1 | BQ76: 1 | BT76: -50 | BU76: 4.5 | BV76: 100 | BW76: 4.5 | BX76: 1 | BY76: 1 | BZ76: 0 | CA76: 50 | CC76: 12.2 | CE76: 86 | CP76: 1 | CQ76: 0 | CR76: 1 | CW76: 4.5 | CX76: 13.4 | CY76: 36.9 | CZ76: 26.6 | DA76: 18.3
A77: Connor.McDavid | B77: 2016-02-06 | C77: EDM | D77: MTL | E77: 0 | F77: 0 | G77: 0 | H77: 0 | I77: 0 | J77: 0 | K77: 0 | L77: 56.7 | M77: 88.1 | N77: 0 | O77: 14.6 | P77: 16.9 | Q77: 3 | R77: 62.2 | S77: 85 | T77: 22.8 | U77: 4.3 | V77: 5.2 | W77: 0.9 | X77: 18.6 | Y77: 3.3 | Z77: 21.8 | AA77: 3 | AB77: 31.4 | AC77: 71.7 | AD77: 40.3 | AE77: 6.1 | AF77: 10 | AG77: 4 | AH77: 35.6 | AI77: 14.1 | AJ77: 49.7 | AK77: 16.9 | AL77: 39.8 | AM77: 3.6 | AN77: 15.1 | AO77: 11.6 | AP77: 53.7 | AQ77: 41.1 | AR77: 94.8 | AT77: 1 | AU77: 1 | AV77: 4 | BG77: 3 | BI77: 8.8 | BJ77: 41.6 | BK77: 32.8 | BL77: -2.4 | BM77: 21.4 | BN77: 30 | BO77: 6 | BP77: 8.4 | BQ77: 0 | BT77: 0 | BU77: 0 | BV77: 0 | BW77: 3.6 | BX77: 0 | BY77: 1 | BZ77: -1 | CA77: 0 | CC77: 0 | CE77: 88.1 | CP77: 0 | CQ77: 0 | CR77: 0 | CW77: 0 | CX77: 16.9 | CY77: 32.5 | CZ77: 34.2 | DA77: 18.5
A78: Connor.McDavid | B78: 2016-02-07 | C78: EDM | D78: NYI | E78: 1 | F78: 0 | G78: 1 | H78: 4.3 | I78: 0 | J78: 4.3 | K78: -1 | L78: 43.9 | M78: 82.7 | N78: 33.3 | O78: -18.1 | P78: 14.1 | Q78: 3 | R78: 36.5 | S78: 100 | T78: 63.5 | U78: 3.6 | V78: 3.6 | W78: 0 | X78: 15.4 | Y78: 0 | Z78: 15.4 | AA78: 3 | AB78: 8.5 | AC78: 68.7 | AD78: 60.2 | AE78: 2.4 | AF78: 4.5 | AG78: 2 | AH78: 19.1 | AI78: 8.7 | AJ78: 27.8 | AK78: 0.2 | AL78: 43.8 | AM78: -2.6 | AN78: 9.4 | AO78: 12 | AP78: 40.1 | AQ78: 51.2 | AR78: 91.3 | AT78: 0 | AU78: 0 | AV78: 3 | BG78: 0 | BI78: -19.2 | BJ78: 39.2 | BK78: 58.4 | BL78: -3 | BM78: 23 | BN78: 35.6 | BO78: 5.4 | BP78: 8.4 | BQ78: 3 | BT78: 25 | BU78: 4.3 | BV78: 0 | BW78: 12.8 | BX78: 1 | BY78: 3 | BZ78: -2 | CA78: 25 | CC78: 18.5 | CE78: 64.2 | CP78: 0 | CQ78: 0 | CR78: 2 | CW78: -4.3 | CX78: 14.1 | CY78: 34.2 | CZ78: 29.2 | DA78: 18.3
A79: Connor.McDavid | B79: 2016-02-09 | C79: EDM | D79: N.J | E79: 0 | F79: 1 | G79: 1 | H79: 0 | I79: 4.3 | J79: 4.3 | K79: 0 | L79: 59.7 | M79: 116.6 | N79: 0 | O79: 15.2 | P79: 14.1 | Q79: 1 | R79: 79.4 | S79: 100 | T79: 20.6 | U79: 3.4 | V79: 3.4 | W79: 0 | X79: 14.4 | Y79: 0 | Z79: 14.4 | AA79: 1 | AB79: 35.7 | AC79: 60.4 | AD79: 24.7 | AE79: 1.5 | AF79: 4.4 | AG79: 2.9 | AH79: 19 | AI79: 12.4 | AJ79: 31.4 | AK79: 21.4 | AL79: 38.3 | AM79: 3.2 | AN79: 9.7 | AO79: 6.5 | AP79: 41.4 | AQ79: 27.9 | AR79: 69.3 | AT79: 0 | AU79: 0 | AV79: 1 | BG79: 0 | BI79: 32.3 | BJ79: 66.4 | BK79: 34.1 | BL79: 3 | BM79: 25.6 | BN79: 13 | BO79: 6 | BP79: 3 | BQ79: 1 | BU79: 4.3 | BW79: 0 | BX79: 1 | BY79: 0 | BZ79: 1 | CA79: 100 | CC79: 16.6 | CE79: 100 | CP79: 0 | CQ79: 1 | CR79: 1 | CW79: 0 | CX79: 14.1 | CY79: 28.1 | CZ79: 33.4 | DA79: 18
A80: Connor.McDavid | B80: 2016-02-11 | C80: EDM | D80: TOR | E80: 2 | F80: 1 | G80: 3 | H80: 10.4 | I80: 5.2 | J80: 15.7 | K80: 1 | L80: 69.1 | M80: 124.1 | N80: 50 | O80: -18.8 | P80: 11.5 | Q80: 2 | R80: 41.6 | S80: 59.3 | T80: 17.7 | U80: 1.5 | V80: 4.9 | W80: 3.4 | X80: 25.5 | Y80: 17.5 | Z80: 43 | AA80: 4 | AB80: 31.2 | AC80: 61.3 | AD80: 30.1 | AE80: 3.7 | AF80: 10.1 | AG80: 6.4 | AH80: 52.7 | AI80: 33.3 | AJ80: 86 | AK80: 32.3 | AL80: 36.8 | AM80: 8.7 | AN80: 15.7 | AO80: 7 | AP80: 81.9 | AQ80: 36.6 | AR80: 118.5 | AT80: 0 | AU80: 0 | AV80: 4 | BG80: 0 | BI80: 23.2 | BJ80: 67.3 | BK80: 44.1 | BL80: 6.4 | BM80: 65.2 | BN80: 31.7 | BO80: 12.5 | BP80: 6.1 | BQ80: 4 | BT80: 100 | BU80: 15.7 | BV80: 0 | BW80: 0 | BX80: 3 | BY80: 0 | BZ80: 3 | CA80: 100 | CC80: 24.1 | CE80: 100 | CP80: 1 | CQ80: 0 | CR80: 2 | CW80: 5.2 | CX80: 11.5 | CY80: 28.8 | CZ80: 28.5 | DA80: 18.3
A81: Connor.McDavid | B81: 2016-02-13 | C81: EDM | D81: WPG | E81: 0 | F81: 0 | G81: 0 | H81: 0 | I81: 0 | J81: 0 | K81: 0 | L81: 44.9 | M81: 89.8 | N81: 0 | O81: 5.6 | P81: 12.9 | Q81: 3 | R81: 12.9 | S81: 51 | T81: 38 | U81: 0.3 | V81: 7.3 | W81: 7 | X81: 34 | Y81: 32.7 | Z81: 66.6 | AA81: 3 | AB81: 8.4 | AC81: 45 | AD81: 36.5 | AE81: -1.9 | AF81: 8.3 | AG81: 10.2 | AH81: 38.8 | AI81: 47.5 | AJ81: 86.3 | AK81: 6.6 | AL81: 38.3 | AM81: -3.1 | AN81: 13.8 | AO81: 16.9 | AP81: 64.1 | AQ81: 78.6 | AR81: 142.7 | AT81: 0 | AU81: 0 | AV81: 3 | BG81: 1 | BI81: 13.8 | BJ81: 39.9 | BK81: 26.1 | BL81: -3.3 | BM81: 30.2 | BN81: 45.4 | BO81: 6.5 | BP81: 9.8 | BQ81: 2 | BU81: 0 | BW81: 4.7 | BX81: 0 | BY81: 1 | BZ81: -1 | CA81: 0 | CC81: 0 | CE81: 89.8 | CP81: 0 | CQ81: 0 | CR81: 2 | CW81: 0 | CX81: 12.9 | CY81: 24.7 | CZ81: 34.3 | DA81: 18.5
A82: Connor.McDavid | B82: 2016-02-16 | C82: EDM | D82: ANA | E82: 0 | F82: 1 | G82: 1 | H82: 0 | I82: 4.9 | J82: 4.9 | K82: 0 | L82: 50.8 | M82: 65.6 | N82: 0 | O82: 16.7 | P82: 12.3 | Q82: 0 | R82: 5.4 | S82: 48.8 | T82: 43.4 | U82: -0.1 | V82: 2.9 | W82: 3 | X82: 14.2 | Y82: 14.9 | Z82: 29 | AA82: 0 | AB82: 9.5 | AC82: 57 | AD82: 47.6 | AE82: 2.4 | AF82: 9.7 | AG82: 7.3 | AH82: 47.2 | AI82: 35.6 | AJ82: 82.8 | AK82: 5.7 | AL82: 45.2 | AM82: 0.4 | AN82: 13.7 | AO82: 13.2 | AP82: 66.9 | AQ82: 64.7 | AR82: 131.5 | AT82: 0 | AU82: 0 | AV82: 0 | BG82: 0 | BI82: 22.6 | BJ82: 61.9 | BK82: 39.3 | BL82: 2.5 | BM82: 32 | BN82: 19.7 | BO82: 6.5 | BP82: 4 | BQ82: 0 | BU82: 4.9 | BW82: 9.8 | BX82: 1 | BY82: 2 | BZ82: -1 | CA82: 33.3 | CC82: 15.3 | CE82: 50.3 | CP82: 0 | CQ82: 1 | CR82: 0 | CW82: 0 | CX82: 12.3 | CY82: 33.6 | CZ82: 26.7 | DA82: 18
A83: Connor.McDavid | B83: 2016-02-18 | C83: EDM | D83: MIN | E83: 1 | F83: 0 | G83: 1 | H83: 4.1 | I83: 0 | J83: 4.1 | K83: 0 | L83: 48.1 | M83: 100.5 | N83: 33.3 | O83: -28.2 | P83: 14.5 | Q83: 2 | R83: 7.4 | S83: 69.2 | T83: 61.8 | U83: 2.7 | V83: 4.8 | W83: 2.1 | X83: 19.9 | Y83: 8.8 | Z83: 28.7 | AA83: 2 | AB83: -3 | AC83: 67.6 | AD83: 70.6 | AE83: 4.5 | AF83: 8.6 | AG83: 4.1 | AH83: 35.7 | AI83: 17.1 | AJ83: 52.9 | AK83: -15.4 | AL83: 63.5 | AM83: -0.9 | AN83: 11.6 | AO83: 12.5 | AP83: 48 | AQ83: 51.9 | AR83: 99.9 | AT83: 1 | AU83: 0 | AV83: 4 | BG83: 0 | BI83: -5.6 | BJ83: 48.9 | BK83: 54.6 | BL83: -0.4 | BM83: 34.4 | BN83: 35.9 | BO83: 8.3 | BP83: 8.7 | BQ83: 3 | BT83: 0 | BU83: 4.1 | BV83: 50 | BW83: 4.1 | BX83: 1 | BY83: 1 | BZ83: 0 | CA83: 50 | CC83: 12 | CE83: 88.5 | CP83: 0 | CQ83: 0 | CR83: 2 | CW83: 0 | CX83: 14.5 | CY83: 34.4 | CZ83: 29.6 | DA83: 18
A84: Connor.McDavid | B84: 2016-02-20 | C84: EDM | D84: COL | E84: 0 | F84: 0 | G84: 0 | H84: 0 | I84: 0 | J84: 0 | K84: 0 | L84: 56.5 | M84: 68.5 | N84: 0 | O84: -5.6 | P84: 11.2 | Q84: 2 | R84: 30.1 | S84: 60.8 | T84: 30.7 | U84: 1.7 | V84: 4.7 | W84: 3 | X84: 25 | Y84: 16.1 | Z84: 41.1 | AA84: 3 | AB84: 18.4 | AC84: 64.9 | AD84: 46.5 | AE84: 4.4 | AF84: 9.7 | AG84: 5.2 | AH84: 51.6 | AI84: 27.9 | AJ84: 79.6 | AK84: 10 | AL84: 46.5 | AM84: 3.2 | AN84: 13.7 | AO84: 10.6 | AP84: 73.2 | AQ84: 56.3 | AR84: 129.5 | AT84: 1 | AU84: 0 | AV84: 3 | BG84: 1 | BI84: 6.6 | BJ84: 50.4 | BK84: 43.8 | BL84: 0.1 | BM84: 34.5 | BN84: 33.9 | BO84: 6.5 | BP84: 6.4 | BQ84: 1 | BT84: -50 | BU84: 0 | BV84: 50 | BW84: 10.7 | BX84: 0 | BY84: 2 | BZ84: -2 | CA84: 0 | CC84: 0 | CE84: 68.5 | CP84: 0 | CQ84: 0 | CR84: 1 | CW84: 0 | CX84: 11.2 | CY84: 34.4 | CZ84: 24.6 | DA84: 18.2
A85: Connor.McDavid | B85: 2016-02-23 | C85: EDM | D85: OTT | E85: 0 | F85: 1 | G85: 1 | H85: 0 | I85: 4.6 | J85: 4.6 | K85: 1 | L85: 60.4 | M85: 76.2 | N85: 0 | O85: 1.5 | P85: 13 | Q85: 3 | R85: 38.9 | S85: 76.1 | T85: 37.2 | U85: 4.6 | V85: 6.8 | W85: 2.1 | X85: 31.2 | Y85: 9.8 | Z85: 41 | AA85: 3 | AB85: 24.1 | AC85: 70.2 | AD85: 46.1 | AE85: 6 | AF85: 10.4 | AG85: 4.4 | AH85: 47.8 | AI85: 20.3 | AJ85: 68.1 | AK85: 22.1 | AL85: 38.4 | AM85: 5.3 | AN85: 15.5 | AO85: 10.1 | AP85: 71.3 | AQ85: 46.6 | AR85: 117.9 | AT85: 0 | AU85: 0 | AV85: 4 | BG85: 1 | BI85: 39.4 | BJ85: 78.7 | BK85: 39.3 | BL85: 8.3 | BM85: 52.1 | BN85: 14.1 | BO85: 11.3 | BP85: 3.1 | BQ85: 3 | BT85: 50 | BU85: 4.6 | BV85: 0 | BW85: 4.6 | BX85: 1 | BY85: 1 | BZ85: 0 | CA85: 50 | CC85: 8.8 | CE85: 67.4 | CP85: 0 | CQ85: 1 | CR85: 3 | CW85: 4.6 | CX85: 13 | CY85: 35.8 | CZ85: 26.7 | DA85: 17.7
A86: Connor.McDavid | B86: 2016-02-25 | C86: EDM | D86: L.A | E86: 0 | F86: 0 | G86: 0 | H86: 0 | I86: 0 | J86: 0 | K86: 1 | L86: 33.5 | M86: 89.7 | N86: 0 | O86: 17.3 | P86: 14.2 | Q86: 3 | R86: -13.8 | S86: 38.4 | T86: 52.2 | U86: -2.4 | V86: 4 | W86: 6.4 | X86: 16.7 | Y86: 26.8 | Z86: 43.5 | AA86: 3 | AB86: -15.8 | AC86: 36.7 | AD86: 52.5 | AE86: -5.8 | AF86: 8 | AG86: 13.8 | AH86: 33.8 | AI86: 58.3 | AJ86: 92.1 | AK86: -12.4 | AL86: 45.9 | AM86: -9.4 | AN86: 9.6 | AO86: 19 | AP86: 40.3 | AQ86: 80.1 | AR86: 120.4 | AT86: 1 | AU86: 1 | AV86: 3 | BG86: 0 | BI86: -16.2 | BJ86: 28.8 | BK86: 44.9 | BL86: -5.8 | BM86: 16.5 | BN86: 41 | BO86: 3.9 | BP86: 9.7 | BQ86: 2 | BT86: -50 | BU86: 0 | BV86: 50 | BW86: 4.2 | BX86: 0 | BY86: 1 | BZ86: -1 | CA86: 0 | CC86: 0 | CE86: 89.7 | CP86: 0 | CQ86: 0 | CR86: 2 | CW86: 4.2 | CX86: 14.2 | CY86: 40.1 | CZ86: 26.1 | DA86: 17.8
A87: Connor.McDavid | B87: 2016-02-26 | C87: EDM | D87: ANA | E87: 0 | F87: 0 | G87: 0 | H87: 0 | I87: 0 | J87: 0 | K87: 0 | L87: 44.5 | M87: 116.8 | N87: 0 | O87: 50 | P87: 13.2 | Q87: 0 | R87: -9.4 | S87: 33.5 | T87: 42.9 | U87: -1.9 | V87: 2 | W87: 3.9 | X87: 8.9 | Y87: 17.8 | Z87: 26.7 | AA87: 0 | AB87: -1.7 | AC87: 27.7 | AD87: 29.4 | AE87: -6.6 | AF87: 4.1 | AG87: 10.8 | AH87: 18.8 | AI87: 48.9 | AJ87: 67.6 | AK87: 5.4 | AL87: 39.1 | AM87: -2.9 | AN87: 11.7 | AO87: 14.5 | AP87: 52.9 | AQ87: 65.9 | AR87: 118.8 | AT87: 0 | AU87: 0 | AV87: 0 | BG87: 0 | BI87: 5.2 | BJ87: 41.1 | BK87: 35.9 | BL87: -2.6 | BM87: 27 | BN87: 38.7 | BO87: 5.9 | BP87: 8.5 | BQ87: 0 | BU87: 4.5 | BW87: 0 | BX87: 1 | BY87: 0 | BZ87: 1 | CA87: 100 | CC87: 16.8 | CE87: 100 | CP87: 0 | CQ87: 0 | CR87: 0 | CW87: 0 | CX87: 13.2 | CY87: 35.9 | CZ87: 26.9 | DA87: 17.5
A88: Radek.Faksa | B88: 2015-10-17 | C88: DAL | D88: FLA | E88: 0 | F88: 0 | G88: 0 | H88: 0 | I88: 0 | J88: 0 | K88: 0 | L88: 35.3 | M88: 100 | N88: 0 | O88: -45.2 | P88: 11.8 | Q88: 0 | R88: -41.8 | S88: 18.1 | T88: 59.8 | U88: -3.3 | V88: 0.9 | W88: 4.2 | X88: 4.7 | Y88: 21.3 | Z88: 25.9 | AA88: 2 | AB88: -26.8 | AC88: 35.5 | AD88: 62.3 | AE88: -3.4 | AF88: 4.1 | AG88: 7.5 | AH88: 20.9 | AI88: 38 | AJ88: 59 | AK88: -25.2 | AL88: 60.5 | AM88: -7 | AN88: 8.4 | AO88: 15.3 | AP88: 42.5 | AQ88: 77.9 | AR88: 120.4 | AT88: 0 | AU88: 1 | AV88: 2 | BG88: 1 | BI88: -26.9 | BJ88: 36.3 | BK88: 63.2 | BL88: -3 | BM88: 20 | BN88: 35.1 | BO88: 3.9 | BP88: 6.9 | BQ88: 1 | BU88: 0 | BV88: 50 | BW88: 0 | BX88: 0 | BY88: 0 | BZ88: 0 | CC88: 0 | CE88: 100 | CP88: 0 | CQ88: 0 | CR88: 1 | CW88: 0 | CX88: 11.8 | CY88: 41.7 | CZ88: 22.1 | DA88: 17.7
A89: Radek.Faksa | B89: 2015-10-20 | C89: DAL | D89: PHI | E89: 0 | F89: 0 | G89: 0 | H89: 0 | I89: 0 | J89: 0 | K89: 0 | L89: 55.7 | M89: 100 | N89: 0 | O89: 9.1 | P89: 7.6 | Q89: 1 | R89: -26.8 | S89: 36.3 | T89: 63.1 | U89: -0.8 | V89: 1.1 | W89: 1.9 | X89: 8.5 | Y89: 15 | Z89: 23.5 | AA89: 1 | AB89: 0.1 | AC89: 64.1 | AD89: 64 | AE89: 2.2 | AF89: 5.1 | AG89: 2.8 | AH89: 40.1 | AI89: 22.4 | AJ89: 62.5 | AK89: -9.3 | AL89: 65 | AM89: 1.8 | AN89: 8.6 | AO89: 6.8 | AP89: 67.9 | AQ89: 53.9 | AR89: 121.9 | AT89: 0 | AU89: 0 | AV89: 1 | BG89: 0 | BI89: -15 | BJ89: 48.5 | BK89: 63.5 | BL89: -0.3 | BM89: 38.9 | BN89: 41.3 | BO89: 4.9 | BP89: 5.2 | BQ89: 1 | BU89: 0 | BV89: 66.7 | BW89: 0 | BX89: 0 | BY89: 0 | BZ89: 0 | CC89: 0 | CE89: 100 | CP89: 0 | CQ89: 0 | CR89: 1 | CW89: 0 | CX89: 7.6 | CY89: 38.2 | CZ89: 16.5 | DA89: 18.1
A90: Radek.Faksa | B90: 2015-10-22 | C90: DAL | D90: PIT | E90: 0 | F90: 0 | G90: 0 | H90: 0 | I90: 0 | J90: 0 | K90: -1 | L90: 56.5 | M90: 147.1 | N90: 0 | O90: -27.8 | P90: 10 | Q90: 0 | R90: -42.6 | S90: 0 | T90: 42.6 | U90: -1 | V90: 0 | W90: 1 | X90: 0 | Y90: 6 | Z90: 6 | AA90: 1 | AB90: -5.5 | AC90: 37.6 | AD90: 43.1 | AE90: -1.4 | AF90: 2.1 | AG90: 3.6 | AH90: 12.8 | AI90: 21.3 | AJ90: 34.1 | AK90: 0.9 | AL90: 55.6 | AM90: 2.5 | AN90: 10.8 | AO90: 8.3 | AP90: 64.9 | AQ90: 49.9 | AR90: 114.8 | AT90: 1 | AU90: 1 | AV90: 3 | BG90: 1 | BI90: -9.9 | BJ90: 38.9 | BK90: 48.9 | BL90: -1.2 | BM90: 12.7 | BN90: 19.9 | BO90: 2.1 | BP90: 3.3 | BQ90: 1 | BT90: 33.3 | BU90: 6 | BV90: 66.7 | BW90: 0 | BX90: 1 | BY90: 0 | BZ90: 1 | CA90: 100 | CC90: 47.1 | CE90: 100 | CP90: 0 | CQ90: 0 | CR90: 1 | CW90: -6 | CX90: 10 | CY90: 37.4 | CZ90: 21.1 | DA90: 17.1
A91: Radek.Faksa | B91: 2015-10-24 | C91: DAL | D91: FLA | E91: 0 | F91: 0 | G91: 0 | H91: 0 | I91: 0 | J91: 0 | K91: 1 | L91: 65.1 | M91: 55.1 | N91: 0 | O91: -61.3 | P91: 9.3 | Q91: 2 | R91: 49.8 | S91: 84.3 | T91: 34.5 | U91: 3.9 | V91: 4.8 | W91: 0.9 | X91: 30.8 | Y91: 5.7 | Z91: 36.5 | AA91: 3 | AB91: 32.7 | AC91: 72.8 | AD91: 40.1 | AE91: 4.6 | AF91: 7.3 | AG91: 2.7 | AH91: 47.3 | AI91: 17.7 | AJ91: 65 | AK91: 23.9 | AL91: 41.2 | AM91: 6.3 | AN91: 13.6 | AO91: 7.3 | AP91: 87.4 | AQ91: 46.9 | AR91: 134.3 | AT91: 1 | AU91: 0 | AV91: 5 | BG91: 1 | BI91: 29.7 | BJ91: 75.9 | BK91: 46.2 | BL91: 4.8 | BM91: 45.3 | BN91: 14.4 | BO91: 7 | BP91: 2.2 | BQ91: 3 | BT91: -16.7 | BU91: 0 | BV91: 16.7 | BW91: 6.5 | BX91: 0 | BY91: 1 | BZ91: -1 | CA91: 0 | CC91: 0 | CE91: 55.1 | CP91: 0 | CQ91: 0 | CR91: 3 | CW91: 6.5 | CX91: 9.3 | CY91: 40 | CZ91: 18.9 | DA91: 17.3
A92: Radek.Faksa | B92: 2015-10-27 | C92: DAL | D92: ANA | E92: 0 | F92: 0 | G92: 0 | H92: 0 | I92: 0 | J92: 0 | K92: 0 | L92: 83.4 | N92: 0 | O92: -1.5 | P92: 11.4 | Q92: 1 | R92: 31.1 | S92: 100 | T92: 68.9 | U92: 3.9 | V92: 3.9 | W92: 0 | X92: 20.8 | Y92: 0 | Z92: 20.8 | AA92: 2 | AB92: 23 | AC92: 85.2 | AD92: 62.2 | AE92: 4.9 | AF92: 5.9 | AG92: 1 | AH92: 31.2 | AI92: 5.4 | AJ92: 36.6 | AK92: 34.8 | AL92: 48.6 | AM92: 7.5 | AN92: 9.4 | AO92: 1.9 | AP92: 49.4 | AQ92: 9.9 | AR92: 59.3 | AT92: 0 | AU92: 1 | AV92: 2 | BG92: 0 | BI92: 46.9 | BJ92: 100 | BK92: 53.1 | BL92: 6.5 | BM92: 34.3 | BN92: 0 | BO92: 6.5 | BP92: 0 | BQ92: 2 | BU92: 0 | BV92: 50 | BW92: 0 | BX92: 0 | BY92: 0 | BZ92: 0 | CC92: 0 | CP92: 0 | CQ92: 0 | CR92: 2 | CW92: 0 | CX92: 11.4 | CY92: 35 | CZ92: 24.5 | DA92: 17.1
A93: Radek.Faksa | B93: 2015-10-29 | C93: DAL | D93: VAN | E93: 0 | F93: 0 | G93: 0 | H93: 0 | I93: 0 | J93: 0 | K93: 1 | L93: 53.4 | M93: 117.4 | N93: 0 | O93: -17.3 | P93: 9.9 | Q93: 0 | R93: -11.4 | S93: 19.5 | T93: 30.9 | U93: -3.1 | V93: 1 | W93: 4.1 | X93: 6.1 | Y93: 25 | Z93: 31.1 | AA93: 1 | AB93: -12.8 | AC93: 35.8 | AD93: 48.6 | AE93: -3.6 | AF93: 4.5 | AG93: 8.1 | AH93: 27.3 | AI93: 49 | AJ93: 76.4 | AK93: 7.3 | AL93: 46.1 | AM93: 1.3 | AN93: 10.4 | AO93: 9.1 | AP93: 63.3 | AQ93: 55.1 | AR93: 118.4 | AT93: 1 | AU93: 0 | AV93: 3 | BG93: 1 | BI93: 12.4 | BJ93: 46.7 | BK93: 34.3 | BL93: -0.8 | BM93: 34.8 | BN93: 39.6 | BO93: 5.7 | BP93: 6.5 | BQ93: 1 | BT93: 33.3 | BU93: 6.1 | BV93: 66.7 | BW93: 0 | BX93: 1 | BY93: 0 | BZ93: 1 | CA93: 100 | CC93: 17.4 | CE93: 100 | CP93: 0 | CQ93: 0 | CR93: 1 | CW93: 6.1 | CX93: 9.9 | CY93: 41.1 | CZ93: 19.4 | DA93: 17.1
A94: Radek.Faksa | B94: 2015-10-31 | C94: DAL | D94: S.J | E94: 0 | F94: 0 | G94: 0 | H94: 0 | I94: 0 | J94: 0 | K94: 0 | L94: 77.8 | M94: 100 | N94: 0 | O94: -12.6 | P94: 9.1 | Q94: 3 | R94: 10.9 | S94: 63.8 | T94: 53 | U94: 1.7 | V94: 3.9 | W94: 2.2 | X94: 25.9 | Y94: 14.7 | Z94: 40.5 | AA94: 4 | AB94: 26.3 | AC94: 74.2 | AD94: 47.9 | AE94: 5.8 | AF94: 9 | AG94: 3.1 | AH94: 58.9 | AI94: 20.4 | AJ94: 79.3 | AK94: 24.5 | AL94: 53.3 | AM94: 7.4 | AN94: 10.3 | AO94: 2.9 | AP94: 67.6 | AQ94: 19.3 | AR94: 86.9 | AT94: 0 | AU94: 0 | AV94: 4 | BG94: 1 | BI94: 0.1 | BJ94: 50.5 | BK94: 50.5 | BL94: 0.1 | BM94: 19.7 | BN94: 19.3 | BO94: 3 | BP94: 2.9 | BQ94: 3 | BU94: 0 | BV94: 100 | BW94: 0 | BX94: 0 | BY94: 0 | BZ94: 0 | CC94: 0 | CE94: 100 | CP94: 0 | CQ94: 0 | CR94: 3 | CW94: 0 | CX94: 9.1 | CY94: 36.7 | CZ94: 19.9 | DA94: 17.8
A95: Radek.Faksa | B95: 2015-11-02 | C95: DAL | D95: TOR | E95: 0 | F95: 0 | G95: 0 | H95: 0 | I95: 0 | J95: 0 | K95: 0 | L95: 40.4 | M95: 100 | N95: 0 | O95: -25.5 | P95: 13.1 | Q95: 0 | R95: -71.2 | S95: 0 | T95: 71.2 | U95: -5 | V95: 0 | W95: 5 | X95: 0 | Y95: 23.2 | Z95: 23.2 | AA95: 2 | AB95: -26.5 | AC95: 38.9 | AD95: 65.4 | AE95: -2.5 | AF95: 4.3 | AG95: 6.8 | AH95: 19.9 | AI95: 31.4 | AJ95: 51.3 | AK95: -27.2 | AL95: 67.6 | AM95: -4 | AN95: 8.4 | AO95: 12.3 | AP95: 38.4 | AQ95: 56.6 | AR95: 95 | AT95: 0 | AU95: 1 | AV95: 3 | BG95: 3 | BI95: -31.8 | BJ95: 39.2 | BK95: 71 | BL95: -2.5 | BM95: 20.9 | BN95: 32.3 | BO95: 4.5 | BP95: 7 | BQ95: 0 | BU95: 0 | BV95: 33.3 | BW95: 0 | BX95: 0 | BY95: 0 | BZ95: 0 | CC95: 0 | CE95: 100 | CP95: 0 | CQ95: 0 | CR95: 0 | CW95: 0 | CX95: 13.1 | CY95: 33.9 | CZ95: 27.8 | DA95: 17.9
A96: Radek.Faksa | B96: 2015-11-03 | C96: DAL | D96: BOS | E96: 0 | F96: 0 | G96: 0 | H96: 0 | I96: 0 | J96: 0 | K96: 0 | L96: 47.2 | M96: 131.6 | N96: 0 | O96: -26.2 | P96: 12.2 | Q96: 2 | R96: 20.6 | S96: 59.2 | T96: 38.6 | U96: 1.3 | V96: 4.2 | W96: 2.9 | X96: 20.4 | Y96: 14 | Z96: 34.4 | AA96: 2 | AB96: -3 | AC96: 43.2 | AD96: 46.2 | AE96: -1.6 | AF96: 5.1 | AG96: 6.8 | AH96: 25.2 | AI96: 33.1 | AJ96: 58.3 | AK96: 7.3 | AL96: 39.8 | AM96: -1.2 | AN96: 9.9 | AO96: 11.1 | AP96: 48.4 | AQ96: 54.3 | AR96: 102.7 | AT96: 0 | AU96: 1 | AV96: 2 | BG96: 2 | BI96: -12.2 | BJ96: 23.4 | BK96: 35.5 | BL96: -5 | BM96: 10.8 | BN96: 35.2 | BO96: 2.2 | BP96: 7.2 | BQ96: 0 | BT96: 0 | BU96: 4.9 | BV96: 50 | BW96: 4.9 | BX96: 1 | BY96: 1 | BZ96: 0 | CA96: 50 | CC96: 45.5 | CE96: 86.1 | CP96: 0 | CQ96: 0 | CR96: 0 | CW96: 0 | CX96: 12.2 | CY96: 37.1 | CZ96: 24.8 | DA96: 18
A97: Radek.Faksa | B97: 2015-11-06 | C97: DAL | D97: CAR | E97: 1 | F97: 0 | G97: 1 | H97: 4.6 | I97: 0 | J97: 4.6 | K97: 0 | L97: 43.6 | M97: 116.1 | N97: 50 | O97: -2.4 | P97: 13.1 | Q97: 1 | R97: -4.6 | S97: 49.5 | T97: 54.1 | U97: -0.1 | V97: 4.9 | W97: 5 | X97: 22.7 | Y97: 23.1 | Z97: 45.8 | AA97: 1 | AB97: -15.3 | AC97: 46.2 | AD97: 61.4 | AE97: -1.2 | AF97: 7.4 | AG97: 8.7 | AH97: 34.2 | AI97: 39.8 | AJ97: 74 | AK97: -14.6 | AL97: 58.2 | AM97: -2.9 | AN97: 10 | AO97: 12.9 | AP97: 46 | AQ97: 59.4 | AR97: 105.3 | AT97: 0 | AU97: 1 | AV97: 2 | BG97: 0 | BI97: -9.2 | BJ97: 42.5 | BK97: 51.7 | BL97: -2.2 | BM97: 28.5 | BN97: 38.5 | BO97: 6.2 | BP97: 8.4 | BQ97: 2 | BT97: 33.3 | BU97: 4.6 | BV97: 66.7 | BW97: 0 | BX97: 1 | BY97: 0 | BZ97: 1 | CA97: 100 | CC97: 16.1 | CE97: 100 | CP97: 0 | CQ97: 0 | CR97: 1 | CW97: 0 | CX97: 13.1 | CY97: 42.5 | CZ97: 23.5 | DA97: 18
A98: Radek.Faksa | B98: 2015-11-08 | C98: DAL | D98: DET | E98: 0 | F98: 1 | G98: 1 | H98: 0 | I98: 5.8 | J98: 5.8 | K98: 0 | L98: 29 | M98: 131.1 | N98: 0 | O98: 20.5 | P98: 10.4 | Q98: 0 | R98: -13 | S98: 43.3 | T98: 56.2 | U98: -0.7 | V98: 2.2 | W98: 2.9 | X98: 12.8 | Y98: 16.7 | Z98: 29.5 | AA98: 0 | AB98: -9.6 | AC98: 39.7 | AD98: 49.3 | AE98: -2.3 | AF98: 4.4 | AG98: 6.7 | AH98: 25.6 | AI98: 38.9 | AJ98: 64.5 | AK98: -26.3 | AL98: 55.4 | AM98: -6.3 | AN98: 4.4 | AO98: 10.7 | AP98: 25.3 | AQ98: 61.9 | AR98: 87.2 | AT98: 0 | AU98: 1 | AV98: 0 | BG98: 0 | BI98: -18.7 | BJ98: 46.7 | BK98: 65.4 | BL98: -0.4 | BM98: 18.5 | BN98: 21.1 | BO98: 3.2 | BP98: 3.7 | BQ98: 0 | BU98: 5.8 | BW98: 0 | BX98: 1 | BY98: 0 | BZ98: 1 | CA98: 100 | CC98: 31.1 | CE98: 100 | CP98: 1 | CQ98: 0 | CR98: 0 | CW98: 0 | CX98: 10.4 | CY98: 35.2 | CZ98: 22.8 | DA98: 18.3
A99: Radek.Faksa | B99: 2015-11-10 | C99: DAL | D99: TOR | E99: 0 | F99: 0 | G99: 0 | H99: 0 | I99: 0 | J99: 0 | K99: 0 | L99: 55 | M99: 83.6 | N99: 0 | O99: -9.6 | P99: 13.2 | Q99: 0 | R99: 1.2 | S99: 46.5 | T99: 45.3 | U99: -0.3 | V99: 1.8 | W99: 2 | X99: 8 | Y99: 9.2 | Z99: 17.2 | AA99: 2 | AB99: 9 | AC99: 58.5 | AD99: 49.4 | AE99: 2.1 | AF99: 7.1 | AG99: 5.1 | AH99: 32.4 | AI99: 23.1 | AJ99: 55.5 | AK99: 3.8 | AL99: 51.2 | AM99: 2.3 | AN99: 12.8 | AO99: 10.5 | AP99: 58.4 | AQ99: 47.8 | AR99: 106.2 | AT99: 0 | AU99: 0 | AV99: 2 | BG99: 0 | BI99: 3.2 | BJ99: 55.1 | BK99: 51.9 | BL99: 1.4 | BM99: 34 | BN99: 27.8 | BO99: 7.5 | BP99: 6.1 | BQ99: 2 | BT99: -66.7 | BU99: 0 | BV99: 66.7 | BW99: 4.5 | BX99: 0 | BY99: 1 | BZ99: -1 | CA99: 0 | CC99: 0 | CE99: 83.6 | CP99: 0 | CQ99: 0 | CR99: 2 | CW99: 0 | CX99: 13.2 | CY99: 42 | CZ99: 23.9 | DA99: 16.8
A100: Radek.Faksa | B100: 2015-11-12 | C100: DAL | D100: WPG | E100: 0 | F100: 0 | G100: 0 | H100: 0 | I100: 0 | J100: 0 | K100: 0 | L100: 67.5 | M100: 48 | N100: 0 | O100: 25 | P100: 11.6 | Q100: 0 | R100: 39.7 | S100: 100 | T100: 60.3 | U100: 1.4 | V100: 1.4 | W100: 0 | X100: 7.3 | Y100: 0 | Z100: 7.3 | AA100: 1 | AB100: 16.9 | AC100: 75.3 | AD100: 58.4 | AE100: 3.8 | AF100: 5.7 | AG100: 1.9 | AH100: 29.4 | AI100: 9.6 | AJ100: 39.1 | AK100: 18.4 | AL100: 49.1 | AM100: 7.3 | AN100: 14.1 | AO100: 6.8 | AP100: 73 | AQ100: 35.1 | AR100: 108.1 | AT100: 1 | AU100: 0 | AV100: 2 | BG100: 0 | BI100: 31.3 | BJ100: 73.6 | BK100: 42.3 | BL100: 3.4 | BM100: 27.7 | BN100: 10 | BO100: 5.3 | BP100: 1.9 | BQ100: 1 | BT100: -50 | BU100: 0 | BV100: 50 | BW100: 5.2 | BX100: 0 | BY100: 1 | BZ100: -1 | CA100: 0 | CC100: 0 | CE100: 48 | CP100: 0 | CQ100: 0 | CR100: 1 | CW100: 0 | CX100: 11.6 | CY100: 33.9 | CZ100: 25.5 | DA100: 16.6
A101: Radek.Faksa | B101: 2015-11-14 | C101: DAL | D101: MIN | E101: 0 | F101: 0 | G101: 0 | H101: 0 | I101: 0 | J101: 0 | K101: 0 | L101: 36.4 | M101: 100 | N101: 0 | O101: -4.4 | P101: 8 | Q101: 0 | R101: 36.2 | S101: 100 | T101: 63.8 | U101: 0.9 | V101: 0.9 | W101: 0 | X101: 7 | Y101: 0 | Z101: 7 | AA101: 0 | AB101: -0.1 | AC101: 51.2 | AD101: 51.2 | AE101: 0.1 | AF101: 1.8 | AG101: 1.8 | AH101: 13.9 | AI101: 13.3 | AJ101: 27.2 | AK101: -15.6 | AL101: 52.1 | AM101: -3.6 | AN101: 4.8 | AO101: 8.4 | AP101: 36.3 | AQ101: 63.4 | AR101: 99.8 | AT101: 0 | AU101: 0 | AV101: 0 | BG101: 0 | BI101: 12 | BJ101: 67.4 | BK101: 55.4 | BL101: 2.1 | BM101: 30.1 | BN101: 14.5 | BO101: 4 | BP101: 1.9 | BQ101: 0 | BU101: 0 | BV101: 33.3 | BW101: 0 | BX101: 0 | BY101: 0 | BZ101: 0 | CC101: 0 | CE101: 100 | CP101: 0 | CQ101: 0 | CR101: 0 | CW101: 0 | CX101: 8 | CY101: 33.8 | CZ101: 19.1 | DA101: 17.4
A102: Radek.Faksa | B102: 2016-01-02 | C102: DAL | D102: N.J | E102: 0 | F102: 0 | G102: 0 | H102: 0 | I102: 0 | J102: 0 | K102: 1 | L102: 18.8 | M102: 49.9 | N102: 0 | O102: -13.6 | P102: 4.2 | Q102: 0 | T102: 48.6 | U102: 0 | V102: 0 | W102: 0 | X102: 0 | Y102: 0 | Z102: 0 | AA102: 0 | AB102: -51.3 | AC102: 0 | AD102: 51.3 | AE102: -2 | AF102: 0 | AG102: 2 | AH102: 0 | AI102: 29.2 | AJ102: 29.2 | AK102: -33 | AL102: 51.8 | AM102: -3.5 | AN102: 1.1 | AO102: 4.5 | AP102: 15.1 | AQ102: 65.1 | AR102: 80.3 | AT102: 0 | AU102: 0 | AV102: 0 | BG102: 0 | BI102: -19 | BJ102: 34.5 | BK102: 53.5 | BL102: -0.9 | BM102: 15.1 | BN102: 28.7 | BO102: 1.1 | BP102: 2 | BQ102: 0 | BT102: -66.7 | BU102: 0 | BV102: 66.7 | BW102: 14.4 | BX102: 0 | BY102: 1 | BZ102: -1 | CA102: 0 | CC102: 0 | CE102: 49.9 | CP102: 0 | CQ102: 0 | CR102: 0 | CW102: 14.4 | CX102: 4.2 | CY102: 44.8 | CZ102: 8.5 | DA102: 16.7
A103: Radek.Faksa | B103: 2016-01-03 | C103: DAL | D103: NYI | E103: 0 | F103: 1 | G103: 1 | H103: 0 | I103: 10 | J103: 10 | K103: 0 | L103: 50.1 | M103: 95.8 | N103: 0 | O103: 28.6 | P103: 6 | Q103: 2 | R103: -14.6 | S103: 36 | T103: 50.6 | U103: -2.7 | V103: 3.5 | W103: 6.2 | X103: 34.8 | Y103: 61.8 | Z103: 96.6 | AA103: 3 | AB103: -3.5 | AC103: 50.7 | AD103: 54.2 | AE103: 0.2 | AF103: 7.4 | AG103: 7.2 | AH103: 74.3 | AI103: 72.2 | AJ103: 146.6 | AK103: -3.2 | AL103: 53.3 | AM103: 0.1 | AN103: 10.6 | AO103: 10.6 | AP103: 106.9 | AQ103: 106.3 | AR103: 213.1 | AT103: 0 | AU103: 1 | AV103: 4 | BG103: 0 | BI103: 5.3 | BJ103: 56.9 | BK103: 51.6 | BL103: 1.9 | BM103: 76.6 | BN103: 58 | BO103: 7.6 | BP103: 5.8 | BQ103: 4 | BT103: 0 | BU103: 10 | BV103: 50 | BW103: 10 | BX103: 1 | BY103: 1 | BZ103: 0 | CA103: 50 | CC103: 13.1 | CE103: 82.7 | CP103: 1 | CQ103: 0 | CR103: 4 | CW103: 0 | CX103: 6 | CY103: 35.5 | CZ103: 14.4 | DA103: 16.9
A104: Radek.Faksa | B104: 2016-01-07 | C104: DAL | D104: WPG | E104: 0 | F104: 0 | G104: 0 | H104: 0 | I104: 0 | J104: 0 | K104: -1 | L104: 46.9 | M104: 100 | N104: 0 | O104: -44.1 | P104: 10.7 | Q104: 0 | R104: -21.9 | S104: 27.7 | T104: 49.6 | U104: -1.3 | V104: 0.8 | W104: 2.1 | X104: 4.5 | Y104: 11.7 | Z104: 16.2 | AA104: 0 | AB104: -36.7 | AC104: 10.5 | AD104: 47.2 | AE104: -6 | AF104: 0.8 | AG104: 6.8 | AH104: 4.5 | AI104: 38.1 | AJ104: 42.5 | AK104: -3.2 | AL104: 50.1 | AM104: -0.9 | AN104: 7.1 | AO104: 8 | AP104: 39.8 | AQ104: 45.1 | AR104: 84.9 | AT104: 0 | AU104: 1 | AV104: 1 | BG104: 0 | BI104: -4.5 | BJ104: 42 | BK104: 46.5 | BL104: -1.1 | BM104: 16.2 | BN104: 22.4 | BO104: 2.9 | BP104: 4 | BQ104: 1 | BU104: 0 | BV104: 50 | BW104: 0 | BX104: 0 | BY104: 0 | BZ104: 0 | CC104: 0 | CE104: 100 | CP104: 0 | CQ104: 0 | CR104: 1 | CW104: -5.6 | CX104: 10.7 | CY104: 40.4 | CZ104: 20.9 | DA104: 17.4
A105: Radek.Faksa | B105: 2016-01-09 | C105: DAL | D105: MIN | E105: 0 | F105: 0 | G105: 0 | H105: 0 | I105: 0 | J105: 0 | K105: 0 | L105: 57.1 | M105: 100 | N105: 0 | O105: -10.6 | P105: 9.8 | Q105: 0 | R105: 28.7 | S105: 49.1 | T105: 20.4 | U105: -0.1 | V105: 1.9 | W105: 2 | X105: 11.7 | Y105: 12.1 | Z105: 23.8 | AA105: 0 | AB105: -20.5 | AC105: 30.4 | AD105: 51 | AE105: -3.4 | AF105: 2.7 | AG105: 6.1 | AH105: 16.2 | AI105: 37.1 | AJ105: 53.3 | AK105: 2.3 | AL105: 54.8 | AM105: 2.6 | AN105: 10.4 | AO105: 7.8 | AP105: 63.4 | AQ105: 47.6 | AR105: 111 | AT105: 1 | AU105: 2 | AV105: 2 | BG105: 1 | BI105: -1.4 | BJ105: 48.1 | BK105: 49.4 | BL105: -0.3 | BM105: 22.2 | BN105: 24 | BO105: 3.6 | BP105: 3.9 | BQ105: 0 | BU105: 0 | BV105: 0 | BW105: 0 | BX105: 0 | BY105: 0 | BZ105: 0 | CC105: 0 | CE105: 100 | CP105: 0 | CQ105: 0 | CR105: 0 | CW105: 0 | CX105: 9.8 | CY105: 40.5 | CZ105: 19.5 | DA105: 17.4
A106: Radek.Faksa | B106: 2016-02-06 | C106: DAL | D106: CHI | E106: 0 | F106: 0 | G106: 0 | H106: 0 | I106: 0 | J106: 0 | K106: 0 | L106: 53.9 | M106: 100 | N106: 0 | O106: 26.7 | P106: 10.8 | Q106: 1 | R106: 9.4 | S106: 66.8 | T106: 57.4 | U106: 2.7 | V106: 5.4 | W106: 2.7 | X106: 30.3 | Y106: 15 | Z106: 45.3 | AA106: 1 | AB106: 1.3 | AC106: 63.9 | AD106: 62.6 | AE106: 3.6 | AF106: 8.3 | AG106: 4.7 | AH106: 45.9 | AI106: 25.9 | AJ106: 71.7 | AK106: -9.6 | AL106: 63.5 | AM106: 1.5 | AN106: 10.2 | AO106: 8.7 | AP106: 56.3 | AQ106: 48.3 | AR106: 104.6 | AT106: 0 | AU106: 0 | AV106: 1 | BG106: 1 | BI106: 5.1 | BJ106: 60.7 | BK106: 55.5 | BL106: 2.8 | BM106: 43.6 | BN106: 28.3 | BO106: 7.9 | BP106: 5.1 | BQ106: 0 | BU106: 0 | BV106: 50 | BW106: 0 | BX106: 0 | BY106: 0 | BZ106: 0 | CC106: 0 | CE106: 100 | CP106: 0 | CQ106: 0 | CR106: 0 | CW106: 0 | CX106: 10.8 | CY106: 30.7 | CZ106: 26 | DA106: 16
A107: Radek.Faksa | B107: 2016-02-09 | C107: DAL | D107: MIN | E107: 0 | F107: 0 | G107: 0 | H107: 0 | I107: 0 | J107: 0 | K107: 0 | L107: 42.1 | M107: 100 | N107: 0 | O107: -33.9 | P107: 9.5 | Q107: 0 | R107: -1.5 | S107: 36.8 | T107: 38.3 | U107: -0.8 | V107: 1.1 | W107: 1.9 | X107: 7 | Y107: 12 | Z107: 19 | AA107: 1 | AB107: -15.4 | AC107: 41.6 | AD107: 57 | AE107: -1.6 | AF107: 4.1 | AG107: 5.7 | AH107: 25.8 | AI107: 36.2 | AJ107: 62 | AK107: -6.2 | AL107: 48.3 | AM107: -2.6 | AN107: 7 | AO107: 9.7 | AP107: 44.3 | AQ107: 60.9 | AR107: 105.2 | AT107: 0 | AU107: 0 | AV107: 1 | BG107: 0 | BI107: -6.3 | BJ107: 38.3 | BK107: 44.6 | BL107: -1.8 | BM107: 19.1 | BN107: 30.7 | BO107: 3 | BP107: 4.9 | BQ107: 1 | BU107: 0 | BV107: 50 | BW107: 0 | BX107: 0 | BY107: 0 | BZ107: 0 | CC107: 0 | CE107: 100 | CP107: 0 | CQ107: 0 | CR107: 1 | CW107: 0 | CX107: 9.5 | CY107: 38.9 | CZ107: 19.7 | DA107: 15.3
A108: Radek.Faksa | B108: 2016-02-13 | C108: DAL | D108: WSH | E108: 0 | F108: 0 | G108: 0 | H108: 0 | I108: 0 | J108: 0 | K108: 0 | L108: 77.3 | M108: 100 | N108: 0 | O108: -15 | P108: 9.4 | Q108: 5 | R108: 45.4 | S108: 100 | T108: 54.6 | U108: 4.8 | V108: 4.8 | W108: 0 | X108: 30.5 | Y108: 0 | Z108: 30.5 | AA108: 6 | AB108: 33 | AC108: 89.4 | AD108: 56.4 | AE108: 6.8 | AF108: 7.8 | AG108: 0.9 | AH108: 49.4 | AI108: 5.9 | AJ108: 55.2 | AK108: 24.3 | AL108: 53 | AM108: 10.7 | AN108: 15.1 | AO108: 4.4 | AP108: 96.2 | AQ108: 28.2 | AR108: 124.4 | AT108: 0 | AU108: 0 | AV108: 6 | BG108: 2 | BI108: 17.8 | BJ108: 73.9 | BK108: 56.1 | BL108: 5.4 | BM108: 52.9 | BN108: 18.7 | BO108: 8.3 | BP108: 2.9 | BQ108: 4 | BU108: 0 | BV108: 60 | BW108: 0 | BX108: 0 | BY108: 0 | BZ108: 0 | CC108: 0 | CE108: 100 | CP108: 0 | CQ108: 0 | CR108: 4 | CW108: 0 | CX108: 9.4 | CY108: 36.9 | CZ108: 20.4 | DA108: 16
A109: Radek.Faksa | B109: 2016-02-15 | C109: DAL | D109: NSH | E109: 0 | F109: 0 | G109: 0 | H109: 0 | I109: 0 | J109: 0 | K109: 0 | L109: 42.4 | M109: 100 | N109: 0 | O109: -27.5 | P109: 6.7 | Q109: 2 | R109: 41 | S109: 100 | T109: 59 | U109: 3.5 | V109: 3.5 | W109: 0 | X109: 31.4 | Y109: 0 | Z109: 31.4 | AA109: 2 | AB109: 5.7 | AC109: 63.5 | AD109: 57.8 | AE109: 1.5 | AF109: 3.5 | AG109: 2 | AH109: 31.4 | AI109: 18.1 | AJ109: 49.5 | AK109: -14.6 | AL109: 56.9 | AM109: -1.9 | AN109: 5.2 | AO109: 7 | AP109: 46.1 | AQ109: 62.7 | AR109: 108.8 | AT109: 0 | AU109: 0 | AV109: 3 | BG109: 0 | BI109: 5.3 | BJ109: 58.8 | BK109: 53.5 | BL109: 1.2 | BM109: 36.2 | BN109: 25.3 | BO109: 4 | BP109: 2.8 | BQ109: 3 | BU109: 0 | BV109: 33.3 | BW109: 0 | BX109: 0 | BY109: 0 | BZ109: 0 | CC109: 0 | CE109: 100 | CP109: 0 | CQ109: 0 | CR109: 3 | CW109: 0 | CX109: 6.7 | CY109: 44.9 | CZ109: 13 | DA109: 16.7
A110: Radek.Faksa | B110: 2016-02-16 | C110: DAL | D110: STL | E110: 0 | F110: 0 | G110: 0 | H110: 0 | I110: 0 | J110: 0 | K110: 0 | L110: 47.8 | M110: 68.9 | N110: 0 | O110: 16.7 | P110: 8.1 | Q110: 1 | R110: 1.6 | S110: 68.6 | T110: 66.9 | U110: 1.2 | V110: 2.2 | W110: 1 | X110: 16.2 | Y110: 7.4 | Z110: 23.6 | AA110: 2 | AB110: 22.1 | AC110: 85.9 | AD110: 63.9 | AE110: 5.1 | AF110: 6.1 | AG110: 1 | AH110: 45.2 | AI110: 7.4 | AJ110: 52.7 | AK110: -4.8 | AL110: 52.6 | AM110: -0.5 | AN110: 5.7 | AO110: 6.2 | AP110: 42.3 | AQ110: 46.2 | AR110: 88.5 | AT110: 0 | AU110: 0 | AV110: 2 | BG110: 1 | BI110: -17.7 | BJ110: 37.5 | BK110: 55.2 | BL110: -1.3 | BM110: 14.3 | BN110: 23.8 | BO110: 1.9 | BP110: 3.2 | BQ110: 1 | BT110: -100 | BU110: 0 | BV110: 100 | BW110: 7.4 | BX110: 0 | BY110: 1 | BZ110: -1 | CA110: 0 | CC110: 0 | CE110: 68.9 | CP110: 0 | CQ110: 0 | CR110: 1 | CW110: 0 | CX110: 8.1 | CY110: 31.6 | CZ110: 20.3 | DA110: 16.6
A111: Radek.Faksa | B111: 2016-02-23 | C111: DAL | D111: WPG | E111: 0 | F111: 0 | G111: 0 | H111: 0 | I111: 0 | J111: 0 | K111: 2 | L111: 59.7 | M111: 106.6 | N111: 0 | O111: -22.1 | P111: 9.4 | Q111: 1 | R111: -1.4 | S111: 37.9 | T111: 39.3 | U111: -0.7 | V111: 1.1 | W111: 1.8 | X111: 7.1 | Y111: 11.6 | Z111: 18.6 | AA111: 3 | AB111: 31.2 | AC111: 76.8 | AD111: 45.7 | AE111: 4.2 | AF111: 6 | AG111: 1.8 | AH111: 38.4 | AI111: 11.6 | AJ111: 50 | AK111: 11.4 | AL111: 48.3 | AM111: 2.6 | AN111: 8 | AO111: 5.4 | AP111: 50.9 | AQ111: 34.4 | AR111: 85.2 | AT111: 1 | AU111: 0 | AV111: 3 | BG111: 1 | BI111: -18.3 | BJ111: 44.6 | BK111: 62.9 | BL111: -0.7 | BM111: 18.8 | BN111: 23.4 | BO111: 3 | BP111: 3.7 | BQ111: 1 | BT111: -50 | BU111: 6.4 | BV111: 100 | BW111: 6.4 | BX111: 1 | BY111: 1 | BZ111: 0 | CA111: 50 | CC111: 33.8 | CE111: 72.8 | CP111: 0 | CQ111: 0 | CR111: 1 | CW111: 12.7 | CX111: 9.4 | CY111: 34.9 | CZ111: 21.3 | DA111: 15.6
A112: Radek.Faksa | B112: 2016-02-25 | C112: DAL | D112: WPG | E112: 0 | F112: 0 | G112: 0 | H112: 0 | I112: 0 | J112: 0 | K112: 1 | L112: 49.1 | M112: 100 | N112: 0 | O112: 14.3 | P112: 5.8 | Q112: 2 | R112: 7.2 | S112: 48.9 | T112: 41.7 | U112: -0.1 | V112: 1.9 | W112: 2 | X112: 19.3 | Y112: 20.2 | Z112: 39.5 | AA112: 3 | AB112: 19.8 | AC112: 65.9 | AD112: 46 | AE112: 1.8 | AF112: 3.8 | AG112: 2 | AH112: 38.9 | AI112: 20.2 | AJ112: 59.1 | AK112: 6.1 | AL112: 43 | AM112: -0.2 | AN112: 5.1 | AO112: 5.3 | AP112: 52.7 | AQ112: 54.6 | AR112: 107.4 | AT112: 0 | AU112: 1 | AV112: 3 | BG112: 0 | BI112: 36.4 | BJ112: 78.1 | BK112: 41.7 | BL112: 2.6 | BM112: 37.5 | BN112: 10.5 | BO112: 3.6 | BP112: 1 | BQ112: 3 | BU112: 0 | BV112: 14.3 | BW112: 0 | BX112: 0 | BY112: 0 | BZ112: 0 | CC112: 0 | CE112: 100 | CP112: 0 | CQ112: 0 | CR112: 3 | CW112: 10.3 | CX112: 5.8 | CY112: 44.9 | CZ112: 11.5 | DA112: 17.3
A113: Nick.Cousins | B113: 2015-03-17 | C113: PHI | D113: VAN | E113: 0 | F113: 0 | G113: 0 | H113: 0 | I113: 0 | J113: 0 | K113: 0 | L113: 68.6 | M113: 100 | N113: 0 | O113: -5.2 | P113: 10.4 | Q113: 1 | R113: -10.3 | S113: 52 | T113: 62.3 | U113: 0.3 | V113: 4 | W113: 3.7 | X113: 23.3 | Y113: 21.5 | Z113: 44.8 | AA113: 2 | AB113: 8.7 | AC113: 62.4 | AD113: 53.8 | AE113: 2.5 | AF113: 6.2 | AG113: 3.7 | AH113: 35.7 | AI113: 21.5 | AJ113: 57.2 | AK113: 23.6 | AL113: 44.9 | AM113: 7.9 | AN113: 14.6 | AO113: 6.7 | AP113: 84.4 | AQ113: 38.7 | AR113: 123.2 | AT113: 0 | AU113: 0 | AV113: 2 | BG113: 1 | BI113: 22.7 | BJ113: 61.9 | BK113: 39.2 | BL113: 2.4 | BM113: 35.4 | BN113: 21.8 | BO113: 6.1 | BP113: 3.8 | BQ113: 1 | BU113: 0 | BV113: 25 | BW113: 0 | BX113: 0 | BY113: 0 | BZ113: 0 | CC113: 0 | CE113: 100 | CP113: 0 | CQ113: 0 | CR113: 1 | CW113: 0 | CX113: 10.4 | CY113: 38 | CZ113: 21.5 | DA113: 16.2
A114: Nick.Cousins | B114: 2015-03-19 | C114: PHI | D114: CGY | E114: 0 | F114: 0 | G114: 0 | H114: 0 | I114: 0 | J114: 0 | K114: 0 | L114: 60.5 | M114: 100 | N114: 0 | O114: -29.8 | P114: 8 | Q114: 0 | R114: 65.7 | S114: 100 | T114: 34.3 | U114: 3.3 | V114: 3.3 | W114: 0 | X114: 24.9 | Y114: 0 | Z114: 24.9 | AA114: 0 | AB114: 19.5 | AC114: 66.4 | AD114: 46.9 | AE114: 2.2 | AF114: 4.4 | AG114: 2.2 | AH114: 32.8 | AI114: 16.6 | AJ114: 49.3 | AK114: 9.5 | AL114: 51 | AM114: 2.8 | AN114: 8.1 | AO114: 5.3 | AP114: 60.6 | AQ114: 39.6 | AR114: 100.2 | AT114: 0 | AU114: 0 | AV114: 0 | BG114: 0 | BI114: 7.2 | BJ114: 54.1 | BK114: 46.9 | BL114: 0.8 | BM114: 38.4 | BN114: 32.5 | BO114: 5.1 | BP114: 4.3 | BQ114: 0 | BU114: 0 | BV114: 50 | BW114: 0 | BX114: 0 | BY114: 0 | BZ114: 0 | CC114: 0 | CE114: 100 | CP114: 0 | CQ114: 0 | CR114: 0 | CW114: 0 | CX114: 8 | CY114: 39.2 | CZ114: 16.9 | DA114: 17.4
A115: Nick.Cousins | B115: 2015-03-21 | C115: PHI | D115: EDM | E115: 0 | F115: 0 | G115: 0 | H115: 0 | I115: 0 | J115: 0 | K115: 1 | L115: 34.6 | M115: 119.5 | N115: 0 | O115: 62.5 | P115: 6.7 | Q115: 1 | R115: 10.5 | S115: 41.5 | T115: 30.9 | U115: -0.9 | V115: 2.1 | W115: 3 | X115: 19 | Y115: 26.8 | Z115: 45.8 | AA115: 1 | AB115: -2.7 | AC115: 51.9 | AD115: 54.7 | AE115: 0.3 | AF115: 4.3 | AG115: 4 | AH115: 38.6 | AI115: 35.7 | AJ115: 74.4 | AK115: -16.5 | AL115: 51.1 | AM115: -6.3 | AN115: 7.1 | AO115: 13.3 | AP115: 63.5 | AQ115: 120 | AR115: 183.5 | AT115: 0 | AU115: 1 | AV115: 1 | BG115: 0 | BI115: 15.8 | BJ115: 62.6 | BK115: 46.8 | BL115: 2.1 | BM115: 46.1 | BN115: 27.5 | BO115: 5.1 | BP115: 3.1 | BQ115: 1 | BT115: 66.7 | BU115: 9 | BV115: 33.3 | BW115: 0 | BX115: 1 | BY115: 0 | BZ115: 1 | CA115: 100 | CC115: 19.5 | CE115: 100 | CP115: 0 | CQ115: 0 | CR115: 1 | CW115: 9 | CX115: 6.7 | CY115: 39.5 | CZ115: 14.4 | DA115: 16.3
A116: Nick.Cousins | B116: 2015-03-25 | C116: PHI | D116: CHI | E116: 0 | F116: 0 | G116: 0 | H116: 0 | I116: 0 | J116: 0 | K116: 0 | L116: 34.8 | M116: 125.8 | N116: 0 | O116: 60 | P116: 9.7 | Q116: 1 | R116: 9 | S116: 74 | T116: 65 | U116: 1.8 | V116: 2.8 | W116: 1 | X116: 17.6 | Y116: 6.2 | Z116: 23.8 | AA116: 1 | AB116: 5 | AC116: 64.4 | AD116: 59.4 | AE116: 1.7 | AF116: 3.7 | AG116: 2.1 | AH116: 23.1 | AI116: 12.7 | AJ116: 35.8 | AK116: -19.6 | AL116: 54.3 | AM116: -5 | AN116: 5.7 | AO116: 10.8 | AP116: 35.5 | AQ116: 66.6 | AR116: 102.2 | AT116: 0 | AU116: 1 | AV116: 1 | BG116: 0 | BI116: -8.2 | BJ116: 41.6 | BK116: 49.8 | BL116: -1.6 | BM116: 24.1 | BN116: 33.8 | BO116: 3.9 | BP116: 5.5 | BQ116: 1 | BT116: 0 | BU116: 6.2 | BV116: 100 | BW116: 0 | BX116: 1 | BY116: 0 | BZ116: 1 | CA116: 100 | CC116: 25.8 | CE116: 100 | CP116: 0 | CQ116: 0 | CR116: 1 | CW116: 0 | CX116: 9.7 | CY116: 44.9 | CZ116: 17.7 | DA116: 16.4
A117: Nick.Cousins | B117: 2015-03-28 | C117: PHI | D117: S.J | E117: 0 | F117: 0 | G117: 0 | H117: 0 | I117: 0 | J117: 0 | K117: 0 | L117: 50.3 | M117: 80 | N117: 0 | O117: -34.3 | P117: 8.8 | Q117: 1 | R117: 16.8 | S117: 46.4 | T117: 29.6 | U117: -0.1 | V117: 0.9 | W117: 1 | X117: 5.8 | Y117: 6.7 | Z117: 12.5 | AA117: 1 | AB117: 2.3 | AC117: 30.4 | AD117: 28 | AE117: -2.2 | AF117: 1.7 | AG117: 4 | AH117: 11.7 | AI117: 26.9 | AJ117: 38.6 | AK117: 20.4 | AL117: 29.9 | AM117: 0.1 | AN117: 5.9 | AO117: 5.8 | AP117: 40 | AQ117: 39.5 | AR117: 79.6 | AT117: 0 | AU117: 1 | AV117: 1 | BG117: 0 | BI117: 9.4 | BJ117: 33.5 | BK117: 24.1 | BL117: -2.5 | BM117: 17.1 | BN117: 33.9 | BO117: 2.5 | BP117: 5 | BQ117: 1 | BT117: -100 | BU117: 0 | BV117: 100 | BW117: 6.8 | BX117: 0 | BY117: 1 | BZ117: -1 | CA117: 0 | CC117: 0 | CE117: 80 | CP117: 0 | CQ117: 0 | CR117: 1 | CW117: 0 | CX117: 8.8 | CY117: 39.2 | CZ117: 18.4 | DA117: 15.1
A118: Nick.Cousins | B118: 2015-04-01 | C118: PHI | D118: PIT | E118: 0 | F118: 0 | G118: 0 | H118: 0 | I118: 0 | J118: 0 | K118: 0 | L118: 43 | M118: 100 | N118: 0 | O118: 27.5 | P118: 8 | Q118: 0 | T118: 71.5 | U118: 0 | V118: 0 | W118: 0 | X118: 0 | Y118: 0 | Z118: 0 | AA118: 1 | AB118: -13.9 | AC118: 60.3 | AD118: 74.2 | AE118: 1 | AF118: 3 | AG118: 2 | AH118: 22.7 | AI118: 14.9 | AJ118: 37.6 | AK118: -8.5 | AL118: 51.5 | AM118: -1.7 | AN118: 5.3 | AO118: 7 | AP118: 39.3 | AQ118: 52 | AR118: 91.3 | AT118: 1 | AU118: 0 | AV118: 1 | BG118: 0 | BI118: -18.7 | BJ118: 39.8 | BK118: 58.5 | BL118: -1.5 | BM118: 21.9 | BN118: 33.1 | BO118: 2.9 | BP118: 4.4 | BQ118: 0 | BU118: 0 | BV118: 75 | BW118: 0 | BX118: 0 | BY118: 0 | BZ118: 0 | CC118: 0 | CE118: 100 | CP118: 0 | CQ118: 0 | CR118: 0 | CW118: 0 | CX118: 8 | CY118: 35.8 | CZ118: 18.3 | DA118: 16.1
A119: Nick.Cousins | B119: 2015-04-04 | C119: PHI | D119: CAR | E119: 0 | F119: 0 | G119: 0 | H119: 0 | I119: 0 | J119: 0 | K119: 0 | L119: 48.6 | M119: 100 | N119: 0 | O119: -7.1 | P119: 10.2 | Q119: 0 | T119: 47.4 | U119: 0 | V119: 0 | W119: 0 | X119: 0 | Y119: 0 | Z119: 0 | AA119: 1 | AB119: 23.3 | AC119: 73.2 | AD119: 49.9 | AE119: 1.7 | AF119: 2.6 | AG119: 1 | AH119: 15.6 | AI119: 5.7 | AJ119: 21.3 | AK119: 5.6 | AL119: 43.1 | AM119: -0.3 | AN119: 4.7 | AO119: 5 | AP119: 27.9 | AQ119: 29.5 | AR119: 57.5 | AT119: 1 | AU119: 1 | AV119: 1 | BG119: 0 | BI119: -21.2 | BJ119: 23.8 | BK119: 45 | BL119: -2 | BM119: 5.4 | BN119: 17.2 | BO119: 0.9 | BP119: 2.9 | BQ119: 0 | BU119: 0 | BV119: 33.3 | BW119: 0 | BX119: 0 | BY119: 0 | BZ119: 0 | CC119: 0 | CE119: 100 | CP119: 0 | CQ119: 0 | CR119: 0 | CW119: 0 | CX119: 10.2 | CY119: 40.4 | CZ119: 20.1 | DA119: 16.4
A120: Nick.Cousins | B120: 2015-04-05 | C120: PHI | D120: PIT | E120: 0 | F120: 0 | G120: 0 | H120: 0 | I120: 0 | J120: 0 | K120: 0 | L120: 31.1 | M120: 100 | N120: 0 | O120: 77.4 | P120: 5.7 | Q120: 0 | R120: -22.1 | S120: 15.8 | T120: 37.9 | U120: -3.7 | V120: 0.9 | W120: 4.6 | X120: 9.1 | Y120: 48.7 | Z120: 57.8 | AA120: 0 | AB120: -20.6 | AC120: 22.3 | AD120: 42.8 | AE120: -4.8 | AF120: 1.9 | AG120: 6.7 | AH120: 20.3 | AI120: 71.1 | AJ120: 91.4 | AK120: -9.6 | AL120: 40.7 | AM120: -5.9 | AN120: 4.9 | AO120: 10.8 | AP120: 51.5 | AQ120: 114.3 | AR120: 165.9 | AT120: 0 | AU120: 0 | AV120: 0 | BG120: 0 | BI120: -0.9 | BJ120: 29.2 | BK120: 30 | BL120: -4.5 | BM120: 33 | BN120: 80.1 | BO120: 3.1 | BP120: 7.6 | BQ120: 0 | BU120: 0 | BV120: 100 | BW120: 0 | BX120: 0 | BY120: 0 | BZ120: 0 | CC120: 0 | CE120: 100 | CP120: 0 | CQ120: 0 | CR120: 0 | CW120: 0 | CX120: 5.7 | CY120: 44.4 | CZ120: 11.3 | DA120: 16.5
A121: Nick.Cousins | B121: 2015-04-07 | C121: PHI | D121: NYI | E121: 0 | F121: 0 | G121: 0 | H121: 0 | I121: 0 | J121: 0 | K121: 0 | L121: 54.9 | M121: 119.6 | N121: 0 | O121: 14.8 | P121: 7.9 | Q121: 0 | R121: -8 | S121: 33.9 | T121: 42 | U121: -0.9 | V121: 1 | W121: 1.9 | X121: 7.6 | Y121: 14.8 | Z121: 22.4 | AA121: 0 | AB121: -7.3 | AC121: 49.5 | AD121: 56.8 | AE121: -0.1 | AF121: 2.9 | AG121: 3 | AH121: 22.2 | AI121: 22.7 | AJ121: 44.9 | AK121: 1.7 | AL121: 53.2 | AM121: 1.5 | AN121: 8.2 | AO121: 6.7 | AP121: 62.1 | AQ121: 51 | AR121: 113.1 | AT121: 0 | AU121: 0 | AV121: 0 | BG121: 0 | BI121: 12.6 | BJ121: 58 | BK121: 45.4 | BL121: 1.4 | BM121: 38.8 | BN121: 28.1 | BO121: 5.1 | BP121: 3.7 | BQ121: 0 | BT121: 25 | BU121: 7.6 | BV121: 75 | BW121: 0 | BX121: 1 | BY121: 0 | BZ121: 1 | CA121: 100 | CC121: 19.6 | CE121: 100 | CP121: 0 | CQ121: 0 | CR121: 0 | CW121: 0 | CX121: 7.9 | CY121: 38.2 | CZ121: 17.1 | DA121: 15.7
A122: Nick.Cousins | B122: 2015-04-09 | C122: PHI | D122: CAR | E122: 0 | F122: 0 | G122: 0 | H122: 0 | I122: 0 | J122: 0 | K122: -1 | L122: 30.5 | M122: 100 | N122: 0 | O122: 11.3 | P122: 8 | Q122: 0 | R122: -39.5 | S122: 0 | T122: 39.5 | U122: -1.1 | V122: 0 | W122: 1.1 | X122: 0 | Y122: 8.1 | Z122: 8.1 | AA122: 0 | AB122: -26.6 | AC122: 22.8 | AD122: 49.4 | AE122: -2.1 | AF122: 0.9 | AG122: 3 | AH122: 6.5 | AI122: 22.1 | AJ122: 28.6 | AK122: -17.1 | AL122: 47.6 | AM122: -3.4 | AN122: 2.7 | AO122: 6.1 | AP122: 20 | AQ122: 45.6 | AR122: 65.6 | AT122: 0 | AU122: 0 | AV122: 0 | BG122: 0 | BI122: -17.4 | BJ122: 30.9 | BK122: 48.4 | BL122: -2.2 | BM122: 13.3 | BN122: 29.7 | BO122: 1.8 | BP122: 4 | BQ122: 0 | BU122: 0 | BV122: 0 | BW122: 0 | BX122: 0 | BY122: 0 | BZ122: 0 | CC122: 0 | CE122: 100 | CP122: 0 | CQ122: 0 | CR122: 0 | CW122: -7.5 | CX122: 8 | CY122: 34 | CZ122: 19.1 | DA122: 16.4
A123: Nick.Cousins | B123: 2015-04-11 | C123: PHI | D123: OTT | E123: 0 | F123: 0 | G123: 0 | H123: 0 | I123: 0 | J123: 0 | K123: 0 | L123: 57.3 | M123: 100 | N123: 0 | O123: -5.6 | P123: 11.3 | Q123: 0 | R123: -27.8 | S123: 0 | T123: 27.8 | U123: -2.3 | V123: 0 | W123: 2.3 | X123: 0 | Y123: 12.3 | Z123: 12.3 | AA123: 0 | AB123: -10.2 | AC123: 35.9 | AD123: 46.1 | AE123: -1.5 | AF123: 1.9 | AG123: 3.3 | AH123: 9.9 | AI123: 17.7 | AJ123: 27.6 | AK123: 10.2 | AL123: 47.1 | AM123: 2.2 | AN123: 8.7 | AO123: 6.5 | AP123: 46.1 | AQ123: 34.4 | AR123: 80.5 | AT123: 0 | AU123: 0 | AV123: 2 | BG123: 0 | BI123: 6.5 | BJ123: 61.3 | BK123: 54.8 | BL123: 2 | BM123: 28.8 | BN123: 18.2 | BO123: 5.4 | BP123: 3.4 | BQ123: 2 | BU123: 0 | BV123: 33.3 | BW123: 0 | BX123: 0 | BY123: 0 | BZ123: 0 | CC123: 0 | CE123: 100 | CP123: 0 | CQ123: 0 | CR123: 2 | CW123: 0 | CX123: 11.3 | CY123: 37.2 | CZ123: 23.4 | DA123: 15.8
A124: Nick.Cousins | B124: 2015-11-27 | C124: PHI | D124: NSH | E124: 0 | F124: 0 | G124: 0 | H124: 0 | I124: 0 | J124: 0 | K124: 0 | L124: 100 | N124: 0 | O124: 48.6 | P124: 6.3 | Q124: 0 | R124: 37.8 | S124: 100 | T124: 62.2 | U124: 2 | V124: 2 | W124: 0 | X124: 18.8 | Y124: 0 | Z124: 18.8 | AA124: 0 | AB124: 54.3 | AC124: 100 | AD124: 45.7 | AE124: 3.7 | AF124: 3.7 | AG124: 0 | AH124: 34.7 | AI124: 0 | AJ124: 34.7 | AK124: 53.4 | AL124: 46.6 | AM124: 8.8 | AN124: 8.8 | AO124: 0 | AP124: 83.3 | AQ124: 0 | AR124: 83.3 | AT124: 0 | AU124: 0 | AV124: 0 | BG124: 0 | BI124: 50.7 | BJ124: 100 | BK124: 49.3 | BL124: 2.8 | BM124: 26.3 | BN124: 0 | BO124: 2.8 | BP124: 0 | BQ124: 0 | BT124: 50 | BU124: 9.5 | BV124: 50 | BW124: 0 | BX124: 1 | BY124: 0 | BZ124: 1 | CA124: 100 | CC124: 35.9 | CP124: 0 | CQ124: 0 | CR124: 0 | CW124: 0 | CX124: 6.3 | CY124: 46.1 | CZ124: 12.1 | DA124: 16.4
A125: Nick.Cousins | B125: 2015-11-28 | C125: PHI | D125: NYR | E125: 0 | F125: 0 | G125: 0 | H125: 0 | I125: 0 | J125: 0 | K125: 0 | L125: 40.2 | M125: 100 | N125: 0 | O125: 64.7 | P125: 10.1 | Q125: 0 | R125: -79.5 | S125: 0 | T125: 79.5 | U125: -0.9 | V125: 0 | W125: 0.9 | X125: 0 | Y125: 5.1 | Z125: 5.1 | AA125: 0 | AB125: -30.2 | AC125: 34.6 | AD125: 64.7 | AE125: -0.8 | AF125: 0.9 | AG125: 1.8 | AH125: 5.5 | AI125: 10.4 | AJ125: 15.9 | AK125: -18.3 | AL125: 58.6 | AM125: -2 | AN125: 4.2 | AO125: 6.2 | AP125: 24.9 | AQ125: 36.9 | AR125: 61.8 | AT125: 0 | AU125: 0 | AV125: 0 | BG125: 0 | BI125: -11.6 | BJ125: 54.8 | BK125: 66.3 | BL125: 0.6 | BM125: 18.8 | BN125: 15.6 | BO125: 3.2 | BP125: 2.6 | BQ125: 0 | BU125: 0 | BV125: 100 | BW125: 0 | BX125: 0 | BY125: 0 | BZ125: 0 | CC125: 0 | CE125: 100 | CP125: 0 | CQ125: 0 | CR125: 0 | CW125: 0 | CX125: 10.1 | CY125: 39.7 | CZ125: 20.2 | DA125: 16.9
A126: Nick.Cousins | B126: 2015-12-01 | C126: PHI | D126: OTT | E126: 0 | F126: 0 | G126: 0 | H126: 0 | I126: 0 | J126: 0 | K126: 0 | L126: 37.9 | M126: 72.9 | N126: 0 | O126: 47.8 | P126: 7.2 | Q126: 0 | R126: -67.2 | S126: 0 | T126: 67.2 | U126: -2 | V126: 0 | W126: 2 | X126: 0 | Y126: 16.5 | Z126: 16.5 | AA126: 0 | AB126: -26.8 | AC126: 38.8 | AD126: 65.6 | AE126: -1.4 | AF126: 2.4 | AG126: 3.8 | AH126: 20 | AI126: 31.4 | AJ126: 51.4 | AK126: -24.8 | AL126: 62.7 | AM126: -2.7 | AN126: 4.3 | AO126: 7 | AP126: 35.3 | AQ126: 57.9 | AR126: 93.2 | AT126: 0 | AU126: 1 | AV126: 0 | BG126: 0 | BI126: -21.5 | BJ126: 35.2 | BK126: 56.7 | BL126: -1.7 | BM126: 16.6 | BN126: 30.7 | BO126: 2 | BP126: 3.7 | BQ126: 0 | BT126: -75 | BU126: 0 | BV126: 75 | BW126: 8.3 | BX126: 0 | BY126: 1 | BZ126: -1 | CA126: 0 | CC126: 0 | CE126: 72.9 | CP126: 0 | CQ126: 0 | CR126: 0 | CW126: 0 | CX126: 7.2 | CY126: 38.9 | CZ126: 15.7 | DA126: 16.4
A127: Nick.Cousins | B127: 2015-12-04 | C127: PHI | D127: N.J | E127: 0 | F127: 0 | G127: 0 | H127: 0 | I127: 0 | J127: 0 | K127: 0 | L127: 38.6 | M127: 100 | N127: 0 | O127: 57.1 | P127: 7.3 | Q127: 2 | R127: 12.6 | S127: 100 | T127: 87.4 | U127: 2 | V127: 2 | W127: 0 | X127: 16.6 | Y127: 0 | Z127: 16.6 | AA127: 2 | AB127: 20 | AC127: 100 | AD127: 80 | AE127: 2 | AF127: 2 | AG127: 0 | AH127: 16.6 | AI127: 0 | AJ127: 16.6 | AK127: -23.3 | AL127: 61.8 | AM127: -1.9 | AN127: 3.3 | AO127: 5.2 | AP127: 26.9 | AQ127: 42.9 | AR127: 69.8 | AT127: 0 | AU127: 0 | AV127: 3 | BG127: 1 | BI127: -14.3 | BJ127: 42.3 | BK127: 56.6 | BL127: -0.7 | BM127: 16.7 | BN127: 22.8 | BO127: 2 | BP127: 2.8 | BQ127: 2 | BU127: 0 | BV127: 33.3 | BW127: 0 | BX127: 0 | BY127: 0 | BZ127: 0 | CC127: 0 | CE127: 100 | CP127: 0 | CQ127: 0 | CR127: 2 | CW127: 0 | CX127: 7.3 | CY127: 37.2 | CZ127: 16.4 | DA127: 17
A128: Nick.Cousins | B128: 2016-02-06 | C128: PHI | D128: NYR | E128: 0 | F128: 0 | G128: 0 | H128: 0 | I128: 0 | J128: 0 | K128: 2 | L128: 37.8 | M128: 100 | N128: 0 | O128: 1.8 | P128: 7.4 | Q128: 1 | R128: -28.4 | S128: 41.9 | T128: 70.3 | U128: -0.3 | V128: 0.8 | W128: 1.1 | X128: 6.5 | Y128: 9 | Z128: 15.5 | AA128: 1 | AB128: -36.4 | AC128: 26.7 | AD128: 63.1 | AE128: -3.2 | AF128: 1.8 | AG128: 5 | AH128: 14.7 | AI128: 40.3 | AJ128: 55 | AK128: -18.7 | AL128: 56.6 | AM128: -2.8 | AN128: 4.4 | AO128: 7.2 | AP128: 35.3 | AQ128: 58 | AR128: 93.3 | AT128: 0 | AU128: 0 | AV128: 1 | BG128: 0 | BI128: -18.1 | BJ128: 35.8 | BK128: 54 | BL128: -2.1 | BM128: 21.7 | BN128: 38.8 | BO128: 2.7 | BP128: 4.8 | BQ128: 1 | BU128: 0 | BV128: 50 | BW128: 0 | BX128: 0 | BY128: 0 | BZ128: 0 | CC128: 0 | CE128: 100 | CP128: 0 | CQ128: 0 | CR128: 1 | CW128: 16.1 | CX128: 7.4 | CY128: 38.2 | CZ128: 16.3 | DA128: 17.1
A129: Nick.Cousins | B129: 2016-02-07 | C129: PHI | D129: WSH | E129: 0 | F129: 1 | G129: 1 | H129: 0 | I129: 5.8 | J129: 5.8 | K129: 0 | L129: 36.5 | M129: 102 | N129: 0 | O129: -51.9 | P129: 10.4 | Q129: 0 | R129: -67 | S129: 0 | T129: 67 | U129: -5.5 | V129: 0 | W129: 5.5 | X129: 0 | Y129: 31.8 | Z129: 31.8 | AA129: 1 | AB129: -35 | AC129: 24.2 | AD129: 59.2 | AE129: -6.2 | AF129: 2.9 | AG129: 9.1 | AH129: 16.8 | AI129: 52.5 | AJ129: 69.3 | AK129: -12.6 | AL129: 49.1 | AM129: -5.8 | AN129: 7.9 | AO129: 13.7 | AP129: 45.3 | AQ129: 78.9 | AR129: 124.2 | AT129: 0 | AU129: 2 | AV129: 2 | BG129: 1 | BI129: -1 | BJ129: 46.7 | BK129: 47.7 | BL129: -0.8 | BM129: 34.8 | BN129: 39.6 | BO129: 6 | BP129: 6.9 | BQ129: 1 | BT129: 16.7 | BU129: 5.7 | BV129: 33.3 | BW129: 5.7 | BX129: 1 | BY129: 1 | BZ129: 0 | CA129: 50 | CC129: 16.5 | CE129: 85.5 | CP129: 0 | CQ129: 1 | CR129: 1 | CW129: 0 | CX129: 10.4 | CY129: 35.6 | CZ129: 22.7 | DA129: 17.2
A130: Nick.Cousins | B130: 2016-02-09 | C130: PHI | D130: ANA | E130: 0 | F130: 0 | G130: 0 | H130: 0 | I130: 0 | J130: 0 | K130: 0 | L130: 51.4 | M130: 100 | N130: 0 | O130: -4.3 | P130: 11.5 | Q130: 0 | R130: 19.1 | S130: 49.8 | T130: 30.7 | U130: 0 | V130: 1.9 | W130: 1.9 | X130: 9.9 | Y130: 9.9 | Z130: 19.8 | AA130: 0 | AB130: 16.7 | AC130: 56.2 | AD130: 39.5 | AE130: 1.5 | AF130: 6.7 | AG130: 5.2 | AH130: 34.8 | AI130: 27.1 | AJ130: 61.9 | AK130: 2.6 | AL130: 48.9 | AM130: 0.7 | AN130: 11.6 | AO130: 10.9 | AP130: 60.6 | AQ130: 57.2 | AR130: 117.7 | AT130: 0 | AU130: 0 | AV130: 0 | BG130: 0 | BI130: 17.4 | BJ130: 60.8 | BK130: 43.4 | BL130: 1.8 | BM130: 26.6 | BN130: 17.1 | BO130: 5.1 | BP130: 3.3 | BQ130: 0 | BU130: 0 | BV130: 0 | BW130: 0 | BX130: 0 | BY130: 0 | BZ130: 0 | CC130: 0 | CE130: 100 | CP130: 0 | CQ130: 0 | CR130: 0 | CW130: 0 | CX130: 11.5 | CY130: 29 | CZ130: 28.4 | DA130: 17.4
A131: Nick.Cousins | B131: 2016-02-11 | C131: PHI | D131: BUF | E131: 1 | F131: 1 | G131: 2 | H131: 5.6 | I131: 5.6 | J131: 11.2 | K131: 0 | L131: 46 | M131: 148.4 | N131: 50 | O131: 13.3 | P131: 10.7 | Q131: 1 | R131: 65.1 | S131: 77.3 | T131: 12.2 | U131: 2.7 | V131: 3.8 | W131: 1.1 | X131: 21.1 | Y131: 6.2 | Z131: 27.3 | AA131: 1 | AB131: 30.4 | AC131: 53 | AD131: 22.7 | AE131: 0.7 | AF131: 5.9 | AG131: 5.2 | AH131: 33.2 | AI131: 29.4 | AJ131: 62.7 | AK131: 13.1 | AL131: 32.9 | AM131: -1.8 | AN131: 10.4 | AO131: 12.2 | AP131: 58.5 | AQ131: 68.7 | AR131: 127.3 | AT131: 1 | AU131: 1 | AV131: 3 | BG131: 0 | BI131: 9.5 | BJ131: 49 | BK131: 39.4 | BL131: -0.3 | BM131: 34.9 | BN131: 36.4 | BO131: 6.2 | BP131: 6.5 | BQ131: 2 | BT131: 33.3 | BU131: 16.9 | BV131: 66.7 | BW131: 0 | BX131: 3 | BY131: 0 | BZ131: 3 | CA131: 100 | CC131: 48.4 | CE131: 100 | CP131: 1 | CQ131: 0 | CR131: 1 | CW131: 0 | CX131: 10.7 | CY131: 29.9 | CZ131: 26.3 | DA131: 17.4
A132: Nick.Cousins | B132: 2016-02-13 | C132: PHI | D132: N.J | E132: 0 | F132: 0 | G132: 0 | H132: 0 | I132: 0 | J132: 0 | K132: 0 | L132: 47.5 | M132: 100 | N132: 0 | O132: 3.3 | P132: 14.1 | Q132: 1 | R132: -0.6 | S132: 30 | T132: 30.6 | U132: -2.3 | V132: 1.7 | W132: 4 | X132: 7.3 | Y132: 17.1 | Z132: 24.4 | AA132: 1 | AB132: 2.8 | AC132: 43.2 | AD132: 40.4 | AE132: -1.4 | AF132: 4.6 | AG132: 6 | AH132: 19.5 | AI132: 25.7 | AJ132: 45.2 | AK132: 6.5 | AL132: 40.9 | AM132: -1.1 | AN132: 10.4 | AO132: 11.6 | AP132: 44.6 | AQ132: 49.3 | AR132: 93.9 | AT132: 0 | AU132: 0 | AV132: 3 | BG132: 0 | BI132: 1.4 | BJ132: 54 | BK132: 52.7 | BL132: 1.1 | BM132: 30.6 | BN132: 26 | BO132: 7.2 | BP132: 6.1 | BQ132: 3 | BU132: 0 | BW132: 0 | BX132: 0 | BY132: 0 | BZ132: 0 | CC132: 0 | CE132: 100 | CP132: 0 | CQ132: 0 | CR132: 3 | CW132: 0 | CX132: 14.1 | CY132: 36 | CZ132: 28.1 | DA132: 17.6
A133: Nick.Cousins | B133: 2016-02-14 | C133: PHI | D133: NYR | E133: 0 | F133: 0 | G133: 0 | H133: 0 | I133: 0 | J133: 0 | K133: 0 | L133: 42.1 | M133: 100 | N133: 0 | O133: -43.8 | P133: 9.2 | Q133: 0 | R133: 30.1 | S133: 61.4 | T133: 31.3 | U133: 1.2 | V133: 3.2 | W133: 2 | X133: 20.6 | Y133: 12.9 | Z133: 33.5 | AA133: 1 | AB133: 21 | AC133: 61.4 | AD133: 40.5 | AE133: 3 | AF133: 8 | AG133: 5 | AH133: 52 | AI133: 32.6 | AJ133: 84.6 | AK133: -4.1 | AL133: 46.2 | AM133: -3.4 | AN133: 9 | AO133: 12.3 | AP133: 58.2 | AQ133: 80.1 | AR133: 138.3 | AT133: 0 | AU133: 1 | AV133: 2 | BG133: 1 | BI133: 11.8 | BJ133: 37.9 | BK133: 26.1 | BL133: -2.4 | BM133: 24.3 | BN133: 39.8 | BO133: 3.7 | BP133: 6.1 | BQ133: 1 | BU133: 0 | BV133: 0 | BW133: 0 | BX133: 0 | BY133: 0 | BZ133: 0 | CC133: 0 | CE133: 100 | CP133: 0 | CQ133: 0 | CR133: 1 | CW133: 0 | CX133: 9.2 | CY133: 30.8 | CZ133: 23.1 | DA133: 17.7
A134: Nick.Cousins | B134: 2016-02-16 | C134: PHI | D134: N.J | E134: 1 | F134: 0 | G134: 1 | H134: 6.5 | I134: 0 | J134: 6.5 | K134: -1 | L134: 72.5 | M134: 65.9 | N134: 100 | O134: -5 | P134: 9.2 | Q134: 1 | R134: 47.2 | S134: 100 | T134: 52.8 | U134: 2.2 | V134: 2.2 | W134: 0 | X134: 14.4 | Y134: 0 | Z134: 14.4 | AA134: 2 | AB134: 55.6 | AC134: 100 | AD134: 44.4 | AE134: 5.7 | AF134: 5.7 | AG134: 0 | AH134: 36.8 | AI134: 0 | AJ134: 36.8 | AK134: 20.9 | AL134: 51.6 | AM134: 6.6 | AN134: 10.6 | AO134: 4 | AP134: 68.9 | AQ134: 26.1 | AR134: 94.9 | AT134: 1 | AU134: 1 | AV134: 2 | BG134: 0 | BI134: 11.6 | BJ134: 73.7 | BK134: 62.1 | BL134: 3.4 | BM134: 34.5 | BN134: 12.3 | BO134: 5.3 | BP134: 1.9 | BQ134: 1 | BT134: -16.7 | BU134: 6.5 | BV134: 66.7 | BW134: 6.5 | BX134: 1 | BY134: 1 | BZ134: 0 | CA134: 50 | CC134: 18.8 | CE134: 47.1 | CP134: 0 | CQ134: 0 | CR134: 0 | CW134: -6.5 | CX134: 9.2 | CY134: 29.8 | CZ134: 23.7 | DA134: 17.7
A135: Nick.Cousins | B135: 2016-02-19 | C135: PHI | D135: MTL | E135: 1 | F135: 0 | G135: 1 | H135: 4.3 | I135: 0 | J135: 4.3 | K135: 1 | L135: 63.9 | M135: 111.2 | N135: 50 | O135: 1.7 | P135: 14 | Q135: 1 | R135: 39.1 | S135: 100 | T135: 60.9 | U135: 3.3 | V135: 3.3 | W135: 0 | X135: 14.4 | Y135: 0 | Z135: 14.4 | AA135: 2 | AB135: 7.5 | AC135: 61.4 | AD135: 53.9 | AE135: 2.8 | AF135: 7.5 | AG135: 4.7 | AH135: 32.2 | AI135: 20.2 | AJ135: 52.4 | AK135: 7.7 | AL135: 56.2 | AM135: 6.7 | AN135: 15.5 | AO135: 8.8 | AP135: 66.6 | AQ135: 37.7 | AR135: 104.3 | AT135: 0 | AU135: 0 | AV135: 2 | BG135: 0 | BI135: 11.6 | BJ135: 65.4 | BK135: 53.9 | BL135: 4.2 | BM135: 38.4 | BN135: 20.3 | BO135: 8.9 | BP135: 4.7 | BQ135: 2 | BT135: 50 | BU135: 4.3 | BV135: 50 | BW135: 0 | BX135: 1 | BY135: 0 | BZ135: 1 | CA135: 100 | CC135: 11.2 | CE135: 100 | CP135: 0 | CQ135: 0 | CR135: 1 | CW135: 4.3 | CX135: 14 | CY135: 32.2 | CZ135: 30.2 | DA135: 17.4
A136: Nick.Cousins | B136: 2016-02-20 | C136: PHI | D136: TOR | E136: 0 | F136: 0 | G136: 0 | H136: 0 | I136: 0 | J136: 0 | K136: 0 | L136: 43.9 | M136: 69.3 | N136: 0 | O136: -21.5 | P136: 13.5 | Q136: 0 | R136: -49.3 | S136: 33 | T136: 82.4 | U136: -1 | V136: 1 | W136: 2 | X136: 4.3 | Y136: 8.7 | Z136: 13 | AA136: 1 | AB136: -9.9 | AC136: 51.2 | AD136: 61.1 | AE136: 0.2 | AF136: 4.8 | AG136: 4.6 | AH136: 21.4 | AI136: 20.4 | AJ136: 41.8 | AK136: -11.9 | AL136: 55.8 | AM136: -2.1 | AN136: 7.7 | AO136: 9.9 | AP136: 34.2 | AQ136: 43.7 | AR136: 78 | AT136: 1 | AU136: 1 | AV136: 1 | BG136: 0 | BI136: -27.5 | BJ136: 31.8 | BK136: 59.3 | BL136: -3.5 | BM136: 13.5 | BN136: 28.9 | BO136: 3 | BP136: 6.5 | BQ136: 0 | BT136: -66.7 | BU136: 0 | BV136: 66.7 | BW136: 8.9 | BX136: 0 | BY136: 2 | BZ136: -2 | CA136: 0 | CC136: 0 | CE136: 69.3 | CP136: 0 | CQ136: 0 | CR136: 0 | CW136: 0 | CX136: 13.5 | CY136: 40.2 | CZ136: 25.2 | DA136: 17.5
A137: Nick.Cousins | B137: 2016-02-23 | C137: PHI | D137: CAR | E137: 0 | F137: 0 | G137: 0 | H137: 0 | I137: 0 | J137: 0 | K137: 0 | L137: 84.3 | M137: 107.9 | N137: 0 | O137: 20 | P137: 9.6 | Q137: 1 | R137: 50 | S137: 100 | T137: 50 | U137: 1.8 | V137: 1.8 | W137: 0 | X137: 11 | Y137: 0 | Z137: 11 | AA137: 2 | AB137: 20.4 | AC137: 81 | AD137: 60.6 | AE137: 3.5 | AF137: 4.6 | AG137: 1.1 | AH137: 29 | AI137: 6.8 | AJ137: 35.8 | AK137: 20.3 | AL137: 64.1 | AM137: 12.9 | AN137: 15.9 | AO137: 3 | AP137: 99.6 | AQ137: 18.5 | AR137: 118.1 | AT137: 0 | AU137: 0 | AV137: 5 | BG137: 1 | BI137: 24.4 | BJ137: 85.6 | BK137: 61.2 | BL137: 10.5 | BM137: 79.3 | BN137: 13.3 | BO137: 12.7 | BP137: 2.1 | BQ137: 4 | BT137: 100 | BU137: 6.3 | BV137: 0 | BW137: 0 | BX137: 1 | BY137: 0 | BZ137: 1 | CA137: 100 | CC137: 7.9 | CE137: 100 | CP137: 0 | CQ137: 0 | CR137: 4 | CW137: 0 | CX137: 9.6 | CY137: 36.8 | CZ137: 20.7 | DA137: 16.4
A138: Nick.Cousins | B138: 2016-02-25 | C138: PHI | D138: MIN | E138: 0 | F138: 0 | G138: 0 | H138: 0 | I138: 0 | J138: 0 | K138: 0 | L138: 33.6 | M138: 100 | N138: 0 | O138: 50 | P138: 7.9 | Q138: 0 | R138: -67.4 | S138: 0 | T138: 67.4 | U138: -2 | V138: 0 | W138: 2 | X138: 0 | Y138: 15.5 | Z138: 15.5 | AA138: 0 | AB138: -31.7 | AC138: 34.7 | AD138: 66.4 | AE138: -1.4 | AF138: 1.6 | AG138: 3 | AH138: 12.1 | AI138: 22.8 | AJ138: 34.9 | AK138: -29.6 | AL138: 63.3 | AM138: -3.5 | AN138: 3.6 | AO138: 7.1 | AP138: 27.5 | AQ138: 54.2 | AR138: 81.7 | AT138: 0 | AU138: 1 | AV138: 0 | BG138: 0 | BI138: -50.8 | BJ138: 16.3 | BK138: 67.1 | BL138: -4.6 | BM138: 8.6 | BN138: 43.8 | BO138: 1.1 | BP138: 5.8 | BQ138: 0 | BU138: 0 | BV138: 66.7 | BW138: 0 | BX138: 0 | BY138: 0 | BZ138: 0 | CC138: 0 | CE138: 100 | CP138: 0 | CQ138: 0 | CR138: 0 | CW138: 0 | CX138: 7.9 | CY138: 43.5 | CZ138: 15.3 | DA138: 16.2
A139: Nick.Cousins | B139: 2016-02-27 | C139: PHI | D139: ARI | E139: 0 | F139: 1 | G139: 1 | H139: 0 | I139: 6 | J139: 6 | K139: 0 | L139: 47.1 | M139: 141.8 | N139: 0 | O139: 42.9 | P139: 10 | Q139: 0 | R139: 31 | S139: 63.5 | T139: 32.5 | U139: 0.8 | V139: 1.9 | W139: 1.1 | X139: 11.3 | Y139: 6.5 | Z139: 17.7 | AA139: 1 | AB139: 10.3 | AC139: 54.2 | AD139: 43.9 | AE139: 0.5 | AF139: 3 | AG139: 2.5 | AH139: 17.7 | AI139: 15 | AJ139: 32.7 | AK139: 1 | AL139: 46.1 | AM139: -0.8 | AN139: 6.9 | AO139: 7.7 | AP139: 41.3 | AQ139: 46.3 | AR139: 87.5 | AT139: 2 | AU139: 2 | AV139: 2 | BG139: 0 | BI139: 11.7 | BJ139: 62.8 | BK139: 51 | BL139: 1.9 | BM139: 28.7 | BN139: 17 | BO139: 4.8 | BP139: 2.8 | BQ139: 0 | BT139: 66.7 | BU139: 12 | BV139: 33.3 | BW139: 0 | BX139: 2 | BY139: 0 | BZ139: 2 | CA139: 100 | CC139: 41.8 | CE139: 100 | CP139: 1 | CQ139: 0 | CR139: 0 | CW139: 0 | CX139: 10 | CY139: 35.7 | CZ139: 21.9 | DA139: 16.4
A140: Brett.Ritchie | B140: 2014-12-31 | C140: DAL | D140: ARI | E140: 1 | F140: 0 | G140: 1 | H140: 6 | I140: 0 | J140: 6 | K140: 0 | L140: 72.6 | M140: 123.4 | N140: 50 | O140: 59.3 | P140: 10 | Q140: 2 | R140: 42.1 | S140: 100 | T140: 57.9 | U140: 3.9 | V140: 3.9 | W140: 0 | X140: 23.2 | Y140: 0 | Z140: 23.2 | AA140: 3 | AB140: 50.6 | AC140: 100 | AD140: 49.4 | AE140: 6.5 | AF140: 6.5 | AG140: 0 | AH140: 39.1 | AI140: 0 | AJ140: 39.1 | AK140: 18.4 | AL140: 54.2 | AM140: 5.9 | AN140: 9.5 | AO140: 3.6 | AP140: 57.2 | AQ140: 21.6 | AR140: 78.7 | AT140: 1 | AU140: 0 | AV140: 4 | BG140: 1 | BI140: 15.4 | BJ140: 68.5 | BK140: 53.1 | BL140: 2.3 | BM140: 25.7 | BN140: 11.8 | BO140: 4.3 | BP140: 2 | BQ140: 2 | BT140: 0 | BU140: 6 | BV140: 100 | BW140: 0 | BX140: 1 | BY140: 0 | BZ140: 1 | CA140: 100 | CC140: 23.4 | CE140: 100 | CP140: 0 | CQ140: 0 | CR140: 1 | CW140: 0 | CX140: 10 | CY140: 41.1 | CZ140: 19.5 | DA140: 16
A141: Brett.Ritchie | B141: 2015-01-03 | C141: DAL | D141: MIN | E141: 1 | F141: 1 | G141: 2 | H141: 5.5 | I141: 5.5 | J141: 11 | K141: 0 | L141: 92.9 | N141: 50 | O141: -19.2 | P141: 10.9 | Q141: 1 | R141: 35.2 | S141: 100 | T141: 64.8 | U141: 3.7 | V141: 3.7 | W141: 0 | X141: 20.2 | Y141: 0 | Z141: 20.2 | AA141: 2 | AB141: 42.9 | AC141: 100 | AD141: 57.1 | AE141: 11.2 | AF141: 11.2 | AG141: 0 | AH141: 61.7 | AI141: 0 | AJ141: 61.7 | AK141: 31.9 | AL141: 61 | AM141: 16.9 | AN141: 18.3 | AO141: 1.4 | AP141: 100.8 | AQ141: 7.8 | AR141: 108.5 | AT141: 1 | AU141: 1 | AV141: 4 | BG141: 1 | BI141: 44.8 | BJ141: 100 | BK141: 55.2 | BL141: 10.1 | BM141: 55.9 | BN141: 0 | BO141: 10.1 | BP141: 0 | BQ141: 2 | BT141: 0 | BU141: 16.5 | BV141: 100 | BW141: 0 | BX141: 3 | BY141: 0 | BZ141: 3 | CA141: 100 | CC141: 29.6 | CP141: 1 | CQ141: 0 | CR141: 1 | CW141: 0 | CX141: 10.9 | CY141: 33.3 | CZ141: 24.6 | DA141: 16.1
A142: Brett.Ritchie | B142: 2015-01-04 | C142: DAL | D142: CHI | E142: 0 | F142: 0 | G142: 0 | H142: 0 | I142: 0 | J142: 0 | K142: 0 | L142: 50.3 | M142: 89.7 | N142: 0 | O142: 18.7 | P142: 12.1 | Q142: 3 | R142: -33.3 | S142: 40.6 | T142: 73.9 | U142: -1.8 | V142: 4 | W142: 5.8 | X142: 19.8 | Y142: 29 | Z142: 48.8 | AA142: 4 | AB142: 3.6 | AC142: 53.7 | AD142: 50.1 | AE142: 1.4 | AF142: 10.1 | AG142: 8.7 | AH142: 50.1 | AI142: 43.1 | AJ142: 93.1 | AK142: 3.6 | AL142: 46.7 | AM142: 0.2 | AN142: 13.4 | AO142: 13.3 | AP142: 66.7 | AQ142: 66 | AR142: 132.7 | AT142: 0 | AU142: 1 | AV142: 4 | BG142: 0 | BI142: -6.1 | BJ142: 53.7 | BK142: 59.8 | BL142: 1.5 | BM142: 55.8 | BN142: 48.1 | BO142: 11.2 | BP142: 9.7 | BQ142: 4 | BT142: -66.7 | BU142: 0 | BV142: 66.7 | BW142: 5 | BX142: 0 | BY142: 1 | BZ142: -1 | CA142: 0 | CC142: 0 | CE142: 89.7 | CP142: 0 | CQ142: 0 | CR142: 4 | CW142: 0 | CX142: 12.1 | CY142: 41.9 | CZ142: 22.4 | DA142: 16.3
A143: Brett.Ritchie | B143: 2015-01-06 | C143: DAL | D143: CBJ | E143: 0 | F143: 0 | G143: 0 | H143: 0 | I143: 0 | J143: 0 | K143: 2 | L143: 69 | M143: 100 | N143: 0 | O143: 35 | P143: 10.5 | Q143: 0 | R143: -5 | S143: 48.6 | T143: 53.5 | U143: -0.1 | V143: 0.9 | W143: 1 | X143: 5.3 | Y143: 5.6 | Z143: 11 | AA143: 2 | AB143: 35.6 | AC143: 86.2 | AD143: 50.6 | AE143: 5.2 | AF143: 6.1 | AG143: 1 | AH143: 35.2 | AI143: 5.6 | AJ143: 40.9 | AK143: 23.8 | AL143: 45.2 | AM143: 6.1 | AN143: 11 | AO143: 4.9 | AP143: 62.9 | AQ143: 28.2 | AR143: 91.2 | AT143: 0 | AU143: 0 | AV143: 3 | BG143: 1 | BI143: 24.9 | BJ143: 66.6 | BK143: 41.7 | BL143: 3.1 | BM143: 35.3 | BN143: 17.7 | BO143: 6.2 | BP143: 3.1 | BQ143: 2 | BU143: 0 | BV143: 40 | BW143: 0 | BX143: 0 | BY143: 0 | BZ143: 0 | CC143: 0 | CE143: 100 | CP143: 0 | CQ143: 0 | CR143: 2 | CW143: 11.5 | CX143: 10.5 | CY143: 27.6 | CZ143: 27.5 | DA143: 18
A144: Brett.Ritchie | B144: 2015-01-08 | C144: DAL | D144: NSH | E144: 0 | F144: 0 | G144: 0 | H144: 0 | I144: 0 | J144: 0 | K144: 0 | L144: 41.9 | M144: 117 | N144: 0 | O144: 30.9 | P144: 15.4 | Q144: 0 | R144: -4.9 | S144: 23.8 | T144: 28.6 | U144: -2.2 | V144: 1 | W144: 3.2 | X144: 3.9 | Y144: 12.5 | Z144: 16.4 | AA144: 0 | AB144: -6.5 | AC144: 34.3 | AD144: 40.8 | AE144: -3.9 | AF144: 4.3 | AG144: 8.1 | AH144: 16.6 | AI144: 31.7 | AJ144: 48.3 | AK144: 1.2 | AL144: 40.7 | AM144: -4.3 | AN144: 11 | AO144: 15.2 | AP144: 42.7 | AQ144: 59.3 | AR144: 102 | AT144: 0 | AU144: 0 | AV144: 1 | BG144: 0 | BI144: 21.9 | BJ144: 60.5 | BK144: 38.6 | BL144: 2.1 | BM144: 23 | BN144: 15 | BO144: 5.9 | BP144: 3.8 | BQ144: 1 | BT144: 66.7 | BU144: 3.9 | BV144: 33.3 | BW144: 0 | BX144: 1 | BY144: 0 | BZ144: 1 | CA144: 100 | CC144: 17 | CE144: 100 | CP144: 0 | CQ144: 0 | CR144: 1 | CW144: 0 | CX144: 15.4 | CY144: 35.7 | CZ144: 30.2 | DA144: 18.2
A145: Brett.Ritchie | B145: 2015-01-10 | C145: DAL | D145: COL | E145: 1 | F145: 0 | G145: 1 | H145: 4.7 | I145: 0 | J145: 4.7 | K145: 0 | L145: 49.9 | M145: 97 | N145: 100 | O145: 15.6 | P145: 12.8 | Q145: 1 | R145: 6 | S145: 70.7 | T145: 64.7 | U145: 4.2 | V145: 7.1 | W145: 3 | X145: 33.4 | Y145: 13.9 | Z145: 47.3 | AA145: 2 | AB145: -20.7 | AC145: 51.8 | AD145: 72.5 | AE145: 0.8 | AF145: 11.6 | AG145: 10.8 | AH145: 54.2 | AI145: 50.5 | AJ145: 104.7 | AK145: -18 | AL145: 68 | AM145: 0 | AN145: 15.9 | AO145: 16 | AP145: 74.6 | AQ145: 74.7 | AR145: 149.3 | AT145: 2 | AU145: 0 | AV145: 3 | BG145: 0 | BI145: -18.2 | BJ145: 38.6 | BK145: 56.8 | BL145: -5 | BM145: 39.6 | BN145: 63 | BO145: 8.5 | BP145: 13.5 | BQ145: 1 | BT145: -16.7 | BU145: 4.7 | BV145: 50 | BW145: 9.4 | BX145: 1 | BY145: 2 | BZ145: -1 | CA145: 33.3 | CC145: 11.8 | CE145: 85.1 | CP145: 0 | CQ145: 0 | CR145: 0 | CW145: 0 | CX145: 12.8 | CY145: 30.7 | CZ145: 29.4 | DA145: 18.8
A146: Brett.Ritchie | B146: 2015-01-13 | C146: DAL | D146: OTT | E146: 0 | F146: 0 | G146: 0 | H146: 0 | I146: 0 | J146: 0 | K146: 0 | L146: 49.4 | M146: 100 | N146: 0 | O146: 13.7 | P146: 13.7 | Q146: 2 | R146: 51.8 | S146: 100 | T146: 48.2 | U146: 2.9 | V146: 2.9 | W146: 0 | X146: 12.9 | Y146: 0 | Z146: 12.9 | AA146: 2 | AB146: 35.6 | AC146: 66.4 | AD146: 30.8 | AE146: 1.9 | AF146: 3.9 | AG146: 2 | AH146: 17.2 | AI146: 8.7 | AJ146: 25.9 | AK146: 9.1 | AL146: 40.3 | AM146: -0.3 | AN146: 10.4 | AO146: 10.6 | AP146: 45.4 | AQ146: 46.5 | AR146: 92 | AT146: 0 | AU146: 0 | AV146: 4 | BG146: 1 | BI146: 21.3 | BJ146: 61.7 | BK146: 40.3 | BL146: 3.1 | BM146: 35.5 | BN146: 22 | BO146: 8.1 | BP146: 5 | BQ146: 3 | BU146: 0 | BV146: 66.7 | BW146: 0 | BX146: 0 | BY146: 0 | BZ146: 0 | CC146: 0 | CE146: 100 | CP146: 0 | CQ146: 0 | CR146: 3 | CW146: 0 | CX146: 13.7 | CY146: 34.6 | CZ146: 28.4 | DA146: 18.8
A147: Brett.Ritchie | B147: 2015-01-15 | C147: DAL | D147: WPG | E147: 0 | F147: 0 | G147: 0 | H147: 0 | I147: 0 | J147: 0 | K147: 0 | L147: 52.1 | M147: 100 | N147: 0 | O147: 26.2 | P147: 10.1 | Q147: 0 | R147: -30.3 | S147: 45.4 | T147: 75.8 | U147: -0.3 | V147: 1.7 | W147: 2 | X147: 9.8 | Y147: 11.8 | Z147: 21.5 | AA147: 0 | AB147: -1.4 | AC147: 62.3 | AD147: 63.7 | AE147: 1.9 | AF147: 4.9 | AG147: 2.9 | AH147: 28.8 | AI147: 17.4 | AJ147: 46.2 | AK147: -7.2 | AL147: 59.4 | AM147: 0.7 | AN147: 8.5 | AO147: 7.8 | AP147: 50.6 | AQ147: 46.5 | AR147: 97.1 | AT147: 1 | AU147: 0 | AV147: 2 | BG147: 1 | BI147: -9.9 | BJ147: 45.4 | BK147: 55.3 | BL147: -0.7 | BM147: 20.4 | BN147: 24.6 | BO147: 3.4 | BP147: 4.1 | BQ147: 0 | BU147: 0 | BV147: 0 | BW147: 0 | BX147: 0 | BY147: 0 | BZ147: 0 | CC147: 0 | CE147: 100 | CP147: 0 | CQ147: 0 | CR147: 0 | CW147: 0 | CX147: 10.1 | CY147: 29.6 | CZ147: 25.5 | DA147: 18.4
A148: Brett.Ritchie | B148: 2015-02-08 | C148: DAL | D148: NYR | E148: 0 | F148: 0 | G148: 0 | H148: 0 | I148: 0 | J148: 0 | K148: 0 | L148: 41.1 | M148: 100 | N148: 0 | O148: -12.5 | P148: 16.6 | Q148: 1 | R148: -21.2 | S148: 36.5 | T148: 57.7 | U148: -0.8 | V148: 1 | W148: 1.8 | X148: 3.8 | Y148: 6.6 | Z148: 10.3 | AA148: 1 | AB148: -23.2 | AC148: 28.5 | AD148: 51.7 | AE148: -4.1 | AF148: 2.7 | AG148: 6.8 | AH148: 9.8 | AI148: 24.6 | AJ148: 34.4 | AK148: -4 | AL148: 45.1 | AM148: -4.6 | AN148: 10.6 | AO148: 15.2 | AP148: 38.5 | AQ148: 55.1 | AR148: 93.6 | AT148: 2 | AU148: 0 | AV148: 4 | BG148: 1 | BI148: -24.5 | BJ148: 23 | BK148: 47.5 | BL148: -7.7 | BM148: 11.8 | BN148: 39.5 | BO148: 3.3 | BP148: 10.9 | BQ148: 1 | BU148: 0 | BV148: 50 | BW148: 0 | BX148: 0 | BY148: 0 | BZ148: 0 | CC148: 0 | CE148: 100 | CP148: 0 | CQ148: 0 | CR148: 1 | CW148: 0 | CX148: 16.6 | CY148: 33.4 | CZ148: 33.2 | DA148: 19.1
A149: Brett.Ritchie | B149: 2015-02-10 | C149: DAL | D149: BOS | E149: 0 | F149: 0 | G149: 0 | H149: 0 | I149: 0 | J149: 0 | K149: 0 | L149: 75.7 | M149: 100 | N149: 0 | O149: 5.7 | P149: 9.3 | Q149: 2 | R149: 66 | S149: 100 | T149: 34 | U149: 3.2 | V149: 3.2 | W149: 0 | X149: 20.5 | Y149: 0 | Z149: 20.5 | AA149: 3 | AB149: 40.9 | AC149: 88 | AD149: 47.1 | AE149: 5.4 | AF149: 6.3 | AG149: 0.9 | AH149: 40.3 | AI149: 5.5 | AJ149: 45.8 | AK149: 29.7 | AL149: 46 | AM149: 7.6 | AN149: 11.2 | AO149: 3.6 | AP149: 71.6 | AQ149: 23 | AR149: 94.7 | AT149: 0 | AU149: 0 | AV149: 4 | BG149: 2 | BI149: 28.6 | BJ149: 72.1 | BK149: 43.6 | BL149: 4.2 | BM149: 43.6 | BN149: 16.8 | BO149: 6.8 | BP149: 2.6 | BQ149: 2 | BU149: 0 | BV149: 50 | BW149: 0 | BX149: 0 | BY149: 0 | BZ149: 0 | CC149: 0 | CE149: 100 | CP149: 0 | CQ149: 0 | CR149: 2 | CW149: 0 | CX149: 9.3 | CY149: 36 | CZ149: 20.6 | DA149: 16.9
A150: Brett.Ritchie | B150: 2015-02-14 | C150: DAL | D150: COL | E150: 0 | F150: 0 | G150: 0 | H150: 0 | I150: 0 | J150: 0 | K150: 0 | L150: 50.7 | M150: 70.7 | N150: 0 | O150: 12.3 | P150: 12.8 | Q150: 0 | R150: -24.3 | S150: 0 | T150: 24.3 | U150: -4.9 | V150: 0 | W150: 4.9 | X150: 0 | Y150: 23.2 | Z150: 23.2 | AA150: 1 | AB150: -5.4 | AC150: 26.1 | AD150: 31.6 | AE150: -5.7 | AF150: 3.1 | AG150: 8.8 | AH150: 14.6 | AI150: 41.4 | AJ150: 56 | AK150: 11.2 | AL150: 39.5 | AM150: 0.4 | AN150: 14.1 | AO150: 13.7 | AP150: 66.1 | AQ150: 64.3 | AR150: 130.5 | AT150: 2 | AU150: 0 | AV150: 3 | BG150: 0 | BI150: 5.4 | BJ150: 41.4 | BK150: 35.9 | BL150: -2 | BM150: 22.6 | BN150: 32 | BO150: 4.8 | BP150: 6.8 | BQ150: 1 | BT150: 0 | BU150: 0 | BV150: 0 | BW150: 9.4 | BX150: 0 | BY150: 2 | BZ150: -2 | CA150: 0 | CC150: 0 | CE150: 70.7 | CP150: 0 | CQ150: 0 | CR150: 1 | CW150: 0 | CX150: 12.8 | CY150: 35.9 | CZ150: 26.3 | DA150: 17.6
A151: Brett.Ritchie | B151: 2015-02-17 | C151: DAL | D151: STL | E151: 0 | F151: 0 | G151: 0 | H151: 0 | I151: 0 | J151: 0 | K151: 0 | L151: 68.2 | M151: 100 | N151: 0 | O151: 65.4 | P151: 10.4 | Q151: 1 | R151: -25.2 | S151: 38.9 | T151: 64.1 | U151: -0.7 | V151: 1.2 | W151: 1.9 | X151: 7.1 | Y151: 11.2 | Z151: 18.3 | AA151: 2 | AB151: 2.9 | AC151: 55.5 | AD151: 52.6 | AE151: 0.5 | AF151: 2.4 | AG151: 1.9 | AH151: 13.9 | AI151: 11.2 | AJ151: 25.1 | AK151: 26.9 | AL151: 41.3 | AM151: 6.5 | AN151: 12.1 | AO151: 5.7 | AP151: 69.9 | AQ151: 32.6 | AR151: 102.4 | AT151: 0 | AU151: 0 | AV151: 2 | BG151: 0 | BI151: 2.5 | BJ151: 51.1 | BK151: 48.7 | BL151: 0.2 | BM151: 28.7 | BN151: 27.4 | BO151: 5 | BP151: 4.8 | BQ151: 2 | BU151: 0 | BV151: 75 | BW151: 0 | BX151: 0 | BY151: 0 | BZ151: 0 | CC151: 0 | CE151: 100 | CP151: 0 | CQ151: 0 | CR151: 2 | CW151: 0 | CX151: 10.4 | CY151: 37.2 | CZ151: 21.9 | DA151: 16.3
A152: Brett.Ritchie | B152: 2015-02-19 | C152: DAL | D152: S.J | E152: 0 | F152: 0 | G152: 0 | H152: 0 | I152: 0 | J152: 0 | K152: 0 | L152: 42.7 | M152: 100 | N152: 0 | O152: -10.6 | P152: 10.8 | Q152: 0 | R152: -13 | S152: 46 | T152: 59 | U152: -0.2 | V152: 0.9 | W152: 1.1 | X152: 5 | Y152: 5.9 | Z152: 11 | AA152: 0 | AB152: -15.3 | AC152: 47.5 | AD152: 62.8 | AE152: -0.3 | AF152: 2.7 | AG152: 3 | AH152: 15 | AI152: 16.6 | AJ152: 31.6 | AK152: -13.9 | AL152: 56.6 | AM152: -2.8 | AN152: 8.2 | AO152: 11 | AP152: 45.2 | AQ152: 60.7 | AR152: 105.9 | AT152: 1 | AU152: 1 | AV152: 2 | BG152: 0 | BI152: -18 | BJ152: 38.9 | BK152: 56.9 | BL152: -1.5 | BM152: 14.8 | BN152: 23.3 | BO152: 2.7 | BP152: 4.2 | BQ152: 1 | BU152: 0 | BV152: 25 | BW152: 0 | BX152: 0 | BY152: 0 | BZ152: 0 | CC152: 0 | CE152: 100 | CP152: 0 | CQ152: 0 | CR152: 1 | CW152: 0 | CX152: 10.8 | CY152: 39.8 | CZ152: 21.4 | DA152: 16.7
A153: Brett.Ritchie | B153: 2015-02-21 | C153: DAL | D153: DET | E153: 0 | F153: 0 | G153: 0 | H153: 0 | I153: 0 | J153: 0 | K153: 0 | L153: 29.1 | M153: 89.6 | N153: 0 | O153: -25.3 | P153: 13.7 | Q153: 1 | R153: -9.9 | S153: 34.4 | T153: 44.3 | U153: -1.8 | V153: 2 | W153: 3.9 | X153: 8.8 | Y153: 16.9 | Z153: 25.7 | AA153: 2 | AB153: -27.6 | AC153: 35.4 | AD153: 63 | AE153: -3.9 | AF153: 4.7 | AG153: 8.6 | AH153: 20.6 | AI153: 37.6 | AJ153: 58.3 | AK153: -29.3 | AL153: 58.4 | AM153: -10.5 | AN153: 7.3 | AO153: 17.9 | AP153: 32 | AQ153: 78 | AR153: 109.9 | AT153: 1 | AU153: 0 | AV153: 5 | BG153: 1 | BI153: -27.5 | BJ153: 29.9 | BK153: 57.4 | BL153: -5.5 | BM153: 17.9 | BN153: 41.9 | BO153: 4.1 | BP153: 9.6 | BQ153: 3 | BT153: -62.5 | BU153: 0 | BV153: 62.5 | BW153: 4.4 | BX153: 0 | BY153: 1 | BZ153: -1 | CA153: 0 | CC153: 0 | CE153: 89.6 | CP153: 0 | CQ153: 0 | CR153: 3 | CW153: 0 | CX153: 13.7 | CY153: 37.1 | CZ153: 27 | DA153: 18.3
A154: Brett.Ritchie | B154: 2015-02-22 | C154: DAL | D154: MIN | E154: 0 | F154: 0 | G154: 0 | H154: 0 | I154: 0 | J154: 0 | K154: 1 | L154: 32 | M154: 79.7 | N154: 0 | O154: -30 | P154: 8.9 | Q154: 0 | R154: -34 | S154: 0 | T154: 34 | U154: -2.1 | V154: 0 | W154: 2.1 | X154: 0 | Y154: 14 | Z154: 14 | AA154: 1 | AB154: -16.9 | AC154: 29.5 | AD154: 46.3 | AE154: -2.9 | AF154: 2.1 | AG154: 4.9 | AH154: 13.9 | AI154: 33.3 | AJ154: 47.2 | AK154: -12.4 | AL154: 44.4 | AM154: -4.6 | AN154: 4.1 | AO154: 8.6 | AP154: 27.5 | AQ154: 58.4 | AR154: 85.9 | AT154: 1 | AU154: 0 | AV154: 2 | BG154: 0 | BI154: 3.4 | BJ154: 38.4 | BK154: 35 | BL154: -1.9 | BM154: 20.7 | BN154: 33.3 | BO154: 3.1 | BP154: 4.9 | BQ154: 1 | BT154: -20 | BU154: 0 | BV154: 20 | BW154: 6.8 | BX154: 0 | BY154: 1 | BZ154: -1 | CA154: 0 | CC154: 0 | CE154: 79.7 | CP154: 0 | CQ154: 0 | CR154: 1 | CW154: 6.8 | CX154: 8.9 | CY154: 42.8 | CZ154: 17.2 | DA154: 17.4
A155: Brett.Ritchie | B155: 2015-02-24 | C155: DAL | D155: WPG | E155: 0 | F155: 0 | G155: 0 | H155: 0 | I155: 0 | J155: 0 | K155: 0 | L155: 61.2 | M155: 117.2 | N155: 0 | O155: 12.5 | P155: 7.6 | Q155: 0 | R155: -52.6 | S155: 0 | T155: 52.6 | U155: -0.9 | V155: 0 | W155: 0.9 | X155: 0 | Y155: 7 | Z155: 7 | AA155: 1 | AB155: 12.9 | AC155: 69.9 | AD155: 56.9 | AE155: 3.9 | AF155: 6.8 | AG155: 2.9 | AH155: 54 | AI155: 23.3 | AJ155: 77.3 | AK155: 3 | AL155: 58.2 | AM155: 3.8 | AN155: 10.3 | AO155: 6.5 | AP155: 81.3 | AQ155: 51.5 | AR155: 132.8 | AT155: 0 | AU155: 0 | AV155: 1 | BG155: 0 | BI155: 9.3 | BJ155: 57.4 | BK155: 48.1 | BL155: 1.5 | BM155: 45.9 | BN155: 34.1 | BO155: 5.8 | BP155: 4.3 | BQ155: 1 | BT155: 66.7 | BU155: 7.9 | BV155: 33.3 | BW155: 0 | BX155: 1 | BY155: 0 | BZ155: 1 | CA155: 100 | CC155: 17.2 | CE155: 100 | CP155: 0 | CQ155: 0 | CR155: 1 | CW155: 0 | CX155: 7.6 | CY155: 42.1 | CZ155: 15.3 | DA155: 16.9
A156: Brett.Ritchie | B156: 2015-02-27 | C156: DAL | D156: COL | E156: 0 | F156: 0 | G156: 0 | H156: 0 | I156: 0 | J156: 0 | K156: 0 | L156: 80.2 | M156: 59.8 | N156: 0 | O156: 5.5 | P156: 10.7 | Q156: 1 | R156: 32.1 | S156: 100 | T156: 67.9 | U156: 0.8 | V156: 0.8 | W156: 0 | X156: 4.5 | Y156: 0 | Z156: 4.5 | AA156: 3 | AB156: 26.2 | AC156: 74.4 | AD156: 48.2 | AE156: 3.6 | AF156: 5.5 | AG156: 1.9 | AH156: 30.7 | AI156: 10.5 | AJ156: 41.2 | AK156: 28.3 | AL156: 51.9 | AM156: 10.5 | AN156: 13.9 | AO156: 3.4 | AP156: 78.4 | AQ156: 19.4 | AR156: 97.8 | AT156: 0 | AU156: 0 | AV156: 4 | BG156: 3 | BI156: 27.1 | BJ156: 81 | BK156: 53.9 | BL156: 6.2 | BM156: 45.7 | BN156: 10.7 | BO156: 8.1 | BP156: 1.9 | BQ156: 1 | BT156: 0 | BU156: 5.6 | BV156: 50 | BW156: 5.6 | BX156: 1 | BY156: 1 | BZ156: 0 | CA156: 50 | CC156: 12.3 | CE156: 47.5 | CP156: 0 | CQ156: 0 | CR156: 1 | CW156: 0 | CX156: 10.7 | CY156: 37.3 | CZ156: 22.2 | DA156: 17.7
A157: Brett.Ritchie | B157: 2015-03-01 | C157: DAL | D157: ANA | E157: 0 | F157: 0 | G157: 0 | H157: 0 | I157: 0 | J157: 0 | K157: 1 | L157: 80 | M157: 100 | N157: 0 | O157: 8.5 | P157: 9.1 | Q157: 1 | R157: -21.9 | S157: 42.3 | T157: 64.2 | U157: -0.6 | V157: 1.5 | W157: 2.1 | X157: 10.1 | Y157: 13.8 | Z157: 24 | AA157: 1 | AB157: 12.9 | AC157: 76.9 | AD157: 64 | AE157: 4.8 | AF157: 6.9 | AG157: 2.1 | AH157: 46 | AI157: 13.8 | AJ157: 59.8 | AK157: 23.6 | AL157: 56.4 | AM157: 5.9 | AN157: 7.9 | AO157: 2 | AP157: 52.1 | AQ157: 13 | AR157: 65.1 | AT157: 1 | AU157: 0 | AV157: 2 | BG157: 1 | BI157: -0.6 | BJ157: 59.6 | BK157: 60.2 | BL157: 0.9 | BM157: 19.2 | BN157: 13 | BO157: 2.9 | BP157: 2 | BQ157: 0 | BU157: 0 | BV157: 0 | BW157: 0 | BX157: 0 | BY157: 0 | BZ157: 0 | CC157: 0 | CE157: 100 | CP157: 0 | CQ157: 0 | CR157: 0 | CW157: 6.6 | CX157: 9.1 | CY157: 40.9 | CZ157: 18.1 | DA157: 16.4
A158: Brett.Ritchie | B158: 2015-03-03 | C158: DAL | D158: NYI | E158: 1 | F158: 0 | G158: 1 | H158: 6.2 | I158: 0 | J158: 6.2 | K158: 0 | L158: 51 | M158: 113.8 | N158: 20 | O158: 13 | P158: 9.7 | Q158: 3 | R158: -22.7 | S158: 35.1 | T158: 57.8 | U158: -2.4 | V158: 2.9 | W158: 5.3 | X158: 17.8 | Y158: 33 | Z158: 50.9 | AA158: 6 | AB158: 0.9 | AC158: 49.7 | AD158: 48.8 | AE158: -0.1 | AF158: 7.2 | AG158: 7.3 | AH158: 44.9 | AI158: 45.4 | AJ158: 90.3 | AK158: -1.2 | AL158: 52.2 | AM158: 0.6 | AN158: 15.9 | AO158: 15.3 | AP158: 98.9 | AQ158: 95 | AR158: 193.9 | AT158: 1 | AU158: 0 | AV158: 10 | BG158: 4 | BI158: 0.2 | BJ158: 46.5 | BK158: 46.3 | BL158: -1.1 | BM158: 45 | BN158: 51.9 | BO158: 7.3 | BP158: 8.4 | BQ158: 5 | BT158: 50 | BU158: 6.2 | BV158: 50 | BW158: 0 | BX158: 1 | BY158: 0 | BZ158: 1 | CA158: 100 | CC158: 13.8 | CE158: 100 | CP158: 0 | CQ158: 0 | CR158: 4 | CW158: 0 | CX158: 9.7 | CY158: 32.1 | CZ158: 23.2 | DA158: 16
A159: Brett.Ritchie | B159: 2015-03-05 | C159: DAL | D159: FLA | E159: 0 | F159: 0 | G159: 0 | H159: 0 | I159: 0 | J159: 0 | K159: 0 | L159: 51.5 | M159: 116 | N159: 0 | O159: 4.2 | P159: 10.1 | Q159: 0 | R159: -18.1 | S159: 39.4 | T159: 57.5 | U159: -0.7 | V159: 1.3 | W159: 2 | X159: 7.8 | Y159: 12 | Z159: 19.8 | AA159: 0 | AB159: -39.8 | AC159: 32.5 | AD159: 72.3 | AE159: -2.6 | AF159: 2.4 | AG159: 5 | AH159: 14.1 | AI159: 29.4 | AJ159: 43.5 | AK159: -19.9 | AL159: 71.4 | AM159: 0.4 | AN159: 7.2 | AO159: 6.8 | AP159: 42.7 | AQ159: 40.2 | AR159: 82.9 | AT159: 0 | AU159: 0 | AV159: 1 | BG159: 0 | BI159: -34.6 | BJ159: 34.3 | BK159: 68.9 | BL159: -2.7 | BM159: 17.7 | BN159: 34 | BO159: 3 | BP159: 5.7 | BQ159: 1 | BT159: 0 | BU159: 5.9 | BV159: 50 | BW159: 5.9 | BX159: 1 | BY159: 1 | BZ159: 0 | CA159: 50 | CC159: 33.4 | CE159: 82.6 | CP159: 0 | CQ159: 0 | CR159: 1 | CW159: 0 | CX159: 10.1 | CY159: 42 | CZ159: 19.4 | DA159: 16.6
A160: Brett.Ritchie | B160: 2015-03-10 | C160: DAL | D160: PHI | E160: 1 | F160: 0 | G160: 1 | H160: 5.5 | I160: 0 | J160: 5.5 | K160: 0 | L160: 48.7 | M160: 126 | N160: 50 | O160: -23.2 | P160: 11 | Q160: 2 | R160: -11.9 | S160: 50.2 | T160: 62.1 | U160: 0 | V160: 2 | W160: 1.9 | X160: 10.7 | Y160: 10.6 | Z160: 21.3 | AA160: 3 | AB160: -8.6 | AC160: 50.8 | AD160: 59.4 | AE160: 0.1 | AF160: 4 | AG160: 3.9 | AH160: 22.1 | AI160: 21.4 | AJ160: 43.5 | AK160: -11.1 | AL160: 59.8 | AM160: -0.3 | AN160: 5.1 | AO160: 5.4 | AP160: 27.9 | AQ160: 29.3 | AR160: 57.2 | AT160: 1 | AU160: 0 | AV160: 3 | BG160: 0 | BI160: -9.2 | BJ160: 57.2 | BK160: 66.4 | BL160: 1 | BM160: 21.1 | BN160: 15.8 | BO160: 3.9 | BP160: 2.9 | BQ160: 2 | BT160: 50 | BU160: 5.5 | BV160: 50 | BW160: 0 | BX160: 1 | BY160: 0 | BZ160: 1 | CA160: 100 | CC160: 26 | CE160: 100 | CP160: 0 | CQ160: 0 | CR160: 1 | CW160: 0 | CX160: 11 | CY160: 36.1 | CZ160: 23.3 | DA160: 16.6
A161: Brett.Ritchie | B161: 2015-03-12 | C161: DAL | D161: CAR | E161: 0 | F161: 1 | G161: 1 | H161: 0 | I161: 4.9 | J161: 4.9 | K161: 0 | L161: 56.3 | M161: 115.5 | N161: 0 | O161: 57.9 | P161: 12.2 | Q161: 1 | R161: 2.7 | S161: 54.1 | T161: 51.4 | U161: 0.5 | V161: 3 | W161: 2.5 | X161: 14.7 | Y161: 12.4 | Z161: 27.1 | AA161: 2 | AB161: -1.8 | AC161: 50.4 | AD161: 52.2 | AE161: 0.1 | AF161: 5.1 | AG161: 5 | AH161: 24.9 | AI161: 24.5 | AJ161: 49.5 | AK161: -4.2 | AL161: 60.5 | AM161: 2.2 | AN161: 9.7 | AO161: 7.5 | AP161: 48 | AQ161: 37.2 | AR161: 85.2 | AT161: 1 | AU161: 1 | AV161: 3 | BG161: 1 | BI161: 14.2 | BJ161: 78.6 | BK161: 64.5 | BL161: 4.7 | BM161: 31.9 | BN161: 8.7 | BO161: 6.5 | BP161: 1.8 | BQ161: 1 | BT161: 50 | BU161: 4.9 | BV161: 50 | BW161: 0 | BX161: 1 | BY161: 0 | BZ161: 1 | CA161: 100 | CC161: 15.5 | CE161: 100 | CP161: 0 | CQ161: 1 | CR161: 1 | CW161: 0 | CX161: 12.2 | CY161: 39 | CZ161: 23.8 | DA161: 16.3
A162: Brett.Ritchie | B162: 2015-03-13 | C162: DAL | D162: WSH | E162: 0 | F162: 0 | G162: 0 | H162: 0 | I162: 0 | J162: 0 | K162: 1 | L162: 85.7 | M162: 100 | N162: 0 | O162: 7.1 | P162: 11.4 | Q162: 2 | R162: 45.5 | S162: 100 | T162: 54.5 | U162: 4.2 | V162: 4.2 | W162: 0 | X162: 21.9 | Y162: 0 | Z162: 21.9 | AA162: 3 | AB162: 33.2 | AC162: 91.5 | AD162: 58.3 | AE162: 9.4 | AF162: 10.3 | AG162: 1 | AH162: 54.1 | AI162: 5 | AJ162: 59.1 | AK162: 33.8 | AL162: 51.9 | AM162: 13.4 | AN162: 16.1 | AO162: 2.7 | AP162: 84.3 | AQ162: 14 | AR162: 98.4 | AT162: 0 | AU162: 0 | AV162: 6 | BG162: 2 | BI162: 19.7 | BJ162: 82.6 | BK162: 62.9 | BL162: 6.9 | BM162: 45.7 | BN162: 9.6 | BO162: 8.7 | BP162: 1.8 | BQ162: 4 | BU162: 0 | BV162: 50 | BW162: 0 | BX162: 0 | BY162: 0 | BZ162: 0 | CC162: 0 | CE162: 100 | CP162: 0 | CQ162: 0 | CR162: 4 | CW162: 5.2 | CX162: 11.4 | CY162: 30.1 | CZ162: 27.6 | DA162: 16.7
A163: Brett.Ritchie | B163: 2015-03-15 | C163: DAL | D163: STL | E163: 0 | F163: 0 | G163: 0 | H163: 0 | I163: 0 | J163: 0 | K163: -1 | L163: 56.5 | M163: 100 | N163: 0 | O163: 16 | P163: 14.6 | Q163: 1 | R163: 15.8 | S163: 100 | T163: 84.2 | U163: 2.5 | V163: 2.5 | W163: 0 | X163: 10.1 | Y163: 0 | Z163: 10.1 | AA163: 2 | AB163: 21.4 | AC163: 87.1 | AD163: 65.8 | AE163: 5.1 | AF163: 6 | AG163: 0.9 | AH163: 24.8 | AI163: 3.7 | AJ163: 28.5 | AK163: -1.1 | AL163: 57.5 | AM163: 2.2 | AN163: 9.8 | AO163: 7.5 | AP163: 40.2 | AQ163: 31 | AR163: 71.2 | AT163: 2 | AU163: 0 | AV163: 4 | BG163: 1 | BI163: 11.4 | BJ163: 60.5 | BK163: 49.1 | BL163: 1.6 | BM163: 18.8 | BN163: 12.3 | BO163: 4.6 | BP163: 3 | BQ163: 1 | BU163: 0 | BW163: 0 | BX163: 0 | BY163: 0 | BZ163: 0 | CC163: 0 | CE163: 100 | CP163: 0 | CQ163: 0 | CR163: 1 | CW163: -4.1 | CX163: 14.6 | CY163: 28.4 | CZ163: 33.9 | DA163: 17
A164: Brett.Ritchie | B164: 2015-03-19 | C164: DAL | D164: PIT | E164: 1 | F164: 0 | G164: 1 | H164: 6.2 | I164: 0 | J164: 6.2 | K164: 0 | L164: 61.6 | M164: 112.9 | N164: 25 | O164: 37.5 | P164: 9.7 | Q164: 3 | R164: 22.7 | S164: 71.7 | T164: 48.9 | U164: 2.8 | V164: 4.6 | W164: 1.8 | X164: 28.5 | Y164: 11.3 | Z164: 39.8 | AA164: 3 | AB164: 1.1 | AC164: 57 | AD164: 55.9 | AE164: 1.9 | AF164: 7.6 | AG164: 5.7 | AH164: 47.1 | AI164: 35.5 | AJ164: 82.6 | AK164: 15.7 | AL164: 45.8 | AM164: 4.9 | AN164: 13.1 | AO164: 8.2 | AP164: 81.1 | AQ164: 50.6 | AR164: 131.7 | AT164: 0 | AU164: 0 | AV164: 5 | BG164: 1 | BI164: 0.9 | BJ164: 54.3 | BK164: 53.5 | BL164: 1.2 | BM164: 47.8 | BN164: 40.2 | BO164: 7.7 | BP164: 6.5 | BQ164: 4 | BT164: 0 | BU164: 6.2 | BV164: 100 | BW164: 0 | BX164: 1 | BY164: 0 | BZ164: 1 | CA164: 100 | CC164: 12.9 | CE164: 100 | CP164: 0 | CQ164: 0 | CR164: 3 | CW164: 0 | CX164: 9.7 | CY164: 32.8 | CZ164: 22.8 | DA164: 17.5
A165: Brett.Ritchie | B165: 2015-03-21 | C165: DAL | D165: CHI | E165: 0 | F165: 0 | G165: 0 | H165: 0 | I165: 0 | J165: 0 | K165: 0 | L165: 31.7 | M165: 100 | N165: 0 | O165: -2.4 | P165: 11.4 | Q165: 0 | R165: -31.8 | S165: 24.8 | T165: 56.6 | U165: -1.8 | V165: 0.9 | W165: 2.7 | X165: 4.7 | Y165: 14.4 | Z165: 19.2 | AA165: 0 | AB165: -28.7 | AC165: 32.9 | AD165: 61.5 | AE165: -3.9 | AF165: 3.7 | AG165: 7.6 | AH165: 19.6 | AI165: 40 | AJ165: 59.5 | AK165: -13 | AL165: 44.7 | AM165: -6.5 | AN165: 5.6 | AO165: 12.2 | AP165: 29.8 | AQ165: 64.2 | AR165: 93.9 | AT165: 0 | AU165: 0 | AV165: 1 | BG165: 0 | BI165: -9.6 | BJ165: 36.9 | BK165: 46.6 | BL165: -3.5 | BM165: 25.8 | BN165: 44 | BO165: 4.9 | BP165: 8.4 | BQ165: 1 | BU165: 0 | BV165: 100 | BW165: 0 | BX165: 0 | BY165: 0 | BZ165: 0 | CC165: 0 | CE165: 100 | CP165: 0 | CQ165: 0 | CR165: 1 | CW165: 0 | CX165: 11.4 | CY165: 40.4 | CZ165: 22 | DA165: 17.2
A166: Brett.Ritchie | B166: 2015-03-23 | C166: DAL | D166: BUF | E166: 0 | F166: 0 | G166: 0 | H166: 0 | I166: 0 | J166: 0 | K166: 0 | L166: 55 | M166: 100 | N166: 0 | O166: -66.7 | P166: 9.3 | Q166: 1 | R166: -16.2 | S166: 41.7 | T166: 57.9 | U166: -0.8 | V166: 2.1 | W166: 2.9 | X166: 13.4 | Y166: 18.7 | Z166: 32.2 | AA166: 2 | AB166: -13.6 | AC166: 45.6 | AD166: 59.3 | AE166: -0.9 | AF166: 4.8 | AG166: 5.7 | AH166: 31 | AI166: 36.9 | AJ166: 67.9 | AK166: -12.6 | AL166: 67.6 | AM166: 1.9 | AN166: 10.4 | AO166: 8.5 | AP166: 67.2 | AQ166: 54.9 | AR166: 122.1 | AT166: 2 | AU166: 0 | AV166: 5 | BG166: 1 | BI166: -13.9 | BJ166: 44.6 | BK166: 58.5 | BL166: -1.2 | BM166: 30.7 | BN166: 38.2 | BO166: 4.8 | BP166: 5.9 | BQ166: 2 | BU166: 0 | BV166: 60 | BW166: 0 | BX166: 0 | BY166: 0 | BZ166: 0 | CC166: 0 | CE166: 100 | CP166: 0 | CQ166: 0 | CR166: 2 | CW166: 0 | CX166: 9.3 | CY166: 39.4 | CZ166: 19.1 | DA166: 17.2
A167: Brett.Ritchie | B167: 2015-03-25 | C167: DAL | D167: CGY | E167: 0 | F167: 0 | G167: 0 | H167: 0 | I167: 0 | J167: 0 | K167: 0 | L167: 55.6 | M167: 100 | N167: 0 | O167: 30.4 | P167: 8.3 | Q167: 0 | R167: -44.6 | S167: 0 | T167: 44.6 | U167: -0.9 | V167: 0 | W167: 0.9 | X167: 0 | Y167: 6.6 | Z167: 6.6 | AA167: 1 | AB167: -1.2 | AC167: 53.7 | AD167: 54.9 | AE167: 0.3 | AF167: 2.2 | AG167: 1.9 | AH167: 15.9 | AI167: 13.7 | AJ167: 29.6 | AK167: 0.9 | AL167: 54.7 | AM167: 0.9 | AN167: 4.4 | AO167: 3.5 | AP167: 31.8 | AQ167: 25.4 | AR167: 57.3 | AT167: 1 | AU167: 0 | AV167: 2 | BG167: 0 | BI167: 10.9 | BJ167: 56.6 | BK167: 45.7 | BL167: 0.6 | BM167: 17.1 | BN167: 13.1 | BO167: 2.4 | BP167: 1.8 | BQ167: 1 | BU167: 0 | BV167: 25 | BW167: 0 | BX167: 0 | BY167: 0 | BZ167: 0 | CC167: 0 | CE167: 100 | CP167: 0 | CQ167: 0 | CR167: 1 | CW167: 0 | CX167: 8.3 | CY167: 31.4 | CZ167: 20.8 | DA167: 17.1
A168: Brett.Ritchie | B168: 2015-03-27 | C168: DAL | D168: EDM | E168: 0 | F168: 0 | G168: 0 | H168: 0 | I168: 0 | J168: 0 | K168: 0 | L168: 71.4 | M168: 87.2 | N168: 0 | O168: -6 | P168: 16.7 | Q168: 3 | R168: 39.2 | S168: 78.6 | T168: 39.4 | U168: 5.6 | V168: 7.7 | W168: 2.1 | X168: 27.5 | Y168: 7.5 | Z168: 35 | AA168: 6 | AB168: 18 | AC168: 73.2 | AD168: 55.1 | AE168: 10.8 | AF168: 17 | AG168: 6.3 | AH168: 61.2 | AI168: 22.5 | AJ168: 83.7 | AK168: 18.7 | AL168: 52.6 | AM168: 14.6 | AN168: 24.3 | AO168: 9.8 | AP168: 87.5 | AQ168: 35.1 | AR168: 122.6 | AT168: 3 | AU168: 1 | AV168: 8 | BG168: 1 | BI168: 7.2 | BJ168: 49.5 | BK168: 42.4 | BL168: -0.1 | BM168: 27.6 | BN168: 28.1 | BO168: 7.7 | BP168: 7.8 | BQ168: 4 | BT168: 0 | BU168: 0 | BV168: 0 | BW168: 3.6 | BX168: 0 | BY168: 1 | BZ168: -1 | CA168: 0 | CC168: 0 | CE168: 87.2 | CP168: 0 | CQ168: 0 | CR168: 4 | CW168: 0 | CX168: 16.7 | CY168: 35.1 | CZ168: 32.3 | DA168: 17.2
A169: Brett.Ritchie | B169: 2015-03-28 | C169: DAL | D169: VAN | E169: 0 | F169: 0 | G169: 0 | H169: 0 | I169: 0 | J169: 0 | K169: 0 | L169: 52.1 | M169: 100 | N169: 0 | O169: 22.2 | P169: 14.1 | Q169: 1 | R169: -11.2 | S169: 65 | T169: 76.2 | U169: 1.4 | V169: 3.1 | W169: 1.7 | X169: 13.2 | Y169: 7.1 | Z169: 20.3 | AA169: 2 | AB169: -13.3 | AC169: 48.5 | AD169: 61.8 | AE169: -0.4 | AF169: 6.2 | AG169: 6.6 | AH169: 26.4 | AI169: 28.1 | AJ169: 54.5 | AK169: -2.8 | AL169: 55 | AM169: 1.2 | AN169: 14.7 | AO169: 13.5 | AP169: 62.5 | AQ169: 57.3 | AR169: 119.8 | AT169: 2 | AU169: 0 | AV169: 7 | BG169: 1 | BI169: 2.9 | BJ169: 58.8 | BK169: 55.9 | BL169: 3.3 | BM169: 46.5 | BN169: 32.5 | BO169: 10.9 | BP169: 7.6 | BQ169: 4 | BU169: 0 | BV169: 75 | BW169: 0 | BX169: 0 | BY169: 0 | BZ169: 0 | CC169: 0 | CE169: 100 | CP169: 0 | CQ169: 0 | CR169: 4 | CW169: 0 | CX169: 14.1 | CY169: 38.6 | CZ169: 26.8 | DA169: 17.1
A170: Brett.Ritchie | B170: 2015-03-30 | C170: DAL | D170: CGY | E170: 0 | F170: 0 | G170: 0 | H170: 0 | I170: 0 | J170: 0 | K170: -1 | L170: 49 | M170: 82.8 | N170: 0 | O170: -38.6 | P170: 7.7 | Q170: 1 | R170: -65.2 | S170: 34.8 | T170: 100 | U170: -2.2 | V170: 2.5 | W170: 4.7 | X170: 19.5 | Y170: 36.5 | Z170: 56.1 | AA170: 3 | AB170: -24.2 | AC170: 55.4 | AD170: 79.6 | AE170: 1.6 | AF170: 8.2 | AG170: 6.6 | AH170: 63.7 | AI170: 51.3 | AJ170: 114.9 | AK170: -23.1 | AL170: 72.2 | AM170: -0.4 | AN170: 10.5 | AO170: 11 | AP170: 82.2 | AQ170: 85.5 | AR170: 167.7 | AT170: 1 | AU170: 0 | AV170: 4 | BG170: 1 | BI170: -28.8 | BJ170: 39.3 | BK170: 68.1 | BL170: -2.1 | BM170: 29.3 | BN170: 45.3 | BO170: 3.8 | BP170: 5.8 | BQ170: 2 | BT170: -66.7 | BU170: 0 | BV170: 66.7 | BW170: 7.8 | BX170: 0 | BY170: 1 | BZ170: -1 | CA170: 0 | CC170: 0 | CE170: 82.8 | CP170: 0 | CQ170: 0 | CR170: 2 | CW170: -7.8 | CX170: 7.7 | CY170: 39.6 | CZ170: 16.3 | DA170: 16.9
A171: Joel.Armia | B171: 2014-12-23 | C171: BUF | D171: DET | E171: 0 | F171: 0 | G171: 0 | H171: 0 | I171: 0 | J171: 0 | K171: 0 | L171: 26.6 | M171: 100 | N171: 0 | O171: -0.7 | P171: 14.6 | Q171: 0 | R171: -3.6 | S171: 34.8 | T171: 38.4 | U171: -1.8 | V171: 2.1 | W171: 3.9 | X171: 8.5 | Y171: 16 | Z171: 24.5 | AA171: 0 | AB171: -7.2 | AC171: 27.6 | AD171: 34.8 | AE171: -5.2 | AF171: 3.2 | AG171: 8.4 | AH171: 13.1 | AI171: 34.4 | AJ171: 47.5 | AK171: -2.3 | AL171: 28.9 | AM171: -7.7 | AN171: 4.4 | AO171: 12.1 | AP171: 18.1 | AQ171: 49.9 | AR171: 68 | AT171: 0 | AU171: 0 | AV171: 0 | BG171: 0 | BI171: 1.2 | BJ171: 34.2 | BK171: 33 | BL171: -2.9 | BM171: 12.9 | BN171: 24.8 | BO171: 3.1 | BP171: 6 | BQ171: 0 | BU171: 0 | BV171: 50 | BW171: 0 | BX171: 0 | BY171: 0 | BZ171: 0 | CC171: 0 | CE171: 100 | CP171: 0 | CQ171: 0 | CR171: 0 | CW171: 0 | CX171: 14.6 | CY171: 34.1 | CZ171: 29.9 | DA171: 18.9
A172: Joel.Armia | B172: 2015-12-18 | C172: WPG | D172: NYR | E172: 0 | F172: 0 | G172: 0 | H172: 0 | I172: 0 | J172: 0 | K172: 0 | L172: 51.7 | M172: 100 | N172: 0 | O172: -4.2 | P172: 12 | Q172: 2 | R172: 45.9 | S172: 100 | T172: 54.1 | U172: 4.8 | V172: 4.8 | W172: 0 | X172: 23.9 | Y172: 0 | Z172: 23.9 | AA172: 3 | AB172: 15.4 | AC172: 80.8 | AD172: 65.5 | AE172: 6 | AF172: 7.9 | AG172: 1.9 | AH172: 39.6 | AI172: 9.4 | AJ172: 49 | AK172: -6.8 | AL172: 58.5 | AM172: 0.8 | AN172: 12.5 | AO172: 11.7 | AP172: 62.7 | AQ172: 58.5 | AR172: 121.2 | AT172: 1 | AU172: 0 | AV172: 3 | BG172: 1 | BI172: -32.2 | BJ172: 34.9 | BK172: 67.1 | BL172: -4.3 | BM172: 24.7 | BN172: 46.1 | BO172: 4.9 | BP172: 9.2 | BQ172: 1 | BU172: 0 | BV172: 80 | BW172: 0 | BX172: 0 | BY172: 0 | BZ172: 0 | CC172: 0 | CE172: 100 | CP172: 0 | CQ172: 0 | CR172: 1 | CW172: 0 | CX172: 12 | CY172: 37.1 | CZ172: 24.4 | DA172: 17.2
A173: Joel.Armia | B173: 2015-12-21 | C173: WPG | D173: EDM | E173: 0 | F173: 0 | G173: 0 | H173: 0 | I173: 0 | J173: 0 | K173: 0 | L173: 33.8 | M173: 49.5 | N173: 0 | O173: -42.9 | P173: 7.1 | Q173: 0 | R173: -75.5 | S173: 0 | T173: 75.5 | U173: -1.8 | V173: 0 | W173: 1.8 | X173: 0 | Y173: 15.1 | Z173: 15.1 | AA173: 0 | AB173: -34 | AC173: 35.2 | AD173: 69.2 | AE173: -0.8 | AF173: 1 | AG173: 1.8 | AH173: 8.2 | AI173: 15.1 | AJ173: 23.2 | AK173: -32.5 | AL173: 66.3 | AM173: -3.5 | AN173: 3.7 | AO173: 7.2 | AP173: 31.1 | AQ173: 61 | AR173: 92.1 | AT173: 0 | AU173: 1 | AV173: 0 | BG173: 0 | BI173: 2.8 | BJ173: 58.6 | BK173: 55.8 | BL173: 0.8 | BM173: 23.5 | BN173: 16.7 | BO173: 2.8 | BP173: 2 | BQ173: 0 | BU173: 0 | BV173: 33.3 | BW173: 8.4 | BX173: 0 | BY173: 1 | BZ173: -1 | CC173: 0 | CE173: 49.5 | CP173: 0 | CQ173: 0 | CR173: 0 | CW173: 0 | CX173: 7.1 | CY173: 35.1 | CZ173: 16.9 | DA173: 17
A174: Joel.Armia | B174: 2015-12-22 | C174: WPG | D174: CGY | E174: 0 | F174: 0 | G174: 0 | H174: 0 | I174: 0 | J174: 0 | K174: 0 | L174: 44 | M174: 100 | N174: 0 | O174: -3 | P174: 11.4 | Q174: 1 | R174: 26.3 | S174: 72.4 | T174: 46 | U174: 1.8 | V174: 2.9 | W174: 1.1 | X174: 15.5 | Y174: 5.9 | Z174: 21.4 | AA174: 2 | AB174: -5.5 | AC174: 46.5 | AD174: 52 | AE174: -0.6 | AF174: 3.9 | AG174: 4.5 | AH174: 20.6 | AI174: 23.7 | AJ174: 44.3 | AK174: -1.5 | AL174: 45.4 | AM174: -2.6 | AN174: 9.3 | AO174: 11.9 | AP174: 49.1 | AQ174: 62.6 | AR174: 111.6 | AT174: 2 | AU174: 1 | AV174: 3 | BG174: 0 | BI174: 7 | BJ174: 50.2 | BK174: 43.2 | BL174: 0 | BM174: 25.7 | BN174: 25.5 | BO174: 4.9 | BP174: 4.8 | BQ174: 1 | BU174: 0 | BV174: 33.3 | BW174: 0 | BX174: 0 | BY174: 0 | BZ174: 0 | CC174: 0 | CE174: 100 | CP174: 0 | CQ174: 0 | CR174: 1 | CW174: 0 | CX174: 11.4 | CY174: 38.4 | CZ174: 22.8 | DA174: 17.7
A175: Joel.Armia | B175: 2015-12-27 | C175: WPG | D175: PIT | E175: 0 | F175: 0 | G175: 0 | H175: 0 | I175: 0 | J175: 0 | K175: 0 | L175: 42.7 | M175: 100 | N175: 0 | O175: -3.7 | P175: 7 | Q175: 0 | T175: 48.1 | U175: 0 | V175: 0 | W175: 0 | X175: 0 | Y175: 0 | Z175: 0 | AA175: 0 | AB175: 3.9 | AC175: 49.6 | AD175: 45.6 | AE175: 0 | AF175: 1 | AG175: 1 | AH175: 8.7 | AI175: 8.9 | AJ175: 17.6 | AK175: -4.8 | AL175: 47.5 | AM175: -1 | AN175: 2.9 | AO175: 3.9 | AP175: 24.8 | AQ175: 33.4 | AR175: 58.2 | AT175: 0 | AU175: 0 | AV175: 0 | BG175: 0 | BI175: 1 | BJ175: 50.7 | BK175: 49.7 | BL175: 0.1 | BM175: 24.8 | BN175: 24.2 | BO175: 2.9 | BP175: 2.8 | BQ175: 0 | BU175: 0 | BW175: 0 | BX175: 0 | BY175: 0 | BZ175: 0 | CC175: 0 | CE175: 100 | CP175: 0 | CQ175: 0 | CR175: 0 | CW175: 0 | CX175: 7 | CY175: 43.8 | CZ175: 13.7 | DA175: 16.5
A176: Joel.Armia | B176: 2015-12-29 | C176: WPG | D176: DET | E176: 0 | F176: 0 | G176: 0 | H176: 0 | I176: 0 | J176: 0 | K176: 0 | L176: 82.3 | M176: 100 | N176: 0 | O176: 23.8 | P176: 6 | Q176: 0 | R176: 75.1 | S176: 100 | T176: 24.9 | U176: 0.9 | V176: 0.9 | W176: 0 | X176: 9.5 | Y176: 0 | Z176: 9.5 | AA176: 0 | AB176: 11.7 | AC176: 49.7 | AD176: 38 | AE176: 0 | AF176: 0.9 | AG176: 1 | AH176: 9.5 | AI176: 9.6 | AJ176: 19.1 | AK176: 43.9 | AL176: 38.3 | AM176: 3.4 | AN176: 4.3 | AO176: 0.9 | AP176: 43.4 | AQ176: 9.4 | AR176: 52.8 | AT176: 0 | AU176: 0 | AV176: 1 | BG176: 0 | BI176: 35.1 | BJ176: 77.7 | BK176: 42.7 | BL176: 2.3 | BM176: 32.7 | BN176: 9.4 | BO176: 3.3 | BP176: 0.9 | BQ176: 1 | BU176: 0 | BV176: 100 | BW176: 0 | BX176: 0 | BY176: 0 | BZ176: 0 | CC176: 0 | CE176: 100 | CP176: 0 | CQ176: 0 | CR176: 1 | CW176: 0 | CX176: 6 | CY176: 39.7 | CZ176: 13.1 | DA176: 16.7
A177: Joel.Armia | B177: 2015-12-31 | C177: WPG | D177: ARI | E177: 0 | F177: 0 | G177: 0 | H177: 0 | I177: 0 | J177: 0 | K177: -1 | L177: 73 | M177: 100 | N177: 0 | O177: 19.3 | P177: 8 | Q177: 0 | R177: 43.5 | S177: 100 | T177: 56.5 | U177: 3 | V177: 3 | W177: 0 | X177: 22.8 | Y177: 0 | Z177: 22.8 | AA177: 3 | AB177: 19.4 | AC177: 88.2 | AD177: 68.8 | AE177: 6.1 | AF177: 7.1 | AG177: 0.9 | AH177: 52.8 | AI177: 7.1 | AJ177: 59.9 | AK177: 1.8 | AL177: 71.1 | AM177: 6.6 | AN177: 10.5 | AO177: 3.9 | AP177: 78.4 | AQ177: 29.1 | AR177: 107.5 | AT177: 2 | AU177: 1 | AV177: 3 | BG177: 0 | BI177: 10.7 | BJ177: 77.3 | BK177: 66.7 | BL177: 2.8 | BM177: 29.3 | BN177: 8.6 | BO177: 3.9 | BP177: 1.1 | BQ177: 1 | BU177: 0 | BV177: 66.7 | BW177: 0 | BX177: 0 | BY177: 0 | BZ177: 0 | CC177: 0 | CE177: 100 | CP177: 0 | CQ177: 0 | CR177: 1 | CW177: -7.5 | CX177: 8 | CY177: 34.2 | CZ177: 19 | DA177: 17.6
A178: Joel.Armia | B178: 2016-01-02 | C178: WPG | D178: S.J | E178: 1 | F178: 0 | G178: 1 | H178: 7.9 | I178: 0 | J178: 7.9 | K178: 0 | L178: 32.6 | M178: 132.5 | N178: 0 | O178: -45 | P178: 7.6 | Q178: 0 | R178: -64.5 | S178: 0 | T178: 64.5 | U178: -1.8 | V178: 0 | W178: 1.8 | X178: 0 | Y178: 14.2 | Z178: 14.2 | AA178: 1 | AB178: -50.6 | AC178: 18.2 | AD178: 68.8 | AE178: -3.5 | AF178: 1 | AG178: 4.5 | AH178: 7.9 | AI178: 35.5 | AJ178: 43.4 | AK178: -23.6 | AL178: 56.1 | AM178: -3.3 | AN178: 3.1 | AO178: 6.4 | AP178: 24.3 | AQ178: 50.3 | AR178: 74.6 | AT178: 0 | AU178: 0 | AV178: 2 | BG178: 0 | BI178: -17.6 | BJ178: 39.3 | BK178: 57 | BL178: -1.7 | BM178: 24.3 | BN178: 37.5 | BO178: 3.1 | BP178: 4.7 | BQ178: 2 | BU178: 7.9 | BW178: 0 | BX178: 1 | BY178: 0 | BZ178: 1 | CC178: 32.5 | CE178: 100 | CP178: 0 | CQ178: 0 | CR178: 1 | CW178: 0 | CX178: 7.6 | CY178: 37.6 | CZ178: 16.8 | DA178: 16.8
A179: Joel.Armia | B179: 2016-01-03 | C179: WPG | D179: ANA | E179: 0 | F179: 0 | G179: 0 | H179: 0 | I179: 0 | J179: 0 | K179: 0 | L179: 43 | M179: 126.8 | N179: 0 | O179: 0.9 | P179: 9.4 | Q179: 0 | R179: 9 | S179: 49.4 | T179: 40.4 | U179: 0 | V179: 2.1 | W179: 2.2 | X179: 13.5 | Y179: 13.8 | Z179: 27.3 | AA179: 0 | AB179: 19 | AC179: 49.4 | AD179: 30.4 | AE179: 0 | AF179: 2.1 | AG179: 2.2 | AH179: 13.5 | AI179: 13.8 | AJ179: 27.3 | AK179: 10.5 | AL179: 32.4 | AM179: -2 | AN179: 6.1 | AO179: 8.2 | AP179: 39.3 | AQ179: 52.1 | AR179: 91.4 | AT179: 0 | AU179: 0 | AV179: 0 | BG179: 0 | BI179: 9.6 | BJ179: 41.4 | BK179: 31.8 | BL179: -1.6 | BM179: 23.9 | BN179: 33.8 | BO179: 3.7 | BP179: 5.3 | BQ179: 0 | BU179: 6.4 | BV179: 0 | BW179: 0 | BX179: 1 | BY179: 0 | BZ179: 1 | CC179: 26.8 | CE179: 100 | CP179: 0 | CQ179: 0 | CR179: 0 | CW179: 0 | CX179: 9.4 | CY179: 37.6 | CZ179: 20 | DA179: 17.8
A180: Joel.Armia | B180: 2016-01-05 | C180: WPG | D180: NSH | E180: 0 | F180: 0 | G180: 0 | H180: 0 | I180: 0 | J180: 0 | K180: 0 | L180: 41.1 | M180: 100 | N180: 0 | O180: 31 | P180: 7.7 | Q180: 0 | R180: 30.9 | S180: 53.1 | T180: 22.2 | U180: 0.1 | V180: 1.2 | W180: 1.1 | X180: 9.6 | Y180: 8.4 | Z180: 18 | AA180: 0 | AB180: 16.9 | AC180: 53.1 | AD180: 36.3 | AE180: 0.1 | AF180: 1.2 | AG180: 1.1 | AH180: 9.6 | AI180: 8.4 | AJ180: 18 | AK180: 2.8 | AL180: 38.3 | AM180: -1.6 | AN180: 3.7 | AO180: 5.3 | AP180: 29.1 | AQ180: 41.7 | AR180: 70.8 | AT180: 0 | AU180: 0 | AV180: 0 | BG180: 0 | BI180: -4.6 | BJ180: 32.3 | BK180: 36.9 | BL180: -1.3 | BM180: 9.6 | BN180: 20.1 | BO180: 1.2 | BP180: 2.6 | BQ180: 0 | BU180: 0 | BV180: 50 | BW180: 0 | BX180: 0 | BY180: 0 | BZ180: 0 | CC180: 0 | CE180: 100 | CP180: 0 | CQ180: 0 | CR180: 0 | CW180: 0 | CX180: 7.7 | CY180: 38 | CZ180: 16.8 | DA180: 14.8
A181: Joel.Armia | B181: 2016-01-07 | C181: WPG | D181: DAL | E181: 0 | F181: 0 | G181: 0 | H181: 0 | I181: 0 | J181: 0 | K181: 0 | L181: 60.9 | M181: 100 | N181: 0 | O181: 17.4 | P181: 8.1 | Q181: 0 | R181: -2.1 | S181: 53.4 | T181: 55.5 | U181: 0.1 | V181: 1.1 | W181: 1 | X181: 8.5 | Y181: 7.4 | Z181: 15.9 | AA181: 0 | AB181: -6 | AC181: 54.8 | AD181: 60.7 | AE181: 0.4 | AF181: 2.2 | AG181: 1.8 | AH181: 16.1 | AI181: 13.3 | AJ181: 29.4 | AK181: 11.9 | AL181: 48.9 | AM181: 2.3 | AN181: 6.6 | AO181: 4.2 | AP181: 48.5 | AQ181: 31.2 | AR181: 79.7 | AT181: 0 | AU181: 1 | AV181: 0 | BG181: 0 | BI181: 15.9 | BJ181: 68 | BK181: 52.1 | BL181: 2.1 | BM181: 29.2 | BN181: 13.8 | BO181: 3.9 | BP181: 1.9 | BQ181: 0 | BU181: 0 | BV181: 50 | BW181: 0 | BX181: 0 | BY181: 0 | BZ181: 0 | CC181: 0 | CE181: 100 | CP181: 0 | CQ181: 0 | CR181: 0 | CW181: 0 | CX181: 8.1 | CY181: 42.9 | CZ181: 15.9 | DA181: 15.4
A182: Joel.Armia | B182: 2016-01-10 | C182: WPG | D182: BUF | E182: 0 | F182: 0 | G182: 0 | H182: 0 | I182: 0 | J182: 0 | K182: 0 | L182: 52.1 | M182: 100 | N182: 0 | O182: -57.6 | P182: 7.3 | Q182: 0 | R182: -14.7 | S182: 48.7 | T182: 63.4 | U182: 0 | V182: 0.9 | W182: 0.9 | X182: 7.3 | Y182: 7.6 | Z182: 14.9 | AA182: 0 | AB182: 1.7 | AC182: 59.9 | AD182: 58.3 | AE182: 0.9 | AF182: 2.7 | AG182: 1.8 | AH182: 22.6 | AI182: 15.1 | AJ182: 37.8 | AK182: -9 | AL182: 61.1 | AM182: 0.4 | AN182: 5.5 | AO182: 5.1 | AP182: 45.5 | AQ182: 41.8 | AR182: 87.3 | AT182: 0 | AU182: 0 | AV182: 1 | BG182: 1 | BI182: -13.5 | BJ182: 46.1 | BK182: 59.6 | BL182: -0.3 | BM182: 15 | BN182: 17.6 | BO182: 1.8 | BP182: 2.1 | BQ182: 0 | BU182: 0 | BV182: 33.3 | BW182: 0 | BX182: 0 | BY182: 0 | BZ182: 0 | CC182: 0 | CE182: 100 | CP182: 0 | CQ182: 0 | CR182: 0 | CW182: 0 | CX182: 7.3 | CY182: 42.9 | CZ182: 14.5 | DA182: 14.8
A183: Joel.Armia | B183: 2016-01-12 | C183: WPG | D183: S.J | E183: 0 | F183: 0 | G183: 0 | H183: 0 | I183: 0 | J183: 0 | K183: 0 | L183: 28.5 | M183: 100 | N183: 0 | O183: 31 | P183: 9.5 | Q183: 0 | R183: -29.3 | S183: 0 | T183: 29.3 | U183: -3 | V183: 0 | W183: 3 | X183: 0 | Y183: 18.8 | Z183: 18.8 | AA183: 0 | AB183: -20.2 | AC183: 14.4 | AD183: 34.6 | AE183: -4.3 | AF183: 0.9 | AG183: 5.2 | AH183: 5.5 | AI183: 32.7 | AJ183: 38.1 | AK183: -21.6 | AL183: 50.1 | AM183: -6.6 | AN183: 4.4 | AO183: 11 | AP183: 27.7 | AQ183: 69.6 | AR183: 97.3 | AT183: 1 | AU183: 0 | AV183: 1 | BG183: 0 | BI183: -29.5 | BJ183: 21.3 | BK183: 50.9 | BL183: -7.2 | BM183: 17 | BN183: 62.8 | BO183: 2.7 | BP183: 9.9 | BQ183: 0 | BU183: 0 | BV183: 0 | BW183: 0 | BX183: 0 | BY183: 0 | BZ183: 0 | CC183: 0 | CE183: 100 | CP183: 0 | CQ183: 0 | CR183: 0 | CW183: 0 | CX183: 9.5 | CY183: 31.8 | CZ183: 22.9 | DA183: 15.6
A184: Joel.Armia | B184: 2016-01-14 | C184: WPG | D184: NSH | E184: 0 | F184: 0 | G184: 0 | H184: 0 | I184: 0 | J184: 0 | K184: 1 | L184: 60.8 | M184: 100 | N184: 0 | O184: 28.4 | P184: 8.9 | Q184: 0 | R184: -33.9 | S184: 0 | T184: 33.9 | U184: -1.2 | V184: 0 | W184: 1.2 | X184: 0 | Y184: 8 | Z184: 8 | AA184: 2 | AB184: 13.9 | AC184: 62.2 | AD184: 48.3 | AE184: 1.9 | AF184: 4.9 | AG184: 3 | AH184: 32.9 | AI184: 19.9 | AJ184: 52.8 | AK184: 18.9 | AL184: 42 | AM184: 4.1 | AN184: 11.4 | AO184: 7.3 | AP184: 76.4 | AQ184: 49.2 | AR184: 125.7 | AT184: 1 | AU184: 0 | AV184: 2 | BG184: 0 | BI184: 29.8 | BJ184: 66.4 | BK184: 36.6 | BL184: 2.8 | BM184: 38.5 | BN184: 19.4 | BO184: 5.7 | BP184: 2.9 | BQ184: 1 | BU184: 0 | BV184: 60 | BW184: 0 | BX184: 0 | BY184: 0 | BZ184: 0 | CC184: 0 | CE184: 100 | CP184: 0 | CQ184: 0 | CR184: 1 | CW184: 6.7 | CX184: 8.9 | CY184: 34.4 | CZ184: 20.6 | DA184: 17.3
A185: Joel.Armia | B185: 2016-01-15 | C185: WPG | D185: MIN | E185: 0 | F185: 0 | G185: 0 | H185: 0 | I185: 0 | J185: 0 | K185: -1 | L185: 62.5 | M185: 100 | N185: 0 | O185: -0.9 | P185: 16.8 | Q185: 0 | R185: -28.3 | S185: 38.9 | T185: 67.2 | U185: -0.7 | V185: 1.2 | W185: 1.9 | X185: 4.4 | Y185: 6.9 | Z185: 11.3 | AA185: 0 | AB185: -14.3 | AC185: 49.2 | AD185: 63.5 | AE185: -0.2 | AF185: 5.7 | AG185: 5.9 | AH185: 20.2 | AI185: 20.9 | AJ185: 41.2 | AK185: 5.7 | AL185: 56.8 | AM185: 6.6 | AN185: 16.6 | AO185: 9.9 | AP185: 59.3 | AQ185: 35.6 | AR185: 94.9 | AT185: 2 | AU185: 0 | AV185: 5 | BG185: 1 | BI185: 0.9 | BJ185: 62.5 | BK185: 61.6 | BL185: 3.1 | BM185: 27.9 | BN185: 16.7 | BO185: 7.8 | BP185: 4.7 | BQ185: 2 | BU185: 0 | BV185: 100 | BW185: 0 | BX185: 0 | BY185: 0 | BZ185: 0 | CC185: 0 | CE185: 100 | CP185: 0 | CQ185: 0 | CR185: 2 | CW185: -3.6 | CX185: 16.8 | CY185: 33.7 | CZ185: 33.3 | DA185: 18.3
A186: Joel.Armia | B186: 2016-01-18 | C186: WPG | D186: COL | E186: 0 | F186: 0 | G186: 0 | H186: 0 | I186: 0 | J186: 0 | K186: 0 | L186: 50.9 | M186: 100 | N186: 0 | O186: -22.5 | P186: 12.6 | Q186: 0 | R186: 29.2 | S186: 71.6 | T186: 42.4 | U186: 1.6 | V186: 2.7 | W186: 1.1 | X186: 12.9 | Y186: 5.1 | Z186: 18 | AA186: 0 | AB186: 4.7 | AC186: 59 | AD186: 54.3 | AE186: 1.4 | AF186: 4.5 | AG186: 3.2 | AH186: 21.6 | AI186: 15 | AJ186: 36.6 | AK186: -0.7 | AL186: 51.6 | AM186: 0.3 | AN186: 8.8 | AO186: 8.5 | AP186: 42 | AQ186: 40.5 | AR186: 82.5 | AT186: 0 | AU186: 0 | AV186: 0 | BG186: 0 | BI186: 16.5 | BJ186: 62.8 | BK186: 46.3 | BL186: 2.2 | BM186: 25.9 | BN186: 15.3 | BO186: 5.4 | BP186: 3.2 | BQ186: 0 | BU186: 0 | BW186: 0 | BX186: 0 | BY186: 0 | BZ186: 0 | CC186: 0 | CE186: 100 | CP186: 0 | CQ186: 0 | CR186: 0 | CW186: 0 | CX186: 12.6 | CY186: 37.9 | CZ186: 25 | DA186: 18.5
A187: Joel.Armia | B187: 2016-01-21 | C187: WPG | D187: NSH | E187: 0 | F187: 1 | G187: 1 | H187: 0 | I187: 4 | J187: 4 | K187: 1 | L187: 51.3 | M187: 97.5 | N187: 0 | O187: 61.1 | P187: 14.9 | Q187: 0 | R187: 66.7 | S187: 100 | T187: 33.3 | U187: 1 | V187: 1 | W187: 0 | X187: 4 | Y187: 0 | Z187: 4 | AA187: 2 | AB187: 24.5 | AC187: 70.6 | AD187: 46.1 | AE187: 1.6 | AF187: 2.8 | AG187: 1.1 | AH187: 11.1 | AI187: 4.6 | AJ187: 15.7 | AK187: 8.2 | AL187: 43.2 | AM187: 0.5 | AN187: 10.6 | AO187: 10 | AP187: 42.4 | AQ187: 40.2 | AR187: 82.5 | AT187: 1 | AU187: 0 | AV187: 4 | BG187: 1 | BI187: 9.8 | BJ187: 53.7 | BK187: 43.9 | BL187: 0.9 | BM187: 25.2 | BN187: 21.8 | BO187: 6.3 | BP187: 5.4 | BQ187: 2 | BU187: 4 | BV187: 0 | BW187: 4 | BX187: 1 | BY187: 1 | BZ187: 0 | CC187: 15.9 | CE187: 81.5 | CP187: 1 | CQ187: 0 | CR187: 2 | CW187: 4 | CX187: 14.9 | CY187: 32.3 | CZ187: 31.6 | DA187: 18.8
A188: Joel.Armia | B188: 2016-01-23 | C188: WPG | D188: N.J | E188: 0 | F188: 0 | G188: 0 | H188: 0 | I188: 0 | J188: 0 | K188: 0 | L188: 56.4 | M188: 100 | N188: 0 | O188: 17 | P188: 15.3 | Q188: 1 | R188: 47.6 | S188: 100 | T188: 52.4 | U188: 1.7 | V188: 1.7 | W188: 0 | X188: 6.5 | Y188: 0 | Z188: 6.5 | AA188: 2 | AB188: 29.5 | AC188: 61 | AD188: 31.5 | AE188: 1.9 | AF188: 5.1 | AG188: 3.3 | AH188: 20.1 | AI188: 12.9 | AJ188: 33 | AK188: 8 | AL188: 48.5 | AM188: 2.7 | AN188: 11.9 | AO188: 9.2 | AP188: 46.7 | AQ188: 36.1 | AR188: 82.8 | AT188: 1 | AU188: 0 | AV188: 2 | BG188: 1 | BI188: 24 | BJ188: 75.2 | BK188: 51.2 | BL188: 4.1 | BM188: 23.9 | BN188: 7.9 | BO188: 6.1 | BP188: 2 | BQ188: 0 | BU188: 0 | BV188: 0 | BW188: 0 | BX188: 0 | BY188: 0 | BZ188: 0 | CC188: 0 | CE188: 100 | CP188: 0 | CQ188: 0 | CR188: 0 | CW188: 0 | CX188: 15.3 | CY188: 38.2 | CZ188: 28.6 | DA188: 19.3
A189: Joel.Armia | B189: 2016-01-26 | C189: WPG | D189: ARI | E189: 0 | F189: 0 | G189: 0 | H189: 0 | I189: 0 | J189: 0 | K189: 0 | L189: 40.9 | M189: 94.4 | N189: 0 | O189: 45.5 | P189: 12.6 | Q189: 2 | R189: -6.8 | S189: 50.2 | T189: 57 | U189: 0 | V189: 4.1 | W189: 4.1 | X189: 19.5 | Y189: 19.4 | Z189: 38.9 | AA189: 3 | AB189: -6.2 | AC189: 46.1 | AD189: 52.3 | AE189: -1.5 | AF189: 9.2 | AG189: 10.7 | AH189: 43.7 | AI189: 51.1 | AJ189: 94.8 | AK189: -14.1 | AL189: 55 | AM189: -5.4 | AN189: 12 | AO189: 17.4 | AP189: 57.3 | AQ189: 82.8 | AR189: 140.1 | AT189: 2 | AU189: 2 | AV189: 4 | BG189: 0 | BI189: -17.9 | BJ189: 41.5 | BK189: 59.4 | BL189: -3 | BM189: 35.3 | BN189: 49.7 | BO189: 7.4 | BP189: 10.4 | BQ189: 2 | BU189: 4.8 | BV189: 100 | BW189: 9.5 | BX189: 1 | BY189: 2 | BZ189: -1 | CC189: 13.5 | CE189: 80.9 | CP189: 0 | CQ189: 0 | CR189: 2 | CW189: 0 | CX189: 12.6 | CY189: 32.3 | CZ189: 28.1 | DA189: 18.1
A190: Joel.Armia | B190: 2016-02-02 | C190: WPG | D190: DAL | E190: 0 | F190: 0 | G190: 0 | H190: 0 | I190: 0 | J190: 0 | K190: 0 | L190: 44 | M190: 135.9 | N190: 0 | O190: 40 | P190: 5.7 | Q190: 0 | R190: 14.8 | S190: 61.8 | T190: 46.9 | U190: 0.7 | V190: 1.8 | W190: 1.1 | X190: 18.8 | Y190: 11.7 | Z190: 30.5 | AA190: 0 | AB190: 21.2 | AC190: 70.6 | AD190: 49.4 | AE190: 1.6 | AF190: 2.7 | AG190: 1.1 | AH190: 28 | AI190: 11.7 | AJ190: 39.7 | AK190: -4.4 | AL190: 48.4 | AM190: -1 | AN190: 3.7 | AO190: 4.7 | AP190: 38.6 | AQ190: 49 | AR190: 87.6 | AT190: 1 | AU190: 0 | AV190: 1 | BG190: 0 | BI190: -6.1 | BJ190: 42.1 | BK190: 48.1 | BL190: -1 | BM190: 29.3 | BN190: 40.3 | BO190: 2.8 | BP190: 3.8 | BQ190: 0 | BU190: 10.5 | BV190: 25 | BW190: 0 | BX190: 1 | BY190: 0 | BZ190: 1 | CC190: 35.9 | CE190: 100 | CP190: 0 | CQ190: 0 | CR190: 0 | CW190: 0 | CX190: 5.7 | CY190: 41.9 | CZ190: 12 | DA190: 16.1
A191: Joel.Armia | B191: 2016-02-05 | C191: WPG | D191: CAR | E191: 0 | F191: 0 | G191: 0 | H191: 0 | I191: 0 | J191: 0 | K191: 0 | L191: 48.7 | M191: 81.8 | N191: 0 | O191: -16.7 | P191: 14 | Q191: 0 | R191: -1.6 | S191: 65.5 | T191: 67.1 | U191: 0.9 | V191: 1.9 | W191: 1 | X191: 8.1 | Y191: 4.3 | Z191: 12.4 | AA191: 0 | AB191: 8.4 | AC191: 58.9 | AD191: 50.5 | AE191: 1.4 | AF191: 4.5 | AG191: 3.1 | AH191: 19.2 | AI191: 13.4 | AJ191: 32.6 | AK191: -3.2 | AL191: 51.9 | AM191: -0.6 | AN191: 11.2 | AO191: 11.7 | AP191: 47.8 | AQ191: 50.4 | AR191: 98.2 | AT191: 1 | AU191: 2 | AV191: 2 | BG191: 1 | BI191: -15.5 | BJ191: 38.1 | BK191: 53.6 | BL191: -2.1 | BM191: 14.4 | BN191: 23.5 | BO191: 3.4 | BP191: 5.5 | BQ191: 0 | BU191: 0 | BV191: 40 | BW191: 4.3 | BX191: 0 | BY191: 1 | BZ191: -1 | CC191: 0 | CE191: 81.8 | CP191: 0 | CQ191: 0 | CR191: 0 | CW191: 0 | CX191: 14 | CY191: 33.9 | CZ191: 29.2 | DA191: 18.1
A192: Joel.Armia | B192: 2016-02-06 | C192: WPG | D192: COL | E192: 0 | F192: 0 | G192: 0 | H192: 0 | I192: 0 | J192: 0 | K192: 0 | L192: 59 | M192: 111.5 | N192: 0 | O192: -23.1 | P192: 14.2 | Q192: 1 | R192: 0.1 | S192: 55.3 | T192: 55.1 | U192: 0.4 | V192: 2.2 | W192: 1.8 | X192: 9.2 | Y192: 7.4 | Z192: 16.6 | AA192: 4 | AB192: 21 | AC192: 78.6 | AD192: 57.6 | AE192: 6.9 | AF192: 9.4 | AG192: 2.6 | AH192: 39.7 | AI192: 10.8 | AJ192: 50.5 | AK192: -6.5 | AL192: 65.5 | AM192: 4.9 | AN192: 16 | AO192: 11.1 | AP192: 67.4 | AQ192: 47 | AR192: 114.4 | AT192: 0 | AU192: 1 | AV192: 5 | BG192: 0 | BI192: -2.1 | BJ192: 62.6 | BK192: 64.7 | BL192: 3.5 | BM192: 36.5 | BN192: 21.8 | BO192: 8.7 | BP192: 5.2 | BQ192: 5 | BU192: 4.2 | BV192: 66.7 | BW192: 0 | BX192: 1 | BY192: 0 | BZ192: 1 | CC192: 11.5 | CE192: 100 | CP192: 0 | CQ192: 0 | CR192: 5 | CW192: 0 | CX192: 14.2 | CY192: 36.4 | CZ192: 28.1 | DA192: 18.3
A193: Joel.Armia | B193: 2016-02-09 | C193: WPG | D193: STL | E193: 0 | F193: 0 | G193: 0 | H193: 0 | I193: 0 | J193: 0 | K193: 0 | L193: 79.2 | M193: 100 | N193: 0 | O193: -27.1 | P193: 13.1 | Q193: 4 | R193: 48.8 | S193: 86.7 | T193: 37.9 | U193: 5.7 | V193: 6.7 | W193: 1 | X193: 30.6 | Y193: 4.7 | Z193: 35.3 | AA193: 5 | AB193: 34.1 | AC193: 91.4 | AD193: 57.3 | AE193: 10 | AF193: 11 | AG193: 1 | AH193: 50.3 | AI193: 4.7 | AJ193: 55 | AK193: 17.5 | AL193: 61.7 | AM193: 10.8 | AN193: 14.7 | AO193: 3.9 | AP193: 67.1 | AQ193: 17.7 | AR193: 84.7 | AT193: 2 | AU193: 0 | AV193: 6 | BG193: 1 | BI193: 22.8 | BJ193: 75.8 | BK193: 53 | BL193: 4.3 | BM193: 29 | BN193: 9.3 | BO193: 6.4 | BP193: 2 | BQ193: 3 | BU193: 0 | BV193: 100 | BW193: 0 | BX193: 0 | BY193: 0 | BZ193: 0 | CC193: 0 | CE193: 100 | CP193: 0 | CQ193: 0 | CR193: 3 | CW193: 0 | CX193: 13.1 | CY193: 31.8 | CZ193: 29.2 | DA193: 18.2
A194: Joel.Armia | B194: 2016-02-11 | C194: WPG | D194: BOS | E194: 0 | F194: 0 | G194: 0 | H194: 0 | I194: 0 | J194: 0 | K194: 0 | L194: 44.6 | M194: 80.9 | N194: 0 | O194: 3 | P194: 12.1 | Q194: 1 | R194: -7.5 | S194: 28.9 | T194: 36.4 | U194: -2.5 | V194: 1.7 | W194: 4.2 | X194: 8.4 | Y194: 20.7 | Z194: 29.1 | AA194: 2 | AB194: -13.6 | AC194: 42.5 | AD194: 56.1 | AE194: -1.6 | AF194: 4.6 | AG194: 6.2 | AH194: 22.5 | AI194: 30.5 | AJ194: 53 | AK194: -7.8 | AL194: 52.5 | AM194: -2.1 | AN194: 8.9 | AO194: 11 | AP194: 43.9 | AQ194: 54.5 | AR194: 98.4 | AT194: 0 | AU194: 1 | AV194: 2 | BG194: 1 | BI194: -12.6 | BJ194: 34.7 | BK194: 47.3 | BL194: -2.5 | BM194: 13.7 | BN194: 25.9 | BO194: 2.8 | BP194: 5.2 | BQ194: 1 | BU194: 0 | BV194: 20 | BW194: 5 | BX194: 0 | BY194: 1 | BZ194: -1 | CC194: 0 | CE194: 80.9 | CP194: 0 | CQ194: 0 | CR194: 1 | CW194: 0 | CX194: 12.1 | CY194: 30.3 | CZ194: 28.6 | DA194: 18.9
A195: Joel.Armia | B195: 2016-02-13 | C195: WPG | D195: EDM | E195: 0 | F195: 0 | G195: 0 | H195: 0 | I195: 0 | J195: 0 | K195: 0 | L195: 67.9 | M195: 100 | N195: 0 | O195: -4.5 | P195: 10.3 | Q195: 1 | R195: 63 | S195: 100 | T195: 37 | U195: 4.8 | V195: 4.8 | W195: 0 | X195: 27.7 | Y195: 0 | Z195: 27.7 | AA195: 2 | AB195: 33.9 | AC195: 85.1 | AD195: 51.2 | AE195: 4.8 | AF195: 5.8 | AG195: 1 | AH195: 33.5 | AI195: 5.9 | AJ195: 39.4 | AK195: 11.3 | AL195: 56.6 | AM195: 5.2 | AN195: 9.8 | AO195: 4.7 | AP195: 57 | AQ195: 27 | AR195: 84 | AT195: 0 | AU195: 0 | AV195: 3 | BG195: 1 | BI195: 21.7 | BJ195: 85.1 | BK195: 63.4 | BL195: 4.7 | BM195: 32.8 | BN195: 5.8 | BO195: 5.7 | BP195: 1 | BQ195: 2 | BU195: 0 | BV195: 100 | BW195: 0 | BX195: 0 | BY195: 0 | BZ195: 0 | CC195: 0 | CE195: 100 | CP195: 0 | CQ195: 0 | CR195: 2 | CW195: 0 | CX195: 10.3 | CY195: 27.3 | CZ195: 27.5 | DA195: 18.5
A196: Joel.Armia | B196: 2016-02-16 | C196: WPG | D196: CAR | E196: 0 | F196: 0 | G196: 0 | H196: 0 | I196: 0 | J196: 0 | K196: 0 | L196: 40 | M196: 100 | N196: 0 | O196: -18.3 | P196: 12.9 | Q196: 0 | R196: 38.1 | S196: 100 | T196: 61.9 | U196: 0.8 | V196: 0.8 | W196: 0 | X196: 3.8 | Y196: 0 | Z196: 3.8 | AA196: 1 | AB196: 56.9 | AC196: 100 | AD196: 43.1 | AE196: 2.7 | AF196: 2.7 | AG196: 0 | AH196: 12.5 | AI196: 0 | AJ196: 12.5 | AK196: -3.1 | AL196: 43.1 | AM196: -3.5 | AN196: 7 | AO196: 10.4 | AP196: 32.4 | AQ196: 48.7 | AR196: 81.1 | AT196: 0 | AU196: 1 | AV196: 2 | BG196: 1 | BI196: 3.2 | BJ196: 46 | BK196: 42.9 | BL196: -0.7 | BM196: 17.6 | BN196: 20.6 | BO196: 3.8 | BP196: 4.4 | BQ196: 1 | BU196: 0 | BV196: 100 | BW196: 0 | BX196: 0 | BY196: 0 | BZ196: 0 | CC196: 0 | CE196: 100 | CP196: 0 | CQ196: 0 | CR196: 1 | CW196: 0 | CX196: 12.9 | CY196: 29 | CZ196: 30.8 | DA196: 18.5
A197: Joel.Armia | B197: 2016-02-18 | C197: WPG | D197: T.B | E197: 0 | F197: 0 | G197: 0 | H197: 0 | I197: 0 | J197: 0 | K197: 0 | L197: 40.1 | M197: 83.4 | N197: 0 | O197: 0 | P197: 14.1 | Q197: 0 | R197: -18.8 | S197: 25.8 | T197: 44.5 | U197: -3.8 | V197: 2 | W197: 5.8 | X197: 8.5 | Y197: 24.6 | Z197: 33.1 | AA197: 1 | AB197: -17.3 | AC197: 20.5 | AD197: 37.8 | AE197: -7.8 | AF197: 2.7 | AG197: 10.5 | AH197: 11.5 | AI197: 44.6 | AJ197: 56.1 | AK197: -6.7 | AL197: 46.9 | AM197: -4.7 | AN197: 9.5 | AO197: 14.2 | AP197: 40.5 | AQ197: 60.4 | AR197: 100.9 | AT197: 1 | AU197: 0 | AV197: 2 | BG197: 0 | BI197: -2.5 | BJ197: 54.9 | BK197: 57.5 | BL197: 1.6 | BM197: 36.9 | BN197: 30.3 | BO197: 8.7 | BP197: 7.1 | BQ197: 1 | BU197: 4.3 | BV197: 25 | BW197: 8.5 | BX197: 1 | BY197: 2 | BZ197: -1 | CC197: 11.5 | CE197: 71.9 | CP197: 0 | CQ197: 0 | CR197: 1 | CW197: 0 | CX197: 14.1 | CY197: 33.1 | CZ197: 29.9 | DA197: 18.9
A198: Joel.Armia | B198: 2016-02-20 | C198: WPG | D198: FLA | E198: 0 | F198: 0 | G198: 0 | H198: 0 | I198: 0 | J198: 0 | K198: 0 | L198: 57.1 | M198: 100 | N198: 0 | O198: 7.9 | P198: 11.4 | Q198: 1 | R198: 41.6 | S198: 77.5 | T198: 36 | U198: 2.6 | V198: 3.6 | W198: 1 | X198: 19 | Y198: 5.5 | Z198: 24.5 | AA198: 2 | AB198: 53.6 | AC198: 81.5 | AD198: 27.9 | AE198: 6.7 | AF198: 8.6 | AG198: 2 | AH198: 45.4 | AI198: 10.3 | AJ198: 55.7 | AK198: 20.9 | AL198: 36.3 | AM198: 3.2 | AN198: 12.8 | AO198: 9.6 | AP198: 67.6 | AQ198: 50.7 | AR198: 118.2 | AT198: 0 | AU198: 1 | AV198: 2 | BG198: 0 | BI198: 33.4 | BJ198: 70.4 | BK198: 37 | BL198: 5.1 | BM198: 46.4 | BN198: 19.6 | BO198: 8.8 | BP198: 3.7 | BQ198: 2 | BU198: 0 | BV198: 0 | BW198: 0 | BX198: 0 | BY198: 0 | BZ198: 0 | CC198: 0 | CE198: 100 | CP198: 0 | CQ198: 0 | CR198: 2 | CW198: 0 | CX198: 11.4 | CY198: 35.2 | CZ198: 24.5 | DA198: 19.1
A199: Joel.Armia | B199: 2016-02-23 | C199: WPG | D199: DAL | E199: 0 | F199: 0 | G199: 0 | H199: 0 | I199: 0 | J199: 0 | K199: 0 | L199: 35 | M199: 90.4 | N199: 0 | O199: -7.6 | P199: 13.1 | Q199: 1 | R199: 48.2 | S199: 100 | T199: 51.8 | U199: 2.1 | V199: 2.1 | W199: 0 | X199: 9.5 | Y199: 0 | Z199: 9.5 | AA199: 1 | AB199: -14.6 | AC199: 38.3 | AD199: 52.9 | AE199: -3 | AF199: 5 | AG199: 8 | AH199: 22.7 | AI199: 36.5 | AJ199: 59.2 | AK199: -22.8 | AL199: 57.8 | AM199: -8 | AN199: 9.3 | AO199: 17.3 | AP199: 42.6 | AQ199: 79 | AR199: 121.6 | AT199: 0 | AU199: 0 | AV199: 1 | BG199: 0 | BI199: -22.7 | BJ199: 27.3 | BK199: 50 | BL199: -6.5 | BM199: 17.8 | BN199: 47.5 | BO199: 3.9 | BP199: 10.4 | BQ199: 1 | BU199: 0 | BV199: 50 | BW199: 4.6 | BX199: 0 | BY199: 1 | BZ199: -1 | CC199: 0 | CE199: 90.4 | CP199: 0 | CQ199: 0 | CR199: 1 | CW199: 0 | CX199: 13.1 | CY199: 31.2 | CZ199: 29.6 | DA199: 19.7
A200: Joel.Armia | B200: 2016-02-25 | C200: WPG | D200: DAL | E200: 2 | F200: 1 | G200: 3 | H200: 7.4 | I200: 3.7 | J200: 11.2 | K200: 0 | L200: 49.8 | M200: 148.2 | N200: 0 | O200: -38.9 | P200: 16.1 | Q200: 2 | R200: 11 | S200: 64.8 | T200: 53.8 | U200: 1.6 | V200: 3.5 | W200: 1.9 | X200: 13.1 | Y200: 7.1 | Z200: 20.2 | AA200: 3 | AB200: -0.1 | AC200: 51.4 | AD200: 51.5 | AE200: 0.4 | AF200: 7.6 | AG200: 7.2 | AH200: 28.1 | AI200: 26.6 | AJ200: 54.8 | AK200: -9 | AL200: 58.8 | AM200: -0.1 | AN200: 11.5 | AO200: 11.6 | AP200: 42.6 | AQ200: 43 | AR200: 85.6 | AT200: 0 | AU200: 0 | AV200: 3 | BG200: 0 | BI200: -15.8 | BJ200: 43.6 | BK200: 59.5 | BL200: -1.8 | BM200: 23.2 | BN200: 29.9 | BO200: 6.2 | BP200: 8 | BQ200: 3 | BU200: 11.2 | BV200: 75 | BW200: 0 | BX200: 3 | BY200: 0 | BZ200: 3 | CC200: 48.2 | CE200: 100 | CP200: 0 | CQ200: 1 | CR200: 1 | CW200: 0 | CX200: 16.1 | CY200: 34.6 | CZ200: 31.8 | DA200: 17
... 362 more rows

Sheet Charts

Sheet Sheet3
A3: Row Labels | B3: G | C3: A1 | D3: A2 | E3: P | H3: Row Labels | I3: TOI/Gm | J3: PSh% | K3: Average of OSh% | N3: TOI/Gm | O3: PSh% | P3: OSh% | Q3: P60 | S3: Row Labels | T3: TOI/Gm | U3: CF% | V3: HSCF% | Y3: TOI/Gm | Z3: CF% | AA3: HSCF% | AB3: P60 | AD3: Row Labels | AE3: HSCF | AF3: iHSC | AG3: HSCF%Rel | AH3: G60 | AJ3: HSCF | AK3: iHSC | AL3: HSCF%Rel | AM3: G60 | AO3: Row Labels | AP3: iHSC | AQ3: iSC | AR3: SCF%Rel | AS3: P60 | AU3: iHSC | AV3: iSC | AW3: SCF%Rel | AX3: P60 | AZ3: Row Labels | BA3: OSh% | BB3: OSv% | BF3: OSh% | BG3: OSv% | BH3: SCF%Rel | BI3: P60 | BK3: Row Labels | BL3: CF | BM3: SF | BN3: MS | BO3: BK | BQ3: CF | BR3: SF | BS3: MS | BT3: BK | BV3: Row Labels | BW3: HSCF60 | BX3: SCF60 | BY3: CF60 | BZ3: SF60 | CA3: TOI/Gm | CC3: HSCF60 | CD3: SCF60 | CE3: CF60 | CF3: SF60 | CG3: TOI/Gm | CI3: Row Labels | CJ3: G60 | CK3: P60 | CL3: A160 | CM3: A260 | CO3: G60 | CP3: P60 | CQ3: A160 | CR3: A260
A4: 2014-10-09 | B4: 0 | C4: 0 | D4: 0 | E4: 0 | H4: 2014-10-09 | I4: 11.1 | J4: 0 | K4: 0 | S4: 2014-10-09 | T4: 11.1 | U4: 40.1 | V4: 33.9 | AD4: 2014-10-09 | AE4: 1.1 | AF4: 0 | AG4: -39.8 | AH4: 0 | AO4: 2014-10-09 | AP4: 0 | AQ4: 2 | AR4: -22.2 | AS4: 0 | AZ4: 2014-10-09 | BA4: 0 | BB4: 100 | BK4: 2014-10-09 | BL4: 6.5 | BM4: 3.1 | BN4: 1 | BO4: 2 | BV4: 2014-10-09 | BW4: 6 | BX4: 21.4 | BY4: 34.9 | BZ4: 16.6 | CA4: 11.1 | CI4: 2014-10-09 | CJ4: 0 | CK4: 0 | CL4: 0 | CM4: 0
A5: 2014-10-11 | B5: 0 | C5: 0 | D5: 0 | E5: 0 | H5: 2014-10-11 | I5: 15.2 | J5: 0 | K5: 0 | S5: 2014-10-11 | T5: 15.2 | U5: 64 | V5: 53.3 | AD5: 2014-10-11 | AE5: 3.4 | AF5: 1 | AG5: 25.5 | AH5: 0 | AO5: 2014-10-11 | AP5: 1 | AQ5: 3 | AR5: 27.1 | AS5: 0 | AZ5: 2014-10-11 | BA5: 0 | BB5: 78.4 | BK5: 2014-10-11 | BL5: 19.9 | BM5: 10.1 | BN5: 2 | BO5: 0 | BV5: 2014-10-11 | BW5: 13.3 | BX5: 38 | BY5: 78.2 | BZ5: 39.9 | CA5: 15.2 | CI5: 2014-10-11 | CJ5: 0 | CK5: 0 | CL5: 0 | CM5: 0
A6: 2014-10-14 | B6: 1 | C6: 2 | D6: 0 | E6: 3 | H6: 2014-10-14 | I6: 15.2 | J6: 25 | K6: 18.8 | S6: 2014-10-14 | T6: 15.2 | U6: 71.6 | V6: 71 | AD6: 2014-10-14 | AE6: 8.5 | AF6: 1 | AG6: 40 | AH6: 4 | AO6: 2014-10-14 | AP6: 1 | AQ6: 2 | AR6: 38.3 | AS6: 11.8 | AZ6: 2014-10-14 | BA6: 18.8 | BB6: 100 | BK6: 2014-10-14 | BL6: 27.6 | BM6: 16 | BN6: 0 | BO6: 2 | BV6: 2014-10-14 | BW6: 33.5 | BX6: 49.6 | BY6: 108.9 | BZ6: 63.1 | CA6: 15.2 | CI6: 2014-10-14 | CJ6: 4 | CK6: 11.8 | CL6: 7.894736842 | CM6: 0
A7: 2014-10-16 | B7: 2 | C7: 2 | D7: 0 | E7: 4 | H7: 2014-10-16 | I7: 17.5 | J7: 33.3 | K7: 13.3 | S7: 2014-10-16 | T7: 17.5 | U7: 44.8 | V7: 48.1 | AD7: 2014-10-16 | AE7: 4 | AF7: 2 | AG7: -4.6 | AH7: 3.4 | AO7: 2014-10-16 | AP7: 2 | AQ7: 3 | AR7: 5.7 | AS7: 3.4 | AZ7: 2014-10-16 | BA7: 13.3 | BB7: 100 | BK7: 2014-10-16 | BL7: 16.9 | BM7: 7.5 | BN7: 0 | BO7: 3 | BV7: 2014-10-16 | BW7: 13.7 | BX7: 33.6 | BY7: 57.9 | BZ7: 25.7 | CA7: 17.5 | CI7: 2014-10-16 | CJ7: 3.4 | CK7: 3.4 | CL7: 0 | CM7: 0
A8: 2014-10-18 | B8: 3 | C8: 2 | D8: 0 | E8: 5 | H8: 2014-10-18 | I8: 14.9 | J8: 50 | K8: 17.2 | S8: 2014-10-18 | T8: 14.9 | U8: 45.7 | V8: 61.9 | AD8: 2014-10-18 | AE8: 6.7 | AF8: 2 | AG8: 30.1 | AH8: 4 | AO8: 2014-10-18 | AP8: 2 | AQ8: 2 | AR8: 4.8 | AS8: 4 | AZ8: 2014-10-18 | BA8: 17.2 | BB8: 88.7 | BK8: 2014-10-18 | BL8: 16.2 | BM8: 11.6 | BN8: 0 | BO8: 1 | BV8: 2014-10-18 | BW8: 27.2 | BX8: 30.9 | BY8: 65.3 | BZ8: 47 | CA8: 14.9 | CI8: 2014-10-18 | CJ8: 4 | CK8: 4 | CL8: 0 | CM8: 0
A9: 2014-10-21 | B9: 4 | C9: 3 | D9: 0 | E9: 7 | H9: 2014-10-21 | I9: 9.3 | J9: 100 | K9: 63.3 | S9: 2014-10-21 | T9: 9.3 | U9: 32 | V9: 10.2 | AD9: 2014-10-21 | AE9: 0.9 | AF9: 1 | AG9: -22.9 | AH9: 6.5 | AO9: 2014-10-21 | AP9: 1 | AQ9: 2 | AR9: -1.1 | AS9: 12.9 | AZ9: 2014-10-21 | BA9: 63.3 | BB9: 90.8 | BK9: 2014-10-21 | BL9: 6.5 | BM9: 3.2 | BN9: 1 | BO9: 0 | BV9: 2014-10-21 | BW9: 5.8 | BX9: 30.7 | BY9: 42 | BZ9: 20.4 | CA9: 9.3 | CI9: 2014-10-21 | CJ9: 6.5 | CK9: 12.9 | CL9: 6.451612903 | CM9: 0
A10: 2014-10-24 | B10: 4 | C10: 3 | D10: 0 | E10: 7 | H10: 2014-10-24 | I10: 18.7 | J10: 0 | K10: 0 | S10: 2014-10-24 | T10: 18.7 | U10: 43.5 | V10: 0 | AD10: 2014-10-24 | AE10: 0 | AF10: 0 | AG10: -60.5 | AH10: 0 | AO10: 2014-10-24 | AP10: 0 | AQ10: 2 | AR10: -0.5 | AS10: 0 | AZ10: 2014-10-24 | BA10: 0 | BB10: 100 | BK10: 2014-10-24 | BL10: 13.6 | BM10: 7.2 | BN10: 0 | BO10: 0 | BV10: 2014-10-24 | BW10: 0 | BX10: 21.6 | BY10: 43.5 | BZ10: 23.1 | CA10: 18.7 | CI10: 2014-10-24 | CJ10: 0 | CK10: 0 | CL10: 0 | CM10: 0
A11: 2014-10-25 | B11: 4 | C11: 3 | D11: 1 | E11: 8 | H11: 2014-10-25 | I11: 14.3 | J11: 0 | K11: 17.6 | S11: 2014-10-25 | T11: 14.3 | U11: 39.6 | V11: 36.1 | AD11: 2014-10-25 | AE11: 1.9 | AF11: 0 | AG11: -17.9 | AH11: 0 | AO11: 2014-10-25 | AP11: 0 | AQ11: 0 | AR11: -30.4 | AS11: 4.2 | AZ11: 2014-10-25 | BA11: 17.6 | BB11: 70.9 | BK11: 2014-10-25 | BL11: 10.8 | BM11: 5.7 | BN11: 0 | BO11: 1 | BV11: 2014-10-25 | BW11: 8.2 | BX11: 16.8 | BY11: 45.2 | BZ11: 23.8 | CA11: 14.3 | CI11: 2014-10-25 | CJ11: 0 | CK11: 4.2 | CL11: 0 | CM11: 25.17482517
A12: 2014-10-28 | B12: 4 | C12: 3 | D12: 2 | E12: 9 | H12: 2014-10-28 | I12: 14.7 | J12: 0 | K12: 15 | S12: 2014-10-28 | T12: 14.7 | U12: 72.9 | V12: 52.1 | AD12: 2014-10-28 | AE12: 3 | AF12: 2 | AG12: -19.1 | AH12: 0 | AO12: 2014-10-28 | AP12: 2 | AQ12: 7 | AR12: 15.4 | AS12: 4.1 | AZ12: 2014-10-28 | BA12: 15 | BB12: 83.4 | BK12: 2014-10-28 | BL12: 20.8 | BM12: 13.4 | BN12: 0 | BO12: 3 | BV12: 2014-10-28 | BW12: 12.2 | BX12: 57.4 | BY12: 85.1 | BZ12: 54.7 | CA12: 14.7 | CI12: 2014-10-28 | CJ12: 0 | CK12: 4.1 | CL12: 0 | CM12: 24.48979592
A13: 2014-10-31 | B13: 4 | C13: 3 | D13: 2 | E13: 9 | H13: 2014-10-31 | I13: 9.8 | J13: 0 | K13: 0 | S13: 2014-10-31 | T13: 9.8 | U13: 29.9 | V13: 100 | AD13: 2014-10-31 | AE13: 0.9 | AF13: 1 | AG13: 41.5 | AH13: 0 | AO13: 2014-10-31 | AP13: 1 | AQ13: 1 | AR13: -26.4 | AS13: 0 | AZ13: 2014-10-31 | BA13: 0 | BB13: 100 | BK13: 2014-10-31 | BL13: 2.5 | BM13: 1.7 | BN13: 0 | BO13: 0 | BV13: 2014-10-31 | BW13: 5.4 | BX13: 10.1 | BY13: 15.1 | BZ13: 10.7 | CA13: 9.8 | CI13: 2014-10-31 | CJ13: 0 | CK13: 0 | CL13: 0 | CM13: 0
A14: 2014-11-01 | B14: 4 | C14: 3 | D14: 2 | E14: 9 | H14: 2014-11-01 | I14: 14.9 | J14: 0 | K14: 0 | S14: 2014-11-01 | T14: 14.9 | U14: 62.6 | V14: 33.9 | AD14: 2014-11-01 | AE14: 1 | AF14: 0 | AG14: -18.7 | AH14: 0 | AO14: 2014-11-01 | AP14: 0 | AQ14: 3 | AR14: 11.5 | AS14: 0 | AZ14: 2014-11-01 | BA14: 0 | BB14: 100 | BK14: 2014-11-01 | BL14: 14.1 | BM14: 5 | BN14: 0 | BO14: 2 | BV14: 2014-11-01 | BW14: 4 | BX14: 23.8 | BY14: 57.1 | BZ14: 20.1 | CA14: 14.9 | CI14: 2014-11-01 | CJ14: 0 | CK14: 0 | CL14: 0 | CM14: 0
A15: 2014-11-04 | B15: 4 | C15: 3 | D15: 2 | E15: 9 | H15: 2014-11-04 | I15: 12.3 | J15: 0 | K15: 0 | S15: 2014-11-04 | T15: 12.3 | U15: 32.5 | V15: 19.1 | AD15: 2014-11-04 | AE15: 0.8 | AF15: 0 | AG15: -49 | AH15: 0 | AO15: 2014-11-04 | AP15: 0 | AQ15: 0 | AR15: -21.8 | AS15: 0 | AZ15: 2014-11-04 | BA15: 0 | BB15: 82.1 | BK15: 2014-11-04 | BL15: 8.4 | BM15: 3.7 | BN15: 0 | BO15: 1 | BV15: 2014-11-04 | BW15: 3.7 | BX15: 16.8 | BY15: 41.3 | BZ15: 17.9 | CA15: 12.3 | CI15: 2014-11-04 | CJ15: 0 | CK15: 0 | CL15: 0 | CM15: 0
A16: 2014-11-06 | B16: 4 | C16: 3 | D16: 2 | E16: 9 | H16: 2014-11-06 | I16: 16.9 | J16: 0 | K16: 0 | S16: 2014-11-06 | T16: 16.9 | U16: 46.6 | V16: 55.7 | AD16: 2014-11-06 | AE16: 3.6 | AF16: 1 | AG16: 1.1 | AH16: 0 | AO16: 2014-11-06 | AP16: 1 | AQ16: 4 | AR16: 3.2 | AS16: 0 | AZ16: 2014-11-06 | BA16: 0 | BB16: 100 | BK16: 2014-11-06 | BL16: 19.3 | BM16: 8.1 | BN16: 2 | BO16: 2 | BV16: 2014-11-06 | BW16: 12.7 | BX16: 40.7 | BY16: 68.6 | BZ16: 28.8 | CA16: 16.9 | CI16: 2014-11-06 | CJ16: 0 | CK16: 0 | CL16: 0 | CM16: 0
A17: 2014-11-08 | B17: 4 | C17: 3 | D17: 3 | E17: 10 | H17: 2014-11-08 | I17: 11.8 | J17: 0 | K17: 17.3 | S17: 2014-11-08 | T17: 11.8 | U17: 59.1 | V17: 77.6 | AD17: 2014-11-08 | AE17: 7.1 | AF17: 1 | AG17: 30.5 | AH17: 0 | AO17: 2014-11-08 | AP17: 1 | AQ17: 1 | AR17: 22.2 | AS17: 5.1 | AZ17: 2014-11-08 | BA17: 17.3 | BB17: 100 | BK17: 2014-11-08 | BL17: 19.8 | BM17: 11.5 | BN17: 0 | BO17: 1 | BV17: 2014-11-08 | BW17: 36.1 | BX17: 55.5 | BY17: 100.6 | BZ17: 58.7 | CA17: 11.8 | CI17: 2014-11-08 | CJ17: 0 | CK17: 5.1 | CL17: 0 | CM17: 30.50847458
A18: 2014-11-11 | B18: 4 | C18: 3 | D18: 3 | E18: 10 | H18: 2014-11-11 | I18: 12.2 | J18: 0 | K18: 10.4 | S18: 2014-11-11 | T18: 12.2 | U18: 39.7 | V18: 59.5 | AD18: 2014-11-11 | AE18: 6 | AF18: 2 | AG18: -11.5 | AH18: 0 | AO18: 2014-11-11 | AP18: 2 | AQ18: 5 | AR18: 5.4 | AS18: 0 | AZ18: 2014-11-11 | BA18: 10.4 | BB18: 100 | BK18: 2014-11-11 | BL18: 11.2 | BM18: 9.6 | BN18: 0 | BO18: 0 | BV18: 2014-11-11 | BW18: 29.4 | BX18: 48.8 | BY18: 55.2 | BZ18: 47.2 | CA18: 12.2 | CI18: 2014-11-11 | CJ18: 0 | CK18: 0 | CL18: 0 | CM18: 0
A19: 2014-11-13 | B19: 4 | C19: 4 | D19: 3 | E19: 11 | H19: 2014-11-13 | I19: 11.3 | J19: 0 | K19: 19.6 | S19: 2014-11-13 | T19: 11.3 | U19: 71.3 | V19: 0 | AD19: 2014-11-13 | AE19: 0 | AF19: 0 | AG19: -53.8 | AH19: 0 | AO19: 2014-11-13 | AP19: 0 | AQ19: 2 | AR19: 30.5 | AS19: 5.3 | AZ19: 2014-11-13 | BA19: 19.6 | BB19: 100 | BK19: 2014-11-13 | BL19: 8.8 | BM19: 5.1 | BN19: 0 | BO19: 0 | BV19: 2014-11-13 | BW19: 0 | BX19: 21.3 | BY19: 46.8 | BZ19: 27.2 | CA19: 11.3 | CI19: 2014-11-13 | CJ19: 0 | CK19: 5.3 | CL19: 5.309734513 | CM19: 0
A20: 2014-11-15 | B20: 4 | C20: 4 | D20: 3 | E20: 11 | H20: 2014-11-15 | I20: 14.1 | J20: 0 | K20: 0 | S20: 2014-11-15 | T20: 14.1 | U20: 45.2 | V20: 42.7 | AD20: 2014-11-15 | AE20: 1.9 | AF20: 2 | AG20: 11.4 | AH20: 0 | AO20: 2014-11-15 | AP20: 2 | AQ20: 5 | AR20: 0.1 | AS20: 0 | AZ20: 2014-11-15 | BA20: 0 | BB20: 86.2 | BK20: 2014-11-15 | BL20: 10.9 | BM20: 4.6 | BN20: 1 | BO20: 2 | BV20: 2014-11-15 | BW20: 8.2 | BX20: 26.6 | BY20: 46.6 | BZ20: 19.7 | CA20: 14.1 | CI20: 2014-11-15 | CJ20: 0 | CK20: 0 | CL20: 0 | CM20: 0
A21: 2014-11-16 | B21: 4 | C21: 4 | D21: 3 | E21: 11 | H21: 2014-11-16 | I21: 15.4 | J21: 0 | K21: 0 | S21: 2014-11-16 | T21: 15.4 | U21: 37.1 | V21: 13.4 | AD21: 2014-11-16 | AE21: 0.9 | AF21: 1 | AG21: -46.1 | AH21: 0 | AO21: 2014-11-16 | AP21: 1 | AQ21: 2 | AR21: -18.3 | AS21: 0 | AZ21: 2014-11-16 | BA21: 0 | BB21: 86.6 | BK21: 2014-11-16 | BL21: 10.9 | BM21: 7.1 | BN21: 1 | BO21: 0 | BV21: 2014-11-16 | BW21: 3.4 | BX21: 18.4 | BY21: 42.4 | BZ21: 27.7 | CA21: 15.4 | CI21: 2014-11-16 | CJ21: 0 | CK21: 0 | CL21: 0 | CM21: 0
A22: 2014-11-18 | B22: 5 | C22: 4 | D22: 3 | E22: 12 | H22: 2014-11-18 | I22: 13.2 | J22: 50 | K22: 52.4 | S22: 2014-11-18 | T22: 13.2 | U22: 38.8 | V22: 77.5 | AD22: 2014-11-18 | AE22: 3.7 | AF22: 2 | AG22: 50.1 | AH22: 4.5 | AO22: 2014-11-18 | AP22: 2 | AQ22: 3 | AR22: -1.2 | AS22: 4.5 | AZ22: 2014-11-18 | BA22: 52.4 | BB22: 80.7 | BK22: 2014-11-18 | BL22: 7.5 | BM22: 3.8 | BN22: 1 | BO22: 0 | BV22: 2014-11-18 | BW22: 16.7 | BX22: 27.1 | BY22: 34.1 | BZ22: 17.3 | CA22: 13.2 | CI22: 2014-11-18 | CJ22: 4.5 | CK22: 4.5 | CL22: 0 | CM22: 0
A23: 2014-11-20 | B23: 5 | C23: 4 | D23: 4 | E23: 13 | H23: 2014-11-20 | I23: 16.3 | J23: 0 | K23: 10.1 | N23: =AVERAGE(I4:I23) -> 13.955 | O23: =AVERAGE(J4:J23) -> 12.915 | P23: 12.75 | Q23: =AVERAGE(L5:L24) ->  | S23: 2014-11-20 | T23: 16.3 | U23: 76.3 | V23: 100 | Y23: =AVERAGE(T4:T23) -> 13.955 | Z23: =AVERAGE(U4:U23) -> 49.665 | AA23: =AVERAGE(V4:V23) -> 47.3 | AB23: =AVERAGE(W5:W24) ->  | AD23: 2014-11-20 | AE23: 4.5 | AF23: 2 | AG23: 40.1 | AH23: 0 | AJ23: =AVERAGE(AE4:AE23) -> 2.995 | AK23: =AVERAGE(AF4:AF23) -> 1.05 | AL23: =AVERAGE(AG4:AG23) -> -3.68 | AM23: =AVERAGE(AH5:AH24) -> 1.34 | AO23: 2014-11-20 | AP23: 2 | AQ23: 3 | AR23: 37.3 | AS23: 3.7 | AU23: =AVERAGE(AP4:AP23) -> 1.05 | AV23: =AVERAGE(AQ4:AQ23) -> 2.6 | AW23: =AVERAGE(AR4:AR23) -> 3.98 | AX23: =AVERAGE(AS5:AS24) -> 3.385 | AZ23: 2014-11-20 | BA23: 10.1 | BB23: 100 | BF23: =AVERAGE(BA4:BA23) -> 12.75 | BG23: =AVERAGE(BB4:BB23) -> 92.39 | BH23: =AVERAGE(BC4:BC23) ->  | BI23: =AVERAGE(BD5:BD24) ->  | BK23: 2014-11-20 | BL23: 17.5 | BM23: 9.9 | BN23: 2 | BO23: 0 | BQ23: =AVERAGE(BL4:BL23) -> 13.485 | BR23: =AVERAGE(BM4:BM23) -> 7.395 | BS23: =AVERAGE(BN4:BN23) -> 0.55 | BT23: =AVERAGE(BO5:BO24) -> 0.95 | BV23: 2014-11-20 | BW23: 16.6 | BX23: 43.3 | BY23: 64.4 | BZ23: 36.3 | CA23: 16.3 | CC23: =AVERAGE(BW4:BW23) -> 12.805 | CD23: =AVERAGE(BX4:BX23) -> 31.62 | CE23: =AVERAGE(BY4:BY23) -> 56.66 | CF23: =AVERAGE(BZ5:BZ24) -> 32.44 | CG23: 14.09 | CI23: 2014-11-20 | CJ23: 0 | CK23: 3.7 | CL23: 0 | CM23: 22.08588957 | CO23: =AVERAGE(CJ4:CJ23) -> 1.12 | CP23: =AVERAGE(CK4:CK23) -> 2.95 | CQ23: =AVERAGE(CL4:CL23) -> 0.9828042129 | CR23: 5.112949262
A24: 2014-11-22 | B24: 6 | C24: 5 | D24: 4 | E24: 15 | H24: 2014-11-22 | I24: 13.8 | J24: 50 | K24: 22.1 | N24: =AVERAGE(I5:I24) -> 14.09 | O24: =AVERAGE(J5:J24) -> 15.415 | P24: =AVERAGE(K5:K24) -> 13.855 | S24: 2014-11-22 | T24: 13.8 | U24: 46.4 | V24: 68.3 | Y24: =AVERAGE(T5:T24) -> 14.09 | Z24: 49.98 | AA24: 49.02 | AD24: 2014-11-22 | AE24: 2.4 | AF24: 1 | AG24: 59.1 | AH24: 4.4 | AJ24: =AVERAGE(AE5:AE24) -> 3.06 | AK24: 1.1 | AL24: 1.265 | AM24: 1.34 | AO24: 2014-11-22 | AP24: 1 | AQ24: 3 | AR24: 27.4 | AS24: 8.7 | AU24: =AVERAGE(AP5:AP24) -> 1.1 | AV24: 2.65 | AW24: 6.46 | AX24: 3.605 | AZ24: 2014-11-22 | BA24: 22.1 | BB24: 100 | BF24: =AVERAGE(BA5:BA24) -> 13.855 | BG24: 92.39 | BK24: 2014-11-22 | BL24: 11.5 | BM24: 9.1 | BN24: 0 | BO24: 1 | BQ24: =AVERAGE(BL5:BL24) -> 13.735 | BR24: 7.695 | BS24: 0.5 | BT24: 0.95 | BV24: 2014-11-22 | BW24: 10.4 | BX24: 31.9 | BY24: 50.1 | BZ24: 39.5 | CA24: 13.8 | CC24: =AVERAGE(BW5:BW24) -> 13.025 | CD24: 32.145 | CE24: 57.42 | CF24: 32.46 | CG24: 14.01 | CI24: 2014-11-22 | CJ24: 4.4 | CK24: 8.7 | CL24: 4.347826087 | CM24: 0 | CO24: =AVERAGE(CJ5:CJ24) -> 1.34 | CP24: 3.385 | CQ24: 1.200195517 | CR24: 5.112949262
A25: 2014-11-25 | B25: 6 | C25: 6 | D25: 4 | E25: 16 | H25: 2014-11-25 | I25: 13.6 | J25: 0 | K25: 22 | N25: 14.01 | O25: 15.415 | P25: 14.955 | S25: 2014-11-25 | T25: 13.6 | U25: 44.7 | V25: 78.9 | Y25: 14.01 | Z25: 49.015 | AA25: 50.3 | AD25: 2014-11-25 | AE25: 4 | AF25: 0 | AG25: 30.6 | AH25: 0 | AJ25: 3.09 | AK25: 1.05 | AL25: 1.52 | AM25: 1.14 | AO25: 2014-11-25 | AP25: 0 | AQ25: 0 | AR25: 21.1 | AS25: 4.4 | AU25: 1.05 | AV25: 2.5 | AW25: 6.16 | AX25: 3.43 | AZ25: 2014-11-25 | BA25: 22 | BB25: 100 | BF25: 14.955 | BG25: 93.47 | BK25: 2014-11-25 | BL25: 12.1 | BM25: 9.1 | BN25: 0 | BO25: 0 | BQ25: 13.345 | BR25: 7.645 | BS25: 0.4 | BT25: 0.95 | BV25: 2014-11-25 | BW25: 17.9 | BX25: 36.2 | BY25: 53.5 | BZ25: 40.3 | CA25: 13.6 | CC25: 13.255 | CD25: 32.055 | CE25: 56.185 | CF25: 31.375 | CG25: 13.975 | CI25: 2014-11-25 | CJ25: 0 | CK25: 4.4 | CL25: 4.411764706 | CM25: 0 | CO25: 1.34 | CP25: 3.605 | CQ25: 1.420783753 | CR25: 5.112949262
A26: 2014-11-28 | B26: 6 | C26: 7 | D26: 5 | E26: 18 | H26: 2014-11-28 | I26: 14.5 | J26: 0 | K26: 20 | N26: 13.975 | O26: 14.165 | P26: 15.015 | S26: 2014-11-28 | T26: 14.5 | U26: 67.7 | V26: 70.1 | Y26: 13.975 | Z26: 48.82 | AA26: 50.255 | AD26: 2014-11-28 | AE26: 4.4 | AF26: 2 | AG26: 29.6 | AH26: 0 | AJ26: 2.885 | AK26: 1.1 | AL26: 1 | AM26: 0.97 | AO26: 2014-11-28 | AP26: 2 | AQ26: 3 | AR26: 21 | AS26: 8.3 | AU26: 1.1 | AV26: 2.55 | AW26: 5.295 | AX26: 3.495 | AZ26: 2014-11-28 | BA26: 20 | BB26: 80.7 | BF26: 15.015 | BG26: 92.505 | BK26: 2014-11-28 | BL26: 20.2 | BM26: 10 | BN26: 1 | BO26: 2 | BQ26: 12.975 | BR26: 7.345 | BS26: 0.45 | BT26: 0.85 | BV26: 2014-11-28 | BW26: 18.2 | BX26: 62.4 | BY26: 83.4 | BZ26: 41.4 | CA26: 14.5 | CC26: 12.49 | CD26: 32.695 | CE26: 54.91 | CF26: 31.45 | CG26: 13.735 | CI26: 2014-11-28 | CJ26: 0 | CK26: 8.3 | CL26: 4.137931034 | CM26: 24.82758621 | CO26: 1.14 | CP26: 3.43 | CQ26: 1.232943462 | CR26: 6.354328572
A27: 2014-11-29 | B27: 6 | C27: 7 | D27: 6 | E27: 19 | H27: 2014-11-29 | I27: 12.7 | J27: 0 | K27: 17.4 | N27: 13.735 | O27: 12.5 | P27: 15.22 | S27: 2014-11-29 | T27: 12.7 | U27: 50.2 | V27: 77.2 | Y27: 13.735 | Z27: 49.09 | AA27: 51.71 | AD27: 2014-11-29 | AE27: 3.1 | AF27: 2 | AG27: 28 | AH27: 0 | AJ27: 2.84 | AK27: 1.1 | AL27: 2.63 | AM27: 0.77 | AO27: 2014-11-29 | AP27: 2 | AQ27: 3 | AR27: 26.1 | AS27: 4.7 | AU27: 1.1 | AV27: 2.55 | AW27: 6.315 | AX27: 3.295 | AZ27: 2014-11-29 | BA27: 17.4 | BB27: 100 | BF27: 15.22 | BG27: 92.505 | BK27: 2014-11-29 | BL27: 13 | BM27: 5.8 | BN27: 2 | BO27: 1 | BQ27: 12.78 | BR27: 7.26 | BS27: 0.55 | BT27: 0.85 | BV27: 2014-11-29 | BW27: 14.6 | BX27: 32.7 | BY27: 61.2 | BZ27: 27.2 | CA27: 12.7 | CC27: 12.535 | CD27: 32.65 | CE27: 55.075 | CF27: 31.325 | CG27: 13.555 | CI27: 2014-11-29 | CJ27: 0 | CK27: 4.7 | CL27: 0 | CM27: 28.34645669 | CO27: 0.97 | CP27: 3.495 | CQ27: 1.232943462 | CR27: 7.771651407
A28: 2014-12-02 | B28: 6 | C28: 7 | D28: 6 | E28: 19 | H28: 2014-12-02 | I28: 11.3 | J28: 0 | K28: 0 | N28: 13.555 | O28: 10 | P28: 14.36 | S28: 2014-12-02 | T28: 11.3 | U28: 46.6 | V28: 69.9 | Y28: 13.555 | Z28: 49.135 | AA28: 52.11 | AD28: 2014-12-02 | AE28: 6.5 | AF28: 3 | AG28: 43.1 | AH28: 0 | AJ28: 2.83 | AK28: 1.15 | AL28: 3.28 | AM28: 0.445 | AO28: 2014-12-02 | AP28: 3 | AQ28: 4 | AR28: 21.1 | AS28: 0 | AU28: 1.15 | AV28: 2.65 | AW28: 7.13 | AX28: 2.65 | AZ28: 2014-12-02 | BA28: 0 | BB28: 68.9 | BF28: 14.36 | BG28: 91.515 | BK28: 2014-12-02 | BL28: 14.9 | BM28: 8.4 | BN28: 1 | BO28: 1 | BQ28: 12.715 | BR28: 7.1 | BS28: 0.6 | BT28: 0.9 | BV28: 2014-12-02 | BW28: 34.5 | BX28: 59 | BY28: 79.4 | BZ28: 44.5 | CA28: 11.3 | CC28: 12.9 | CD28: 34.055 | CE28: 55.78 | CF28: 31.125 | CG28: 13.785 | CI28: 2014-12-02 | CJ28: 0 | CK28: 0 | CL28: 0 | CM28: 0 | CO28: 0.77 | CP28: 3.295 | CQ28: 1.232943462 | CR28: 7.771651407
A29: 2014-12-04 | B29: 6 | C29: 7 | D29: 6 | E29: 19 | H29: 2014-12-04 | I29: 13.9 | J29: 0 | K29: 0 | N29: 13.785 | O29: 5 | P29: 11.195 | S29: 2014-12-04 | T29: 13.9 | U29: 35.6 | V29: 29.1 | Y29: 13.785 | Z29: 49.315 | AA29: 53.055 | AD29: 2014-12-04 | AE29: 1.1 | AF29: 0 | AG29: -14.2 | AH29: 0 | AJ29: 2.84 | AK29: 1.1 | AL29: 3.715 | AM29: 0.445 | AO29: 2014-12-04 | AP29: 0 | AQ29: 2 | AR29: 0.4 | AS29: 0 | AU29: 1.1 | AV29: 2.65 | AW29: 7.205 | AX29: 2.65 | AZ29: 2014-12-04 | BA29: 0 | BB29: 89.2 | BF29: 11.195 | BG29: 91.435 | BK29: 2014-12-04 | BL29: 9.3 | BM29: 3.8 | BN29: 1 | BO29: 1 | BQ29: 12.855 | BR29: 7.13 | BS29: 0.6 | BT29: 1 | BV29: 2014-12-04 | BW29: 4.9 | BX29: 19.2 | BY29: 40 | BZ29: 16.4 | CA29: 13.9 | CC29: 12.855 | CD29: 33.48 | CE29: 55.68 | CF29: 31.38 | CG29: 13.475 | CI29: 2014-12-04 | CJ29: 0 | CK29: 0 | CL29: 0 | CM29: 0 | CO29: 0.445 | CP29: 2.65 | CQ29: 0.910362817 | CR29: 7.771651407
A30: 2014-12-06 | B30: 6 | C30: 7 | D30: 6 | E30: 19 | H30: 2014-12-06 | I30: 12.5 | J30: 0 | K30: 0 | N30: 13.475 | O30: 5 | P30: 11.195 | S30: 2014-12-06 | T30: 12.5 | U30: 49.7 | V30: 22.3 | Y30: 13.475 | Z30: 49.625 | AA30: 54.17 | AD30: 2014-12-06 | AE30: 0.8 | AF30: 1 | AG30: -1.5 | AH30: 0 | AJ30: 2.88 | AK30: 1.15 | AL30: 6.665 | AM30: 0.445 | AO30: 2014-12-06 | AP30: 1 | AQ30: 3 | AR30: -21.1 | AS30: 0 | AU30: 1.15 | AV30: 2.7 | AW30: 6.175 | AX30: 2.44 | AZ30: 2014-12-06 | BA30: 0 | BB30: 100 | BF30: 11.195 | BG30: 91.435 | BK30: 2014-12-06 | BL30: 11.5 | BM30: 5.9 | BN30: 1 | BO30: 2 | BQ30: 12.75 | BR30: 7.065 | BS30: 0.65 | BT30: 1.05 | BV30: 2014-12-06 | BW30: 3.8 | BX30: 17.2 | BY30: 54.8 | BZ30: 28.2 | CA30: 12.5 | CC30: 13.045 | CD30: 33.26 | CE30: 56.245 | CF30: 31.35 | CG30: 13.47 | CI30: 2014-12-06 | CJ30: 0 | CK30: 0 | CL30: 0 | CM30: 0 | CO30: 0.445 | CP30: 2.65 | CQ30: 0.910362817 | CR30: 7.771651407
A31: 2014-12-09 | B31: 6 | C31: 7 | D31: 6 | E31: 19 | H31: 2014-12-09 | I31: 14.2 | J31: 0 | K31: 0 | N31: 13.47 | O31: 5 | P31: 10.315 | S31: 2014-12-09 | T31: 14.2 | U31: 60.9 | V31: 70.4 | Y31: 13.47 | Z31: 50.69 | AA31: 55.885 | AD31: 2014-12-09 | AE31: 2.5 | AF31: 1 | AG31: 38.3 | AH31: 0 | AJ31: 2.91 | AK31: 1.2 | AL31: 9.475 | AM31: 0.445 | AO31: 2014-12-09 | AP31: 1 | AQ31: 1 | AR31: 8.7 | AS31: 0 | AU31: 1.2 | AV31: 2.75 | AW31: 8.13 | AX31: 2.235 | AZ31: 2014-12-09 | BA31: 0 | BB31: 76.6 | BF31: 10.315 | BG31: 91.72 | BK31: 2014-12-09 | BL31: 13.6 | BM31: 5.5 | BN31: 0 | BO31: 2 | BQ31: 12.89 | BR31: 7.055 | BS31: 0.65 | BT31: 0.95 | BV31: 2014-12-09 | BW31: 10.5 | BX31: 21.9 | BY31: 57.5 | BZ31: 23.2 | CA31: 14.2 | CC31: 13.16 | CD31: 33.515 | CE31: 56.86 | CF31: 29.875 | CG31: 13.43 | CI31: 2014-12-09 | CJ31: 0 | CK31: 0 | CL31: 0 | CM31: 0 | CO31: 0.445 | CP31: 2.44 | CQ31: 0.910362817 | CR31: 6.512910148
A32: 2014-12-13 | B32: 6 | C32: 7 | D32: 6 | E32: 19 | H32: 2014-12-13 | I32: 13.9 | J32: 0 | K32: 0 | N32: 13.43 | O32: 5 | P32: 9.565 | S32: 2014-12-13 | T32: 13.9 | U32: 48.6 | V32: 28.3 | Y32: 13.43 | Z32: 49.475 | AA32: 54.695 | AD32: 2014-12-13 | AE32: 2.2 | AF32: 1 | AG32: -36.8 | AH32: 0 | AJ32: 2.87 | AK32: 1.15 | AL32: 8.59 | AM32: 0.445 | AO32: 2014-12-13 | AP32: 1 | AQ32: 3 | AR32: -16.5 | AS32: 0 | AU32: 1.15 | AV32: 2.55 | AW32: 6.535 | AX32: 2.235 | AZ32: 2014-12-13 | BA32: 0 | BB32: 100 | BF32: 9.565 | BG32: 92.55 | BK32: 2014-12-13 | BL32: 13.8 | BM32: 5.8 | BN32: 0 | BO32: 1 | BQ32: 12.54 | BR32: 6.675 | BS32: 0.65 | BT32: 0.95 | BV32: 2014-12-13 | BW32: 9.6 | BX32: 39.1 | BY32: 59.5 | BZ32: 25.2 | CA32: 13.9 | CC32: 13.03 | CD32: 32.6 | CE32: 55.58 | CF32: 29.7 | CG32: 13.795 | CI32: 2014-12-13 | CJ32: 0 | CK32: 0 | CL32: 0 | CM32: 0 | CO32: 0.445 | CP32: 2.235 | CQ32: 0.910362817 | CR32: 5.288420352
A33: 2014-12-17 | B33: 6 | C33: 7 | D33: 6 | E33: 19 | H33: 2014-12-17 | I33: 17.1 | J33: 0 | K33: 0 | N33: 13.795 | O33: 5 | P33: 9.565 | S33: 2014-12-17 | T33: 17.1 | U33: 46 | V33: 44.1 | Y33: 13.795 | Z33: 50.28 | AA33: 51.9 | AD33: 2014-12-17 | AE33: 2.9 | AF33: 1 | AG33: -18.3 | AH33: 0 | AJ33: 2.97 | AK33: 1.15 | AL33: 5.6 | AM33: 0.68 | AO33: 2014-12-17 | AP33: 1 | AQ33: 3 | AR33: -17.6 | AS33: 0 | AU33: 1.15 | AV33: 2.65 | AW33: 6.975 | AX33: 2.7 | AZ33: 2014-12-17 | BA33: 0 | BB33: 100 | BF33: 9.565 | BG33: 92.55 | BK33: 2014-12-17 | BL33: 10.2 | BM33: 2.1 | BN33: 2 | BO33: 0 | BQ33: 12.925 | BR33: 6.695 | BS33: 0.75 | BT33: 0.9 | BV33: 2014-12-17 | BW33: 10.2 | BX33: 31 | BY33: 35.9 | BZ33: 7.2 | CA33: 17.1 | CC33: 13.27 | CD33: 33.645 | CE33: 56.62 | CF33: 31.255 | CG33: 13.695 | CI33: 2014-12-17 | CJ33: 0 | CK33: 0 | CL33: 0 | CM33: 0 | CO33: 0.445 | CP33: 2.235 | CQ33: 0.910362817 | CR33: 5.288420352
A34: 2014-12-19 | B34: 7 | C34: 8 | D34: 6 | E34: 21 | H34: 2014-12-19 | I34: 12.9 | J34: 33.3 | K34: 18.2 | N34: 13.695 | O34: 6.665 | P34: 10.475 | S34: 2014-12-19 | T34: 12.9 | U34: 79.2 | V34: 100 | Y34: 13.695 | Z34: 51.11 | AA34: 55.205 | AD34: 2014-12-19 | AE34: 4.2 | AF34: 1 | AG34: 100 | AH34: 4.7 | AJ34: 3.13 | AK34: 1.2 | AL34: 11.535 | AM34: 0.68 | AO34: 2014-12-19 | AP34: 1 | AQ34: 2 | AR34: 44.6 | AS34: 9.3 | AU34: 1.2 | AV34: 2.6 | AW34: 8.63 | AX34: 2.875 | AZ34: 2014-12-19 | BA34: 18.2 | BB34: 74.5 | BF34: 10.475 | BG34: 91.275 | BK34: 2014-12-19 | BL34: 18.2 | BM34: 11 | BN34: 0 | BO34: 1 | BQ34: 13.13 | BR34: 6.995 | BS34: 0.75 | BT34: 0.9 | BV34: 2014-12-19 | BW34: 19.5 | BX34: 49.5 | BY34: 84.7 | BZ34: 51.2 | CA34: 12.9 | CC34: 14.045 | CD34: 34.93 | CE34: 58 | CF34: 32.465 | CG34: 13.93 | CI34: 2014-12-19 | CJ34: 4.7 | CK34: 9.3 | CL34: 4.651162791 | CM34: 0 | CO34: 0.68 | CP34: 2.7 | CQ34: 1.142920957 | CR34: 5.288420352
A35: 2014-12-21 | B35: 7 | C35: 9 | D35: 6 | E35: 22 | H35: 2014-12-21 | I35: 17 | J35: 0 | K35: 8.4 | N35: 13.93 | O35: 6.665 | P35: 10.895 | S35: 2014-12-21 | T35: 17 | U35: 64.1 | V35: 100 | Y35: 13.93 | Z35: 52.69 | AA35: 59.25 | AD35: 2014-12-21 | AE35: 3.2 | AF35: 1 | AG35: 30.8 | AH35: 0 | AJ35: 3.25 | AK35: 1.25 | AL35: 15.525 | AM35: 0.68 | AO35: 2014-12-21 | AP35: 1 | AQ35: 2 | AR35: -12.6 | AS35: 3.5 | AU35: 1.25 | AV35: 2.7 | AW35: 9.09 | AX35: 2.875 | AZ35: 2014-12-21 | BA35: 8.4 | BB35: 100 | BF35: 10.895 | BG35: 92.17 | BK35: 2014-12-21 | BL35: 21 | BM35: 12 | BN35: 2 | BO35: 1 | BQ35: 13.76 | BR35: 7.41 | BS35: 0.85 | BT35: 0.85 | BV35: 2014-12-21 | BW35: 11.4 | BX35: 29.3 | BY35: 74.1 | BZ35: 42.1 | CA35: 17 | CC35: 14.43 | CD35: 35.555 | CE35: 59.64 | CF35: 33.24 | CG35: 13.72 | CI35: 2014-12-21 | CJ35: 0 | CK35: 3.5 | CL35: 3.529411765 | CM35: 0 | CO35: 0.68 | CP35: 2.875 | CQ35: 1.319391545 | CR35: 5.288420352
A36: 2014-12-23 | B36: 7 | C36: 9 | D36: 6 | E36: 22 | H36: 2014-12-23 | I36: 12.7 | J36: 0 | K36: 0 | N36: 13.72 | O36: 6.665 | P36: 10.895 | S36: 2014-12-23 | T36: 12.7 | U36: 48.8 | V36: 64.9 | Y36: 13.72 | Z36: 52.8 | AA36: 59.71 | AD36: 2014-12-23 | AE36: 3.7 | AF36: 1 | AG36: -21.6 | AH36: 0 | AJ36: 3.255 | AK36: 1.25 | AL36: 14.39 | AM36: 0.68 | AO36: 2014-12-23 | AP36: 1 | AQ36: 3 | AR36: -36.2 | AS36: 0 | AU36: 1.25 | AV36: 2.65 | AW36: 7.12 | AX36: 2.62 | AZ36: 2014-12-23 | BA36: 0 | BB36: 79.8 | BF36: 10.895 | BG36: 91.16 | BK36: 2014-12-23 | BL36: 12.2 | BM36: 9.4 | BN36: 0 | BO36: 1 | BQ36: 13.405 | BR36: 7.475 | BS36: 0.75 | BT36: 0.8 | BV36: 2014-12-23 | BW36: 17.4 | BX36: 37.5 | BY36: 57.4 | BZ36: 44.3 | CA36: 12.7 | CC36: 14.665 | CD36: 35.395 | CE36: 59.08 | CF36: 32.435 | CG36: 13.745 | CI36: 2014-12-23 | CJ36: 0 | CK36: 0 | CL36: 0 | CM36: 0 | CO36: 0.68 | CP36: 2.875 | CQ36: 1.319391545 | CR36: 5.288420352
A37: 2014-12-27 | B37: 7 | C37: 9 | D37: 6 | E37: 22 | H37: 2014-12-27 | I37: 12.3 | J37: 0 | K37: 0 | N37: 13.745 | O37: 6.665 | P37: 10.03 | S37: 2014-12-27 | T37: 12.3 | U37: 54.9 | V37: 38.5 | Y37: 13.745 | Z37: 52.59 | AA37: 57.755 | AD37: 2014-12-27 | AE37: 2.4 | AF37: 1 | AG37: 15.7 | AH37: 0 | AJ37: 3.02 | AK37: 1.25 | AL37: 13.65 | AM37: 0.68 | AO37: 2014-12-27 | AP37: 1 | AQ37: 2 | AR37: 9.7 | AS37: 0 | AU37: 1.25 | AV37: 2.7 | AW37: 6.495 | AX37: 2.62 | AZ37: 2014-12-27 | BA37: 0 | BB37: 78.2 | BF37: 10.03 | BG37: 90.07 | BK37: 2014-12-27 | BL37: 15.9 | BM37: 8.8 | BN37: 2 | BO37: 0 | BQ37: 13.21 | BR37: 7.34 | BS37: 0.85 | BT37: 0.9 | BV37: 2014-12-27 | BW37: 11.5 | BX37: 33 | BY37: 77.3 | BZ37: 42.6 | CA37: 12.3 | CC37: 13.435 | CD37: 34.27 | CE37: 57.915 | CF37: 31.23 | CG37: 13.855 | CI37: 2014-12-27 | CJ37: 0 | CK37: 0 | CL37: 0 | CM37: 0 | CO37: 0.68 | CP37: 2.62 | CQ37: 1.319391545 | CR37: 3.762996624
A38: 2014-12-29 | B38: 7 | C38: 9 | D38: 6 | E38: 22 | H38: 2014-12-29 | I38: 14.4 | J38: 0 | K38: 0 | N38: 13.855 | O38: 6.665 | P38: 9.51 | S38: 2014-12-29 | T38: 14.4 | U38: 46.7 | V38: 61 | Y38: 13.855 | Z38: 52.94 | AA38: 57.83 | AD38: 2014-12-29 | AE38: 4.5 | AF38: 2 | AG38: 1 | AH38: 0 | AJ38: 2.945 | AK38: 1.25 | AL38: 14.275 | AM38: 0.68 | AO38: 2014-12-29 | AP38: 2 | AQ38: 3 | AR38: 7.2 | AS38: 0 | AU38: 1.25 | AV38: 2.6 | AW38: 6.585 | AX38: 2.58 | AZ38: 2014-12-29 | BA38: 0 | BB38: 88.4 | BF38: 9.51 | BG38: 89.49 | BK38: 2014-12-29 | BL38: 11.7 | BM38: 5.6 | BN38: 1 | BO38: 2 | BQ38: 13.235 | BR38: 7.14 | BS38: 0.9 | BT38: 0.9 | BV38: 2014-12-29 | BW38: 18.5 | BX38: 34.7 | BY38: 48.5 | BZ38: 23.1 | CA38: 14.4 | CC38: 12.89 | CD38: 33.565 | CE38: 57.58 | CF38: 31.21 | CG38: 13.955 | CI38: 2014-12-29 | CJ38: 0 | CK38: 0 | CL38: 0 | CM38: 0 | CO38: 0.68 | CP38: 2.62 | CQ38: 1.319391545 | CR38: 3.762996624
A39: 2014-12-31 | B39: 7 | C39: 10 | D39: 6 | E39: 23 | H39: 2014-12-31 | I39: 13.3 | J39: 0 | K39: 16.9 | N39: 13.955 | O39: 6.665 | P39: 9.375 | Q39: =AVERAGE(L21:L40) ->  | S39: 2014-12-31 | T39: 13.3 | U39: 56.2 | V39: 25.8 | Y39: 13.955 | Z39: 52.185 | AA39: 59.12 | AD39: 2014-12-31 | AE39: 1 | AF39: 0 | AG39: -50.1 | AH39: 0 | AJ39: 2.995 | AK39: 1.25 | AL39: 14.46 | AM39: 0.68 | AO39: 2014-12-31 | AP39: 0 | AQ39: 0 | AR39: -3.8 | AS39: 4.5 | AU39: 1.25 | AV39: 2.5 | AW39: 4.87 | AX39: 2.58 | AZ39: 2014-12-31 | BA39: 16.9 | BB39: 100 | BF39: 9.375 | BG39: 89.49 | BK39: 2014-12-31 | BL39: 12.7 | BM39: 5.9 | BN39: 0 | BO39: 0 | BQ39: 13.43 | BR39: 7.18 | BS39: 0.9 | BT39: 0.85 | BV39: 2014-12-31 | BW39: 4.5 | BX39: 25.5 | BY39: 57.6 | BZ39: 26.8 | CA39: 13.3 | CC39: 13.115 | CD39: 33.775 | CE39: 58.12 | CF39: 33.26 | CG39: 13.77 | CI39: 2014-12-31 | CJ39: 0 | CK39: 4.5 | CL39: 4.511278195 | CM39: 0 | CO39: 0.68 | CP39: 2.58 | CQ39: 1.279468729 | CR39: 3.762996624
A40: 2015-01-03 | B40: 7 | C40: 10 | D40: 6 | E40: 23 | H40: 2015-01-03 | I40: 10.4 | J40: 0 | K40: 18.9 | N40: 13.77 | O40: 6.665 | P40: 10.32 | S40: 2015-01-03 | T40: 10.4 | U40: 76.1 | Y40: 13.77 | Z40: 53.73 | AA40: 59.98421053 | AD40: 2015-01-03 | AE40: 0 | AF40: 0 | AH40: 0 | AJ40: 2.9 | AK40: 1.15 | AL40: 14.62105263 | AM40: 0.885 | AO40: 2015-01-03 | AP40: 0 | AQ40: 2 | AR40: 22.3 | AS40: 0 | AU40: 1.15 | AV40: 2.35 | AW40: 5.98 | AX40: 2.785 | AZ40: 2015-01-03 | BA40: 18.9 | BB40: 100 | BF40: 10.32 | BG40: 90.18 | BK40: 2015-01-03 | BL40: 18.7 | BM40: 10.6 | BN40: 1 | BO40: 1 | BQ40: 13.82 | BR40: 7.48 | BS40: 0.9 | BT40: 1 | BV40: 2015-01-03 | BW40: 0 | BX40: 57.4 | BY40: 107.6 | BZ40: 60.7 | CA40: 10.4 | CC40: 12.705 | CD40: 35.315 | CE40: 61.17 | CF40: 33.945 | CG40: 13.73 | CI40: 2015-01-03 | CJ40: 0 | CK40: 0 | CL40: 0 | CM40: 0 | CO40: 0.68 | CP40: 2.58 | CQ40: 1.279468729 | CR40: 3.762996624
A41: 2015-01-04 | B41: 8 | C41: 10 | D41: 6 | E41: 24 | H41: 2015-01-04 | I41: 14.6 | J41: 50 | K41: 10 | N41: 13.73 | O41: 9.165 | P41: 10.82 | S41: 2015-01-04 | T41: 14.6 | U41: 60.7 | V41: 79 | Y41: 13.73 | Z41: 54.91 | AA41: 63.43684211 | AD41: 2015-01-04 | AE41: 3 | AF41: 1 | AG41: 31.8 | AH41: 4.1 | AJ41: 3.005 | AK41: 1.15 | AL41: 18.72105263 | AM41: 0.66 | AO41: 2015-01-04 | AP41: 1 | AQ41: 2 | AR41: 23.6 | AS41: 4.1 | AU41: 1.15 | AV41: 2.35 | AW41: 8.075 | AX41: 2.56 | AZ41: 2015-01-04 | BA41: 10 | BB41: 100 | BF41: 10.82 | BG41: 90.85 | BK41: 2015-01-04 | BL41: 13.7 | BM41: 10 | BN41: 0 | BO41: 3 | BQ41: 13.96 | BR41: 7.625 | BS41: 0.85 | BT41: 1.1 | BV41: 2015-01-04 | BW41: 12.2 | BX41: 27.4 | BY41: 56.4 | BZ41: 41.4 | CA41: 14.6 | CC41: 13.145 | CD41: 35.765 | CE41: 61.87 | CF41: 34.975 | CG41: 13.635 | CI41: 2015-01-04 | CJ41: 4.1 | CK41: 4.1 | CL41: 0 | CM41: 0 | CO41: 0.885 | CP41: 2.785 | CQ41: 1.279468729 | CR41: 3.762996624
A42: 2015-01-06 | B42: 8 | C42: 10 | D42: 6 | E42: 24 | H42: 2015-01-06 | I42: 11.3 | J42: 0 | K42: 0 | N42: 13.635 | O42: 6.665 | P42: 8.2 | S42: 2015-01-06 | T42: 11.3 | U42: 70.4 | V42: 48.6 | Y42: 13.635 | Z42: 56.49 | AA42: 61.91578947 | AD42: 2015-01-06 | AE42: 0.9 | AF42: 1 | AG42: -5 | AH42: 0 | AJ42: 2.865 | AK42: 1.1 | AL42: 15.82105263 | AM42: 0.66 | AO42: 2015-01-06 | AP42: 1 | AQ42: 3 | AR42: 27.7 | AS42: 0 | AU42: 1.1 | AV42: 2.35 | AW42: 9.52 | AX42: 2.565 | AZ42: 2015-01-06 | BA42: 0 | BB42: 100 | BF42: 8.2 | BG42: 91.815 | BK42: 2015-01-06 | BL42: 11.9 | BM42: 7.1 | BN42: 0 | BO42: 2 | BQ42: 14.18 | BR42: 7.79 | BS42: 0.8 | BT42: 1.2 | BV42: 2015-01-06 | BW42: 5 | BX42: 37.5 | BY42: 63.5 | BZ42: 37.9 | CA42: 11.3 | CC42: 12.56 | CD42: 36.285 | CE42: 63.34 | CF42: 34.285 | CG42: 13.605 | CI42: 2015-01-06 | CJ42: 0 | CK42: 0 | CL42: 0 | CM42: 0 | CO42: 0.66 | CP42: 2.56 | CQ42: 1.279468729 | CR42: 3.762996624
A43: 2015-01-08 | B43: 8 | C43: 11 | D43: 6 | E43: 25 | H43: 2015-01-08 | I43: 15.7 | J43: 0 | K43: 17 | N43: 13.605 | O43: 6.665 | P43: 8.545 | S43: 2015-01-08 | T43: 15.7 | U43: 46 | V43: 19 | Y43: 13.605 | Z43: 54.975 | AA43: 57.65263158 | AD43: 2015-01-08 | AE43: 1 | AF43: 0 | AG43: -12.6 | AH43: 0 | AJ43: 2.69 | AK43: 1 | AL43: 13.04736842 | AM43: 0.44 | AO43: 2015-01-08 | AP43: 0 | AQ43: 1 | AR43: -6.9 | AS43: 3.8 | AU43: 1 | AV43: 2.25 | AW43: 7.31 | AX43: 2.37 | AZ43: 2015-01-08 | BA43: 17 | BB43: 100 | BF43: 8.545 | BG43: 91.815 | BK43: 2015-01-08 | BL43: 12.1 | BM43: 5.9 | BN43: 0 | BO43: 2 | BQ43: 13.91 | BR43: 7.59 | BS43: 0.7 | BT43: 1.15 | BV43: 2015-01-08 | BW43: 3.8 | BX43: 16.3 | BY43: 46.1 | BZ43: 22.5 | CA43: 15.7 | CC43: 11.92 | CD43: 34.935 | CE43: 62.425 | CF43: 34.335 | CG43: 13.545 | CI43: 2015-01-08 | CJ43: 0 | CK43: 3.8 | CL43: 3.821656051 | CM43: 0 | CO43: 0.66 | CP43: 2.565 | CQ43: 1.470551531 | CR43: 2.658702145
A44: 2015-01-10 | B44: 8 | C44: 11 | D44: 7 | E44: 26 | H44: 2015-01-10 | I44: 12.6 | J44: 0 | K44: 11.8 | N44: 13.545 | O44: 4.165 | P44: 8.03 | S44: 2015-01-10 | T44: 12.6 | U44: 51.2 | V44: 70.1 | Y44: 13.545 | Z44: 55.215 | AA44: 57.74736842 | AD44: 2015-01-10 | AE44: 7.1 | AF44: 3 | AG44: 4.9 | AH44: 0 | AJ44: 2.925 | AK44: 1.1 | AL44: 10.19473684 | AM44: 0.44 | AO44: 2015-01-10 | AP44: 3 | AQ44: 3 | AR44: -16.6 | AS44: 4.8 | AU44: 1.1 | AV44: 2.25 | AW44: 5.11 | AX44: 2.15 | AZ44: 2015-01-10 | BA44: 11.8 | BB44: 76.3 | BF44: 8.03 | BG44: 90.63 | BK44: 2015-01-10 | BL44: 15.9 | BM44: 8.5 | BN44: 0 | BO44: 0 | BQ44: 14.13 | BR44: 7.56 | BS44: 0.7 | BT44: 1.15 | BV44: 2015-01-10 | BW44: 34.1 | BX44: 55.3 | BY44: 76.2 | BZ44: 40.5 | CA44: 12.6 | CC44: 13.105 | CD44: 36.105 | CE44: 63.73 | CF44: 34.135 | CG44: 13.535 | CI44: 2015-01-10 | CJ44: 0 | CK44: 4.8 | CL44: 0 | CM44: 28.57142857 | CO44: 0.44 | CP44: 2.37 | CQ44: 1.253160227 | CR44: 4.087273574
A45: 2015-01-13 | B45: 8 | C45: 11 | D45: 7 | E45: 26 | H45: 2015-01-13 | I45: 13.4 | J45: 0 | K45: 0 | N45: 13.535 | O45: 4.165 | P45: 6.93 | S45: 2015-01-13 | T45: 13.4 | U45: 57.7 | V45: 100 | Y45: 13.535 | Z45: 55.865 | AA45: 58.85789474 | AD45: 2015-01-13 | AE45: 2.9 | AF45: 1 | AG45: 51.8 | AH45: 0 | AJ45: 2.87 | AK45: 1.15 | AL45: 11.31052632 | AM45: 0.44 | AO45: 2015-01-13 | AP45: 1 | AQ45: 1 | AR45: 26.7 | AS45: 0 | AU45: 1.15 | AV45: 2.3 | AW45: 5.39 | AX45: 1.735 | AZ45: 2015-01-13 | BA45: 0 | BB45: 100 | BF45: 6.93 | BG45: 90.63 | BK45: 2015-01-13 | BL45: 10.4 | BM45: 8.1 | BN45: 1 | BO45: 0 | BQ45: 14.045 | BR45: 7.51 | BS45: 0.75 | BT45: 1.05 | BV45: 2015-01-13 | BW45: 13.2 | BX45: 13.2 | BY45: 46.5 | BZ45: 36.3 | CA45: 13.4 | CC45: 12.87 | CD45: 34.955 | CE45: 63.38 | CF45: 33.24 | CG45: 13.36 | CI45: 2015-01-13 | CJ45: 0 | CK45: 0 | CL45: 0 | CM45: 0 | CO45: 0.44 | CP45: 2.15 | CQ45: 1.032571992 | CR45: 4.087273574
A46: 2015-01-15 | B46: 8 | C46: 11 | D46: 7 | E46: 26 | H46: 2015-01-15 | I46: 11 | J46: 0 | K46: 0 | N46: 13.36 | O46: 4.165 | P46: 5.93 | S46: 2015-01-15 | T46: 11 | U46: 54.5 | V46: 45.4 | Y46: 13.36 | Z46: 55.205 | AA46: 57.55789474 | AD46: 2015-01-15 | AE46: 1.7 | AF46: 2 | AG46: -30.3 | AH46: 0 | AJ46: 2.735 | AK46: 1.15 | AL46: 8.157894737 | AM46: 0.71 | AO46: 2015-01-15 | AP46: 2 | AQ46: 3 | AR46: 3.7 | AS46: 0 | AU46: 1.15 | AV46: 2.3 | AW46: 4.525 | AX46: 1.77 | AZ46: 2015-01-15 | BA46: 0 | BB46: 100 | BF46: 5.93 | BG46: 91.595 | BK46: 2015-01-15 | BL46: 9.4 | BM46: 4.3 | BN46: 1 | BO46: 0 | BQ46: 13.505 | BR46: 7.225 | BS46: 0.75 | BT46: 1 | BV46: 2015-01-15 | BW46: 9 | BX46: 31.2 | BY46: 51.1 | BZ46: 23.5 | CA46: 11 | CC46: 12.41 | CD46: 33.395 | CE46: 61.765 | CF46: 33.2 | CG46: 13.28 | CI46: 2015-01-15 | CJ46: 0 | CK46: 0 | CL46: 0 | CM46: 0 | CO46: 0.44 | CP46: 1.735 | CQ46: 0.8256754401 | CR46: 2.845894263
A47: 2015-01-17 | B47: 9 | C47: 11 | D47: 7 | E47: 27 | H47: 2015-01-17 | I47: 11.1 | J47: 50 | K47: 20.4 | N47: 13.28 | O47: 6.665 | P47: 6.08 | S47: 2015-01-17 | T47: 11.1 | U47: 34.1 | V47: 40.7 | Y47: 13.28 | Z47: 54.4 | AA47: 55.63684211 | AD47: 2015-01-17 | AE47: 1.9 | AF47: 1 | AG47: -2.9 | AH47: 5.4 | AJ47: 2.675 | AK47: 1.1 | AL47: 6.531578947 | AM47: 0.71 | AO47: 2015-01-17 | AP47: 1 | AQ47: 2 | AR47: -15.6 | AS47: 5.4 | AU47: 1.1 | AV47: 2.25 | AW47: 2.44 | AX47: 1.975 | AZ47: 2015-01-17 | BA47: 20.4 | BB47: 84.9 | BF47: 6.08 | BG47: 90.84 | BK47: 2015-01-17 | BL47: 5.8 | BM47: 4.9 | BN47: 0 | BO47: 0 | BQ47: 13.145 | BR47: 7.18 | BS47: 0.65 | BT47: 1 | BV47: 2015-01-17 | BW47: 10.2 | BX47: 20.3 | BY47: 31.2 | BZ47: 26.4 | CA47: 11.1 | CC47: 12.19 | CD47: 32.775 | CE47: 60.265 | CF47: 32.55 | CG47: 13.45 | CI47: 2015-01-17 | CJ47: 5.4 | CK47: 5.4 | CL47: 0 | CM47: 0 | CO47: 0.71 | CP47: 1.77 | CQ47: 0.8256754401 | CR47: 1.428571429
A48: 2015-01-18 | B48: 9 | C48: 11 | D48: 8 | E48: 28 | H48: 2015-01-18 | I48: 14.7 | J48: 0 | K48: 13 | N48: 13.45 | O48: 6.665 | P48: 6.73 | S48: 2015-01-18 | T48: 14.7 | U48: 55 | V48: 67.9 | Y48: 13.45 | Z48: 54.82 | AA48: 55.53157895 | AD48: 2015-01-18 | AE48: 4.1 | AF48: 0 | AG48: 29.3 | AH48: 0 | AJ48: 2.555 | AK48: 0.95 | AL48: 5.805263158 | AM48: 0.71 | AO48: 2015-01-18 | AP48: 0 | AQ48: 2 | AR48: 19.3 | AS48: 4.1 | AU48: 0.95 | AV48: 2.15 | AW48: 2.35 | AX48: 1.975 | AZ48: 2015-01-18 | BA48: 13 | BB48: 87.1 | BF48: 6.73 | BG48: 91.75 | BK48: 2015-01-18 | BL48: 15.2 | BM48: 7.7 | BN48: 1 | BO48: 1 | BQ48: 13.16 | BR48: 7.145 | BS48: 0.65 | BT48: 1 | BV48: 2015-01-18 | BW48: 16.8 | BX48: 39.9 | BY48: 62.2 | BZ48: 31.5 | CA48: 14.7 | CC48: 11.305 | CD48: 31.82 | CE48: 59.405 | CF48: 33.07 | CG48: 13.355 | CI48: 2015-01-18 | CJ48: 0 | CK48: 4.1 | CL48: 0 | CM48: 24.48979592 | CO48: 0.71 | CP48: 1.975 | CQ48: 0.8256754401 | CR48: 2.653061224
A49: 2015-01-20 | B49: 9 | C49: 11 | D49: 8 | E49: 28 | H49: 2015-01-20 | I49: 12 | J49: 0 | K49: 0 | N49: 13.355 | O49: 6.665 | P49: 6.73 | S49: 2015-01-20 | T49: 12 | U49: 54.6 | V49: 39.5 | Y49: 13.355 | Z49: 55.77 | AA49: 56.07894737 | AD49: 2015-01-20 | AE49: 3.3 | AF49: 1 | AG49: -20.5 | AH49: 0 | AJ49: 2.665 | AK49: 1 | AL49: 5.473684211 | AM49: 0.71 | AO49: 2015-01-20 | AP49: 1 | AQ49: 2 | AR49: 4.7 | AS49: 0 | AU49: 1 | AV49: 2.15 | AW49: 2.565 | AX49: 1.975 | AZ49: 2015-01-20 | BA49: 0 | BB49: 77.4 | BF49: 6.73 | BG49: 91.16 | BK49: 2015-01-20 | BL49: 13.5 | BM49: 5.4 | BN49: 0 | BO49: 1 | BQ49: 13.37 | BR49: 7.225 | BS49: 0.6 | BT49: 1.05 | BV49: 2015-01-20 | BW49: 16.6 | BX49: 50.3 | BY49: 67.4 | BZ49: 26.8 | CA49: 12 | CC49: 11.89 | CD49: 33.375 | CE49: 60.775 | CF49: 33.415 | CG49: 13.385 | CI49: 2015-01-20 | CJ49: 0 | CK49: 0 | CL49: 0 | CM49: 0 | CO49: 0.71 | CP49: 1.975 | CQ49: 0.8256754401 | CR49: 2.653061224
A50: 2015-01-27 | B50: 9 | C50: 11 | D50: 8 | E50: 28 | H50: 2015-01-27 | I50: 13.1 | J50: 0 | K50: 0 | N50: 13.385 | O50: 6.665 | P50: 6.73 | S50: 2015-01-27 | T50: 13.1 | U50: 73.9 | V50: 74.6 | Y50: 13.385 | Z50: 56.98 | AA50: 58.83157895 | AD50: 2015-01-27 | AE50: 2.6 | AF50: 1 | AG50: 1.4 | AH50: 0 | AJ50: 2.755 | AK50: 1 | AL50: 5.626315789 | AM50: 0.71 | AO50: 2015-01-27 | AP50: 1 | AQ50: 4 | AR50: 12.9 | AS50: 0 | AU50: 1 | AV50: 2.2 | AW50: 4.265 | AX50: 1.975 | AZ50: 2015-01-27 | BA50: 0 | BB50: 100 | BF50: 6.73 | BG50: 91.16 | BK50: 2015-01-27 | BL50: 16.3 | BM50: 7.7 | BN50: 0 | BO50: 3 | BQ50: 13.61 | BR50: 7.315 | BS50: 0.55 | BT50: 1.05 | BV50: 2015-01-27 | BW50: 12 | BX50: 29 | BY50: 74.7 | BZ50: 35.1 | CA50: 13.1 | CC50: 12.3 | CD50: 33.965 | CE50: 61.77 | CF50: 33.74 | CG50: 13.305 | CI50: 2015-01-27 | CJ50: 0 | CK50: 0 | CL50: 0 | CM50: 0 | CO50: 0.71 | CP50: 1.975 | CQ50: 0.8256754401 | CR50: 2.653061224
A51: 2015-01-29 | B51: 9 | C51: 11 | D51: 8 | E51: 28 | H51: 2015-01-29 | I51: 12.6 | J51: 0 | K51: 0 | N51: 13.305 | O51: 6.665 | P51: 6.73 | S51: 2015-01-29 | T51: 12.6 | U51: 49.6 | V51: 37.4 | Y51: 13.305 | Z51: 56.415 | AA51: 57.09473684 | AD51: 2015-01-29 | AE51: 2.9 | AF51: 2 | AG51: -22.5 | AH51: 0 | AJ51: 2.775 | AK51: 1.05 | AL51: 2.426315789 | AM51: 0.71 | AO51: 2015-01-29 | AP51: 2 | AQ51: 3 | AR51: -14.2 | AS51: 0 | AU51: 1.05 | AV51: 2.3 | AW51: 3.12 | AX51: 1.975 | AZ51: 2015-01-29 | BA51: 0 | BB51: 87.9 | BF51: 6.73 | BG51: 91.725 | BK51: 2015-01-29 | BL51: 13.9 | BM51: 6.2 | BN51: 1 | BO51: 2 | BQ51: 13.625 | BR51: 7.35 | BS51: 0.6 | BT51: 1 | BV51: 2015-01-29 | BW51: 14 | BX51: 28.5 | BY51: 66.2 | BZ51: 29.7 | CA51: 12.6 | CC51: 12.475 | CD51: 34.295 | CE51: 62.205 | CF51: 34.965 | CG51: 13.205 | CI51: 2015-01-29 | CJ51: 0 | CK51: 0 | CL51: 0 | CM51: 0 | CO51: 0.71 | CP51: 1.975 | CQ51: 0.8256754401 | CR51: 2.653061224
A52: 2015-01-31 | B52: 9 | C52: 11 | D52: 8 | E52: 28 | H52: 2015-01-31 | I52: 11.9 | J52: 0 | K52: 0 | N52: 13.205 | O52: 6.665 | P52: 6.73 | S52: 2015-01-31 | T52: 11.9 | U52: 56 | V52: 100 | Y52: 13.205 | Z52: 56.785 | AA52: 60.86842105 | AD52: 2015-01-31 | AE52: 1.1 | AF52: 0 | AG52: 62.1 | AH52: 0 | AJ52: 2.72 | AK52: 1 | AL52: 7.631578947 | AM52: 0.71 | AO52: 2015-01-31 | AP52: 0 | AQ52: 2 | AR52: 20.6 | AS52: 0 | AU52: 1 | AV52: 2.25 | AW52: 4.975 | AX52: 1.975 | AZ52: 2015-01-31 | BA52: 0 | BB52: 100 | BF52: 6.73 | BG52: 91.725 | BK52: 2015-01-31 | BL52: 10.9 | BM52: 9.8 | BN52: 1 | BO52: 0 | BQ52: 13.48 | BR52: 7.55 | BS52: 0.65 | BT52: 1 | BV52: 2015-01-31 | BW52: 5.4 | BX52: 32 | BY52: 55.1 | BZ52: 49.7 | CA52: 11.9 | CC52: 12.265 | CD52: 33.94 | CE52: 61.985 | CF52: 35.59 | CG52: 13.085 | CI52: 2015-01-31 | CJ52: 0 | CK52: 0 | CL52: 0 | CM52: 0 | CO52: 0.71 | CP52: 1.975 | CQ52: 0.8256754401 | CR52: 2.653061224
A53: 2015-02-03 | B53: 9 | C53: 11 | D53: 8 | E53: 28 | H53: 2015-02-03 | I53: 14.7 | J53: 0 | K53: 0 | N53: 13.085 | O53: 6.665 | P53: 6.73 | S53: 2015-02-03 | T53: 14.7 | U53: 44 | V53: 53.7 | Y53: 13.085 | Z53: 56.685 | AA53: 61.37368421 | AD53: 2015-02-03 | AE53: 3.6 | AF53: 3 | AG53: -37.2 | AH53: 0 | AJ53: 2.755 | AK53: 1.1 | AL53: 6.636842105 | AM53: 0.475 | AO53: 2015-02-03 | AP53: 3 | AQ53: 3 | AR53: -36.8 | AS53: 0 | AU53: 1.1 | AV53: 2.25 | AW53: 4.015 | AX53: 1.78 | AZ53: 2015-02-03 | BA53: 0 | BB53: 82.5 | BF53: 6.73 | BG53: 90.85 | BK53: 2015-02-03 | BL53: 10.5 | BM53: 4.8 | BN53: 1 | BO53: 0 | BQ53: 13.495 | BR53: 7.685 | BS53: 0.6 | BT53: 0.95 | BV53: 2015-02-03 | BW53: 14.7 | BX53: 18.1 | BY53: 43 | BZ53: 19.7 | CA53: 14.7 | CC53: 12.49 | CD53: 33.295 | CE53: 62.34 | CF53: 34.585 | CG53: 12.995 | CI53: 2015-02-03 | CJ53: 0 | CK53: 0 | CL53: 0 | CM53: 0 | CO53: 0.71 | CP53: 1.975 | CQ53: 0.8256754401 | CR53: 2.653061224
A54: 2015-02-05 | B54: 9 | C54: 12 | D54: 8 | E54: 29 | H54: 2015-02-05 | I54: 11.1 | J54: 0 | K54: 17.3 | N54: 12.995 | O54: 5 | P54: 6.685 | S54: 2015-02-05 | T54: 11.1 | U54: 49.8 | V54: 32.3 | Y54: 12.995 | Z54: 55.215 | AA54: 57.81052632 | AD54: 2015-02-05 | AE54: 2.5 | AF54: 1 | AG54: -16.3 | AH54: 0 | AJ54: 2.67 | AK54: 1.1 | AL54: 0.5157894737 | AM54: 0.475 | AO54: 2015-02-05 | AP54: 1 | AQ54: 1 | AR54: -6.1 | AS54: 5.4 | AU54: 1.1 | AV54: 2.2 | AW54: 1.48 | AX54: 1.605 | AZ54: 2015-02-05 | BA54: 17.3 | BB54: 67.8 | BF54: 6.685 | BG54: 90.515 | BK54: 2015-02-05 | BL54: 12.5 | BM54: 5.8 | BN54: 1 | BO54: 0 | BQ54: 13.21 | BR54: 7.425 | BS54: 0.65 | BT54: 1.05 | BV54: 2015-02-05 | BW54: 13.4 | BX54: 37.4 | BY54: 67.5 | BZ54: 31.1 | CA54: 11.1 | CC54: 12.185 | CD54: 32.69 | CE54: 61.48 | CF54: 33.935 | CG54: 12.92 | CI54: 2015-02-05 | CJ54: 0 | CK54: 5.4 | CL54: 5.405405405 | CM54: 0 | CO54: 0.475 | CP54: 1.78 | CQ54: 0.8633875708 | CR54: 2.653061224
A55: 2015-02-07 | B55: 9 | C55: 12 | D55: 8 | E55: 29 | H55: 2015-02-07 | I55: 15.5 | J55: 0 | K55: 0 | N55: 12.92 | O55: 5 | P55: 6.265 | S55: 2015-02-07 | T55: 15.5 | U55: 68.6 | V55: 67.4 | Y55: 12.92 | Z55: 55.44 | AA55: 56.09473684 | AD55: 2015-02-07 | AE55: 4.1 | AF55: 1 | AG55: -0.9 | AH55: 0 | AJ55: 2.715 | AK55: 1.1 | AL55: -1.152631579 | AM55: 0.475 | AO55: 2015-02-07 | AP55: 1 | AQ55: 3 | AR55: -5.6 | AS55: 0 | AU55: 1.1 | AV55: 2.25 | AW55: 1.83 | AX55: 1.605 | AZ55: 2015-02-07 | BA55: 0 | BB55: 100 | BF55: 6.265 | BG55: 90.515 | BK55: 2015-02-07 | BL55: 19.8 | BM55: 7.5 | BN55: 2 | BO55: 3 | BQ55: 13.15 | BR55: 7.2 | BS55: 0.65 | BT55: 1.1 | BV55: 2015-02-07 | BW55: 16 | BX55: 45.3 | BY55: 76.7 | BZ55: 29.1 | CA55: 15.5 | CC55: 12.415 | CD55: 33.49 | CE55: 61.61 | CF55: 32.5 | CG55: 13.095 | CI55: 2015-02-07 | CJ55: 0 | CK55: 0 | CL55: 0 | CM55: 0 | CO55: 0.475 | CP55: 1.605 | CQ55: 0.6869169826 | CR55: 2.653061224
A56: 2015-02-08 | B56: 9 | C56: 12 | D56: 8 | E56: 29 | H56: 2015-02-08 | I56: 16.2 | J56: 0 | K56: 0 | N56: 13.095 | O56: 5 | P56: 6.265 | S56: 2015-02-08 | T56: 16.2 | U56: 39.7 | V56: 52.4 | Y56: 13.095 | Z56: 54.985 | AA56: 55.43684211 | AD56: 2015-02-08 | AE56: 2 | AF56: 0 | AG56: -1.1 | AH56: 0 | AJ56: 2.63 | AK56: 1.05 | AL56: -0.07368421053 | AM56: 0.82 | AO56: 2015-02-08 | AP56: 0 | AQ56: 1 | AR56: -14.8 | AS56: 0 | AU56: 1.05 | AV56: 2.15 | AW56: 2.9 | AX56: 1.95 | AZ56: 2015-02-08 | BA56: 0 | BB56: 100 | BF56: 6.265 | BG56: 91.525 | BK56: 2015-02-08 | BL56: 10.6 | BM56: 4.2 | BN56: 0 | BO56: 2 | BQ56: 13.07 | BR56: 6.94 | BS56: 0.65 | BT56: 1.1 | BV56: 2015-02-08 | BW56: 7.4 | BX56: 13.6 | BY56: 39.4 | BZ56: 15.6 | CA56: 16.2 | CC56: 11.915 | CD56: 32.295 | CE56: 60.71 | CF56: 32.89 | CG56: 13.35 | CI56: 2015-02-08 | CJ56: 0 | CK56: 0 | CL56: 0 | CM56: 0 | CO56: 0.475 | CP56: 1.605 | CQ56: 0.6869169826 | CR56: 2.653061224
A57: 2015-02-10 | B57: 11 | C57: 12 | D57: 8 | E57: 31 | H57: 2015-02-10 | I57: 17.4 | J57: 50 | K57: 13.7 | N57: 13.35 | O57: 7.5 | P57: 6.95 | S57: 2015-02-10 | T57: 17.4 | U57: 44.6 | V57: 39.5 | Y57: 13.35 | Z57: 54.47 | AA57: 55.48947368 | AD57: 2015-02-10 | AE57: 4.4 | AF57: 2 | AG57: -13.2 | AH57: 6.9 | AJ57: 2.73 | AK57: 1.1 | AL57: -1.594736842 | AM57: 0.82 | AO57: 2015-02-10 | AP57: 2 | AQ57: 3 | AR57: -18.5 | AS57: 6.9 | AU57: 1.1 | AV57: 2.2 | AW57: 1.49 | AX57: 1.95 | AZ57: 2015-02-10 | BA57: 13.7 | BB57: 100 | BF57: 6.95 | BG57: 92.615 | BK57: 2015-02-10 | BL57: 19.5 | BM57: 14.6 | BN57: 1 | BO57: 0 | BQ57: 13.25 | BR57: 7.23 | BS57: 0.6 | BT57: 1.1 | BV57: 2015-02-10 | BW57: 15 | BX57: 36.3 | BY57: 67.3 | BZ57: 50.4 | CA57: 17.4 | CC57: 12.09 | CD57: 32.46 | CE57: 60.21 | CF57: 33.355 | CG57: 13.2 | CI57: 2015-02-10 | CJ57: 6.9 | CK57: 6.9 | CL57: 0 | CM57: 0 | CO57: 0.82 | CP57: 1.95 | CQ57: 0.6869169826 | CR57: 2.653061224
A58: 2015-02-13 | B58: 11 | C58: 12 | D58: 8 | E58: 31 | H58: 2015-02-13 | I58: 11.4 | J58: 0 | K58: 0 | N58: 13.2 | O58: 7.5 | P58: 6.95 | S58: 2015-02-13 | T58: 11.4 | U58: 60.1 | V58: 84.8 | Y58: 13.2 | Z58: 55.14 | AA58: 56.74210526 | AD58: 2015-02-13 | AE58: 5 | AF58: 4 | AG58: 33 | AH58: 0 | AJ58: 2.755 | AK58: 1.2 | AL58: 0.08947368421 | AM58: 0.82 | AO58: 2015-02-13 | AP58: 4 | AQ58: 5 | AR58: 17.9 | AS58: 0 | AU58: 1.2 | AV58: 2.3 | AW58: 2.025 | AX58: 1.725 | AZ58: 2015-02-13 | BA58: 0 | BB58: 100 | BF58: 6.95 | BG58: 93.195 | BK58: 2015-02-13 | BL58: 17.1 | BM58: 6.2 | BN58: 4 | BO58: 2 | BQ58: 13.52 | BR58: 7.26 | BS58: 0.75 | BT58: 1.15 | BV58: 2015-02-13 | BW58: 26.1 | BX58: 35.8 | BY58: 89.5 | BZ58: 32.4 | CA58: 11.4 | CC58: 12.47 | CD58: 32.515 | CE58: 62.26 | CF58: 32.9 | CG58: 13.465 | CI58: 2015-02-13 | CJ58: 0 | CK58: 0 | CL58: 0 | CM58: 0 | CO58: 0.82 | CP58: 1.95 | CQ58: 0.6869169826 | CR58: 2.653061224
A59: 2015-02-14 | B59: 11 | C59: 12 | D59: 8 | E59: 31 | H59: 2015-02-14 | I59: 18.6 | J59: 0 | K59: 0 | N59: 13.465 | O59: 7.5 | P59: 6.105 | S59: 2015-02-14 | T59: 18.6 | U59: 51.3 | V59: 0 | Y59: 13.465 | Z59: 54.895 | AA59: 55.38421053 | AD59: 2015-02-14 | AE59: 0 | AF59: 0 | AG59: -22.3 | AH59: 0 | AJ59: 2.705 | AK59: 1.2 | AL59: 1.552631579 | AM59: 1.325 | AO59: 2015-02-14 | AP59: 0 | AQ59: 1 | AR59: -7.8 | AS59: 0 | AU59: 1.2 | AV59: 2.35 | AW59: 1.825 | AX59: 2.23 | AZ59: 2015-02-14 | BA59: 0 | BB59: 84.1 | BF59: 6.105 | BG59: 92.4 | BK59: 2015-02-14 | BL59: 12.3 | BM59: 5.5 | BN59: 0 | BO59: 1 | BQ59: 13.5 | BR59: 7.24 | BS59: 0.75 | BT59: 1.1 | BV59: 2015-02-14 | BW59: 0 | BX59: 9.4 | BY59: 39.6 | BZ59: 17.7 | CA59: 18.6 | CC59: 12.245 | CD59: 31.71 | CE59: 61.36 | CF59: 31.905 | CG59: 13.54 | CI59: 2015-02-14 | CJ59: 0 | CK59: 0 | CL59: 0 | CM59: 0 | CO59: 0.82 | CP59: 1.725 | CQ59: 0.4613530728 | CR59: 2.653061224
A60: 2015-02-17 | B60: 13 | C60: 12 | D60: 8 | E60: 33 | H60: 2015-02-17 | I60: 11.9 | J60: 50 | K60: 24.8 | N60: 13.54 | O60: 10 | P60: 6.4 | S60: 2015-02-17 | T60: 11.9 | U60: 54.3 | V60: 69.9 | Y60: 13.54 | Z60: 53.805 | AA60: 56.11 | AD60: 2015-02-17 | AE60: 2.2 | AF60: 2 | AG60: 17.6 | AH60: 10.1 | AJ60: 2.815 | AK60: 1.3 | AL60: 2.355 | AM60: 1.12 | AO60: 2015-02-17 | AP60: 2 | AQ60: 2 | AR60: 31 | AS60: 10.1 | AU60: 1.3 | AV60: 2.35 | AW60: 2.26 | AX60: 2.195 | AZ60: 2015-02-17 | BA60: 24.8 | BB60: 100 | BF60: 6.4 | BG60: 92.4 | BK60: 2015-02-17 | BL60: 11.6 | BM60: 8.1 | BN60: 0 | BO60: 0 | BQ60: 13.145 | BR60: 7.115 | BS60: 0.7 | BT60: 1 | BV60: 2015-02-17 | BW60: 11.3 | BX60: 16.5 | BY60: 58.5 | BZ60: 40.8 | CA60: 11.9 | CC60: 12.81 | CD60: 29.665 | CE60: 58.905 | CF60: 31.835 | CG60: 13.685 | CI60: 2015-02-17 | CJ60: 10.1 | CK60: 10.1 | CL60: 0 | CM60: 0 | CO60: 1.325 | CP60: 2.23 | CQ60: 0.4613530728 | CR60: 2.653061224
A61: 2015-02-19 | B61: 13 | C61: 13 | D61: 8 | E61: 34 | H61: 2015-02-19 | I61: 17.5 | J61: 0 | K61: 8.6 | N61: 13.685 | O61: 7.5 | P61: 6.33 | S61: 2015-02-19 | T61: 17.5 | U61: 59.1 | V61: 65.6 | Y61: 13.685 | Z61: 53.725 | AA61: 55.44 | AD61: 2015-02-19 | AE61: 9 | AF61: 3 | AG61: 24.8 | AH61: 0 | AJ61: 3.115 | AK61: 1.4 | AL61: 2.005 | AM61: 1.32 | AO61: 2015-02-19 | AP61: 3 | AQ61: 7 | AR61: 18 | AS61: 3.4 | AU61: 1.4 | AV61: 2.6 | AW61: 1.98 | AX61: 2.59 | AZ61: 2015-02-19 | BA61: 8.6 | BB61: 87.8 | BF61: 6.33 | BG61: 91.79 | BK61: 2015-02-19 | BL61: 24.2 | BM61: 11.7 | BN61: 3 | BO61: 1 | BQ61: 13.67 | BR61: 7.2 | BS61: 0.85 | BT61: 0.95 | BV61: 2015-02-19 | BW61: 30.7 | BX61: 59.5 | BY61: 82.9 | BZ61: 40 | CA61: 17.5 | CC61: 13.735 | CD61: 31.27 | CE61: 60.23 | CF61: 32.215 | CG61: 13.875 | CI61: 2015-02-19 | CJ61: 0 | CK61: 3.4 | CL61: 3.428571429 | CM61: 0 | CO61: 1.12 | CP61: 2.195 | CQ61: 0.6327816442 | CR61: 2.653061224
A62: 2015-02-21 | B62: 14 | C62: 13 | D62: 9 | E62: 36 | H62: 2015-02-21 | I62: 15.1 | J62: 33.3 | K62: 17.4 | N62: 13.875 | O62: 9.165 | P62: 7.2 | S62: 2015-02-21 | T62: 15.1 | U62: 53.8 | V62: 42.8 | Y62: 13.875 | Z62: 52.895 | AA62: 55.15 | AD62: 2015-02-21 | AE62: 3 | AF62: 2 | AG62: 1.2 | AH62: 4 | AJ62: 3.22 | AK62: 1.45 | AL62: 2.315 | AM62: 1.32 | AO62: 2015-02-21 | AP62: 2 | AQ62: 3 | AR62: -1.4 | AS62: 7.9 | AU62: 1.45 | AV62: 2.6 | AW62: 0.525 | AX62: 2.59 | AZ62: 2015-02-21 | BA62: 17.4 | BB62: 87.1 | BF62: 7.2 | BG62: 91.145 | BK62: 2015-02-21 | BL62: 19.3 | BM62: 11.5 | BN62: 1 | BO62: 1 | BQ62: 14.04 | BR62: 7.42 | BS62: 0.9 | BT62: 0.85 | BV62: 2015-02-21 | BW62: 11.8 | BX62: 32.9 | BY62: 76.4 | BZ62: 45.5 | CA62: 15.1 | CC62: 14.075 | CD62: 31.04 | CE62: 60.875 | CF62: 32.605 | CG62: 13.885 | CI62: 2015-02-21 | CJ62: 4 | CK62: 7.9 | CL62: 0 | CM62: 23.8410596 | CO62: 1.32 | CP62: 2.59 | CQ62: 0.6327816442 | CR62: 3.845114205
A63: 2015-02-22 | B63: 14 | C63: 14 | D63: 9 | E63: 37 | H63: 2015-02-22 | I63: 15.9 | J63: 0 | K63: 12.4 | N63: 13.885 | O63: 9.165 | P63: 6.97 | S63: 2015-02-22 | T63: 15.9 | U63: 54 | V63: 100 | Y63: 13.885 | Z63: 53.295 | AA63: 59.2 | AD63: 2015-02-22 | AE63: 2.1 | AF63: 1 | AG63: 88.3 | AH63: 0 | AJ63: 3.275 | AK63: 1.5 | AL63: 7.36 | AM63: 1.32 | AO63: 2015-02-22 | AP63: 1 | AQ63: 1 | AR63: 28.3 | AS63: 3.8 | AU63: 1.5 | AV63: 2.6 | AW63: 2.285 | AX63: 2.555 | AZ63: 2015-02-22 | BA63: 12.4 | BB63: 86.8 | BF63: 6.97 | BG63: 90.485 | BK63: 2015-02-22 | BL63: 13.1 | BM63: 8 | BN63: 1 | BO63: 0 | BQ63: 14.09 | BR63: 7.525 | BS63: 0.95 | BT63: 0.95 | BV63: 2015-02-22 | BW63: 7.8 | BX63: 23.8 | BY63: 49.3 | BZ63: 30.3 | CA63: 15.9 | CC63: 14.275 | CD63: 31.415 | CE63: 61.035 | CF63: 32.295 | CG63: 13.99 | CI63: 2015-02-22 | CJ63: 0 | CK63: 3.8 | CL63: 3.773584906 | CM63: 0 | CO63: 1.32 | CP63: 2.59 | CQ63: 0.630378087 | CR63: 3.845114205
A64: 2015-02-24 | B64: 14 | C64: 15 | D64: 9 | E64: 38 | H64: 2015-02-24 | I64: 14.7 | J64: 0 | K64: 23.8 | N64: 13.99 | O64: 9.165 | P64: 7.57 | S64: 2015-02-24 | T64: 14.7 | U64: 56.1 | V64: 0 | Y64: 13.99 | Z64: 53.54 | AA64: 55.695 | AD64: 2015-02-24 | AE64: 0 | AF64: 0 | AG64: -52.5 | AH64: 0 | AJ64: 2.92 | AK64: 1.35 | AL64: 4.49 | AM64: 1.32 | AO64: 2015-02-24 | AP64: 0 | AQ64: 3 | AR64: -3.8 | AS64: 4.1 | AU64: 1.35 | AV64: 2.6 | AW64: 2.925 | AX64: 2.555 | AZ64: 2015-02-24 | BA64: 23.8 | BB64: 100 | BF64: 7.57 | BG64: 91.67 | BK64: 2015-02-24 | BL64: 15.6 | BM64: 8.4 | BN64: 2 | BO64: 2 | BQ64: 14.075 | BR64: 7.52 | BS64: 1.05 | BT64: 1.05 | BV64: 2015-02-24 | BW64: 0 | BX64: 31.5 | BY64: 63.8 | BZ64: 34.3 | CA64: 14.7 | CC64: 12.57 | CD64: 30.225 | CE64: 60.415 | CF64: 32.25 | CG64: 14.055 | CI64: 2015-02-24 | CJ64: 0 | CK64: 4.1 | CL64: 4.081632653 | CM64: 0 | CO64: 1.32 | CP64: 2.555 | CQ64: 0.8344597196 | CR64: 2.416542776
A65: 2015-02-27 | B65: 14 | C65: 15 | D65: 9 | E65: 38 | H65: 2015-02-27 | I65: 14.7 | J65: 0 | K65: 11.6 | N65: 14.055 | O65: 9.165 | P65: 8.15 | S65: 2015-02-27 | T65: 14.7 | U65: 60.1 | V65: 56.3 | Y65: 14.055 | Z65: 53.66 | AA65: 53.51 | AD65: 2015-02-27 | AE65: 3.7 | AF65: 0 | AG65: -20.4 | AH65: 0 | AJ65: 2.96 | AK65: 1.3 | AL65: 0.88 | AM65: 1.32 | AO65: 2015-02-27 | AP65: 0 | AQ65: 1 | AR65: 11 | AS65: 0 | AU65: 1.3 | AV65: 2.6 | AW65: 2.14 | AX65: 2.555 | AZ65: 2015-02-27 | BA65: 11.6 | BB65: 79.5 | BF65: 8.15 | BG65: 90.645 | BK65: 2015-02-27 | BL65: 14.7 | BM65: 8.6 | BN65: 0 | BO65: 2 | BQ65: 14.29 | BR65: 7.545 | BS65: 1 | BT65: 1.1 | BV65: 2015-02-27 | BW65: 14.9 | BX65: 33.8 | BY65: 60.2 | BZ65: 35.4 | CA65: 14.7 | CC65: 12.655 | CD65: 31.255 | CE65: 61.1 | CF65: 33.675 | CG65: 14.335 | CI65: 2015-02-27 | CJ65: 0 | CK65: 0 | CL65: 0 | CM65: 0 | CO65: 1.32 | CP65: 2.555 | CQ65: 0.8344597196 | CR65: 2.416542776
A66: 2015-03-01 | B66: 14 | C66: 15 | D66: 9 | E66: 38 | H66: 2015-03-01 | I66: 16.6 | J66: 0 | K66: 0 | N66: 14.335 | O66: 9.165 | P66: 8.15 | S66: 2015-03-01 | T66: 16.6 | U66: 65.2 | V66: 78.6 | Y66: 14.335 | Z66: 54.195 | AA66: 55.17 | AD66: 2015-03-01 | AE66: 3.7 | AF66: 1 | AG66: 28.6 | AH66: 0 | AJ66: 3.06 | AK66: 1.25 | AL66: 3.825 | AM66: 1.05 | AO66: 2015-03-01 | AP66: 1 | AQ66: 1 | AR66: 12 | AS66: 0 | AU66: 1.25 | AV66: 2.5 | AW66: 2.555 | AX66: 2.285 | AZ66: 2015-03-01 | BA66: 0 | BB66: 67 | BF66: 8.15 | BG66: 88.995 | BK66: 2015-03-01 | BL66: 24.9 | BM66: 14.4 | BN66: 1 | BO66: 1 | BQ66: 15.065 | BR66: 8.05 | BS66: 1 | BT66: 1.1 | BV66: 2015-03-01 | BW66: 13.3 | BX66: 32.2 | BY66: 90.2 | BZ66: 52 | CA66: 16.6 | CC66: 12.87 | CD66: 31.305 | CE66: 63.055 | CF66: 34.535 | CG66: 14.44 | CI66: 2015-03-01 | CJ66: 0 | CK66: 0 | CL66: 0 | CM66: 0 | CO66: 1.32 | CP66: 2.555 | CQ66: 0.8344597196 | CR66: 2.416542776
A67: 2015-03-03 | B67: 14 | C67: 15 | D67: 9 | E67: 38 | H67: 2015-03-03 | I67: 13.2 | J67: 0 | K67: 0 | N67: 14.44 | O67: 6.665 | P67: 7.13 | S67: 2015-03-03 | T67: 13.2 | U67: 58.6 | V67: 64.1 | Y67: 14.44 | Z67: 55.42 | AA67: 56.34 | AD67: 2015-03-03 | AE67: 3.7 | AF67: 2 | AG67: 21.5 | AH67: 0 | AJ67: 3.15 | AK67: 1.3 | AL67: 5.045 | AM67: 1.05 | AO67: 2015-03-03 | AP67: 2 | AQ67: 4 | AR67: 22.9 | AS67: 0 | AU67: 1.3 | AV67: 2.6 | AW67: 4.48 | AX67: 2.08 | AZ67: 2015-03-03 | BA67: 0 | BB67: 86 | BF67: 7.13 | BG67: 89.05 | BK67: 2015-03-03 | BL67: 21.4 | BM67: 9.6 | BN67: 2 | BO67: 0 | BQ67: 15.845 | BR67: 8.285 | BS67: 1.1 | BT67: 1.15 | BV67: 2015-03-03 | BW67: 16.8 | BX67: 53.4 | BY67: 97.6 | BZ67: 43.6 | CA67: 13.2 | CC67: 13.2 | CD67: 32.96 | CE67: 66.375 | CF67: 34.005 | CG67: 14.465 | CI67: 2015-03-03 | CJ67: 0 | CK67: 0 | CL67: 0 | CM67: 0 | CO67: 1.05 | CP67: 2.285 | CQ67: 0.8344597196 | CR67: 2.416542776
A68: 2015-03-05 | B68: 14 | C68: 15 | D68: 9 | E68: 38 | H68: 2015-03-05 | I68: 15.2 | J68: 0 | K68: 19 | N68: 14.465 | O68: 6.665 | P68: 7.43 | S68: 2015-03-05 | T68: 15.2 | U68: 94.6 | V68: 52.5 | Y68: 14.465 | Z68: 57.4 | AA68: 55.57 | AD68: 2015-03-05 | AE68: 1.1 | AF68: 1 | AG68: -1.2 | AH68: 0 | AJ68: 3 | AK68: 1.35 | AL68: 3.52 | AM68: 1.05 | AO68: 2015-03-05 | AP68: 1 | AQ68: 1 | AR68: 27 | AS68: 0 | AU68: 1.35 | AV68: 2.55 | AW68: 4.865 | AX68: 2.08 | AZ68: 2015-03-05 | BA68: 19 | BB68: 100 | BF68: 7.43 | BG68: 89.695 | BK68: 2015-03-05 | BL68: 17.2 | BM68: 5.3 | BN68: 0 | BO68: 2 | BQ68: 15.945 | BR68: 8.165 | BS68: 1.05 | BT68: 1.1 | BV68: 2015-03-05 | BW68: 4.4 | BX68: 26.2 | BY68: 68.1 | BZ68: 20.9 | CA68: 15.2 | CC68: 12.58 | CD68: 32.275 | CE68: 66.67 | CF68: 34.22 | CG68: 14.79 | CI68: 2015-03-05 | CJ68: 0 | CK68: 0 | CL68: 0 | CM68: 0 | CO68: 1.05 | CP68: 2.08 | CQ68: 0.8344597196 | CR68: 1.19205298
A69: 2015-03-07 | B69: 14 | C69: 15 | D69: 9 | E69: 38 | H69: 2015-03-07 | I69: 18.5 | J69: 0 | K69: 10.5 | N69: 14.79 | O69: 6.665 | P69: 7.955 | S69: 2015-03-07 | T69: 18.5 | U69: 54.4 | V69: 45.1 | Y69: 14.79 | Z69: 57.39 | AA69: 55.85 | AD69: 2015-03-07 | AE69: 3 | AF69: 1 | AG69: 9.8 | AH69: 0 | AJ69: 2.985 | AK69: 1.35 | AL69: 5.035 | AM69: 1.05 | AO69: 2015-03-07 | AP69: 1 | AQ69: 4 | AR69: 5.6 | AS69: 0 | AU69: 1.35 | AV69: 2.65 | AW69: 4.91 | AX69: 2.08 | AZ69: 2015-03-07 | BA69: 10.5 | BB69: 85.9 | BF69: 7.955 | BG69: 90.12 | BK69: 2015-03-07 | BL69: 14.9 | BM69: 9.6 | BN69: 0 | BO69: 0 | BQ69: 16.015 | BR69: 8.375 | BS69: 1.05 | BT69: 1 | BV69: 2015-03-07 | BW69: 9.6 | BX69: 34.1 | BY69: 48.5 | BZ69: 31.1 | CA69: 18.5 | CC69: 12.23 | CD69: 31.465 | CE69: 65.725 | CF69: 35.095 | CG69: 14.69 | CI69: 2015-03-07 | CJ69: 0 | CK69: 0 | CL69: 0 | CM69: 0 | CO69: 1.05 | CP69: 2.08 | CQ69: 0.8344597196 | CR69: 1.19205298
A70: 2015-03-10 | B70: 14 | C70: 15 | D70: 9 | E70: 38 | H70: 2015-03-10 | I70: 11.1 | J70: 0 | K70: 0 | N70: 14.69 | O70: 6.665 | P70: 7.955 | S70: 2015-03-10 | T70: 11.1 | U70: 63.5 | V70: 41 | Y70: 14.69 | Z70: 56.87 | AA70: 54.17 | AD70: 2015-03-10 | AE70: 1.8 | AF70: 1 | AG70: -23.7 | AH70: 0 | AJ70: 2.945 | AK70: 1.35 | AL70: 3.78 | AM70: 1.05 | AO70: 2015-03-10 | AP70: 1 | AQ70: 2 | AR70: 17.5 | AS70: 0 | AU70: 1.35 | AV70: 2.55 | AW70: 5.14 | AX70: 2.27 | AZ70: 2015-03-10 | BA70: 0 | BB70: 100 | BF70: 7.955 | BG70: 90.12 | BK70: 2015-03-10 | BL70: 14.9 | BM70: 9.8 | BN70: 0 | BO70: 1 | BQ70: 15.945 | BR70: 8.48 | BS70: 1.05 | BT70: 0.9 | BV70: 2015-03-10 | BW70: 9.8 | BX70: 55.3 | BY70: 80.1 | BZ70: 52.6 | CA70: 11.1 | CC70: 12.12 | CD70: 32.78 | CE70: 65.995 | CF70: 35.735 | CG70: 14.85 | CI70: 2015-03-10 | CJ70: 0 | CK70: 0 | CL70: 0 | CM70: 0 | CO70: 1.05 | CP70: 2.08 | CQ70: 0.8344597196 | CR70: 1.19205298
A71: 2015-03-12 | B71: 14 | C71: 15 | D71: 10 | E71: 39 | H71: 2015-03-12 | I71: 15.8 | J71: 0 | K71: 8.9 | N71: 14.85 | O71: 6.665 | P71: 8.4 | S71: 2015-03-12 | T71: 15.8 | U71: 63.1 | V71: 52.4 | Y71: 14.85 | Z71: 57.545 | AA71: 54.92 | AD71: 2015-03-12 | AE71: 6.4 | AF71: 4 | AG71: 0.8 | AH71: 0 | AJ71: 3.12 | AK71: 1.45 | AL71: 4.945 | AM71: 1.05 | AO71: 2015-03-12 | AP71: 4 | AQ71: 5 | AR71: 2.2 | AS71: 3.8 | AU71: 1.45 | AV71: 2.65 | AW71: 5.96 | AX71: 2.27 | AZ71: 2015-03-12 | BA71: 8.9 | BB71: 81.3 | BF71: 8.4 | BG71: 89.79 | BK71: 2015-03-12 | BL71: 19.2 | BM71: 11.2 | BN71: 2 | BO71: 0 | BQ71: 16.21 | BR71: 8.73 | BS71: 1.1 | BT71: 0.95 | BV71: 2015-03-12 | BW71: 24.3 | BX71: 36.2 | BY71: 72.8 | BZ71: 42.5 | CA71: 15.8 | CC71: 12.635 | CD71: 33.165 | CE71: 66.325 | CF71: 35.11 | CG71: 14.88 | CI71: 2015-03-12 | CJ71: 0 | CK71: 3.8 | CL71: 0 | CM71: 22.78481013 | CO71: 1.05 | CP71: 2.27 | CQ71: 0.8344597196 | CR71: 2.331293486
A72: 2015-03-13 | B72: 14 | C72: 15 | D72: 10 | E72: 39 | H72: 2015-03-13 | I72: 12.5 | J72: 0 | K72: 0 | N72: 14.88 | O72: 6.665 | P72: 8.4 | S72: 2015-03-13 | T72: 12.5 | U72: 58.5 | V72: 78.8 | Y72: 14.88 | Z72: 57.67 | AA72: 53.86 | AD72: 2015-03-13 | AE72: 6.2 | AF72: 3 | AG72: 24.4 | AH72: 0 | AJ72: 3.375 | AK72: 1.6 | AL72: 3.06 | AM72: 1.05 | AO72: 2015-03-13 | AP72: 3 | AQ72: 4 | AR72: -14.6 | AS72: 0 | AU72: 1.6 | AV72: 2.75 | AW72: 4.2 | AX72: 2.27 | AZ72: 2015-03-13 | BA72: 0 | BB72: 100 | BF72: 8.4 | BG72: 89.79 | BK72: 2015-03-13 | BL72: 13.7 | BM72: 7.8 | BN72: 2 | BO72: 1 | BQ72: 16.35 | BR72: 8.63 | BS72: 1.15 | BT72: 1 | BV72: 2015-03-13 | BW72: 29.7 | BX72: 44.5 | BY72: 65.8 | BZ72: 37.2 | CA72: 12.5 | CC72: 13.85 | CD72: 33.79 | CE72: 66.86 | CF72: 34.6 | CG72: 14.73 | CI72: 2015-03-13 | CJ72: 0 | CK72: 0 | CL72: 0 | CM72: 0 | CO72: 1.05 | CP72: 2.27 | CQ72: 0.8344597196 | CR72: 2.331293486
A73: 2015-03-15 | B73: 14 | C73: 15 | D73: 10 | E73: 39 | H73: 2015-03-15 | I73: 11.7 | J73: 0 | K73: 0 | N73: 14.73 | O73: 6.665 | P73: 8.4 | S73: 2015-03-15 | T73: 11.7 | U73: 45.9 | Y73: 14.73 | Z73: 57.765 | AA73: 53.86842105 | AD73: 2015-03-15 | AE73: 0 | AF73: 0 | AH73: 0 | AJ73: 3.195 | AK73: 1.45 | AL73: 5.178947368 | AM73: 1.26 | AO73: 2015-03-15 | AP73: 0 | AQ73: 0 | AR73: -26.5 | AS73: 0 | AU73: 1.45 | AV73: 2.6 | AW73: 4.715 | AX73: 2.425 | AZ73: 2015-03-15 | BA73: 0 | BB73: 100 | BF73: 8.4 | BG73: 90.665 | BK73: 2015-03-15 | BL73: 6.4 | BM73: 1.9 | BN73: 0 | BO73: 1 | BQ73: 16.145 | BR73: 8.485 | BS73: 1.1 | BT73: 1.05 | BV73: 2015-03-15 | BW73: 0 | BX73: 14 | BY73: 33.1 | BZ73: 9.5 | CA73: 11.7 | CC73: 13.115 | CD73: 33.585 | CE73: 66.365 | CF73: 34.33 | CG73: 14.88 | CI73: 2015-03-15 | CJ73: 0 | CK73: 0 | CL73: 0 | CM73: 0 | CO73: 1.05 | CP73: 2.27 | CQ73: 0.8344597196 | CR73: 2.331293486
A74: 2015-03-19 | B74: 15 | C74: 16 | D74: 10 | E74: 41 | H74: 2015-03-19 | I74: 14.1 | J74: 50 | K74: 33.1 | N74: 14.88 | O74: 9.165 | P74: 9.19 | S74: 2015-03-19 | T74: 14.1 | U74: 43.8 | V74: 54.4 | Y74: 14.88 | Z74: 57.465 | AA74: 55.03157895 | AD74: 2015-03-19 | AE74: 4.7 | AF74: 2 | AG74: -8.2 | AH74: 4.2 | AJ74: 3.305 | AK74: 1.5 | AL74: 5.605263158 | AM74: 1.26 | AO74: 2015-03-19 | AP74: 2 | AQ74: 3 | AR74: -9.9 | AS74: 8.5 | AU74: 1.5 | AV74: 2.7 | AW74: 4.525 | AX74: 2.425 | AZ74: 2015-03-19 | BA74: 33.1 | BB74: 100 | BF74: 9.19 | BG74: 92.275 | BK74: 2015-03-19 | BL74: 10.7 | BM74: 6 | BN74: 1 | BO74: 1 | BQ74: 16.055 | BR74: 8.495 | BS74: 1.1 | BT74: 0.95 | BV74: 2015-03-19 | BW74: 19.8 | BX74: 32.8 | BY74: 45.4 | BZ74: 25.7 | CA74: 14.1 | CC74: 13.435 | CD74: 33.355 | CE74: 65.26 | CF74: 33.535 | CG74: 14.75 | CI74: 2015-03-19 | CJ74: 4.2 | CK74: 8.5 | CL74: 4.255319149 | CM74: 0 | CO74: 1.26 | CP74: 2.425 | CQ74: 0.7769554068 | CR74: 2.331293486
A75: 2015-03-21 | B75: 15 | C75: 16 | D75: 10 | E75: 41 | H75: 2015-03-21 | I75: 12.9 | J75: 0 | K75: 0 | N75: 14.75 | O75: 9.165 | P75: 9.19 | S75: 2015-03-21 | T75: 12.9 | U75: 35 | V75: 36.2 | Y75: 14.75 | Z75: 55.785 | AA75: 53.38947368 | AD75: 2015-03-21 | AE75: 1.6 | AF75: 1 | AG75: -17.7 | AH75: 0 | AJ75: 3.18 | AK75: 1.5 | AL75: 4.721052632 | AM75: 1.475 | AO75: 2015-03-21 | AP75: 1 | AQ75: 1 | AR75: -18.5 | AS75: 0 | AU75: 1.5 | AV75: 2.6 | AW75: 3.88 | AX75: 2.855 | AZ75: 2015-03-21 | BA75: 0 | BB75: 100 | BF75: 9.19 | BG75: 92.275 | BK75: 2015-03-21 | BL75: 6.2 | BM75: 2.8 | BN75: 1 | BO75: 1 | BQ75: 15.375 | BR75: 8.26 | BS75: 1.05 | BT75: 1 | BV75: 2015-03-21 | BW75: 7.3 | BX75: 20.1 | BY75: 28.7 | BZ75: 13.2 | CA75: 12.9 | CC75: 13 | CD75: 32.095 | CE75: 62.86 | CF75: 34.4 | CG75: 14.635 | CI75: 2015-03-21 | CJ75: 0 | CK75: 0 | CL75: 0 | CM75: 0 | CO75: 1.26 | CP75: 2.425 | CQ75: 0.7769554068 | CR75: 2.331293486
A76: 2015-03-23 | B76: 16 | C76: 16 | D76: 11 | E76: 43 | H76: 2015-03-23 | I76: 13.9 | J76: 20 | K76: 26.1 | N76: 14.635 | O76: 10.165 | P76: 10.495 | S76: 2015-03-23 | T76: 13.9 | U76: 60.5 | V76: 34.5 | Y76: 14.635 | Z76: 56.825 | AA76: 52.44736842 | AD76: 2015-03-23 | AE76: 2.6 | AF76: 1 | AG76: -30.2 | AH76: 4.3 | AJ76: 3.21 | AK76: 1.55 | AL76: 3.189473684 | AM76: 1.13 | AO76: 2015-03-23 | AP76: 1 | AQ76: 3 | AR76: -17.9 | AS76: 8.6 | AU76: 1.55 | AV76: 2.7 | AW76: 3.725 | AX76: 2.51 | AZ76: 2015-03-23 | BA76: 26.1 | BB76: 75.7 | BF76: 10.495 | BG76: 91.06 | BK76: 2015-03-23 | BL76: 19.2 | BM76: 7.7 | BN76: 1 | BO76: 3 | BQ76: 15.805 | BR76: 8.435 | BS76: 1.1 | BT76: 1.05 | BV76: 2015-03-23 | BW76: 11.2 | BX76: 25.8 | BY76: 82.4 | BZ76: 32.9 | CA76: 13.9 | CC76: 13.19 | CD76: 32.705 | CE76: 65.01 | CF76: 33.93 | CG76: 14.305 | CI76: 2015-03-23 | CJ76: 4.3 | CK76: 8.6 | CL76: 0 | CM76: 25.89928058 | CO76: 1.475 | CP76: 2.855 | CQ76: 0.7769554068 | CR76: 3.626257515
A77: 2015-03-25 | B77: 16 | C77: 16 | D77: 11 | E77: 43 | H77: 2015-03-25 | I77: 10.8 | J77: 0 | K77: 13.5 | N77: 14.305 | O77: 7.665 | P77: 10.485 | S77: 2015-03-25 | T77: 10.8 | U77: 68.2 | V77: 71.9 | Y77: 14.305 | Z77: 58.005 | AA77: 54.15263158 | AD77: 2015-03-25 | AE77: 2.3 | AF77: 2 | AG77: 71.9 | AH77: 0 | AJ77: 3.105 | AK77: 1.55 | AL77: 7.668421053 | AM77: 1.13 | AO77: 2015-03-25 | AP77: 2 | AQ77: 2 | AR77: 23.9 | AS77: 0 | AU77: 1.55 | AV77: 2.65 | AW77: 5.845 | AX77: 2.51 | AZ77: 2015-03-25 | BA77: 13.5 | BB77: 79.3 | BF77: 10.485 | BG77: 90.025 | BK77: 2015-03-25 | BL77: 14.1 | BM77: 7.4 | BN77: 1 | BO77: 1 | BQ77: 15.535 | BR77: 8.075 | BS77: 1.1 | BT77: 1.05 | BV77: 2015-03-25 | BW77: 12.8 | BX77: 39.7 | BY77: 78.1 | BZ77: 41 | CA77: 10.8 | CC77: 13.08 | CD77: 32.875 | CE77: 65.55 | CF77: 33.14 | CG77: 14.43 | CI77: 2015-03-25 | CJ77: 0 | CK77: 0 | CL77: 0 | CM77: 0 | CO77: 1.13 | CP77: 2.51 | CQ77: 0.7769554068 | CR77: 3.626257515
A78: 2015-03-27 | B78: 16 | C78: 16 | D78: 11 | E78: 43 | H78: 2015-03-27 | I78: 13.9 | J78: 0 | K78: 0 | N78: 14.43 | O78: 7.665 | P78: 10.485 | S78: 2015-03-27 | T78: 13.9 | U78: 58.6 | V78: 53 | Y78: 14.43 | Z78: 57.93 | AA78: 52.47894737 | AD78: 2015-03-27 | AE78: 6.9 | AF78: 2 | AG78: 3.2 | AH78: 0 | AJ78: 3.2 | AK78: 1.45 | AL78: 6.1 | AM78: 1.32 | AO78: 2015-03-27 | AP78: 2 | AQ78: 4 | AR78: 9 | AS78: 0 | AU78: 1.45 | AV78: 2.6 | AW78: 5.4 | AX78: 2.7 | AZ78: 2015-03-27 | BA78: 0 | BB78: 76.5 | BF78: 10.485 | BG78: 88.85 | BK78: 2015-03-27 | BL78: 16.6 | BM78: 3.8 | BN78: 2 | BO78: 2 | BQ78: 15.51 | BR78: 7.955 | BS78: 1 | BT78: 1 | BV78: 2015-03-27 | BW78: 29.6 | BX78: 63.3 | BY78: 71.4 | BZ78: 16.6 | CA78: 13.9 | CC78: 13.255 | CD78: 34.25 | CE78: 64.645 | CF78: 34.495 | CG78: 14.285 | CI78: 2015-03-27 | CJ78: 0 | CK78: 0 | CL78: 0 | CM78: 0 | CO78: 1.13 | CP78: 2.51 | CQ78: 0.7769554068 | CR78: 3.626257515
A79: 2015-03-28 | B79: 17 | C79: 16 | D79: 11 | E79: 44 | H79: 2015-03-28 | I79: 15.7 | J79: 25 | K79: 17 | N79: 14.285 | O79: 8.915 | P79: 11.335 | S79: 2015-03-28 | T79: 15.7 | U79: 82 | V79: 100 | Y79: 14.285 | Z79: 59.465 | AA79: 57.74210526 | AD79: 2015-03-28 | AE79: 6.9 | AF79: 3 | AG79: 39.8 | AH79: 3.8 | AJ79: 3.545 | AK79: 1.6 | AL79: 9.368421053 | AM79: 0.815 | AO79: 2015-03-28 | AP79: 3 | AQ79: 5 | AR79: 51.7 | AS79: 3.8 | AU79: 1.6 | AV79: 2.8 | AW79: 8.375 | AX79: 2.4 | AZ79: 2015-03-28 | BA79: 17 | BB79: 100 | BF79: 11.335 | BG79: 89.645 | BK79: 2015-03-28 | BL79: 21.8 | BM79: 11.8 | BN79: 2 | BO79: 0 | BQ79: 15.985 | BR79: 8.27 | BS79: 1.1 | BT79: 1.15 | BV79: 2015-03-28 | BW79: 26.2 | BX79: 54.3 | BY79: 83 | BZ79: 44.8 | CA79: 15.7 | CC79: 14.565 | CD79: 36.495 | CE79: 66.815 | CF79: 34.52 | CG79: 14.43 | CI79: 2015-03-28 | CJ79: 3.8 | CK79: 3.8 | CL79: 0 | CM79: 0 | CO79: 1.32 | CP79: 2.7 | CQ79: 0.7769554068 | CR79: 3.626257515
A80: 2015-03-30 | B80: 17 | C80: 17 | D80: 11 | E80: 45 | H80: 2015-03-30 | I80: 14.8 | J80: 0 | K80: 9.8 | N80: 14.43 | O80: 6.415 | P80: 10.585 | S80: 2015-03-30 | T80: 14.8 | U80: 73.5 | V80: 100 | Y80: 14.43 | Z80: 60.425 | AA80: 59.32631579 | AD80: 2015-03-30 | AE80: 4.2 | AF80: 0 | AG80: 27.5 | AH80: 0 | AJ80: 3.645 | AK80: 1.5 | AL80: 9.889473684 | AM80: 1.255 | AO80: 2015-03-30 | AP80: 0 | AQ80: 3 | AR80: 3.6 | AS80: 4.1 | AU80: 1.5 | AV80: 2.85 | AW80: 7.005 | AX80: 2.89 | AZ80: 2015-03-30 | BA80: 9.8 | BB80: 83.8 | BF80: 10.585 | BG80: 88.835 | BK80: 2015-03-30 | BL80: 24.1 | BM80: 10.2 | BN80: 1 | BO80: 3 | BQ80: 16.61 | BR80: 8.375 | BS80: 1.15 | BT80: 1.1 | BV80: 2015-03-30 | BW80: 17.3 | BX80: 56.6 | BY80: 97.9 | BZ80: 41.3 | CA80: 14.8 | CC80: 14.865 | CD80: 38.5 | CE80: 68.785 | CF80: 34.185 | CG80: 14.24 | CI80: 2015-03-30 | CJ80: 0 | CK80: 4.1 | CL80: 4.054054054 | CM80: 0 | CO80: 0.815 | CP80: 2.4 | CQ80: 0.9796581095 | CR80: 3.626257515
A81: 2015-04-03 | B81: 19 | C81: 18 | D81: 11 | E81: 48 | H81: 2015-04-03 | I81: 13.7 | J81: 100 | K81: 39.5 | N81: 14.24 | O81: 11.415 | P81: 12.13 | S81: 2015-04-03 | T81: 13.7 | U81: 63.8 | V81: 33.2 | Y81: 14.24 | Z81: 60.66 | AA81: 57.62105263 | AD81: 2015-04-03 | AE81: 2.5 | AF81: 2 | AG81: -19.3 | AH81: 8.8 | AJ81: 3.32 | AK81: 1.45 | AL81: 7.568421053 | AM81: 1.055 | AO81: 2015-04-03 | AP81: 2 | AQ81: 4 | AR81: 17.4 | AS81: 13.2 | AU81: 1.45 | AV81: 2.7 | AW81: 6.975 | AX81: 2.495 | AZ81: 2015-04-03 | BA81: 39.5 | BB81: 74.9 | BF81: 12.13 | BG81: 88.19 | BK81: 2015-04-03 | BL81: 14.2 | BM81: 7.6 | BN81: 2 | BO81: 0 | BQ81: 16.11 | BR81: 8.17 | BS81: 1.1 | BT81: 1.05 | BV81: 2015-04-03 | BW81: 10.8 | BX81: 49 | BY81: 62.4 | BZ81: 33.3 | CA81: 13.7 | CC81: 13.87 | CD81: 37.975 | CE81: 67.76 | CF81: 31.91 | CG81: 14.275 | CI81: 2015-04-03 | CJ81: 8.8 | CK81: 13.2 | CL81: 4.379562044 | CM81: 0 | CO81: 1.255 | CP81: 2.89 | CQ81: 1.02720764 | CR81: 3.626257515
A82: 2015-04-04 | B82: 19 | C82: 18 | D82: 11 | E82: 48 | H82: 2015-04-04 | I82: 15.8 | J82: 0 | N82: 14.275 | O82: 9.75 | P82: 11.85263158 | S82: 2015-04-04 | T82: 15.8 | U82: 24.1 | V82: 36.1 | Y82: 14.275 | Z82: 59.175 | AA82: 57.26842105 | AD82: 2015-04-04 | AE82: 1.2 | AF82: 0 | AG82: -39 | AH82: 0 | AJ82: 3.23 | AK82: 1.35 | AL82: 5.452631579 | AM82: 1.375 | AO82: 2015-04-04 | AP82: 0 | AQ82: 0 | AR82: -43.2 | AS82: 0 | AU82: 1.35 | AV82: 2.55 | AW82: 4.885 | AX82: 2.625 | AZ82: 2015-04-04 | BB82: 100 | BF82: 11.85263158 | BG82: 88.835 | BK82: 2015-04-04 | BL82: 7.2 | BM82: 0 | BN82: 0 | BO82: 0 | BQ82: 15.505 | BR82: 7.595 | BS82: 1.05 | BT82: 1.05 | BV82: 2015-04-04 | BW82: 4.4 | BX82: 9.7 | BY82: 27.3 | BZ82: 0 | CA82: 15.8 | CC82: 13.5 | CD82: 36.815 | CE82: 65.305 | CF82: 32.06 | CG82: 13.945 | CI82: 2015-04-04 | CJ82: 0 | CK82: 0 | CL82: 0 | CM82: 0 | CO82: 1.055 | CP82: 2.495 | CQ82: 1.02720764 | CR82: 2.434204535
A83: 2015-04-06 | B83: 20 | C83: 18 | D83: 11 | E83: 49 | H83: 2015-04-06 | I83: 9.3 | J83: 50 | K83: 19.3 | N83: 13.945 | O83: 12.25 | P83: 12.21578947 | S83: 2015-04-06 | T83: 9.3 | U83: 75.5 | V83: 100 | Y83: 13.945 | Z83: 60.25 | AA83: 57.26842105 | AD83: 2015-04-06 | AE83: 2.2 | AF83: 1 | AG83: 42.9 | AH83: 6.4 | AJ83: 3.235 | AK83: 1.35 | AL83: 3.063157895 | AM83: 1.375 | AO83: 2015-04-06 | AP83: 1 | AQ83: 2 | AR83: 20.6 | AS83: 6.4 | AU83: 1.35 | AV83: 2.6 | AW83: 4.5 | AX83: 2.835 | AZ83: 2015-04-06 | BA83: 19.3 | BB83: 100 | BF83: 12.21578947 | BG83: 89.495 | BK83: 2015-04-06 | BL83: 8.1 | BM83: 5.2 | BN83: 1 | BO83: 0 | BQ83: 15.255 | BR83: 7.455 | BS83: 1.05 | BT83: 1.05 | BV83: 2015-04-06 | BW83: 14 | BX83: 39.5 | BY83: 52.1 | BZ83: 33.3 | CA83: 9.3 | CC83: 13.81 | CD83: 37.6 | CE83: 65.445 | CF83: 32.475 | CG83: 13.935 | CI83: 2015-04-06 | CJ83: 6.4 | CK83: 6.4 | CL83: 0 | CM83: 0 | CO83: 1.375 | CP83: 2.625 | CQ83: 0.838528395 | CR83: 2.434204535
A84: 2015-04-08 | B84: 20 | C84: 19 | D84: 12 | E84: 51 | H84: 2015-04-08 | I84: 14.5 | J84: 0 | K84: 19.5 | N84: 13.935 | O84: 12.25 | P84: 11.98947368 | S84: 2015-04-08 | T84: 14.5 | U84: 68.5 | V84: 53.7 | Y84: 13.935 | Z84: 60.87 | AA84: 60.09473684 | AD84: 2015-04-08 | AE84: 2.2 | AF84: 0 | AG84: -37.9 | AH84: 0 | AJ84: 3.345 | AK84: 1.35 | AL84: 3.831578947 | AM84: 1.535 | AO84: 2015-04-08 | AP84: 0 | AQ84: 2 | AR84: -14.1 | AS84: 8.3 | AU84: 1.35 | AV84: 2.55 | AW84: 3.985 | AX84: 3.15 | AZ84: 2015-04-08 | BA84: 19.5 | BB84: 100 | BF84: 11.98947368 | BG84: 89.495 | BK84: 2015-04-08 | BL84: 17.7 | BM84: 10.3 | BN84: 1 | BO84: 2 | BQ84: 15.36 | BR84: 7.55 | BS84: 1 | BT84: 1 | BV84: 2015-04-08 | BW84: 9 | BX84: 26.3 | BY84: 73.5 | BZ84: 42.6 | CA84: 14.5 | CC84: 14.26 | CD84: 37.34 | CE84: 65.93 | CF84: 32.34 | CG84: 14.145 | CI84: 2015-04-08 | CJ84: 0 | CK84: 8.3 | CL84: 4.137931034 | CM84: 24.82758621 | CO84: 1.375 | CP84: 2.835 | CQ84: 0.8413433141 | CR84: 3.675583845
A85: 2015-04-11 | B85: 21 | C85: 19 | D85: 13 | E85: 53 | H85: 2015-04-11 | I85: 18.9 | J85: 100 | K85: 19.4 | N85: 14.145 | O85: 17.25 | P85: 12.4 | S85: 2015-04-11 | T85: 18.9 | U85: 53 | V85: 43.2 | Y85: 14.145 | Z85: 60.515 | AA85: 59.40526316 | AD85: 2015-04-11 | AE85: 4.9 | AF85: 0 | AG85: 2.3 | AH85: 3.2 | AJ85: 3.405 | AK85: 1.35 | AL85: 5.026315789 | AM85: 1.535 | AO85: 2015-04-11 | AP85: 0 | AQ85: 2 | AR85: 3.9 | AS85: 6.3 | AU85: 1.35 | AV85: 2.6 | AW85: 3.63 | AX85: 3.15 | AZ85: 2015-04-11 | BA85: 19.4 | BB85: 100 | BF85: 12.4 | BG85: 90.52 | BK85: 2015-04-11 | BL85: 20.1 | BM85: 10.3 | BN85: 2 | BO85: 1 | BQ85: 15.63 | BR85: 7.635 | BS85: 1.1 | BT85: 1.05 | BV85: 2015-04-11 | BW85: 15.5 | BX85: 33 | BY85: 63.7 | BZ85: 32.7 | CA85: 18.9 | CC85: 14.29 | CD85: 37.3 | CE85: 66.105 | CF85: 30.44 | CG85: 14.03 | CI85: 2015-04-11 | CJ85: 3.2 | CK85: 6.3 | CL85: 0 | CM85: 19.04761905 | CO85: 1.535 | CP85: 3.15 | CQ85: 0.8413433141 | CR85: 4.627964798
A86: 2015-10-08 | B86: 21 | C86: 19 | D86: 13 | E86: 53 | H86: 2015-10-08 | I86: 14.3 | J86: 0 | K86: 0 | N86: 14.03 | O86: 17.25 | P86: 12.4 | S86: 2015-10-08 | T86: 14.3 | U86: 46.6 | V86: 80.6 | Y86: 14.03 | Z86: 59.585 | AA86: 59.51052632 | AD86: 2015-10-08 | AE86: 3.3 | AF86: 1 | AG86: 24.5 | AH86: 0 | AJ86: 3.385 | AK86: 1.35 | AL86: 4.810526316 | AM86: 1.535 | AO86: 2015-10-08 | AP86: 1 | AQ86: 2 | AR86: -4.2 | AS86: 0 | AU86: 1.35 | AV86: 2.65 | AW86: 2.82 | AX86: 3.35 | AZ86: 2015-10-08 | BA86: 0 | BB86: 100 | BF86: 12.4 | BG86: 92.17 | BK86: 2015-10-08 | BL86: 12.8 | BM86: 3.3 | BN86: 1 | BO86: 2 | BQ86: 15.025 | BR86: 7.08 | BS86: 1.1 | BT86: 1.05 | BV86: 2015-10-08 | BW86: 14.1 | BX86: 34.3 | BY86: 53.7 | BZ86: 14 | CA86: 14.3 | CC86: 14.33 | CD86: 37.405 | CE86: 64.28 | CF86: 30.315 | CG86: 14.13 | CI86: 2015-10-08 | CJ86: 0 | CK86: 0 | CL86: 0 | CM86: 0 | CO86: 1.535 | CP86: 3.15 | CQ86: 0.8413433141 | CR86: 4.627964798
A87: 2015-10-10 | B87: 21 | C87: 19 | D87: 14 | E87: 54 | H87: 2015-10-10 | I87: 15.2 | J87: 0 | K87: 9.6 | N87: 14.13 | O87: 17.25 | P87: 12.90526316 | S87: 2015-10-10 | T87: 15.2 | U87: 60.8 | V87: 36 | Y87: 14.13 | Z87: =AVERAGE(U68:U87) -> 59.695 | AA87: =AVERAGE(V68:V87) -> 58.03157895 | AB87: =AVERAGE(W69:W88) ->  | AD87: 2015-10-10 | AE87: 2.2 | AF87: 1 | AG87: -3.5 | AH87: 0 | AJ87: 3.31 | AK87: =AVERAGE(AF68:AF87) -> 1.3 | AL87: =AVERAGE(AG68:AG87) -> 3.494736842 | AM87: =AVERAGE(AH69:AH88) -> 1.74 | AO87: 2015-10-10 | AP87: 1 | AQ87: 2 | AR87: 5.5 | AS87: 4 | AU87: 1.3 | AV87: =AVERAGE(AQ68:AQ87) -> 2.55 | AW87: =AVERAGE(AR68:AR87) -> 1.95 | AX87: =AVERAGE(AS69:AS88) -> 3.555 | AZ87: 2015-10-10 | BA87: 9.6 | BB87: 56.3 | BF87: 12.90526316 | BG87: =AVERAGE(BB68:BB87) -> 90.685 | BH87: =AVERAGE(BC68:BC87) ->  | BI87: =AVERAGE(BD69:BD88) ->  | BK87: 2015-10-10 | BL87: 20.9 | BM87: 10.4 | BN87: 0 | BO87: 0 | BQ87: 15 | BR87: =AVERAGE(BM68:BM87) -> 7.12 | BS87: =AVERAGE(BN68:BN87) -> 1 | BT87: =AVERAGE(BO69:BO88) -> 1 | BV87: 2015-10-10 | BW87: 8.7 | BX87: 40.7 | BY87: 82.7 | BZ87: 41.1 | CA87: 15.2 | CC87: 13.925 | CD87: =AVERAGE(BX68:BX87) -> 36.77 | CE87: =AVERAGE(BY68:BY87) -> 63.535 | CF87: =AVERAGE(BZ69:BZ88) -> 32.65 | CG87: 14.095 | CI87: 2015-10-10 | CJ87: 0 | CK87: 4 | CL87: 0 | CM87: 23.68421053 | CO87: 1.535 | CP87: =AVERAGE(CK68:CK87) -> 3.35 | CQ87: =AVERAGE(CL68:CL87) -> 0.8413433141 | CR87: 5.812175324
A88: 2015-10-13 | B88: 22 | C88: 19 | D88: 14 | E88: 55 | H88: 2015-10-13 | I88: 14.5 | J88: 33.3 | K88: 6.1 | N88: =AVERAGE(I69:I88) -> 14.095 | O88: =AVERAGE(J69:J88) -> 18.915 | P88: =AVERAGE(K69:K88) -> 12.22631579 | Q88: =AVERAGE(L70:L89) ->  | S88: 2015-10-13 | T88: 14.5 | U88: 68.6 | V88: 78.3 | Y88: =AVERAGE(T69:T88) -> 14.095 | Z88: 58.395 | AA88: 59.38947368 | AD88: 2015-10-13 | AE88: 6.8 | AF88: 2 | AG88: 13.8 | AH88: 4.1 | AJ88: =AVERAGE(AE69:AE88) -> 3.595 | AK88: 1.35 | AL88: 4.284210526 | AM88: 1.74 | AO88: 2015-10-13 | AP88: 2 | AQ88: 3 | AR88: 6.3 | AS88: 4.1 | AU88: =AVERAGE(AP69:AP88) -> 1.35 | AV88: 2.65 | AW88: 0.915 | AX88: 3.785 | AZ88: 2015-10-13 | BA88: 6.1 | BB88: 100 | BF88: =AVERAGE(BA69:BA88) -> 12.22631579 | BG88: 90.685 | BK88: 2015-10-13 | BL88: 26.5 | BM88: 16.3 | BN88: 0 | BO88: 1 | BQ88: =AVERAGE(BL69:BL88) -> 15.465 | BR88: 7.67 | BS88: 1 | BT88: 1 | BV88: 2015-10-13 | BW88: 28.3 | BX88: 51.8 | BY88: 109.7 | BZ88: 67.6 | CA88: 14.5 | CC88: =AVERAGE(BW69:BW88) -> 15.12 | CD88: 38.05 | CE88: 65.615 | CF88: 33.03 | CG88: 13.815 | CI88: 2015-10-13 | CJ88: 4.1 | CK88: 4.1 | CL88: 0 | CM88: 0 | CO88: =AVERAGE(CJ69:CJ88) -> 1.74 | CP88: 3.555 | CQ88: 0.8413433141 | CR88: 5.812175324
A89: 2015-10-15 | B89: 22 | C89: 19 | D89: 15 | E89: 56 | H89: 2015-10-15 | I89: 12.9 | J89: 0 | K89: 12 | N89: 13.815 | O89: 18.915 | P89: 12.30526316 | S89: 2015-10-15 | T89: 12.9 | U89: 54.7 | V89: 50 | Y89: 13.815 | Z89: 58.41 | AA89: 59.64736842 | AD89: 2015-10-15 | AE89: 1 | AF89: 0 | AG89: 32.7 | AH89: 0 | AJ89: 3.495 | AK89: 1.3 | AL89: 5.489473684 | AM89: 1.74 | AO89: 2015-10-15 | AP89: 0 | AQ89: 0 | AR89: 9.2 | AS89: 4.6 | AU89: 1.3 | AV89: 2.45 | AW89: 1.095 | AX89: 3.97 | AZ89: 2015-10-15 | BA89: 12 | BB89: 80.5 | BF89: 12.30526316 | BG89: 90.415 | BK89: 2015-10-15 | BL89: 8.4 | BM89: 8.4 | BN89: 0 | BO89: 0 | BQ89: 15.14 | BR89: 7.61 | BS89: 1 | BT89: 1 | BV89: 2015-10-15 | BW89: 4.6 | BX89: 9.3 | BY89: 38.7 | BZ89: 38.7 | CA89: 12.9 | CC89: 14.87 | CD89: 36.81 | CE89: 65.125 | CF89: 32.725 | CG89: 14.065 | CI89: 2015-10-15 | CJ89: 0 | CK89: 4.6 | CL89: 0 | CM89: 27.90697674 | CO89: 1.74 | CP89: 3.785 | CQ89: 0.8413433141 | CR89: 7.207524161
A90: 2015-10-17 | B90: 22 | C90: 19 | D90: 16 | E90: 57 | H90: 2015-10-17 | I90: 16.1 | J90: 0 | K90: 16.1 | N90: 14.065 | O90: 18.915 | P90: 13.15263158 | S90: 2015-10-17 | T90: 16.1 | U90: 70.4 | V90: 62.2 | Y90: 14.065 | Z90: 58.755 | AA90: 60.76315789 | AD90: 2015-10-17 | AE90: 3.3 | AF90: 1 | AG90: 20 | AH90: 0 | AJ90: 3.57 | AK90: 1.3 | AL90: 7.789473684 | AM90: 1.945 | AO90: 2015-10-17 | AP90: 1 | AQ90: 3 | AR90: 29.3 | AS90: 3.7 | AU90: 1.3 | AV90: 2.5 | AW90: 1.685 | AX90: 4.185 | AZ90: 2015-10-17 | BA90: 16.1 | BB90: 66.2 | BF90: 13.15263158 | BG90: 88.725 | BK90: 2015-10-17 | BL90: 21.5 | BM90: 12.5 | BN90: 0 | BO90: 1 | BQ90: 15.47 | BR90: 7.745 | BS90: 1 | BT90: 1.1 | BV90: 2015-10-17 | BW90: 12.3 | BX90: 37 | BY90: 80.4 | BZ90: 46.5 | CA90: 16.1 | CC90: 14.995 | CD90: 35.895 | CE90: 65.14 | CF90: 32.93 | CG90: 14.015 | CI90: 2015-10-17 | CJ90: 0 | CK90: 3.7 | CL90: 0 | CM90: 22.36024845 | CO90: 1.74 | CP90: 3.97 | CQ90: 0.8413433141 | CR90: 8.325536584
A91: 2015-10-20 | B91: 23 | C91: 20 | D91: 16 | E91: 59 | H91: 2015-10-20 | I91: 14.8 | J91: 33.3 | K91: 17.4 | N91: 14.015 | O91: 20.58 | P91: 13.6 | S91: 2015-10-20 | T91: 14.8 | U91: 75.5 | V91: 81.2 | Y91: 14.015 | Z91: 59.375 | AA91: 62.27894737 | AD91: 2015-10-20 | AE91: 8.2 | AF91: 2 | AG91: 43.8 | AH91: 4.1 | AJ91: 3.66 | AK91: 1.2 | AL91: 10.05263158 | AM91: 1.945 | AO91: 2015-10-20 | AP91: 2 | AQ91: 2 | AR91: 8.2 | AS91: 8.1 | AU91: 1.2 | AV91: 2.35 | AW91: 1.985 | AX91: 4.185 | AZ91: 2015-10-20 | BA91: 17.4 | BB91: 71.4 | BF91: 13.6 | BG91: 88.23 | BK91: 2015-10-20 | BL91: 21.1 | BM91: 11.5 | BN91: 0 | BO91: 2 | BQ91: 15.565 | BR91: 7.76 | BS91: 0.9 | BT91: 1.05 | BV91: 2015-10-20 | BW91: 33.3 | BX91: 49.2 | BY91: 85.5 | BZ91: 46.6 | CA91: 14.8 | CC91: 15.445 | CD91: 36.545 | CE91: 65.775 | CF91: 32.855 | CG91: 14.03 | CI91: 2015-10-20 | CJ91: 4.1 | CK91: 8.1 | CL91: 4.054054054 | CM91: 0 | CO91: 1.945 | CP91: 4.185 | CQ91: 1.044046017 | CR91: 7.186296077
A92: 2015-10-22 | B92: 23 | C92: 20 | D92: 16 | E92: 59 | H92: 2015-10-22 | I92: 12.8 | J92: 0 | K92: 0 | N92: 14.03 | O92: 20.58 | P92: 13.6 | S92: 2015-10-22 | T92: 12.8 | U92: 57.1 | V92: 18.2 | Y92: 14.03 | Z92: 59.305 | AA92: 59.08947368 | AD92: 2015-10-22 | AE92: 1 | AF92: 0 | AG92: -32.4 | AH92: 0 | AJ92: 3.4 | AK92: 1.05 | AL92: 7.063157895 | AM92: 2.135 | AO92: 2015-10-22 | AP92: 0 | AQ92: 1 | AR92: -13 | AS92: 0 | AU92: 1.05 | AV92: 2.2 | AW92: 2.065 | AX92: 4.375 | AZ92: 2015-10-22 | BA92: 0 | BB92: 100 | BF92: 13.6 | BG92: 88.23 | BK92: 2015-10-22 | BL92: 15 | BM92: 7.6 | BN92: 1 | BO92: 0 | BQ92: 15.63 | BR92: 7.75 | BS92: 0.85 | BT92: 1.05 | BV92: 2015-10-22 | BW92: 4.7 | BX92: 14.6 | BY92: 70.3 | BZ92: 35.7 | CA92: 12.8 | CC92: 14.195 | CD92: 35.05 | CE92: 66 | CF92: 34.25 | CG92: 14.245 | CI92: 2015-10-22 | CJ92: 0 | CK92: 0 | CL92: 0 | CM92: 0 | CO92: 1.945 | CP92: 4.185 | CQ92: 1.044046017 | CR92: 7.186296077
A93: 2015-10-24 | B93: 24 | C93: 20 | D93: 16 | E93: 60 | H93: 2015-10-24 | I93: 16 | J93: 50 | K93: 10 | N93: 14.245 | O93: 23.08 | P93: 14.12631579 | S93: 2015-10-24 | T93: 16 | U93: 38.8 | V93: 40.6 | Y93: 14.245 | Z93: 58.95 | AA93: 58.165 | AD93: 2015-10-24 | AE93: 3.3 | AF93: 2 | AG93: -10.2 | AH93: 3.8 | AJ93: 3.565 | AK93: 1.15 | AL93: 6.2 | AM93: 1.925 | AO93: 2015-10-24 | AP93: 2 | AQ93: 3 | AR93: -8.7 | AS93: 3.8 | AU93: 1.15 | AV93: 2.35 | AW93: 2.955 | AX93: 4.15 | AZ93: 2015-10-24 | BA93: 10 | BB93: 91.4 | BF93: 14.12631579 | BG93: 87.8 | BK93: 2015-10-24 | BL93: 15.2 | BM93: 10 | BN93: 1 | BO93: 1 | BQ93: 16.07 | BR93: 8.155 | BS93: 0.9 | BT93: 1 | BV93: 2015-10-24 | BW93: 12.2 | BX93: 33.4 | BY93: 57 | BZ93: 37.4 | CA93: 16 | CC93: 14.805 | CD93: 36.02 | CE93: 67.195 | CF93: 34.3 | CG93: 14.29 | CI93: 2015-10-24 | CJ93: 3.8 | CK93: 3.8 | CL93: 0 | CM93: 0 | CO93: 2.135 | CP93: 4.375 | CQ93: 1.044046017 | CR93: 7.186296077
A94: 2015-10-27 | B94: 24 | C94: 20 | D94: 17 | E94: 61 | H94: 2015-10-27 | I94: 15 | J94: 0 | K94: 15 | N94: 14.29 | O94: 20.58 | P94: 13.17368421 | S94: 2015-10-27 | T94: 15 | U94: 41.7 | V94: 82.1 | Y94: 14.29 | Z94: 58.845 | AA94: 59.55 | AD94: 2015-10-27 | AE94: 4.6 | AF94: 2 | AG94: 9.5 | AH94: 0 | AJ94: 3.56 | AK94: 1.15 | AL94: 7.085 | AM94: 1.925 | AO94: 2015-10-27 | AP94: 2 | AQ94: 3 | AR94: -9.3 | AS94: 4 | AU94: 1.15 | AV94: 2.35 | AW94: 2.985 | AX94: 4.355 | AZ94: 2015-10-27 | BA94: 15 | BB94: 80.8 | BF94: 13.17368421 | BG94: 86.84 | BK94: 2015-10-27 | BL94: 10.5 | BM94: 6.6 | BN94: 2 | BO94: 0 | BQ94: 16.06 | BR94: 8.185 | BS94: 0.95 | BT94: 1 | BV94: 2015-10-27 | BW94: 18.4 | BX94: 29.1 | BY94: 42.2 | BZ94: 26.7 | CA94: 15 | CC94: 14.735 | CD94: 35.835 | CE94: 67.035 | CF94: 35.28 | CG94: 14.385 | CI94: 2015-10-27 | CJ94: 0 | CK94: 4 | CL94: 0 | CM94: 24 | CO94: 1.925 | CP94: 4.15 | CQ94: 0.8312800593 | CR94: 8.386296077
A95: 2015-10-29 | B95: 24 | C95: 20 | D95: 18 | E95: 62 | H95: 2015-10-29 | I95: 14.8 | J95: 0 | K95: 12.4 | N95: 14.385 | O95: 20.58 | P95: 13.82631579 | S95: 2015-10-29 | T95: 14.8 | U95: 46.9 | V95: 35.6 | Y95: 14.385 | Z95: 59.44 | AA95: 59.52 | AD95: 2015-10-29 | AE95: 3.6 | AF95: 1 | AG95: 10 | AH95: 0 | AJ95: 3.66 | AK95: 1.15 | AL95: 8.47 | AM95: 1.71 | AO95: 2015-10-29 | AP95: 1 | AQ95: 2 | AR95: 3.7 | AS95: 4.1 | AU95: 1.15 | AV95: 2.4 | AW95: 4.095 | AX95: 3.925 | AZ95: 2015-10-29 | BA95: 12.4 | BB95: 89.8 | BF95: 13.82631579 | BG95: 86.33 | BK95: 2015-10-29 | BL95: 13.9 | BM95: 8.1 | BN95: 1 | BO95: 1 | BQ95: 16.445 | BR95: 8.45 | BS95: 0.95 | BT95: 0.85 | BV95: 2015-10-29 | BW95: 14.5 | BX95: 32.3 | BY95: 56.4 | BZ95: 32.8 | CA95: 14.8 | CC95: 15.095 | CD95: 36.445 | CE95: 68.42 | CF95: 34.535 | CG95: 14.34 | CI95: 2015-10-29 | CJ95: 0 | CK95: 4.1 | CL95: 0 | CM95: 24.32432432 | CO95: 1.925 | CP95: 4.355 | CQ95: 0.8312800593 | CR95: 9.602512294
A96: 2015-10-31 | B96: 24 | C96: 20 | D96: 18 | E96: 62 | H96: 2015-10-31 | I96: 13 | J96: 0 | K96: 25.6 | N96: 14.34 | O96: 19.58 | P96: 13.8 | S96: 2015-10-31 | T96: 13 | U96: 68.9 | V96: 60.1 | Y96: 14.34 | Z96: 59.86 | AA96: 60.8 | AD96: 2015-10-31 | AE96: 3 | AF96: 0 | AG96: 5.2 | AH96: 0 | AJ96: 3.68 | AK96: 1.1 | AL96: 10.24 | AM96: 1.91 | AO96: 2015-10-31 | AP96: 0 | AQ96: 0 | AR96: 11.9 | AS96: 0 | AU96: 1.1 | AV96: 2.25 | AW96: 5.585 | AX96: 4.125 | AZ96: 2015-10-31 | BA96: 25.6 | BB96: 100 | BF96: 13.8 | BG96: 87.545 | BK96: 2015-10-31 | BL96: 10.6 | BM96: 3.9 | BN96: 0 | BO96: 0 | BQ96: 16.015 | BR96: 8.26 | BS96: 0.9 | BT96: 0.85 | BV96: 2015-10-31 | BW96: 14 | BX96: 26.2 | BY96: 49.1 | BZ96: 18 | CA96: 13 | CC96: 15.235 | CD96: 36.465 | CE96: 66.755 | CF96: 35.865 | CG96: 14.555 | CI96: 2015-10-31 | CJ96: 0 | CK96: 0 | CL96: 0 | CM96: 0 | CO96: 1.71 | CP96: 3.925 | CQ96: 0.8312800593 | CR96: 8.307548265
A97: 2015-11-02 | B97: 25 | C97: 20 | D97: 18 | E97: 63 | H97: 2015-11-02 | I97: 15.1 | J97: 16.7 | K97: 5.9 | N97: 14.555 | O97: 20.415 | P97: 13.4 | S97: 2015-11-02 | T97: 15.1 | U97: 64.5 | V97: 51.8 | Y97: 14.555 | Z97: 59.675 | AA97: 59.795 | AD97: 2015-11-02 | AE97: 2.9 | AF97: 2 | AG97: -3.3 | AH97: 4 | AJ97: 3.71 | AK97: 1.1 | AL97: 6.48 | AM97: 1.91 | AO97: 2015-11-02 | AP97: 2 | AQ97: 5 | AR97: 11 | AS97: 4 | AU97: 1.1 | AV97: 2.4 | AW97: 4.94 | AX97: 4.345 | AZ97: 2015-11-02 | BA97: 5.9 | BB97: 87.5 | BF97: 13.4 | BG97: 87.955 | BK97: 2015-11-02 | BL97: 26.5 | BM97: 17 | BN97: 1 | BO97: 1 | BQ97: 16.635 | BR97: 8.74 | BS97: 0.9 | BT97: 0.8 | BV97: 2015-11-02 | BW97: 11.5 | BX97: 49.9 | BY97: 105.4 | BZ97: 67.6 | CA97: 15.1 | CC97: 15.17 | CD97: 36.975 | CE97: 68.12 | CF97: 36.15 | CG97: 14.545 | CI97: 2015-11-02 | CJ97: 4 | CK97: 4 | CL97: 0 | CM97: 0 | CO97: 1.91 | CP97: 4.125 | CQ97: 0.8312800593 | CR97: 8.307548265
A98: 2015-11-03 | B98: 25 | C98: 20 | D98: 19 | E98: 64 | H98: 2015-11-03 | I98: 13.7 | J98: 0 | K98: 19.6 | N98: 14.545 | O98: 20.415 | P98: 14.43157895 | S98: 2015-11-03 | T98: 13.7 | U98: 45.6 | V98: 27.6 | Y98: 14.545 | Z98: 59.025 | AA98: 58.525 | AD98: 2015-11-03 | AE98: 1.1 | AF98: 0 | AG98: -28.6 | AH98: 0 | AJ98: 3.42 | AK98: 1 | AL98: 4.89 | AM98: 1.72 | AO98: 2015-11-03 | AP98: 0 | AQ98: 0 | AR98: 1.5 | AS98: 4.4 | AU98: 1 | AV98: 2.2 | AW98: 4.565 | AX98: 4.155 | AZ98: 2015-11-03 | BA98: 19.6 | BB98: 100 | BF98: 14.43157895 | BG98: 89.13 | BK98: 2015-11-03 | BL98: 13.9 | BM98: 5.1 | BN98: 0 | BO98: 1 | BQ98: 16.5 | BR98: 8.805 | BS98: 0.8 | BT98: 0.9 | BV98: 2015-11-03 | BW98: 4.6 | BX98: 27.7 | BY98: 60.6 | BZ98: 22.3 | CA98: 13.7 | CC98: 13.92 | CD98: 35.195 | CE98: 67.58 | CF98: 35.59 | CG98: 14.475 | CI98: 2015-11-03 | CJ98: 0 | CK98: 4.4 | CL98: 0 | CM98: 26.27737226 | CO98: 1.91 | CP98: 4.345 | CQ98: 0.8312800593 | CR98: 9.621416878
A99: 2015-11-06 | B99: 25 | C99: 20 | D99: 19 | E99: 64 | H99: 2015-11-06 | I99: 14.3 | J99: 0 | K99: 12.5 | N99: 14.475 | O99: 19.165 | P99: 14.19473684 | S99: 2015-11-06 | T99: 14.3 | U99: 65.8 | V99: 38.5 | Y99: 14.475 | Z99: 58.215 | AA99: 55.45 | AD99: 2015-11-06 | AE99: 3.7 | AF99: 3 | AG99: -21.2 | AH99: 0 | AJ99: 3.26 | AK99: 1 | AL99: 1.84 | AM99: 1.72 | AO99: 2015-11-06 | AP99: 3 | AQ99: 6 | AR99: 16.5 | AS99: 0 | AU99: 1 | AV99: 2.25 | AW99: 2.805 | AX99: 3.95 | AZ99: 2015-11-06 | BA99: 12.5 | BB99: 84.7 | BF99: 14.19473684 | BG99: 88.365 | BK99: 2015-11-06 | BL99: 21.8 | BM99: 8 | BN99: 1 | BO99: 2 | BQ99: 16.5 | BR99: 8.615 | BS99: 0.75 | BT99: 0.75 | BV99: 2015-11-06 | BW99: 15.6 | BX99: 61.1 | BY99: 91.8 | BZ99: 33.6 | CA99: 14.3 | CC99: 13.39 | CD99: 35.535 | CE99: 68.02 | CF99: 34.405 | CG99: 14.465 | CI99: 2015-11-06 | CJ99: 0 | CK99: 0 | CL99: 0 | CM99: 0 | CO99: 1.72 | CP99: 4.155 | CQ99: 0.8312800593 | CR99: 9.621416878
A100: 2015-11-08 | B100: 25 | C100: 20 | D100: 19 | E100: 64 | H100: 2015-11-08 | I100: 14.6 | J100: 0 | K100: 0 | N100: 14.465 | O100: 19.165 | P100: 13.67894737 | S100: 2015-11-08 | T100: 14.6 | U100: 47 | V100: 54.9 | Y100: 14.465 | Z100: 56.89 | AA100: 53.195 | AD100: 2015-11-08 | AE100: 1.1 | AF100: 0 | AG100: 2.4 | AH100: 0 | AJ100: 3.105 | AK100: 1 | AL100: 0.585 | AM100: 1.28 | AO100: 2015-11-08 | AP100: 0 | AQ100: 0 | AR100: -7.2 | AS100: 0 | AU100: 1 | AV100: 2.1 | AW100: 2.265 | AX100: 3.29 | AZ100: 2015-11-08 | BA100: 0 | BB100: 100 | BF100: 13.67894737 | BG100: 89.175 | BK100: 2015-11-08 | BL100: 6.8 | BM100: 4.3 | BN100: 0 | BO100: 0 | BQ100: 15.635 | BR100: 8.32 | BS100: 0.7 | BT100: 0.75 | BV100: 2015-11-08 | BW100: 4.6 | BX100: 14 | BY100: 28 | BZ100: 17.6 | CA100: 14.6 | CC100: 12.755 | CD100: 33.405 | CE100: 64.525 | CF100: 34.665 | CG100: 14.515 | CI100: 2015-11-08 | CJ100: 0 | CK100: 0 | CL100: 0 | CM100: 0 | CO100: 1.72 | CP100: 3.95 | CQ100: 0.6285773566 | CR100: 9.621416878
A101: 2015-11-10 | B101: 25 | C101: 20 | D101: 19 | E101: 64 | H101: 2015-11-10 | I101: 14.7 | J101: 0 | K101: 10.6 | N101: 14.515 | O101: 14.165 | P101: 12.15789474 | S101: 2015-11-10 | T101: 14.7 | U101: 63.1 | V101: 39.7 | Y101: 14.515 | Z101: 56.855 | AA101: 53.52 | AD101: 2015-11-10 | AE101: 1.8 | AF101: 1 | AG101: -7.8 | AH101: 0 | AJ101: 3.07 | AK101: 0.95 | AL101: 1.16 | AM101: 1.28 | AO101: 2015-11-10 | AP101: 1 | AQ101: 2 | AR101: 4.6 | AS101: 0 | AU101: 0.95 | AV101: 2 | AW101: 1.625 | AX101: 3.29 | AZ101: 2015-11-10 | BA101: 10.6 | BB101: 100 | BF101: 12.15789474 | BG101: 90.43 | BK101: 2015-11-10 | BL101: 16.4 | BM101: 9.5 | BN101: 1 | BO101: 0 | BQ101: 15.745 | BR101: 8.415 | BS101: 0.65 | BT101: 0.75 | BV101: 2015-11-10 | BW101: 7.4 | BX101: 36 | BY101: 66.6 | BZ101: 38.5 | CA101: 14.7 | CC101: 12.585 | CD101: 32.755 | CE101: 64.735 | CF101: 35.52 | CG101: 14.385 | CI101: 2015-11-10 | CJ101: 0 | CK101: 0 | CL101: 0 | CM101: 0 | CO101: 1.28 | CP101: 3.29 | CQ101: 0.4095992544 | CR101: 9.621416878
A102: 2015-11-12 | B102: 25 | C102: 20 | D102: 19 | E102: 64 | H102: 2015-11-12 | I102: 13.2 | J102: 0 | K102: 0 | N102: 14.385 | O102: 14.165 | P102: 11.55 | S102: 2015-11-12 | T102: 13.2 | U102: 42.2 | V102: 55.5 | Y102: 14.385 | Z102: 57.76 | AA102: 54.49 | AD102: 2015-11-12 | AE102: 2.5 | AF102: 0 | AG102: -10.1 | AH102: 0 | AJ102: 3.135 | AK102: 0.95 | AL102: 2.605 | AM102: 0.96 | AO102: 2015-11-12 | AP102: 0 | AQ102: 0 | AR102: -2.2 | AS102: 0 | AU102: 0.95 | AV102: 2 | AW102: 3.675 | AX102: 3.22 | AZ102: 2015-11-12 | BA102: 0 | BB102: 78.3 | BF102: 11.55 | BG102: 89.345 | BK102: 2015-11-12 | BL102: 9 | BM102: 3.8 | BN102: 0 | BO102: 0 | BQ102: 15.835 | BR102: 8.605 | BS102: 0.65 | BT102: 0.8 | BV102: 2015-11-12 | BW102: 11.5 | BX102: 32.5 | BY102: 40.9 | BZ102: 17.1 | CA102: 13.2 | CC102: 12.94 | CD102: 33.895 | CE102: 65.415 | CF102: 35.835 | CG102: 14.525 | CI102: 2015-11-12 | CJ102: 0 | CK102: 0 | CL102: 0 | CM102: 0 | CO102: 1.28 | CP102: 3.29 | CQ102: 0.4095992544 | CR102: 9.621416878
A103: 2015-11-14 | B103: 25 | C103: 20 | D103: 20 | E103: 65 | H103: 2015-11-14 | I103: 12.1 | J103: 0 | K103: 12.6 | N103: 14.525 | O103: 11.665 | P103: 11.215 | S103: 2015-11-14 | T103: 12.1 | U103: 53.4 | V103: 78.8 | Y103: 14.525 | Z103: 56.655 | AA103: 53.43 | AD103: 2015-11-14 | AE103: 7.2 | AF103: 2 | AG103: 25.4 | AH103: 0 | AJ103: 3.385 | AK103: 1 | AL103: 1.73 | AM103: 0.96 | AO103: 2015-11-14 | AP103: 2 | AQ103: 3 | AR103: 20.2 | AS103: 5 | AU103: 1 | AV103: 2.05 | AW103: 3.655 | AX103: 2.805 | AZ103: 2015-11-14 | BA103: 12.6 | BB103: 100 | BF103: 11.215 | BG103: 89.345 | BK103: 2015-11-14 | BL103: 14.6 | BM103: 7.9 | BN103: 0 | BO103: 1 | BQ103: 16.16 | BR103: 8.74 | BS103: 0.6 | BT103: 0.75 | BV103: 2015-11-14 | BW103: 36 | BX103: 45.2 | BY103: 72.5 | BZ103: 39.6 | CA103: 12.1 | CC103: 14.04 | CD103: 34.18 | CE103: 66.435 | CF103: 34.12 | CG103: 14.565 | CI103: 2015-11-14 | CJ103: 0 | CK103: 5 | CL103: 0 | CM103: 29.75206612 | CO103: 0.96 | CP103: 3.22 | CQ103: 0.4095992544 | CR103: 11.10902018
A104: 2015-11-17 | B104: 25 | C104: 20 | D104: 20 | E104: 65 | H104: 2015-11-17 | I104: 15.3 | J104: 0 | K104: 0 | N104: 14.565 | O104: 11.665 | P104: 10.24 | S104: 2015-11-17 | T104: 15.3 | U104: 43.8 | V104: 0 | Y104: 14.565 | Z104: 55.42 | AA104: 50.745 | AD104: 2015-11-17 | AE104: 0 | AF104: 0 | AG104: -88.6 | AH104: 0 | AJ104: 3.275 | AK104: 1 | AL104: -0.805 | AM104: 0.8 | AO104: 2015-11-17 | AP104: 0 | AQ104: 1 | AR104: -37.8 | AS104: 0 | AU104: 1 | AV104: 2 | AW104: 2.47 | AX104: 2.675 | AZ104: 2015-11-17 | BA104: 0 | BB104: 100 | BF104: 10.24 | BG104: 89.345 | BK104: 2015-11-17 | BL104: 13.1 | BM104: 2.1 | BN104: 1 | BO104: 1 | BQ104: 15.93 | BR104: 8.33 | BS104: 0.6 | BT104: 0.75 | BV104: 2015-11-17 | BW104: 0 | BX104: 12.5 | BY104: 51.3 | BZ104: 8.3 | CA104: 15.3 | CC104: 13.59 | CD104: 33.49 | CE104: 65.325 | CF104: 34.195 | CG104: 14.425 | CI104: 2015-11-17 | CJ104: 0 | CK104: 0 | CL104: 0 | CM104: 0 | CO104: 0.96 | CP104: 2.805 | CQ104: 0.2027027027 | CR104: 9.867640873
A105: 2015-11-19 | B105: 25 | C105: 20 | D105: 21 | E105: 66 | H105: 2015-11-19 | I105: 16.1 | J105: 0 | K105: 10.9 | N105: 14.425 | O105: 6.665 | P105: 9.815 | S105: 2015-11-19 | T105: 16.1 | U105: 52.1 | V105: 58.3 | Y105: 14.425 | Z105: 55.375 | AA105: 51.5 | AD105: 2015-11-19 | AE105: 5.2 | AF105: 2 | AG105: 12.3 | AH105: 0 | AJ105: 3.29 | AK105: 1.1 | AL105: -0.305 | AM105: 1.05 | AO105: 2015-11-19 | AP105: 2 | AQ105: 2 | AR105: -3.5 | AS105: 3.7 | AU105: 1.1 | AV105: 2 | AW105: 2.1 | AX105: 2.925 | AZ105: 2015-11-19 | BA105: 10.9 | BB105: 100 | BF105: 9.815 | BG105: 89.345 | BK105: 2015-11-19 | BL105: 17.8 | BM105: 9.2 | BN105: 1 | BO105: 1 | BQ105: 15.815 | BR105: 8.275 | BS105: 0.55 | BT105: 0.65 | BV105: 2015-11-19 | BW105: 19.3 | BX105: 33.6 | BY105: 66.2 | BZ105: 34.2 | CA105: 16.1 | CC105: 13.78 | CD105: 33.52 | CE105: 65.45 | CF105: 35.275 | CG105: 14.31 | CI105: 2015-11-19 | CJ105: 0 | CK105: 3.7 | CL105: 0 | CM105: 22.36024845 | CO105: 0.8 | CP105: 2.675 | CQ105: 0.2027027027 | CR105: 10.03327234
A106: 2015-11-21 | B106: 26 | C106: 20 | D106: 21 | E106: 67 | H106: 2015-11-21 | I106: 12 | J106: 50 | K106: 14.1 | N106: 14.31 | O106: 9.165 | P106: 10.52 | S106: 2015-11-21 | T106: 12 | U106: 68.4 | V106: 56.5 | Y106: 14.31 | Z106: 56.465 | AA106: 50.295 | AD106: 2015-11-21 | AE106: 2.7 | AF106: 1 | AG106: -2.7 | AH106: 5 | AJ106: 3.26 | AK106: 1.1 | AL106: -1.665 | AM106: 1.265 | AO106: 2015-11-21 | AP106: 1 | AQ106: 2 | AR106: 4 | AS106: 5 | AU106: 1.1 | AV106: 2 | AW106: 2.51 | AX106: 3.15 | AZ106: 2015-11-21 | BA106: 14.1 | BB106: 100 | BF106: 10.52 | BG106: 89.345 | BK106: 2015-11-21 | BL106: 16.3 | BM106: 7.1 | BN106: 0 | BO106: 0 | BQ106: 15.99 | BR106: 8.465 | BS106: 0.5 | BT106: 0.65 | BV106: 2015-11-21 | BW106: 13.5 | BX106: 47.8 | BY106: 81.5 | BZ106: 35.6 | CA106: 12 | CC106: 13.75 | CD106: 34.195 | CE106: 66.84 | CF106: 34.995 | CG106: 14.255 | CI106: 2015-11-21 | CJ106: 5 | CK106: 5 | CL106: 0 | CM106: 0 | CO106: 1.05 | CP106: 2.925 | CQ106: 0.2027027027 | CR106: 10.03327234
A107: 2015-11-24 | B107: 27 | C107: 21 | D107: 21 | E107: 69 | H107: 2015-11-24 | I107: 14.1 | J107: 33.3 | K107: 24 | N107: 14.255 | O107: 10.83 | P107: 11.24 | S107: 2015-11-24 | T107: 14.1 | U107: 51.5 | V107: 72.6 | Y107: 14.255 | Z107: 56 | AA107: 52.125 | AD107: 2015-11-24 | AE107: 2.7 | AF107: 3 | AG107: 46.7 | AH107: 4.3 | AJ107: 3.285 | AK107: 1.2 | AL107: 0.845 | AM107: 1.06 | AO107: 2015-11-24 | AP107: 3 | AQ107: 4 | AR107: 13.3 | AS107: 8.5 | AU107: 1.2 | AV107: 2.1 | AW107: 2.9 | AX107: 2.945 | AZ107: 2015-11-24 | BA107: 24 | BB107: 52.7 | BF107: 11.24 | BG107: 89.165 | BK107: 2015-11-24 | BL107: 10.5 | BM107: 8.3 | BN107: 1 | BO107: 0 | BQ107: 15.47 | BR107: 8.36 | BS107: 0.55 | BT107: 0.6 | BV107: 2015-11-24 | BW107: 11.3 | BX107: 29.7 | BY107: 44.9 | BZ107: 35.5 | CA107: 14.1 | CC107: 13.88 | CD107: 33.645 | CE107: 64.95 | CF107: 32.36 | CG107: 14.175 | CI107: 2015-11-24 | CJ107: 4.3 | CK107: 8.5 | CL107: 4.255319149 | CM107: 0 | CO107: 1.265 | CP107: 3.15 | CQ107: 0.4154686601 | CR107: 8.849061817
A108: 2015-11-27 | B108: 27 | C108: 21 | D108: 21 | E108: 69 | H108: 2015-11-27 | I108: 12.9 | J108: 0 | K108: 0 | N108: 14.175 | O108: 9.165 | P108: 10.935 | S108: 2015-11-27 | T108: 12.9 | U108: 32 | V108: 37.1 | Y108: 14.175 | Z108: 54.17 | AA108: 50.065 | AD108: 2015-11-27 | AE108: 1.9 | AF108: 1 | AG108: -21.7 | AH108: 0 | AJ108: 3.04 | AK108: 1.15 | AL108: -0.93 | AM108: 1.06 | AO108: 2015-11-27 | AP108: 1 | AQ108: 2 | AR108: -30.4 | AS108: 0 | AU108: 1.15 | AV108: 2.05 | AW108: 1.065 | AX108: 2.715 | AZ108: 2015-11-27 | BA108: 0 | BB108: 88.9 | BF108: 10.935 | BG108: 88.61 | BK108: 2015-11-27 | BL108: 6.1 | BM108: 3.2 | BN108: 0 | BO108: 0 | BQ108: 14.45 | BR108: 7.705 | BS108: 0.55 | BT108: 0.65 | BV108: 2015-11-27 | BW108: 8.9 | BX108: 13.3 | BY108: 28.4 | BZ108: 14.9 | CA108: 12.9 | CC108: 12.91 | CD108: 31.72 | CE108: 60.885 | CF108: 32.23 | CG108: 14.365 | CI108: 2015-11-27 | CJ108: 0 | CK108: 0 | CL108: 0 | CM108: 0 | CO108: 1.06 | CP108: 2.945 | CQ108: 0.4154686601 | CR108: 8.849061817
A109: 2015-11-28 | B109: 27 | C109: 21 | D109: 21 | E109: 69 | H109: 2015-11-28 | I109: 16.7 | J109: 0 | K109: 9.9 | N109: 14.365 | O109: 9.165 | P109: 10.83 | S109: 2015-11-28 | T109: 16.7 | U109: 51.2 | V109: 32.8 | Y109: 14.365 | Z109: 53.995 | AA109: 49.205 | AD109: 2015-11-28 | AE109: 3 | AF109: 1 | AG109: -26.7 | AH109: 0 | AJ109: 3.14 | AK109: 1.2 | AL109: -3.9 | AM109: 1.06 | AO109: 2015-11-28 | AP109: 1 | AQ109: 3 | AR109: -22.6 | AS109: 0 | AU109: 1.2 | AV109: 2.2 | AW109: -0.525 | AX109: 2.53 | AZ109: 2015-11-28 | BA109: 9.9 | BB109: 100 | BF109: 10.83 | BG109: 89.585 | BK109: 2015-11-28 | BL109: 15.4 | BM109: 10.1 | BN109: 2 | BO109: 1 | BQ109: 14.8 | BR109: 7.79 | BS109: 0.65 | BT109: 0.7 | BV109: 2015-11-28 | BW109: 10.7 | BX109: 30.9 | BY109: 55.4 | BZ109: 36.1 | CA109: 16.7 | CC109: 13.215 | CD109: 32.8 | CE109: 61.72 | CF109: 31.11 | CG109: 14.22 | CI109: 2015-11-28 | CJ109: 0 | CK109: 0 | CL109: 0 | CM109: 0 | CO109: 1.06 | CP109: 2.715 | CQ109: 0.4154686601 | CR109: 7.45371298
A110: 2015-12-01 | B110: 27 | C110: 21 | D110: 21 | E110: 69 | H110: 2015-12-01 | I110: 13.2 | J110: 0 | K110: 0 | N110: 14.22 | O110: 9.165 | P110: 10.025 | S110: 2015-12-01 | T110: 13.2 | U110: 66.6 | V110: 48.3 | Y110: 14.22 | Z110: 53.805 | AA110: 48.51 | AD110: 2015-12-01 | AE110: 4.7 | AF110: 1 | AG110: 16.8 | AH110: 0 | AJ110: 3.21 | AK110: 1.2 | AL110: -4.06 | AM110: 0.855 | AO110: 2015-12-01 | AP110: 1 | AQ110: 1 | AR110: 17.2 | AS110: 0 | AU110: 1.2 | AV110: 2.1 | AW110: -1.13 | AX110: 2.125 | AZ110: 2015-12-01 | BA110: 0 | BB110: 73.7 | BF110: 10.025 | BG110: 89.96 | BK110: 2015-12-01 | BL110: 16.6 | BM110: 5.3 | BN110: 2 | BO110: 2 | BQ110: 14.555 | BR110: 7.43 | BS110: 0.75 | BT110: 0.6 | BV110: 2015-12-01 | BW110: 21.4 | BX110: 33.6 | BY110: 75.1 | BZ110: 24.1 | CA110: 13.2 | CC110: 13.67 | CD110: 32.63 | CE110: 61.455 | CF110: 31.27 | CG110: 14.135 | CI110: 2015-12-01 | CJ110: 0 | CK110: 0 | CL110: 0 | CM110: 0 | CO110: 1.06 | CP110: 2.53 | CQ110: 0.4154686601 | CR110: 6.335700558
A111: 2015-12-03 | B111: 27 | C111: 21 | D111: 21 | E111: 69 | H111: 2015-12-03 | I111: 13.1 | J111: 0 | K111: 9.2 | N111: 14.135 | O111: 7.5 | P111: 9.615 | S111: 2015-12-03 | T111: 13.1 | U111: 69.7 | V111: 65 | Y111: 14.135 | Z111: 53.515 | AA111: 47.7 | AD111: 2015-12-03 | AE111: 5.3 | AF111: 0 | AG111: 6.7 | AH111: 0 | AJ111: 3.065 | AK111: 1.1 | AL111: -5.915 | AM111: 0.855 | AO111: 2015-12-03 | AP111: 0 | AQ111: 0 | AR111: 4.9 | AS111: 0 | AU111: 1.1 | AV111: 2 | AW111: -1.295 | AX111: 2.125 | AZ111: 2015-12-03 | BA111: 9.2 | BB111: 74.3 | BF111: 9.615 | BG111: 90.105 | BK111: 2015-12-03 | BL111: 14.8 | BM111: 10.9 | BN111: 1 | BO111: 0 | BQ111: 14.24 | BR111: 7.4 | BS111: 0.8 | BT111: 0.65 | BV111: 2015-12-03 | BW111: 24 | BX111: 39.7 | BY111: 67.6 | BZ111: 49.8 | CA111: 13.1 | CC111: 13.205 | CD111: 32.155 | CE111: 60.56 | CF111: 32.485 | CG111: 14.21 | CI111: 2015-12-03 | CJ111: 0 | CK111: 0 | CL111: 0 | CM111: 0 | CO111: 0.855 | CP111: 2.125 | CQ111: 0.2127659574 | CR111: 6.335700558
A112: 2015-12-04 | B112: 27 | C112: 21 | D112: 21 | E112: 69 | H112: 2015-12-04 | I112: 14.3 | J112: 0 | K112: 0 | N112: 14.21 | O112: 7.5 | P112: 9.615 | S112: 2015-12-04 | T112: 14.3 | U112: 70.8 | V112: 64.5 | Y112: 14.21 | Z112: 54.2 | AA112: 50.015 | AD112: 2015-12-04 | AE112: 5.5 | AF112: 4 | AG112: 5 | AH112: 0 | AJ112: 3.29 | AK112: 1.3 | AL112: -4.045 | AM112: 0.865 | AO112: 2015-12-04 | AP112: 4 | AQ112: 4 | AR112: 2.5 | AS112: 0 | AU112: 1.3 | AV112: 2.15 | AW112: -0.52 | AX112: 2.53 | AZ112: 2015-12-04 | BA112: 0 | BB112: 75.5 | BF112: 9.615 | BG112: 88.88 | BK112: 2015-12-04 | BL112: 23.2 | BM112: 14.3 | BN112: 0 | BO112: 1 | BQ112: 14.65 | BR112: 7.735 | BS112: 0.75 | BT112: 0.6 | BV112: 2015-12-04 | BW112: 22.9 | BX112: 66.1 | BY112: 97.6 | BZ112: 60 | CA112: 14.3 | CC112: 14.115 | CD112: 34.73 | CE112: 61.925 | CF112: 31.605 | CG112: 14.17 | CI112: 2015-12-04 | CJ112: 0 | CK112: 0 | CL112: 0 | CM112: 0 | CO112: 0.855 | CP112: 2.125 | CQ112: 0.2127659574 | CR112: 6.335700558
A113: 2015-12-08 | B113: 28 | C113: 23 | D113: 21 | E113: 72 | H113: 2015-12-08 | I113: 15.2 | J113: 100 | K113: 59.9 | N113: 14.17 | O113: 10 | P113: 12.11 | S113: 2015-12-08 | T113: 15.2 | U113: 34 | V113: 53.8 | Y113: 14.17 | Z113: 53.96 | AA113: 50.675 | AD113: 2015-12-08 | AE113: 2 | AF113: 0 | AG113: 37.6 | AH113: 4 | AJ113: 3.225 | AK113: 1.2 | AL113: -1.655 | AM113: 0.865 | AO113: 2015-12-08 | AP113: 0 | AQ113: 1 | AR113: 0.1 | AS113: 11.9 | AU113: 1.2 | AV113: 2.05 | AW113: -0.08 | AX113: 2.33 | AZ113: 2015-12-08 | BA113: 59.9 | BB113: 100 | BF113: 12.11 | BG113: 89.31 | BK113: 2015-12-08 | BL113: 7.7 | BM113: 5 | BN113: 0 | BO113: 0 | BQ113: 14.275 | BR113: 7.485 | BS113: 0.7 | BT113: 0.65 | BV113: 2015-12-08 | BW113: 7.9 | BX113: 19.7 | BY113: 30.3 | BZ113: 19.8 | CA113: 15.2 | CC113: 13.9 | CD113: 34.045 | CE113: 60.59 | CF113: 32.175 | CG113: 13.96 | CI113: 2015-12-08 | CJ113: 4 | CK113: 11.9 | CL113: 7.894736842 | CM113: 0 | CO113: 0.865 | CP113: 2.53 | CQ113: 0.6075027996 | CR113: 6.335700558
A114: 2015-12-11 | B114: 28 | C114: 23 | D114: 21 | E114: 72 | H114: 2015-12-11 | I114: 10.8 | J114: 0 | K114: 0 | N114: 13.96 | O114: 10 | P114: 11.36 | S114: 2015-12-11 | T114: 10.8 | U114: 53.4 | V114: 84 | Y114: 13.96 | Z114: 54.545 | AA114: 50.77 | AD114: 2015-12-11 | AE114: 4.5 | AF114: 3 | AG114: 14.2 | AH114: 0 | AJ114: 3.22 | AK114: 1.25 | AL114: -1.42 | AM114: 0.865 | AO114: 2015-12-11 | AP114: 3 | AQ114: 5 | AR114: -14.7 | AS114: 0 | AU114: 1.25 | AV114: 2.15 | AW114: -0.35 | AX114: 2.125 | AZ114: 2015-12-11 | BA114: 0 | BB114: 100 | BF114: 11.36 | BG114: 90.27 | BK114: 2015-12-11 | BL114: 11.1 | BM114: 6.8 | BN114: 2 | BO114: 1 | BQ114: 14.305 | BR114: 7.495 | BS114: 0.7 | BT114: 0.7 | BV114: 2015-12-11 | BW114: 24.9 | BX114: 45.8 | BY114: 62.2 | BZ114: 38.1 | CA114: 10.8 | CC114: 14.225 | CD114: 34.88 | CE114: 61.59 | CF114: 31.97 | CG114: 13.935 | CI114: 2015-12-11 | CJ114: 0 | CK114: 0 | CL114: 0 | CM114: 0 | CO114: 0.865 | CP114: 2.33 | CQ114: 0.6075027996 | CR114: 5.135700558
A115: 2015-12-12 | B115: 28 | C115: 23 | D115: 21 | E115: 72 | H115: 2015-12-12 | I115: 14.3 | J115: 0 | K115: 0 | N115: 13.935 | O115: 10 | P115: 10.74 | S115: 2015-12-12 | T115: 14.3 | U115: 63 | V115: 76.2 | Y115: 13.935 | Z115: 55.35 | AA115: 52.8 | AD115: 2015-12-12 | AE115: 3.2 | AF115: 2 | AG115: 57.7 | AH115: 0 | AJ115: 3.2 | AK115: 1.3 | AL115: 0.965 | AM115: 0.865 | AO115: 2015-12-12 | AP115: 2 | AQ115: 2 | AR115: 26.4 | AS115: 0 | AU115: 1.3 | AV115: 2.15 | AW115: 0.785 | AX115: 2.29 | AZ115: 2015-12-12 | BA115: 0 | BB115: 53.3 | BF115: 10.74 | BG115: 88.445 | BK115: 2015-12-12 | BL115: 12.5 | BM115: 6.8 | BN115: 0 | BO115: 2 | BQ115: 14.235 | BR115: 7.43 | BS115: 0.65 | BT115: 0.75 | BV115: 2015-12-12 | BW115: 13.4 | BX115: 17.4 | BY115: 52.4 | BZ115: 28.7 | CA115: 14.3 | CC115: 14.17 | CD115: 34.135 | CE115: 61.39 | CF115: 32.38 | CG115: 14.205 | CI115: 2015-12-12 | CJ115: 0 | CK115: 0 | CL115: 0 | CM115: 0 | CO115: 0.865 | CP115: 2.125 | CQ115: 0.6075027996 | CR115: 3.919484341
A116: 2015-12-15 | B116: 28 | C116: 24 | D116: 21 | E116: 73 | H116: 2015-12-15 | I116: 18.4 | J116: 0 | K116: 37.4 | N116: 14.205 | O116: 10 | P116: 11.33 | S116: 2015-12-15 | T116: 18.4 | U116: 44 | V116: 34.6 | Y116: 14.205 | Z116: 54.105 | AA116: 51.525 | AD116: 2015-12-15 | AE116: 2.9 | AF116: 1 | AG116: -25.3 | AH116: 0 | AJ116: 3.195 | AK116: 1.35 | AL116: -0.56 | AM116: 0.665 | AO116: 2015-12-15 | AP116: 1 | AQ116: 3 | AR116: -19.3 | AS116: 3.3 | AU116: 1.35 | AV116: 2.3 | AW116: -0.775 | AX116: 2.09 | AZ116: 2015-12-15 | BA116: 37.4 | BB116: 100 | BF116: 11.33 | BG116: 88.445 | BK116: 2015-12-15 | BL116: 13.6 | BM116: 8 | BN116: 2 | BO116: 1 | BQ116: 14.385 | BR116: 7.635 | BS116: 0.75 | BT116: 0.7 | BV116: 2015-12-15 | BW116: 9.4 | BX116: 21.8 | BY116: 44.4 | BZ116: 26.2 | CA116: 18.4 | CC116: 13.94 | CD116: 33.915 | CE116: 61.155 | CF116: 30.305 | CG116: 14.275 | CI116: 2015-12-15 | CJ116: 0 | CK116: 3.3 | CL116: 3.260869565 | CM116: 0 | CO116: 0.865 | CP116: 2.29 | CQ116: 0.7705462778 | CR116: 3.919484341
A117: 2015-12-17 | B117: 28 | C117: 24 | D117: 21 | E117: 73 | H117: 2015-12-17 | I117: 16.5 | J117: 0 | K117: 0 | N117: 14.275 | O117: 9.165 | P117: 11.035 | S117: 2015-12-17 | T117: 16.5 | U117: 49.7 | V117: 32.8 | Y117: 14.275 | Z117: 53.365 | AA117: 50.575 | AD117: 2015-12-17 | AE117: 1.6 | AF117: 0 | AG117: -17.2 | AH117: 0 | AJ117: 3.13 | AK117: 1.25 | AL117: -1.255 | AM117: 1.015 | AO117: 2015-12-17 | AP117: 0 | AQ117: 2 | AR117: -32 | AS117: 0 | AU117: 1.25 | AV117: 2.15 | AW117: -2.925 | AX117: 2.22 | AZ117: 2015-12-17 | BA117: 0 | BB117: 100 | BF117: 11.035 | BG117: 89.07 | BK117: 2015-12-17 | BL117: 15.9 | BM117: 7.2 | BN117: 2 | BO117: 0 | BQ117: 13.855 | BR117: 7.145 | BS117: 0.8 | BT117: 0.7 | BV117: 2015-12-17 | BW117: 5.9 | BX117: 18.3 | BY117: 57.7 | BZ117: 26.1 | CA117: 16.5 | CC117: 13.66 | CD117: 32.335 | CE117: 58.77 | CF117: 31.015 | CG117: 14.015 | CI117: 2015-12-17 | CJ117: 0 | CK117: 0 | CL117: 0 | CM117: 0 | CO117: 0.665 | CP117: 2.09 | CQ117: 0.7705462778 | CR117: 3.919484341
A118: 2015-12-19 | B118: 29 | C118: 24 | D118: 21 | E118: 74 | H118: 2015-12-19 | I118: 8.5 | J118: 50 | K118: 19.3 | N118: 14.015 | O118: 11.665 | P118: 11.02 | S118: 2015-12-19 | T118: 8.5 | U118: 54.1 | V118: 74.8 | Y118: 14.015 | Z118: 53.79 | AA118: 52.935 | AD118: 2015-12-19 | AE118: 4.7 | AF118: 2 | AG118: 74.8 | AH118: 7 | AJ118: 3.31 | AK118: 1.35 | AL118: 3.915 | AM118: 1.015 | AO118: 2015-12-19 | AP118: 2 | AQ118: 2 | AR118: 28 | AS118: 7 | AU118: 1.35 | AV118: 2.25 | AW118: -1.6 | AX118: 2.39 | AZ118: 2015-12-19 | BA118: 19.3 | BB118: 100 | BF118: 11.02 | BG118: 89.07 | BK118: 2015-12-19 | BL118: 9.1 | BM118: 5.2 | BN118: 0 | BO118: 1 | BQ118: 13.615 | BR118: 7.15 | BS118: 0.8 | BT118: 0.6 | BV118: 2015-12-19 | BW118: 33 | BX118: 47.2 | BY118: 64.3 | BZ118: 36.5 | CA118: 8.5 | CC118: 15.08 | CD118: 33.31 | CE118: 58.955 | CF118: 31.06 | CG118: 14.19 | CI118: 2015-12-19 | CJ118: 7 | CK118: 7 | CL118: 0 | CM118: 0 | CO118: 1.015 | CP118: 2.22 | CQ118: 0.7705462778 | CR118: 2.605615728
A119: 2015-12-21 | B119: 29 | C119: 24 | D119: 22 | E119: 75 | H119: 2015-12-21 | I119: 17.8 | J119: 0 | K119: 9.8 | N119: 14.19 | O119: 11.665 | P119: 10.885 | S119: 2015-12-21 | T119: 17.8 | U119: 62.9 | V119: 50.4 | Y119: 14.19 | Z119: 53.645 | AA119: 53.53 | AD119: 2015-12-21 | AE119: 2 | AF119: 0 | AG119: 0.6 | AH119: 0 | AJ119: 3.225 | AK119: 1.2 | AL119: 5.005 | AM119: 1.015 | AO119: 2015-12-21 | AP119: 0 | AQ119: 1 | AR119: 2 | AS119: 3.4 | AU119: 1.2 | AV119: 2 | AW119: -2.325 | AX119: 2.605 | AZ119: 2015-12-21 | BA119: 9.8 | BB119: 74.5 | BF119: 10.885 | BG119: 88.56 | BK119: 2015-12-21 | BL119: 20.2 | BM119: 10.2 | BN119: 0 | BO119: 0 | BQ119: 13.535 | BR119: 7.26 | BS119: 0.75 | BT119: 0.6 | BV119: 2015-12-21 | BW119: 6.8 | BX119: 29.3 | BY119: 68.2 | BZ119: 34.5 | CA119: 17.8 | CC119: 14.64 | CD119: 31.72 | CE119: 57.775 | CF119: 31.61 | CG119: 14.155 | CI119: 2015-12-21 | CJ119: 0 | CK119: 3.4 | CL119: 0 | CM119: 20.2247191 | CO119: 1.015 | CP119: 2.39 | CQ119: 0.7705462778 | CR119: 3.616851683
A120: 2015-12-22 | B120: 29 | C120: 25 | D120: 22 | E120: 76 | H120: 2015-12-22 | I120: 13.9 | J120: 0 | K120: 15.1 | N120: 14.155 | O120: 11.665 | P120: 11.64 | S120: 2015-12-22 | T120: 13.9 | U120: 64.9 | V120: 87.2 | Y120: 14.155 | Z120: 54.54 | AA120: 55.145 | AD120: 2015-12-22 | AE120: 5.2 | AF120: 1 | AG120: 36.2 | AH120: 0 | AJ120: 3.43 | AK120: 1.25 | AL120: 6.695 | AM120: 1.015 | AO120: 2015-12-22 | AP120: 1 | AQ120: 2 | AR120: 21.7 | AS120: 4.3 | AU120: 1.25 | AV120: 2.1 | AW120: -0.88 | AX120: 2.805 | AZ120: 2015-12-22 | BA120: 15.1 | BB120: 100 | BF120: 11.64 | BG120: 88.56 | BK120: 2015-12-22 | BL120: 13.1 | BM120: 6.6 | BN120: 1 | BO120: 0 | BQ120: 13.85 | BR120: 7.375 | BS120: 0.8 | BT120: 0.7 | BV120: 2015-12-22 | BW120: 22.6 | BX120: 30.8 | BY120: 56.6 | BZ120: 28.6 | CA120: 13.9 | CC120: 15.54 | CD120: 32.56 | CE120: 59.205 | CF120: 31.145 | CG120: 14.17 | CI120: 2015-12-22 | CJ120: 0 | CK120: 4.3 | CL120: 4.316546763 | CM120: 0 | CO120: 1.015 | CP120: 2.605 | CQ120: 0.9863736159 | CR120: 3.616851683
A121: 2015-12-26 | B121: 29 | C121: 25 | D121: 23 | E121: 77 | H121: 2015-12-26 | I121: 15 | J121: 0 | K121: 27.4 | N121: 14.17 | O121: 11.665 | P121: 12.48 | S121: 2015-12-26 | T121: 15 | U121: 56.8 | V121: 53.3 | Y121: 14.17 | Z121: 54.225 | AA121: 55.825 | AD121: 2015-12-26 | AE121: 2.3 | AF121: 0 | AG121: 1.8 | AH121: 0 | AJ121: 3.455 | AK121: 1.2 | AL121: 7.175 | AM121: 1.015 | AO121: 2015-12-26 | AP121: 0 | AQ121: 1 | AR121: 11.9 | AS121: 4 | AU121: 1.2 | AV121: 2.05 | AW121: -0.515 | AX121: 2.805 | AZ121: 2015-12-26 | BA121: 27.4 | BB121: 100 | BF121: 12.48 | BG121: 88.56 | BK121: 2015-12-26 | BL121: 14.2 | BM121: 7.3 | BN121: 0 | BO121: 2 | BQ121: 13.74 | BR121: 7.265 | BS121: 0.75 | BT121: 0.75 | BV121: 2015-12-26 | BW121: 9.1 | BX121: 17.7 | BY121: 56.8 | BZ121: 29.2 | CA121: 15 | CC121: 15.625 | CD121: 31.645 | CE121: 58.715 | CF121: 31.835 | CG121: 14.2 | CI121: 2015-12-26 | CJ121: 0 | CK121: 4 | CL121: 0 | CM121: 24 | CO121: 1.015 | CP121: 2.805 | CQ121: 0.9863736159 | CR121: 4.816851683
A122: 2015-12-27 | B122: 29 | C122: 25 | D122: 23 | E122: 77 | H122: 2015-12-27 | I122: 13.8 | J122: 0 | K122: 0 | N122: 14.2 | O122: 11.665 | P122: 12.48 | S122: 2015-12-27 | T122: 13.8 | U122: 66.5 | V122: 83.7 | Y122: 14.2 | Z122: 55.44 | AA122: 57.235 | AD122: 2015-12-27 | AE122: 9.4 | AF122: 3 | AG122: -0.4 | AH122: 0 | AJ122: 3.8 | AK122: 1.35 | AL122: 7.66 | AM122: 1.015 | AO122: 2015-12-27 | AP122: 3 | AQ122: 3 | AR122: 8.8 | AS122: 0 | AU122: 1.35 | AV122: 2.2 | AW122: 0.035 | AX122: 2.775 | AZ122: 2015-12-27 | BA122: 0 | BB122: 100 | BF122: 12.48 | BG122: 89.645 | BK122: 2015-12-27 | BL122: 16.6 | BM122: 7.1 | BN122: 3 | BO122: 1 | BQ122: 14.12 | BR122: 7.43 | BS122: 0.9 | BT122: 0.75 | BV122: 2015-12-27 | BW122: 41 | BX122: 57.4 | BY122: 72.5 | BZ122: 30.9 | CA122: 13.8 | CC122: 17.1 | CD122: 32.89 | CE122: 60.295 | CF122: 31.31 | CG122: 14.285 | CI122: 2015-12-27 | CJ122: 0 | CK122: 0 | CL122: 0 | CM122: 0 | CO122: 1.015 | CP122: 2.805 | CQ122: 0.9863736159 | CR122: 4.816851683
A123: 2015-12-29 | B123: 29 | C123: 26 | D123: 23 | E123: 78 | H123: 2015-12-29 | I123: 13.8 | J123: 0 | K123: 15 | N123: 14.285 | O123: 11.665 | P123: 12.6 | S123: 2015-12-29 | T123: 13.8 | U123: 38.8 | V123: 36.4 | Y123: 14.285 | Z123: 54.71 | AA123: 55.115 | AD123: 2015-12-29 | AE123: 2.3 | AF123: 0 | AG123: -20.1 | AH123: 0 | AJ123: 3.555 | AK123: 1.25 | AL123: 5.385 | AM123: 1.205 | AO123: 2015-12-29 | AP123: 0 | AQ123: 0 | AR123: -27.5 | AS123: 4.4 | AU123: 1.25 | AV123: 2.05 | AW123: -2.35 | AX123: 3.155 | AZ123: 2015-12-29 | BA123: 15 | BB123: 91.1 | BF123: 12.6 | BG123: 89.2 | BK123: 2015-12-29 | BL123: 11 | BM123: 6.7 | BN123: 0 | BO123: 1 | BQ123: 13.94 | BR123: 7.37 | BS123: 0.9 | BT123: 0.75 | BV123: 2015-12-29 | BW123: 9.8 | BX123: 14.2 | BY123: 47.8 | BZ123: 29.1 | CA123: 13.8 | CC123: 15.79 | CD123: 31.34 | CE123: 59.06 | CF123: 33.67 | CG123: 14.31 | CI123: 2015-12-29 | CJ123: 0 | CK123: 4.4 | CL123: 4.347826087 | CM123: 0 | CO123: 1.015 | CP123: 2.775 | CQ123: 1.20376492 | CR123: 3.329248377
A124: 2015-12-31 | B124: 30 | C124: 27 | D124: 23 | E124: 80 | H124: 2015-12-31 | I124: 15.8 | J124: 25 | K124: 20.5 | N124: 14.31 | O124: 12.915 | P124: 13.625 | S124: 2015-12-31 | T124: 15.8 | U124: 68.9 | V124: 58.4 | Y124: 14.31 | Z124: 55.965 | AA124: 58.035 | AD124: 2015-12-31 | AE124: 5.6 | AF124: 4 | AG124: 10.2 | AH124: 3.8 | AJ124: 3.835 | AK124: 1.45 | AL124: 10.325 | AM124: 1.205 | AO124: 2015-12-31 | AP124: 4 | AQ124: 4 | AR124: 15 | AS124: 7.6 | AU124: 1.45 | AV124: 2.2 | AW124: 0.29 | AX124: 2.97 | AZ124: 2015-12-31 | BA124: 20.5 | BB124: 100 | BF124: 13.625 | BG124: 89.2 | BK124: 2015-12-31 | BL124: 22.7 | BM124: 14.6 | BN124: 1 | BO124: 1 | BQ124: 14.42 | BR124: 7.995 | BS124: 0.9 | BT124: 0.7 | BV124: 2015-12-31 | BW124: 21.2 | BX124: 49.2 | BY124: 86 | BZ124: 55.5 | CA124: 15.8 | CC124: 16.85 | CD124: 33.175 | CE124: 60.795 | CF124: 34.045 | CG124: 14.42 | CI124: 2015-12-31 | CJ124: 3.8 | CK124: 7.6 | CL124: 3.797468354 | CM124: 0 | CO124: 1.205 | CP124: 3.155 | CQ124: 1.393638338 | CR124: 3.329248377
A125: 2016-01-02 | B125: 30 | C125: 27 | D125: 23 | E125: 80 | H125: 2016-01-02 | I125: 18.3 | J125: 0 | K125: 0 | N125: 14.42 | O125: 12.915 | P125: 13.08 | S125: 2016-01-02 | T125: 18.3 | U125: 59 | V125: 52.7 | Y125: 14.42 | Z125: 56.31 | AA125: 57.755 | AD125: 2016-01-02 | AE125: 4.9 | AF125: 1 | AG125: 9.3 | AH125: 0 | AJ125: 3.82 | AK125: 1.4 | AL125: 10.175 | AM125: 0.955 | AO125: 2016-01-02 | AP125: 1 | AQ125: 3 | AR125: 11.9 | AS125: 0 | AU125: 1.4 | AV125: 2.25 | AW125: 1.06 | AX125: 2.72 | AZ125: 2016-01-02 | BA125: 0 | BB125: 83.2 | BF125: 13.08 | BG125: 88.36 | BK125: 2016-01-02 | BL125: 19.5 | BM125: 12.7 | BN125: 2 | BO125: 0 | BQ125: 14.505 | BR125: 8.17 | BS125: 0.95 | BT125: 0.7 | BV125: 2016-01-02 | BW125: 16.2 | BX125: 36.9 | BY125: 64.2 | BZ125: 41.7 | CA125: 18.3 | CC125: 16.695 | CD125: 33.34 | CE125: 60.695 | CF125: 34.38 | CG125: 14.47 | CI125: 2016-01-02 | CJ125: 0 | CK125: 0 | CL125: 0 | CM125: 0 | CO125: 1.205 | CP125: 2.97 | CQ125: 1.393638338 | CR125: 2.211235955
A126: 2016-01-03 | B126: 30 | C126: 27 | D126: 23 | E126: 80 | H126: 2016-01-03 | I126: 13 | J126: 0 | K126: 0 | N126: 14.47 | O126: 10.415 | P126: 12.375 | S126: 2016-01-03 | T126: 13 | U126: 57.5 | V126: 59.7 | Y126: 14.47 | Z126: 55.765 | AA126: 57.915 | AD126: 2016-01-03 | AE126: 2.7 | AF126: 2 | AG126: 19.4 | AH126: 0 | AJ126: 3.82 | AK126: 1.45 | AL126: 11.28 | AM126: 0.74 | AO126: 2016-01-03 | AP126: 2 | AQ126: 3 | AR126: 4.4 | AS126: 0 | AU126: 1.45 | AV126: 2.3 | AW126: 1.08 | AX126: 2.295 | AZ126: 2016-01-03 | BA126: 0 | BB126: 87 | BF126: 12.375 | BG126: 87.71 | BK126: 2016-01-03 | BL126: 14.9 | BM126: 9.2 | BN126: 2 | BO126: 0 | BQ126: 14.435 | BR126: 8.275 | BS126: 1.05 | BT126: 0.75 | BV126: 2016-01-03 | BW126: 12.3 | BX126: 34.7 | BY126: 68.8 | BZ126: 42.3 | CA126: 13 | CC126: 16.635 | CD126: 32.685 | CE126: 60.06 | CF126: 34.205 | CG126: 14.39 | CI126: 2016-01-03 | CJ126: 0 | CK126: 0 | CL126: 0 | CM126: 0 | CO126: 0.955 | CP126: 2.72 | CQ126: 1.393638338 | CR126: 2.211235955
A127: 2016-01-05 | B127: 30 | C127: 27 | D127: 23 | E127: 80 | H127: 2016-01-05 | I127: 12.5 | J127: 0 | K127: 0 | N127: 14.39 | O127: 8.75 | P127: 11.175 | S127: 2016-01-05 | T127: 12.5 | U127: 46.7 | V127: 9.4 | Y127: 14.39 | Z127: 55.525 | AA127: 54.755 | AD127: 2016-01-05 | AE127: 0.8 | AF127: 0 | AG127: -40.9 | AH127: 0 | AJ127: 3.725 | AK127: 1.3 | AL127: 6.9 | AM127: 0.74 | AO127: 2016-01-05 | AP127: 0 | AQ127: 1 | AR127: -13.6 | AS127: 0 | AU127: 1.3 | AV127: 2.15 | AW127: -0.265 | AX127: 2.295 | AZ127: 2016-01-05 | BA127: 0 | BB127: 68.1 | BF127: 11.175 | BG127: 88.48 | BK127: 2016-01-05 | BL127: 14 | BM127: 6.7 | BN127: 1 | BO127: 1 | BQ127: 14.61 | BR127: 8.195 | BS127: 1.05 | BT127: 0.8 | BV127: 2016-01-05 | BW127: 4 | BX127: 18.8 | BY127: 67.3 | BZ127: 32 | CA127: 12.5 | CC127: 16.27 | CD127: 32.14 | CE127: 61.18 | CF127: 34.88 | CG127: 14.46 | CI127: 2016-01-05 | CJ127: 0 | CK127: 0 | CL127: 0 | CM127: 0 | CO127: 0.74 | CP127: 2.295 | CQ127: 1.180872381 | CR127: 2.211235955
A128: 2016-01-07 | B128: 30 | C128: 27 | D128: 23 | E128: 80 | H128: 2016-01-07 | I128: 14.3 | J128: 0 | K128: 0 | N128: 14.46 | O128: 8.75 | P128: 11.175 | S128: 2016-01-07 | T128: 14.3 | U128: 48.3 | V128: 64.8 | Y128: 14.46 | Z128: 56.34 | AA128: 56.14 | AD128: 2016-01-07 | AE128: 1.8 | AF128: 2 | AG128: 25.1 | AH128: 0 | AJ128: 3.72 | AK128: 1.35 | AL128: 9.24 | AM128: 0.74 | AO128: 2016-01-07 | AP128: 2 | AQ128: 3 | AR128: 2.2 | AS128: 0 | AU128: 1.35 | AV128: 2.2 | AW128: 1.365 | AX128: 2.295 | AZ128: 2016-01-07 | BA128: 0 | BB128: 100 | BF128: 11.175 | BG128: 89.035 | BK128: 2016-01-07 | BL128: 14.3 | BM128: 6.8 | BN128: 1 | BO128: 1 | BQ128: 15.02 | BR128: 8.375 | BS128: 1.1 | BT128: 0.9 | BV128: 2016-01-07 | BW128: 7.5 | BX128: 22.9 | BY128: 60.1 | BZ128: 28.4 | CA128: 14.3 | CC128: 16.2 | CD128: 32.62 | CE128: 62.765 | CF128: 34.735 | CG128: 14.425 | CI128: 2016-01-07 | CJ128: 0 | CK128: 0 | CL128: 0 | CM128: 0 | CO128: 0.74 | CP128: 2.295 | CQ128: 1.180872381 | CR128: 2.211235955
A129: 2016-01-09 | B129: 30 | C129: 27 | D129: 23 | E129: 80 | H129: 2016-01-09 | I129: 16 | J129: 0 | K129: 0 | N129: 14.425 | O129: 8.75 | P129: 10.68 | S129: 2016-01-09 | T129: 16 | U129: 58.4 | V129: 11.3 | Y129: 14.425 | Z129: 56.7 | AA129: 55.065 | AD129: 2016-01-09 | AE129: 0.7 | AF129: 0 | AG129: -21.6 | AH129: 0 | AJ129: 3.605 | AK129: 1.3 | AL129: 9.495 | AM129: 0.74 | AO129: 2016-01-09 | AP129: 0 | AQ129: 3 | AR129: 8.6 | AS129: 0 | AU129: 1.3 | AV129: 2.2 | AW129: 2.925 | AX129: 2.295 | AZ129: 2016-01-09 | BA129: 0 | BB129: 88.1 | BF129: 10.68 | BG129: 88.44 | BK129: 2016-01-09 | BL129: 17.1 | BM129: 8.9 | BN129: 0 | BO129: 3 | BQ129: 15.105 | BR129: 8.315 | BS129: 1 | BT129: 0.8 | BV129: 2016-01-09 | BW129: 2.8 | BX129: 33.5 | BY129: 63.9 | BZ129: 33.2 | CA129: 16 | CC129: 15.805 | CD129: 32.75 | CE129: 63.19 | CF129: 34.28 | CG129: 14.355 | CI129: 2016-01-09 | CJ129: 0 | CK129: 0 | CL129: 0 | CM129: 0 | CO129: 0.74 | CP129: 2.295 | CQ129: 1.180872381 | CR129: 2.211235955
A130: 2016-01-15 | B130: 30 | C130: 27 | D130: 23 | E130: 80 | H130: 2016-01-15 | I130: 11.8 | J130: 0 | K130: 0 | N130: 14.355 | O130: 8.75 | P130: 10.68 | S130: 2016-01-15 | T130: 11.8 | U130: 45.2 | V130: 17.5 | Y130: 14.355 | Z130: 55.63 | AA130: 53.525 | AD130: 2016-01-15 | AE130: 1.1 | AF130: 0 | AG130: 3.6 | AH130: 0 | AJ130: 3.425 | AK130: 1.25 | AL130: 8.835 | AM130: 0.74 | AO130: 2016-01-15 | AP130: 0 | AQ130: 0 | AR130: 14.4 | AS130: 0 | AU130: 1.25 | AV130: 2.15 | AW130: 2.785 | AX130: 2.665 | AZ130: 2016-01-15 | BA130: 0 | BB130: 86.3 | BF130: 10.68 | BG130: 89.07 | BK130: 2016-01-15 | BL130: 9.6 | BM130: 3 | BN130: 1 | BO130: 0 | BQ130: 14.755 | BR130: 8.2 | BS130: 0.95 | BT130: 0.8 | BV130: 2016-01-15 | BW130: 5.4 | BX130: 25 | BY130: 48.7 | BZ130: 15 | CA130: 11.8 | CC130: 15.005 | CD130: 32.32 | CE130: 61.87 | CF130: 33.11 | CG130: 14.51 | CI130: 2016-01-15 | CJ130: 0 | CK130: 0 | CL130: 0 | CM130: 0 | CO130: 0.74 | CP130: 2.295 | CQ130: 1.180872381 | CR130: 2.211235955
A131: 2016-01-16 | B131: 30 | C131: 29 | D131: 23 | E131: 82 | H131: 2016-01-16 | I131: 16.2 | J131: 0 | K131: 28.1 | N131: 14.51 | O131: 8.75 | P131: 11.625 | S131: 2016-01-16 | T131: 16.2 | U131: 44.3 | V131: 33.8 | Y131: 14.51 | Z131: 54.36 | AA131: 51.965 | AD131: 2016-01-16 | AE131: 1 | AF131: 0 | AG131: -8.7 | AH131: 0 | AJ131: 3.21 | AK131: 1.25 | AL131: 8.065 | AM131: 0.74 | AO131: 2016-01-16 | AP131: 0 | AQ131: 2 | AR131: 21.7 | AS131: 7.4 | AU131: 1.25 | AV131: 2.25 | AW131: 3.625 | AX131: 2.665 | AZ131: 2016-01-16 | BA131: 28.1 | BB131: 88.6 | BF131: 11.625 | BG131: 89.785 | BK131: 2016-01-16 | BL131: 11.7 | BM131: 7.1 | BN131: 0 | BO131: 0 | BQ131: 14.6 | BR131: 8.01 | BS131: 0.9 | BT131: 0.8 | BV131: 2016-01-16 | BW131: 3.8 | BX131: 22.2 | BY131: 43.2 | BZ131: 26.4 | CA131: 16.2 | CC131: 13.995 | CD131: 31.445 | CE131: 60.65 | CF131: 32.075 | CG131: 14.63 | CI131: 2016-01-16 | CJ131: 0 | CK131: 7.4 | CL131: 7.407407407 | CM131: 0 | CO131: 0.74 | CP131: 2.665 | CQ131: 1.551242751 | CR131: 2.211235955
A132: 2016-01-19 | B132: 30 | C132: 29 | D132: 23 | E132: 82 | H132: 2016-01-19 | I132: 16.7 | J132: 0 | K132: 0 | N132: 14.63 | O132: 8.75 | P132: 11.625 | S132: 2016-01-19 | T132: 16.7 | U132: 64.6 | V132: 65.9 | Y132: 14.63 | Z132: 54.05 | AA132: 52.035 | AD132: 2016-01-19 | AE132: 5.1 | AF132: 0 | AG132: 28.5 | AH132: 0 | AJ132: 3.19 | AK132: 1.05 | AL132: 9.24 | AM132: 0.71 | AO132: 2016-01-19 | AP132: 0 | AQ132: 1 | AR132: 13.9 | AS132: 0 | AU132: 1.05 | AV132: 2.1 | AW132: 4.195 | AX132: 2.24 | AZ132: 2016-01-19 | BA132: 0 | BB132: 73.9 | BF132: 11.625 | BG132: 89.705 | BK132: 2016-01-19 | BL132: 16.9 | BM132: 10.9 | BN132: 1 | BO132: 1 | BQ132: 14.285 | BR132: 7.84 | BS132: 0.95 | BT132: 0.8 | BV132: 2016-01-19 | BW132: 18.2 | BX132: 31.2 | BY132: 60.8 | BZ132: 39.3 | CA132: 16.7 | CC132: 13.76 | CD132: 29.7 | CE132: 58.81 | CF132: 33.555 | CG132: 14.755 | CI132: 2016-01-19 | CJ132: 0 | CK132: 0 | CL132: 0 | CM132: 0 | CO132: 0.74 | CP132: 2.665 | CQ132: 1.551242751 | CR132: 2.211235955
A133: 2016-01-21 | B133: 31 | C133: 29 | D133: 23 | E133: 83 | H133: 2016-01-21 | I133: 17.7 | J133: 16.7 | K133: 6.9 | N133: 14.755 | O133: 4.585 | P133: 8.975 | S133: 2016-01-21 | T133: 17.7 | U133: 64.9 | V133: 74.9 | Y133: 14.755 | Z133: 55.595 | AA133: 53.09 | AD133: 2016-01-21 | AE133: 5.3 | AF133: 4 | AG133: 15.8 | AH133: 3.4 | AJ133: 3.355 | AK133: 1.25 | AL133: 8.15 | AM133: 0.71 | AO133: 2016-01-21 | AP133: 4 | AQ133: 7 | AR133: 26.3 | AS133: 3.4 | AU133: 1.25 | AV133: 2.4 | AW133: 5.505 | AX133: 2.24 | AZ133: 2016-01-21 | BA133: 6.9 | BB133: 100 | BF133: 8.975 | BG133: 89.705 | BK133: 2016-01-21 | BL133: 25 | BM133: 14.5 | BN133: 2 | BO133: 0 | BQ133: 15.15 | BR133: 8.315 | BS133: 1.05 | BT133: 0.85 | BV133: 2016-01-21 | BW133: 17.9 | BX133: 51.7 | BY133: 85 | BZ133: 49.4 | CA133: 17.7 | CC133: 14.26 | CD133: 31.3 | CE133: 61.545 | CF133: 33.905 | CG133: 14.865 | CI133: 2016-01-21 | CJ133: 3.4 | CK133: 3.4 | CL133: 0 | CM133: 0 | CO133: 0.71 | CP133: 2.24 | CQ133: 1.156505909 | CR133: 2.211235955
A134: 2016-01-23 | B134: 31 | C134: 29 | D134: 23 | E134: 83 | H134: 2016-01-23 | I134: 13 | J134: 0 | K134: 0 | N134: 14.865 | O134: 4.585 | P134: 8.975 | S134: 2016-01-23 | T134: 13 | U134: 75.3 | V134: 65.1 | Y134: 14.865 | Z134: 56.69 | AA134: 52.145 | AD134: 2016-01-23 | AE134: 6 | AF134: 2 | AG134: 4.4 | AH134: 0 | AJ134: 3.43 | AK134: 1.2 | AL134: 7.66 | AM134: 0.95 | AO134: 2016-01-23 | AP134: 2 | AQ134: 4 | AR134: 6.5 | AS134: 0 | AU134: 1.2 | AV134: 2.35 | AW134: 6.565 | AX134: 2.48 | AZ134: 2016-01-23 | BA134: 0 | BB134: 100 | BF134: 8.975 | BG134: 89.705 | BK134: 2016-01-23 | BL134: 20.2 | BM134: 9.8 | BN134: 3 | BO134: 2 | BQ134: 15.605 | BR134: 8.465 | BS134: 1.1 | BT134: 0.75 | BV134: 2016-01-23 | BW134: 27.8 | BX134: 60.3 | BY134: 93.2 | BZ134: 45.1 | CA134: 13 | CC134: 14.405 | CD134: 32.025 | CE134: 63.095 | CF134: 33.62 | CG134: 14.78 | CI134: 2016-01-23 | CJ134: 0 | CK134: 0 | CL134: 0 | CM134: 0 | CO134: 0.71 | CP134: 2.24 | CQ134: 1.156505909 | CR134: 2.211235955
A135: 2016-01-25 | B135: 32 | C135: 29 | D135: 23 | E135: 84 | H135: 2016-01-25 | I135: 12.6 | J135: 25 | K135: 20.7 | N135: 14.78 | O135: 5.835 | P135: 10.01 | S135: 2016-01-25 | T135: 12.6 | U135: 66.1 | V135: 100 | Y135: 14.78 | Z135: 56.845 | AA135: 53.335 | AD135: 2016-01-25 | AE135: 2.9 | AF135: 3 | AG135: 24.3 | AH135: 4.8 | AJ135: 3.415 | AK135: 1.25 | AL135: 5.99 | AM135: 0.95 | AO135: 2016-01-25 | AP135: 3 | AQ135: 4 | AR135: 22.2 | AS135: 4.8 | AU135: 1.25 | AV135: 2.45 | AW135: 6.355 | AX135: 2.315 | AZ135: 2016-01-25 | BA135: 20.7 | BB135: 100 | BF135: 10.01 | BG135: 92.04 | BK135: 2016-01-25 | BL135: 9 | BM135: 4.8 | BN135: 0 | BO135: 0 | BQ135: 15.43 | BR135: 8.365 | BS135: 1.1 | BT135: 0.7 | BV135: 2016-01-25 | BW135: 13.8 | BX135: 23 | BY135: 42.7 | BZ135: 23 | CA135: 12.6 | CC135: 14.425 | CD135: 32.305 | CE135: 62.61 | CF135: 33.09 | CG135: 14.635 | CI135: 2016-01-25 | CJ135: 4.8 | CK135: 4.8 | CL135: 0 | CM135: 0 | CO135: 0.95 | CP135: 2.48 | CQ135: 1.156505909 | CR135: 2.211235955
A136: 2016-02-02 | B136: 32 | C136: 29 | D136: 23 | E136: 84 | H136: 2016-02-02 | I136: 15.5 | J136: 0 | K136: 24.9 | N136: 14.635 | O136: 5.835 | P136: 9.385 | S136: 2016-02-02 | T136: 15.5 | U136: 51.6 | V136: 51.1 | Y136: 14.635 | Z136: 57.225 | AA136: 54.16 | AD136: 2016-02-02 | AE136: 2.8 | AF136: 1 | AG136: 0.9 | AH136: 0 | AJ136: 3.41 | AK136: 1.25 | AL136: 7.3 | AM136: 0.95 | AO136: 2016-02-02 | AP136: 1 | AQ136: 1 | AR136: -4.4 | AS136: 0 | AU136: 1.25 | AV136: 2.35 | AW136: 7.1 | AX136: 2.315 | AZ136: 2016-02-02 | BA136: 24.9 | BB136: 100 | BF136: 9.385 | BG136: 92.04 | BK136: 2016-02-02 | BL136: 11.7 | BM136: 4 | BN136: 1 | BO136: 0 | BQ136: 15.335 | BR136: 8.165 | BS136: 1.05 | BT136: 0.75 | BV136: 2016-02-02 | BW136: 10.9 | BX136: 14.7 | BY136: 45.3 | BZ136: 15.6 | CA136: 15.5 | CC136: 14.5 | CD136: 31.95 | CE136: 62.655 | CF136: 33.145 | CG136: 14.66 | CI136: 2016-02-02 | CJ136: 0 | CK136: 0 | CL136: 0 | CM136: 0 | CO136: 0.95 | CP136: 2.315 | CQ136: 0.9934624306 | CR136: 2.211235955
